Workbook

Sheet Cleanup
A1: Use this sheet to format your information before copy-pasting it into the "Interface" sheet.
A2: 101 | D2: 1 | E2: 1739 | F2: 4143 | G2: 2022 | H2: 5822 | I2: 2136 | J2: 4702 | K2: 64 | L2: 41
A3: 111 | D3: 2 | E3: 4191 | F3: 2781 | G3: 4241 | H3: 1850 | I3: 4292 | J3: 4296 | K3: 62 | L3: 61
A4: 171 | D4: 3 | E4: 3110 | F4: 1756 | G4: 101 | H4: 4096 | I4: 4247 | J4: 2725 | K4: 91 | L4: 42
A5: 291 | D5: 4 | E5: 3390 | F5: 3135 | G5: 3352 | H5: 4676 | I5: 2709 | J5: 931 | K5: 54 | L5: 45
A6: 375 | D6: 5 | E6: 291 | F6: 5350 | G6: 3488 | H6: 1625 | I6: 2039 | J6: 2338 | K6: 72 | L6: 121
A7: 379 | D7: 6 | E7: 111 | F7: 375 | G7: 2151 | H7: 3061 | I7: 4979 | J7: 5934 | K7: 94 | L7: 64
A8: 931 | D8: 7 | E8: 4655 | F8: 3695 | G8: 171 | H8: 1736 | I8: 4645 | J8: 2451 | K8: 105 | L8: 158
A9: 1625 | D9: 8 | E9: 5847 | F9: 3067 | G9: 2062 | H9: 5125 | I9: 1781 | J9: 379 | K9: 122 | L9: 86
A10: 1736 | D10: 9 | E10: 4329 | F10: 2704 | G10: 3352 | H10: 4787 | I10: 6237 | J10: 2022 | K10: 81 | L10: 47
A11: 1739 | D11: 10 | E11: 1756 | F11: 4143 | G11: 1625 | H11: 375 | I11: 3135 | J11: 1739 | K11: 112 | L11: 65
A12: 1756 | D12: 11 | E12: 2709 | F12: 1736 | G12: 3695 | H12: 1850 | I12: 2338 | J12: 5934 | K12: 128 | L12: 75
A13: 1781 | D13: 12 | E13: 5350 | F13: 171 | G13: 4191 | H13: 3390 | I13: 5125 | J13: 3488 | K13: 40 | L13: 57
A14: 1850 | D14: 13 | E14: 2781 | F14: 4979 | G14: 931 | H14: 3061 | I14: 2062 | J14: 4645 | K14: 70 | L14: 132
A15: 2022 | D15: 14 | E15: 111 | F15: 101 | G15: 4247 | H15: 3067 | I15: 4241 | J15: 291 | K15: 102 | L15: 83
A16: 2039 | D16: 15 | E16: 2151 | F16: 4702 | G16: 4655 | H16: 4329 | I16: 3110 | J16: 4296 | K16: 47 | L16: 42
A17: 2062 | D17: 16 | E17: 4096 | F17: 2704 | G17: 4676 | H17: 4292 | I17: 5822 | J17: 5847 | K17: 60 | L17: 88
A18: 2136 | D18: 17 | E18: 6237 | F18: 2136 | G18: 2725 | H18: 379 | I18: 4787 | J18: 2039 | K18: 52 | L18: 116
A19: 2151 | D19: 18 | E19: 2451 | F19: 4143 | G19: 3061 | H19: 1781 | I19: 4247 | J19: 3390 | K19: 137 | L19: 49
A20: 2338 | D20: 19 | E20: 1739 | F20: 2338 | G20: 4296 | H20: 4329 | I20: 1756 | J20: 931 | K20: 87 | L20: 114
A21: 2451 | D21: 20 | E21: 2781 | F21: 4655 | G21: 2704 | H21: 3135 | I21: 101 | J21: 5350 | K21: 92 | L21: 72
A22: 2704 | D22: 21 | E22: 5125 | F22: 3695 | G22: 375 | H22: 291 | I22: 4096 | J22: 4292 | K22: 70 | L22: 65
A23: 2709 | D23: 22 | E23: 111 | F23: 2039 | G23: 2022 | H23: 4676 | I23: 1625 | J23: 3110 | K23: 115 | L23: 54
A24: 2725 | D24: 23 | E24: 3488 | F24: 5822 | G24: 2151 | H24: 2709 | I24: 4702 | J24: 3067 | K24: 75 | L24: 55
A25: 2781 | D25: 24 | E25: 4979 | F25: 2062 | G25: 4191 | H25: 6237 | I25: 1736 | J25: 5847 | K25: 84 | L25: 104
A26: 3061 | D26: 25 | E26: 2725 | F26: 4787 | G26: 3352 | H26: 171 | I26: 1781 | J26: 1850 | K26: 64 | L26: 76
A27: 3067 | D27: 26 | E27: 379 | F27: 2136 | G27: 2451 | H27: 4645 | I27: 4241 | J27: 5934 | K27: 127 | L27: 93
A28: 3110 | D28: 27 | E28: 111 | F28: 1625 | G28: 4296 | H28: 3390 | I28: 3695 | J28: 2704 | K28: 112 | L28: 72
A29: 3135 | D29: 28 | E29: 4329 | F29: 2709 | G29: 5822 | H29: 2781 | I29: 375 | J29: 3061 | K29: 79 | L29: 91
A30: 3352 | D30: 29 | E30: 931 | F30: 4787 | G30: 1850 | H30: 5847 | I30: 101 | J30: 4143 | K30: 70 | L30: 96
A31: 3390 | D31: 30 | E31: 1739 | F31: 2725 | G31: 2451 | H31: 2151 | I31: 2338 | J31: 2062 | K31: 75 | L31: 109
A32: 3488 | D32: 31 | E32: 4191 | F32: 4702 | G32: 5934 | H32: 1756 | I32: 5350 | J32: 1781 | K32: 32 | L32: 76
A33: 3695 | D33: 32 | E33: 4096 | F33: 6237 | G33: 379 | H33: 3488 | I33: 4247 | J33: 4655 | K33: 91 | L33: 85
A34: 4096 | D34: 33 | E34: 3067 | F34: 4645 | G34: 4292 | H34: 2022 | I34: 3352 | J34: 1736 | K34: 61 | L34: 105
A35: 4143 | D35: 34 | E35: 5125 | F35: 3110 | G35: 2039 | H35: 4241 | I35: 3135 | J35: 4979 | K35: 31 | L35: 95
A36: 4191 | D36: 35 | E36: 2136 | F36: 291 | G36: 5934 | H36: 4676 | I36: 171 | J36: 2062 | K36: 49 | L36: 63
A37: 4241 | D37: 36 | E37: 4702 | F37: 375 | G37: 1756 | H37: 111 | I37: 2704 | J37: 6237 | K37: 80 | L37: 132
A38: 4247 | D38: 37 | E38: 2338 | F38: 3061 | G38: 2725 | H38: 5350 | I38: 3067 | J38: 379 | K38: 91 | L38: 40
A39: 4292 | D39: 38 | E39: 4241 | F39: 5847 | G39: 3110 | H39: 4143 | I39: 4329 | J39: 1736 | K39: 79 | L39: 119
A40: 4296 | D40: 39 | E40: 4191 | F40: 5822 | G40: 3695 | H40: 4655 | I40: 931 | J40: 3135 | K40: 84 | L40: 95
A41: 4329 | D41: 40 | E41: 2022 | F41: 3390 | G41: 2781 | H41: 4787 | I41: 291 | J41: 1739 | K41: 61 | L41: 72
A42: 4645 | D42: 41 | E42: 5125 | F42: 2451 | G42: 4979 | H42: 3488 | I42: 4676 | J42: 4296 | K42: 75 | L42: 66
A43: 4655 | D43: 42 | E43: 2709 | F43: 4292 | G43: 1625 | H43: 171 | I43: 2136 | J43: 4247 | K43: 69 | L43: 65
A44: 4676 | D44: 43 | E44: 1781 | F44: 3352 | G44: 4645 | H44: 2039 | I44: 101 | J44: 4096 | K44: 69 | L44: 86
A45: 4702 | D45: 44 | E45: 1850 | F45: 4655 | G45: 291 | H45: 2151 | I45: 1756 | J45: 3061 | K45: 73 | L45: 100
A46: 4787 | D46: 45 | E46: 3110 | F46: 3067 | G46: 375 | H46: 2451 | I46: 3390 | J46: 4191 | K46: 66 | L46: 105
A47: 4979 | D47: 46 | E47: 379 | F47: 4296 | G47: 4979 | H47: 4292 | I47: 171 | J47: 2022 | K47: 82 | L47: 86
A48: 5125 | D48: 47 | E48: 1736 | F48: 5822 | G48: 4676 | H48: 101 | I48: 4329 | J48: 1625 | K48: 100 | L48: 100
A49: 5350 | D49: 48 | E49: 6237 | F49: 1781 | G49: 2151 | H49: 3135 | I49: 3695 | J49: 2136 | K49: 77 | L49: 54
A50: 5822 | D50: 49 | E50: 4241 | F50: 4787 | G50: 5350 | H50: 3352 | I50: 2062 | J50: 2709 | K50: 84 | L50: 77
A51: 5847 | D51: 50 | E51: 1739 | F51: 1850 | G51: 2039 | H51: 111 | I51: 4096 | J51: 5847 | K51: 65 | L51: 101
A52: 5934 | D52: 51 | E52: 4247 | F52: 5125 | G52: 4702 | H52: 2338 | I52: 2781 | J52: 4645 | K52: 7 | L52: 94
A53: 6237 | D53: 52 | E53: 5934 | F53: 931 | G53: 4143 | H53: 2725 | I53: 3488 | J53: 2704 | K53: 111 | L53: 65
D54: 53 | E54: 3695 | F54: 3061 | G54: 1625 | H54: 4787 | I54: 4191 | J54: 3110 | K54: 90 | L54: 57
D55: 54 | E55: 1756 | F55: 1739 | G55: 2709 | H55: 4292 | I55: 2039 | J55: 2451 | K55: 87 | L55: 98
D56: 55 | E56: 2338 | F56: 291 | G56: 4247 | H56: 5822 | I56: 3352 | J56: 4979 | K56: 104 | L56: 67
D57: 56 | E57: 4676 | F57: 4655 | G57: 6237 | H57: 3067 | I57: 4143 | J57: 2781 | K57: 60 | L57: 108
D58: 57 | E58: 2062 | F58: 1781 | G58: 3488 | H58: 4329 | I58: 1850 | J58: 111 | K58: 100 | L58: 79
D59: 58 | E59: 4241 | F59: 4096 | G59: 2022 | H59: 2151 | I59: 5934 | J59: 3390 | K59: 96 | L59: 29
D60: 59 | E60: 1736 | F60: 2704 | G60: 3135 | H60: 4702 | I60: 379 | J60: 2725 | K60: 114 | L60: 71
D61: 60 | E61: 4296 | F61: 5350 | G61: 5847 | H61: 375 | I61: 2136 | J61: 4645 | K61: 65 | L61: 76
D62: 61 | E62: 101 | F62: 931 | G62: 1739 | H62: 171 | I62: 5125 | J62: 6237 | K62: 82 | L62: 80
D63: 62 | E63: 5934 | F63: 2062 | G63: 2039 | H63: 3390 | I63: 5822 | J63: 4655 | K63: 108 | L63: 95
D64: 63 | E64: 4096 | F64: 3067 | G64: 4979 | H64: 1625 | I64: 4787 | J64: 4702 | K64: 74 | L64: 102
D65: 64 | E65: 1736 | F65: 3061 | G65: 3488 | H65: 3352 | I65: 1756 | J65: 2136 | K65: 112 | L65: 98
D66: 65 | E66: 4292 | F66: 2338 | G66: 4329 | H66: 101 | I66: 171 | J66: 2151 | K66: 104 | L66: 78
D67: 66 | E67: 1781 | F67: 5847 | G67: 2704 | H67: 291 | I67: 2781 | J67: 3110 | K67: 83 | L67: 80
D68: 67 | E68: 3695 | F68: 4645 | G68: 4676 | H68: 2725 | I68: 4241 | J68: 375 | K68: 74 | L68: 80
D69: 68 | E69: 1850 | F69: 5350 | G69: 2022 | H69: 931 | I69: 2451 | J69: 4247 | K69: 69 | L69: 80
D70: 69 | E70: 111 | F70: 2709 | G70: 379 | H70: 5125 | I70: 4191 | J70: 4143 | K70: 140 | L70: 88
D71: 70 | E71: 3135 | F71: 4329 | G71: 291 | H71: 4296 | I71: 5934 | J71: 3067 | K71: 94 | L71: 84
D72: 71 | E72: 171 | F72: 4241 | G72: 2039 | H72: 4702 | I72: 2704 | J72: 3061 | K72: 101 | L72: 57
D73: 72 | E73: 101 | F73: 3390 | G73: 2062 | H73: 4979 | I73: 1756 | J73: 3695 | K73: 85 | L73: 99
D74: 73 | E74: 4655 | F74: 2022 | G74: 2725 | H74: 5125 | I74: 5847 | J74: 2709 | K74: 62 | L74: 54
D75: 74 | E75: 2781 | F75: 1625 | G75: 379 | H75: 2151 | I75: 931 | J75: 3352 | K75: 119 | L75: 64
D76: 75 | E76: 4292 | F76: 3135 | G76: 4787 | H76: 2451 | I76: 3488 | J76: 111 | K76: 58 | L76: 146
D77: 76 | E77: 6237 | F77: 5822 | G77: 1850 | H77: 3110 | I77: 4645 | J77: 5350 | K77: 92 | L77: 54
D78: 77 | E78: 4247 | F78: 375 | G78: 4296 | H78: 1781 | I78: 1736 | J78: 1739 | K78: 57 | L78: 93
D79: 78 | E79: 4676 | F79: 2136 | G79: 4143 | H79: 2338 | I79: 4096 | J79: 4191 | K79: 78 | L79: 87
D80: 79 | E80: 3390 | F80: 5847 | G80: 931 | H80: 4292 | I80: 4702 | J80: 3352 | K80: 97 | L80: 64
D81: 80 | E81: 2725 | F81: 171 | G81: 1756 | H81: 111 | I81: 5822 | J81: 2781 | K81: 98 | L81: 108
D82: 81 | E82: 4787 | F82: 4979 | G82: 1781 | H82: 4241 | I82: 1739 | J82: 4655 | K82: 51 | L82: 96
D83: 82 | E83: 3067 | F83: 5125 | G83: 2136 | H83: 2704 | I83: 3110 | J83: 1850 | K83: 74 | L83: 19
D84: 83 | E84: 2039 | F84: 4645 | G84: 4247 | H84: 2151 | I84: 4329 | J84: 4191 | K84: 76 | L84: 94
D85: 84 | E85: 101 | F85: 6237 | G85: 3061 | H85: 1625 | I85: 5934 | J85: 2451 | K85: 89 | L85: 124
D86: 85 | E86: 291 | F86: 4296 | G86: 1736 | H86: 4096 | I86: 2709 | J86: 4143 | K86: 75 | L86: 112
D87: 86 | E87: 3135 | F87: 2338 | G87: 3488 | H87: 375 | I87: 2062 | J87: 2022 | K87: 113 | L87: 87
D88: 87 | E88: 379 | F88: 4676 | G88: 4329 | H88: 3695 | I88: 5350 | J88: 1739 | K88: 85 | L88: 75

Sheet Interface
A1: # Teams: | B1: =COUNTIF(B2:B101,">0") -> 52 | D1: Match Schedule: | E1: Match# | F1: Red1 | G1: Red2 | H1: Red3 | I1: Blue1 | J1: Blue2 | K1: Blue3 | L1: Redscore | M1: BlueScore
A2: Teams: | B2: 101 | E2: 1 | F2: 1739 | G2: 4143 | H2: 2022 | I2: 5822 | J2: 2136 | K2: 4702 | L2: 64 | M2: 41 | O2: 3
A3: QUICK N' DIRTY OPR CALCULATOR Designed By Evan Grove | B3: 111 | C3: STEP 1 | E3: 2 | F3: 4191 | G3: 2781 | H3: 4241 | I3: 1850 | J3: 4292 | K3: 4296 | L3: 62 | M3: 61 | T3: this should happen almost instantly.
B4: 171 | E4: 3 | F4: 3110 | G4: 1756 | H4: 101 | I4: 4096 | J4: 4247 | K4: 2725 | L4: 91 | M4: 42
B5: 291 | C5: fill in the team numbers in the orange column. | E5: 4 | F5: 3390 | G5: 3135 | H5: 3352 | I5: 4676 | J5: 2709 | K5: 931 | L5: 54 | M5: 45 | O5: 4
B6: 375 | E6: 5 | F6: 291 | G6: 5350 | H6: 3488 | I6: 1625 | J6: 2039 | K6: 2338 | L6: 72 | M6: 121 | T6: this one will take a while.
B7: 379 | E7: 6 | F7: 111 | G7: 375 | H7: 2151 | I7: 3061 | J7: 4979 | K7: 5934 | L7: 94 | M7: 64
B8: 931 | E8: 7 | F8: 4655 | G8: 3695 | H8: 171 | I8: 1736 | J8: 4645 | K8: 2451 | L8: 105 | M8: 158 | O8: 5
B9: 1625 | E9: 8 | F9: 5847 | G9: 3067 | H9: 2062 | I9: 5125 | J9: 1781 | K9: 379 | L9: 122 | M9: 86 | T9: should be a second or two.
B10: 1736 | E10: 9 | F10: 4329 | G10: 2704 | H10: 3352 | I10: 4787 | J10: 6237 | K10: 2022 | L10: 81 | M10: 47
B11: 1739 | C11: STEP 2 | E11: 10 | F11: 1756 | G11: 4143 | H11: 1625 | I11: 375 | J11: 3135 | K11: 1739 | L11: 112 | M11: 65 | O11: 6
B12: 1756 | E12: 11 | F12: 2709 | G12: 1736 | H12: 3695 | I12: 1850 | J12: 2338 | K12: 5934 | L12: 128 | M12: 75 | T12: this should be 1-6 seconds.
B13: 1781 | C13: fill in the match schedule and scores. PROTIP: the columns here are set up the same way TBA shows it. Copy-paste from TBA into the "cleanup" sheet, delete the excess columns, and then move it here. | E13: 12 | F13: 5350 | G13: 171 | H13: 4191 | I13: 3390 | J13: 5125 | K13: 3488 | L13: 40 | M13: 57
B14: 1850 | E14: 13 | F14: 2781 | G14: 4979 | H14: 931 | I14: 3061 | J14: 2062 | K14: 4645 | L14: 70 | M14: 132
B15: 2022 | E15: 14 | F15: 111 | G15: 101 | H15: 4247 | I15: 3067 | J15: 4241 | K15: 291 | L15: 102 | M15: 83
B16: 2039 | E16: 15 | F16: 2151 | G16: 4702 | H16: 4655 | I16: 4329 | J16: 3110 | K16: 4296 | L16: 47 | M16: 42
B17: 2062 | E17: 16 | F17: 4096 | G17: 2704 | H17: 4676 | I17: 4292 | J17: 5822 | K17: 5847 | L17: 60 | M17: 88
B18: 2136 | E18: 17 | F18: 6237 | G18: 2136 | H18: 2725 | I18: 379 | J18: 4787 | K18: 2039 | L18: 52 | M18: 116 | O18: STEPS 3-6
B19: 2151 | E19: 18 | F19: 2451 | G19: 4143 | H19: 3061 | I19: 1781 | J19: 4247 | K19: 3390 | L19: 137 | M19: 49
B20: 2338 | E20: 19 | F20: 1739 | G20: 2338 | H20: 4296 | I20: 4329 | J20: 1756 | K20: 931 | L20: 87 | M20: 114 | O20: Click the buttons up there in order.
B21: 2451 | E21: 20 | F21: 2781 | G21: 4655 | H21: 2704 | I21: 3135 | J21: 101 | K21: 5350 | L21: 92 | M21: 72
B22: 2704 | E22: 21 | F22: 5125 | G22: 3695 | H22: 375 | I22: 291 | J22: 4096 | K22: 4292 | L22: 70 | M22: 65
B23: 2709 | E23: 22 | F23: 111 | G23: 2039 | H23: 2022 | I23: 4676 | J23: 1625 | K23: 3110 | L23: 115 | M23: 54
B24: 2725 | E24: 23 | F24: 3488 | G24: 5822 | H24: 2151 | I24: 2709 | J24: 4702 | K24: 3067 | L24: 75 | M24: 55
B25: 2781 | E25: 24 | F25: 4979 | G25: 2062 | H25: 4191 | I25: 6237 | J25: 1736 | K25: 5847 | L25: 84 | M25: 104
B26: 3061 | E26: 25 | F26: 2725 | G26: 4787 | H26: 3352 | I26: 171 | J26: 1781 | K26: 1850 | L26: 64 | M26: 76
B27: 3067 | E27: 26 | F27: 379 | G27: 2136 | H27: 2451 | I27: 4645 | J27: 4241 | K27: 5934 | L27: 127 | M27: 93
B28: 3110 | E28: 27 | F28: 111 | G28: 1625 | H28: 4296 | I28: 3390 | J28: 3695 | K28: 2704 | L28: 112 | M28: 72
B29: 3135 | E29: 28 | F29: 4329 | G29: 2709 | H29: 5822 | I29: 2781 | J29: 375 | K29: 3061 | L29: 79 | M29: 91
B30: 3352 | E30: 29 | F30: 931 | G30: 4787 | H30: 1850 | I30: 5847 | J30: 101 | K30: 4143 | L30: 70 | M30: 96
B31: 3390 | E31: 30 | F31: 1739 | G31: 2725 | H31: 2451 | I31: 2151 | J31: 2338 | K31: 2062 | L31: 75 | M31: 109
B32: 3488 | E32: 31 | F32: 4191 | G32: 4702 | H32: 5934 | I32: 1756 | J32: 5350 | K32: 1781 | L32: 32 | M32: 76
B33: 3695 | E33: 32 | F33: 4096 | G33: 6237 | H33: 379 | I33: 3488 | J33: 4247 | K33: 4655 | L33: 91 | M33: 85
B34: 4096 | E34: 33 | F34: 3067 | G34: 4645 | H34: 4292 | I34: 2022 | J34: 3352 | K34: 1736 | L34: 61 | M34: 105
B35: 4143 | E35: 34 | F35: 5125 | G35: 3110 | H35: 2039 | I35: 4241 | J35: 3135 | K35: 4979 | L35: 31 | M35: 95
B36: 4191 | E36: 35 | F36: 2136 | G36: 291 | H36: 5934 | I36: 4676 | J36: 171 | K36: 2062 | L36: 49 | M36: 63
B37: 4241 | E37: 36 | F37: 4702 | G37: 375 | H37: 1756 | I37: 111 | J37: 2704 | K37: 6237 | L37: 80 | M37: 132
B38: 4247 | E38: 37 | F38: 2338 | G38: 3061 | H38: 2725 | I38: 5350 | J38: 3067 | K38: 379 | L38: 91 | M38: 40
B39: 4292 | E39: 38 | F39: 4241 | G39: 5847 | H39: 3110 | I39: 4143 | J39: 4329 | K39: 1736 | L39: 79 | M39: 119
B40: 4296 | E40: 39 | F40: 4191 | G40: 5822 | H40: 3695 | I40: 4655 | J40: 931 | K40: 3135 | L40: 84 | M40: 95
B41: 4329 | E41: 40 | F41: 2022 | G41: 3390 | H41: 2781 | I41: 4787 | J41: 291 | K41: 1739 | L41: 61 | M41: 72
B42: 4645 | E42: 41 | F42: 5125 | G42: 2451 | H42: 4979 | I42: 3488 | J42: 4676 | K42: 4296 | L42: 75 | M42: 66
B43: 4655 | E43: 42 | F43: 2709 | G43: 4292 | H43: 1625 | I43: 171 | J43: 2136 | K43: 4247 | L43: 69 | M43: 65
B44: 4676 | E44: 43 | F44: 1781 | G44: 3352 | H44: 4645 | I44: 2039 | J44: 101 | K44: 4096 | L44: 69 | M44: 86
B45: 4702 | E45: 44 | F45: 1850 | G45: 4655 | H45: 291 | I45: 2151 | J45: 1756 | K45: 3061 | L45: 73 | M45: 100
B46: 4787 | E46: 45 | F46: 3110 | G46: 3067 | H46: 375 | I46: 2451 | J46: 3390 | K46: 4191 | L46: 66 | M46: 105
B47: 4979 | E47: 46 | F47: 379 | G47: 4296 | H47: 4979 | I47: 4292 | J47: 171 | K47: 2022 | L47: 82 | M47: 86
B48: 5125 | E48: 47 | F48: 1736 | G48: 5822 | H48: 4676 | I48: 101 | J48: 4329 | K48: 1625 | L48: 100 | M48: 100
B49: 5350 | E49: 48 | F49: 6237 | G49: 1781 | H49: 2151 | I49: 3135 | J49: 3695 | K49: 2136 | L49: 77 | M49: 54
B50: 5822 | E50: 49 | F50: 4241 | G50: 4787 | H50: 5350 | I50: 3352 | J50: 2062 | K50: 2709 | L50: 84 | M50: 77
B51: 5847 | E51: 50 | F51: 1739 | G51: 1850 | H51: 2039 | I51: 111 | J51: 4096 | K51: 5847 | L51: 65 | M51: 101
B52: 5934 | E52: 51 | F52: 4247 | G52: 5125 | H52: 4702 | I52: 2338 | J52: 2781 | K52: 4645 | L52: 7 | M52: 94
B53: 6237 | E53: 52 | F53: 5934 | G53: 931 | H53: 4143 | I53: 2725 | J53: 3488 | K53: 2704 | L53: 111 | M53: 65
E54: 53 | F54: 3695 | G54: 3061 | H54: 1625 | I54: 4787 | J54: 4191 | K54: 3110 | L54: 90 | M54: 57
E55: 54 | F55: 1756 | G55: 1739 | H55: 2709 | I55: 4292 | J55: 2039 | K55: 2451 | L55: 87 | M55: 98
E56: 55 | F56: 2338 | G56: 291 | H56: 4247 | I56: 5822 | J56: 3352 | K56: 4979 | L56: 104 | M56: 67
E57: 56 | F57: 4676 | G57: 4655 | H57: 6237 | I57: 3067 | J57: 4143 | K57: 2781 | L57: 60 | M57: 108
E58: 57 | F58: 2062 | G58: 1781 | H58: 3488 | I58: 4329 | J58: 1850 | K58: 111 | L58: 100 | M58: 79
E59: 58 | F59: 4241 | G59: 4096 | H59: 2022 | I59: 2151 | J59: 5934 | K59: 3390 | L59: 96 | M59: 29
E60: 59 | F60: 1736 | G60: 2704 | H60: 3135 | I60: 4702 | J60: 379 | K60: 2725 | L60: 114 | M60: 71
E61: 60 | F61: 4296 | G61: 5350 | H61: 5847 | I61: 375 | J61: 2136 | K61: 4645 | L61: 65 | M61: 76
E62: 61 | F62: 101 | G62: 931 | H62: 1739 | I62: 171 | J62: 5125 | K62: 6237 | L62: 82 | M62: 80
E63: 62 | F63: 5934 | G63: 2062 | H63: 2039 | I63: 3390 | J63: 5822 | K63: 4655 | L63: 108 | M63: 95
E64: 63 | F64: 4096 | G64: 3067 | H64: 4979 | I64: 1625 | J64: 4787 | K64: 4702 | L64: 74 | M64: 102
E65: 64 | F65: 1736 | G65: 3061 | H65: 3488 | I65: 3352 | J65: 1756 | K65: 2136 | L65: 112 | M65: 98
E66: 65 | F66: 4292 | G66: 2338 | H66: 4329 | I66: 101 | J66: 171 | K66: 2151 | L66: 104 | M66: 78
E67: 66 | F67: 1781 | G67: 5847 | H67: 2704 | I67: 291 | J67: 2781 | K67: 3110 | L67: 83 | M67: 80
E68: 67 | F68: 3695 | G68: 4645 | H68: 4676 | I68: 2725 | J68: 4241 | K68: 375 | L68: 74 | M68: 80
E69: 68 | F69: 1850 | G69: 5350 | H69: 2022 | I69: 931 | J69: 2451 | K69: 4247 | L69: 69 | M69: 80
E70: 69 | F70: 111 | G70: 2709 | H70: 379 | I70: 5125 | J70: 4191 | K70: 4143 | L70: 140 | M70: 88
E71: 70 | F71: 3135 | G71: 4329 | H71: 291 | I71: 4296 | J71: 5934 | K71: 3067 | L71: 94 | M71: 84
E72: 71 | F72: 171 | G72: 4241 | H72: 2039 | I72: 4702 | J72: 2704 | K72: 3061 | L72: 101 | M72: 57
E73: 72 | F73: 101 | G73: 3390 | H73: 2062 | I73: 4979 | J73: 1756 | K73: 3695 | L73: 85 | M73: 99
E74: 73 | F74: 4655 | G74: 2022 | H74: 2725 | I74: 5125 | J74: 5847 | K74: 2709 | L74: 62 | M74: 54
E75: 74 | F75: 2781 | G75: 1625 | H75: 379 | I75: 2151 | J75: 931 | K75: 3352 | L75: 119 | M75: 64
E76: 75 | F76: 4292 | G76: 3135 | H76: 4787 | I76: 2451 | J76: 3488 | K76: 111 | L76: 58 | M76: 146
E77: 76 | F77: 6237 | G77: 5822 | H77: 1850 | I77: 3110 | J77: 4645 | K77: 5350 | L77: 92 | M77: 54
E78: 77 | F78: 4247 | G78: 375 | H78: 4296 | I78: 1781 | J78: 1736 | K78: 1739 | L78: 57 | M78: 93
E79: 78 | F79: 4676 | G79: 2136 | H79: 4143 | I79: 2338 | J79: 4096 | K79: 4191 | L79: 78 | M79: 87
E80: 79 | F80: 3390 | G80: 5847 | H80: 931 | I80: 4292 | J80: 4702 | K80: 3352 | L80: 97 | M80: 64
E81: 80 | F81: 2725 | G81: 171 | H81: 1756 | I81: 111 | J81: 5822 | K81: 2781 | L81: 98 | M81: 108
E82: 81 | F82: 4787 | G82: 4979 | H82: 1781 | I82: 4241 | J82: 1739 | K82: 4655 | L82: 51 | M82: 96
E83: 82 | F83: 3067 | G83: 5125 | H83: 2136 | I83: 2704 | J83: 3110 | K83: 1850 | L83: 74 | M83: 19
E84: 83 | F84: 2039 | G84: 4645 | H84: 4247 | I84: 2151 | J84: 4329 | K84: 4191 | L84: 76 | M84: 94
E85: 84 | F85: 101 | G85: 6237 | H85: 3061 | I85: 1625 | J85: 5934 | K85: 2451 | L85: 89 | M85: 124
E86: 85 | F86: 291 | G86: 4296 | H86: 1736 | I86: 4096 | J86: 2709 | K86: 4143 | L86: 75 | M86: 112
E87: 86 | F87: 3135 | G87: 2338 | H87: 3488 | I87: 375 | J87: 2062 | K87: 2022 | L87: 113 | M87: 87
E88: 87 | F88: 379 | G88: 4676 | H88: 4329 | I88: 3695 | J88: 5350 | K88: 1739 | L88: 85 | M88: 75

Sheet M Visual
B1: 101 | C1: 111 | D1: 171 | E1: 291 | F1: 375 | G1: 379 | H1: 931 | I1: 1625 | J1: 1736 | K1: 1739 | L1: 1756 | M1: 1781 | N1: 1850 | O1: 2022 | P1: 2039 | Q1: 2062 | R1: 2136 | S1: 2151 | T1: 2338 | U1: 2451 | V1: 2704 | W1: 2709 | X1: 2725 | Y1: 2781 | Z1: 3061 | AA1: 3067 | AB1: 3110 | AC1: 3135 | AD1: 3352 | AE1: 3390 | AF1: 3488 | AG1: 3695 | AH1: 4096 | AI1: 4143 | AJ1: 4191 | AK1: 4241 | AL1: 4247 | AM1: 4292 | AN1: 4296 | AO1: 4329 | AP1: 4645 | AQ1: 4655 | AR1: 4676 | AS1: 4702 | AT1: 4787 | AU1: 4979 | AV1: 5125 | AW1: 5350 | AX1: 5822 | AY1: 5847 | AZ1: 5934 | BA1: 6237
A2: 101 | B2: 10 | C2: 1 | D2: 1 | E2: 0 | F2: 0 | G2: 0 | H2: 1 | I2: 1 | J2: 0 | K2: 1 | L2: 1 | M2: 0 | N2: 0 | O2: 0 | P2: 1 | Q2: 1 | R2: 0 | S2: 1 | T2: 0 | U2: 0 | V2: 0 | W2: 0 | X2: 0 | Y2: 0 | Z2: 1 | AA2: 0 | AB2: 1 | AC2: 1 | AD2: 0 | AE2: 1 | AF2: 0 | AG2: 0 | AH2: 1 | AI2: 1 | AJ2: 0 | AK2: 0 | AL2: 1 | AM2: 0 | AN2: 0 | AO2: 1 | AP2: 0 | AQ2: 0 | AR2: 0 | AS2: 0 | AT2: 0 | AU2: 0 | AV2: 0 | AW2: 1 | AX2: 0 | AY2: 1 | AZ2: 0 | BA2: 1 | BB2: 0 | BC2: 0 | BD2: 0 | BE2: 0 | BF2: 0 | BG2: 0 | BH2: 0 | BI2: 0 | BJ2: 0 | BK2: 0 | BL2: 0 | BM2: 0 | BN2: 0 | BO2: 0 | BP2: 0 | BQ2: 0 | BR2: 0 | BS2: 0 | BT2: 0 | BU2: 0 | BV2: 0 | BW2: 0 | BX2: 0 | BY2: 0 | BZ2: 0 | CA2: 0 | CB2: 0 | CC2: 0 | CD2: 0 | CE2: 0 | CF2: 0 | CG2: 0 | CH2: 0 | CI2: 0 | CJ2: 0 | CK2: 0 | CL2: 0 | CM2: 0 | CN2: 0 | CO2: 0 | CP2: 0 | CQ2: 0 | CR2: 0 | CS2: 0 | CT2: 0 | CU2: 0 | CV2: 0 | CW2: 0
A3: 111 | B3: 1 | C3: 10 | D3: 0 | E3: 0 | F3: 1 | G3: 1 | H3: 0 | I3: 1 | J3: 0 | K3: 0 | L3: 0 | M3: 0 | N3: 1 | O3: 1 | P3: 1 | Q3: 0 | R3: 0 | S3: 1 | T3: 0 | U3: 1 | V3: 1 | W3: 1 | X3: 0 | Y3: 1 | Z3: 0 | AA3: 0 | AB3: 0 | AC3: 0 | AD3: 0 | AE3: 0 | AF3: 1 | AG3: 0 | AH3: 1 | AI3: 0 | AJ3: 0 | AK3: 0 | AL3: 1 | AM3: 0 | AN3: 1 | AO3: 1 | AP3: 0 | AQ3: 0 | AR3: 0 | AS3: 0 | AT3: 0 | AU3: 0 | AV3: 0 | AW3: 0 | AX3: 1 | AY3: 1 | AZ3: 0 | BA3: 1 | BB3: 0 | BC3: 0 | BD3: 0 | BE3: 0 | BF3: 0 | BG3: 0 | BH3: 0 | BI3: 0 | BJ3: 0 | BK3: 0 | BL3: 0 | BM3: 0 | BN3: 0 | BO3: 0 | BP3: 0 | BQ3: 0 | BR3: 0 | BS3: 0 | BT3: 0 | BU3: 0 | BV3: 0 | BW3: 0 | BX3: 0 | BY3: 0 | BZ3: 0 | CA3: 0 | CB3: 0 | CC3: 0 | CD3: 0 | CE3: 0 | CF3: 0 | CG3: 0 | CH3: 0 | CI3: 0 | CJ3: 0 | CK3: 0 | CL3: 0 | CM3: 0 | CN3: 0 | CO3: 0 | CP3: 0 | CQ3: 0 | CR3: 0 | CS3: 0 | CT3: 0 | CU3: 0 | CV3: 0 | CW3: 0
A4: 171 | B4: 1 | C4: 0 | D4: 10 | E4: 0 | F4: 0 | G4: 0 | H4: 0 | I4: 0 | J4: 0 | K4: 0 | L4: 1 | M4: 1 | N4: 1 | O4: 1 | P4: 1 | Q4: 1 | R4: 1 | S4: 1 | T4: 0 | U4: 0 | V4: 0 | W4: 0 | X4: 1 | Y4: 0 | Z4: 0 | AA4: 0 | AB4: 0 | AC4: 0 | AD4: 0 | AE4: 0 | AF4: 0 | AG4: 1 | AH4: 0 | AI4: 0 | AJ4: 1 | AK4: 1 | AL4: 1 | AM4: 1 | AN4: 0 | AO4: 0 | AP4: 0 | AQ4: 1 | AR4: 1 | AS4: 0 | AT4: 0 | AU4: 0 | AV4: 1 | AW4: 1 | AX4: 0 | AY4: 0 | AZ4: 0 | BA4: 1 | BB4: 0 | BC4: 0 | BD4: 0 | BE4: 0 | BF4: 0 | BG4: 0 | BH4: 0 | BI4: 0 | BJ4: 0 | BK4: 0 | BL4: 0 | BM4: 0 | BN4: 0 | BO4: 0 | BP4: 0 | BQ4: 0 | BR4: 0 | BS4: 0 | BT4: 0 | BU4: 0 | BV4: 0 | BW4: 0 | BX4: 0 | BY4: 0 | BZ4: 0 | CA4: 0 | CB4: 0 | CC4: 0 | CD4: 0 | CE4: 0 | CF4: 0 | CG4: 0 | CH4: 0 | CI4: 0 | CJ4: 0 | CK4: 0 | CL4: 0 | CM4: 0 | CN4: 0 | CO4: 0 | CP4: 0 | CQ4: 0 | CR4: 0 | CS4: 0 | CT4: 0 | CU4: 0 | CV4: 0 | CW4: 0
A5: 291 | B5: 0 | C5: 0 | D5: 0 | E5: 10 | F5: 0 | G5: 0 | H5: 0 | I5: 0 | J5: 1 | K5: 1 | L5: 0 | M5: 0 | N5: 1 | O5: 0 | P5: 0 | Q5: 0 | R5: 1 | S5: 0 | T5: 1 | U5: 0 | V5: 0 | W5: 0 | X5: 0 | Y5: 1 | Z5: 0 | AA5: 1 | AB5: 1 | AC5: 1 | AD5: 0 | AE5: 0 | AF5: 1 | AG5: 0 | AH5: 1 | AI5: 0 | AJ5: 0 | AK5: 1 | AL5: 1 | AM5: 1 | AN5: 1 | AO5: 1 | AP5: 0 | AQ5: 1 | AR5: 0 | AS5: 0 | AT5: 1 | AU5: 0 | AV5: 0 | AW5: 1 | AX5: 0 | AY5: 0 | AZ5: 1 | BA5: 0 | BB5: 0 | BC5: 0 | BD5: 0 | BE5: 0 | BF5: 0 | BG5: 0 | BH5: 0 | BI5: 0 | BJ5: 0 | BK5: 0 | BL5: 0 | BM5: 0 | BN5: 0 | BO5: 0 | BP5: 0 | BQ5: 0 | BR5: 0 | BS5: 0 | BT5: 0 | BU5: 0 | BV5: 0 | BW5: 0 | BX5: 0 | BY5: 0 | BZ5: 0 | CA5: 0 | CB5: 0 | CC5: 0 | CD5: 0 | CE5: 0 | CF5: 0 | CG5: 0 | CH5: 0 | CI5: 0 | CJ5: 0 | CK5: 0 | CL5: 0 | CM5: 0 | CN5: 0 | CO5: 0 | CP5: 0 | CQ5: 0 | CR5: 0 | CS5: 0 | CT5: 0 | CU5: 0 | CV5: 0 | CW5: 0
A6: 375 | B6: 0 | C6: 1 | D6: 0 | E6: 0 | F6: 10 | G6: 0 | H6: 0 | I6: 0 | J6: 0 | K6: 1 | L6: 1 | M6: 0 | N6: 0 | O6: 1 | P6: 0 | Q6: 1 | R6: 1 | S6: 1 | T6: 0 | U6: 0 | V6: 0 | W6: 0 | X6: 1 | Y6: 1 | Z6: 1 | AA6: 1 | AB6: 1 | AC6: 1 | AD6: 0 | AE6: 0 | AF6: 0 | AG6: 1 | AH6: 0 | AI6: 0 | AJ6: 0 | AK6: 1 | AL6: 1 | AM6: 0 | AN6: 1 | AO6: 0 | AP6: 1 | AQ6: 0 | AR6: 0 | AS6: 1 | AT6: 0 | AU6: 0 | AV6: 1 | AW6: 0 | AX6: 0 | AY6: 0 | AZ6: 0 | BA6: 0 | BB6: 0 | BC6: 0 | BD6: 0 | BE6: 0 | BF6: 0 | BG6: 0 | BH6: 0 | BI6: 0 | BJ6: 0 | BK6: 0 | BL6: 0 | BM6: 0 | BN6: 0 | BO6: 0 | BP6: 0 | BQ6: 0 | BR6: 0 | BS6: 0 | BT6: 0 | BU6: 0 | BV6: 0 | BW6: 0 | BX6: 0 | BY6: 0 | BZ6: 0 | CA6: 0 | CB6: 0 | CC6: 0 | CD6: 0 | CE6: 0 | CF6: 0 | CG6: 0 | CH6: 0 | CI6: 0 | CJ6: 0 | CK6: 0 | CL6: 0 | CM6: 0 | CN6: 0 | CO6: 0 | CP6: 0 | CQ6: 0 | CR6: 0 | CS6: 0 | CT6: 0 | CU6: 0 | CV6: 0 | CW6: 0
A7: 379 | B7: 0 | C7: 1 | D7: 0 | E7: 0 | F7: 0 | G7: 10 | H7: 0 | I7: 1 | J7: 0 | K7: 0 | L7: 0 | M7: 1 | N7: 0 | O7: 0 | P7: 1 | Q7: 0 | R7: 1 | S7: 0 | T7: 0 | U7: 1 | V7: 0 | W7: 1 | X7: 1 | Y7: 1 | Z7: 0 | AA7: 1 | AB7: 0 | AC7: 0 | AD7: 0 | AE7: 0 | AF7: 0 | AG7: 0 | AH7: 1 | AI7: 0 | AJ7: 0 | AK7: 0 | AL7: 0 | AM7: 0 | AN7: 1 | AO7: 1 | AP7: 0 | AQ7: 0 | AR7: 1 | AS7: 1 | AT7: 1 | AU7: 1 | AV7: 1 | AW7: 1 | AX7: 0 | AY7: 0 | AZ7: 0 | BA7: 1 | BB7: 0 | BC7: 0 | BD7: 0 | BE7: 0 | BF7: 0 | BG7: 0 | BH7: 0 | BI7: 0 | BJ7: 0 | BK7: 0 | BL7: 0 | BM7: 0 | BN7: 0 | BO7: 0 | BP7: 0 | BQ7: 0 | BR7: 0 | BS7: 0 | BT7: 0 | BU7: 0 | BV7: 0 | BW7: 0 | BX7: 0 | BY7: 0 | BZ7: 0 | CA7: 0 | CB7: 0 | CC7: 0 | CD7: 0 | CE7: 0 | CF7: 0 | CG7: 0 | CH7: 0 | CI7: 0 | CJ7: 0 | CK7: 0 | CL7: 0 | CM7: 0 | CN7: 0 | CO7: 0 | CP7: 0 | CQ7: 0 | CR7: 0 | CS7: 0 | CT7: 0 | CU7: 0 | CV7: 0 | CW7: 0
A8: 931 | B8: 1 | C8: 0 | D8: 0 | E8: 0 | F8: 0 | G8: 0 | H8: 10 | I8: 0 | J8: 0 | K8: 1 | L8: 1 | M8: 0 | N8: 1 | O8: 0 | P8: 0 | Q8: 0 | R8: 0 | S8: 1 | T8: 0 | U8: 1 | V8: 0 | W8: 1 | X8: 0 | Y8: 1 | Z8: 0 | AA8: 0 | AB8: 0 | AC8: 1 | AD8: 1 | AE8: 1 | AF8: 0 | AG8: 0 | AH8: 0 | AI8: 1 | AJ8: 0 | AK8: 0 | AL8: 1 | AM8: 0 | AN8: 0 | AO8: 1 | AP8: 0 | AQ8: 1 | AR8: 1 | AS8: 0 | AT8: 1 | AU8: 1 | AV8: 0 | AW8: 0 | AX8: 0 | AY8: 1 | AZ8: 1 | BA8: 0 | BB8: 0 | BC8: 0 | BD8: 0 | BE8: 0 | BF8: 0 | BG8: 0 | BH8: 0 | BI8: 0 | BJ8: 0 | BK8: 0 | BL8: 0 | BM8: 0 | BN8: 0 | BO8: 0 | BP8: 0 | BQ8: 0 | BR8: 0 | BS8: 0 | BT8: 0 | BU8: 0 | BV8: 0 | BW8: 0 | BX8: 0 | BY8: 0 | BZ8: 0 | CA8: 0 | CB8: 0 | CC8: 0 | CD8: 0 | CE8: 0 | CF8: 0 | CG8: 0 | CH8: 0 | CI8: 0 | CJ8: 0 | CK8: 0 | CL8: 0 | CM8: 0 | CN8: 0 | CO8: 0 | CP8: 0 | CQ8: 0 | CR8: 0 | CS8: 0 | CT8: 0 | CU8: 0 | CV8: 0 | CW8: 0
A9: 1625 | B9: 1 | C9: 1 | D9: 0 | E9: 0 | F9: 0 | G9: 1 | H9: 0 | I9: 10 | J9: 0 | K9: 0 | L9: 1 | M9: 0 | N9: 0 | O9: 0 | P9: 1 | Q9: 0 | R9: 0 | S9: 0 | T9: 1 | U9: 1 | V9: 0 | W9: 1 | X9: 0 | Y9: 1 | Z9: 1 | AA9: 0 | AB9: 1 | AC9: 0 | AD9: 0 | AE9: 0 | AF9: 0 | AG9: 1 | AH9: 0 | AI9: 1 | AJ9: 0 | AK9: 0 | AL9: 0 | AM9: 1 | AN9: 1 | AO9: 1 | AP9: 0 | AQ9: 0 | AR9: 1 | AS9: 1 | AT9: 1 | AU9: 0 | AV9: 0 | AW9: 0 | AX9: 0 | AY9: 0 | AZ9: 1 | BA9: 0 | BB9: 0 | BC9: 0 | BD9: 0 | BE9: 0 | BF9: 0 | BG9: 0 | BH9: 0 | BI9: 0 | BJ9: 0 | BK9: 0 | BL9: 0 | BM9: 0 | BN9: 0 | BO9: 0 | BP9: 0 | BQ9: 0 | BR9: 0 | BS9: 0 | BT9: 0 | BU9: 0 | BV9: 0 | BW9: 0 | BX9: 0 | BY9: 0 | BZ9: 0 | CA9: 0 | CB9: 0 | CC9: 0 | CD9: 0 | CE9: 0 | CF9: 0 | CG9: 0 | CH9: 0 | CI9: 0 | CJ9: 0 | CK9: 0 | CL9: 0 | CM9: 0 | CN9: 0 | CO9: 0 | CP9: 0 | CQ9: 0 | CR9: 0 | CS9: 0 | CT9: 0 | CU9: 0 | CV9: 0 | CW9: 0
A10: 1736 | B10: 0 | C10: 0 | D10: 0 | E10: 1 | F10: 0 | G10: 0 | H10: 0 | I10: 0 | J10: 10 | K10: 1 | L10: 0 | M10: 1 | N10: 0 | O10: 1 | P10: 0 | Q10: 0 | R10: 0 | S10: 0 | T10: 0 | U10: 1 | V10: 1 | W10: 1 | X10: 0 | Y10: 0 | Z10: 1 | AA10: 0 | AB10: 0 | AC10: 1 | AD10: 1 | AE10: 0 | AF10: 1 | AG10: 1 | AH10: 0 | AI10: 1 | AJ10: 0 | AK10: 0 | AL10: 0 | AM10: 0 | AN10: 1 | AO10: 1 | AP10: 1 | AQ10: 0 | AR10: 1 | AS10: 0 | AT10: 0 | AU10: 0 | AV10: 0 | AW10: 0 | AX10: 1 | AY10: 1 | AZ10: 0 | BA10: 1 | BB10: 0 | BC10: 0 | BD10: 0 | BE10: 0 | BF10: 0 | BG10: 0 | BH10: 0 | BI10: 0 | BJ10: 0 | BK10: 0 | BL10: 0 | BM10: 0 | BN10: 0 | BO10: 0 | BP10: 0 | BQ10: 0 | BR10: 0 | BS10: 0 | BT10: 0 | BU10: 0 | BV10: 0 | BW10: 0 | BX10: 0 | BY10: 0 | BZ10: 0 | CA10: 0 | CB10: 0 | CC10: 0 | CD10: 0 | CE10: 0 | CF10: 0 | CG10: 0 | CH10: 0 | CI10: 0 | CJ10: 0 | CK10: 0 | CL10: 0 | CM10: 0 | CN10: 0 | CO10: 0 | CP10: 0 | CQ10: 0 | CR10: 0 | CS10: 0 | CT10: 0 | CU10: 0 | CV10: 0 | CW10: 0
A11: 1739 | B11: 1 | C11: 0 | D11: 0 | E11: 1 | F11: 1 | G11: 0 | H11: 1 | I11: 0 | J11: 1 | K11: 11 | L11: 1 | M11: 1 | N11: 1 | O11: 1 | P11: 1 | Q11: 0 | R11: 0 | S11: 0 | T11: 1 | U11: 1 | V11: 0 | W11: 1 | X11: 1 | Y11: 0 | Z11: 0 | AA11: 0 | AB11: 0 | AC11: 1 | AD11: 0 | AE11: 0 | AF11: 0 | AG11: 1 | AH11: 0 | AI11: 1 | AJ11: 0 | AK11: 1 | AL11: 0 | AM11: 0 | AN11: 1 | AO11: 0 | AP11: 0 | AQ11: 1 | AR11: 0 | AS11: 0 | AT11: 1 | AU11: 0 | AV11: 0 | AW11: 1 | AX11: 0 | AY11: 0 | AZ11: 0 | BA11: 0 | BB11: 0 | BC11: 0 | BD11: 0 | BE11: 0 | BF11: 0 | BG11: 0 | BH11: 0 | BI11: 0 | BJ11: 0 | BK11: 0 | BL11: 0 | BM11: 0 | BN11: 0 | BO11: 0 | BP11: 0 | BQ11: 0 | BR11: 0 | BS11: 0 | BT11: 0 | BU11: 0 | BV11: 0 | BW11: 0 | BX11: 0 | BY11: 0 | BZ11: 0 | CA11: 0 | CB11: 0 | CC11: 0 | CD11: 0 | CE11: 0 | CF11: 0 | CG11: 0 | CH11: 0 | CI11: 0 | CJ11: 0 | CK11: 0 | CL11: 0 | CM11: 0 | CN11: 0 | CO11: 0 | CP11: 0 | CQ11: 0 | CR11: 0 | CS11: 0 | CT11: 0 | CU11: 0 | CV11: 0 | CW11: 0
A12: 1756 | B12: 1 | C12: 0 | D12: 1 | E12: 0 | F12: 1 | G12: 0 | H12: 1 | I12: 1 | J12: 0 | K12: 1 | L12: 10 | M12: 1 | N12: 0 | O12: 0 | P12: 0 | Q12: 0 | R12: 1 | S12: 1 | T12: 0 | U12: 0 | V12: 0 | W12: 1 | X12: 1 | Y12: 0 | Z12: 1 | AA12: 0 | AB12: 1 | AC12: 0 | AD12: 1 | AE12: 0 | AF12: 0 | AG12: 1 | AH12: 0 | AI12: 1 | AJ12: 0 | AK12: 0 | AL12: 0 | AM12: 0 | AN12: 0 | AO12: 1 | AP12: 0 | AQ12: 0 | AR12: 0 | AS12: 1 | AT12: 0 | AU12: 1 | AV12: 0 | AW12: 1 | AX12: 0 | AY12: 0 | AZ12: 0 | BA12: 0 | BB12: 0 | BC12: 0 | BD12: 0 | BE12: 0 | BF12: 0 | BG12: 0 | BH12: 0 | BI12: 0 | BJ12: 0 | BK12: 0 | BL12: 0 | BM12: 0 | BN12: 0 | BO12: 0 | BP12: 0 | BQ12: 0 | BR12: 0 | BS12: 0 | BT12: 0 | BU12: 0 | BV12: 0 | BW12: 0 | BX12: 0 | BY12: 0 | BZ12: 0 | CA12: 0 | CB12: 0 | CC12: 0 | CD12: 0 | CE12: 0 | CF12: 0 | CG12: 0 | CH12: 0 | CI12: 0 | CJ12: 0 | CK12: 0 | CL12: 0 | CM12: 0 | CN12: 0 | CO12: 0 | CP12: 0 | CQ12: 0 | CR12: 0 | CS12: 0 | CT12: 0 | CU12: 0 | CV12: 0 | CW12: 0
A13: 1781 | B13: 0 | C13: 0 | D13: 1 | E13: 0 | F13: 0 | G13: 1 | H13: 0 | I13: 0 | J13: 1 | K13: 1 | L13: 1 | M13: 10 | N13: 1 | O13: 0 | P13: 0 | Q13: 1 | R13: 0 | S13: 1 | T13: 0 | U13: 0 | V13: 1 | W13: 0 | X13: 0 | Y13: 0 | Z13: 0 | AA13: 0 | AB13: 0 | AC13: 0 | AD13: 1 | AE13: 1 | AF13: 1 | AG13: 0 | AH13: 0 | AI13: 0 | AJ13: 0 | AK13: 0 | AL13: 1 | AM13: 0 | AN13: 0 | AO13: 0 | AP13: 1 | AQ13: 0 | AR13: 0 | AS13: 0 | AT13: 1 | AU13: 1 | AV13: 1 | AW13: 1 | AX13: 0 | AY13: 1 | AZ13: 0 | BA13: 1 | BB13: 0 | BC13: 0 | BD13: 0 | BE13: 0 | BF13: 0 | BG13: 0 | BH13: 0 | BI13: 0 | BJ13: 0 | BK13: 0 | BL13: 0 | BM13: 0 | BN13: 0 | BO13: 0 | BP13: 0 | BQ13: 0 | BR13: 0 | BS13: 0 | BT13: 0 | BU13: 0 | BV13: 0 | BW13: 0 | BX13: 0 | BY13: 0 | BZ13: 0 | CA13: 0 | CB13: 0 | CC13: 0 | CD13: 0 | CE13: 0 | CF13: 0 | CG13: 0 | CH13: 0 | CI13: 0 | CJ13: 0 | CK13: 0 | CL13: 0 | CM13: 0 | CN13: 0 | CO13: 0 | CP13: 0 | CQ13: 0 | CR13: 0 | CS13: 0 | CT13: 0 | CU13: 0 | CV13: 0 | CW13: 0
A14: 1850 | B14: 0 | C14: 1 | D14: 1 | E14: 1 | F14: 0 | G14: 0 | H14: 1 | I14: 0 | J14: 0 | K14: 1 | L14: 0 | M14: 1 | N14: 10 | O14: 1 | P14: 1 | Q14: 0 | R14: 0 | S14: 0 | T14: 1 | U14: 0 | V14: 1 | W14: 0 | X14: 0 | Y14: 0 | Z14: 0 | AA14: 0 | AB14: 1 | AC14: 0 | AD14: 0 | AE14: 0 | AF14: 0 | AG14: 0 | AH14: 0 | AI14: 0 | AJ14: 0 | AK14: 0 | AL14: 0 | AM14: 1 | AN14: 1 | AO14: 1 | AP14: 0 | AQ14: 1 | AR14: 0 | AS14: 0 | AT14: 1 | AU14: 0 | AV14: 0 | AW14: 1 | AX14: 1 | AY14: 0 | AZ14: 1 | BA14: 1 | BB14: 0 | BC14: 0 | BD14: 0 | BE14: 0 | BF14: 0 | BG14: 0 | BH14: 0 | BI14: 0 | BJ14: 0 | BK14: 0 | BL14: 0 | BM14: 0 | BN14: 0 | BO14: 0 | BP14: 0 | BQ14: 0 | BR14: 0 | BS14: 0 | BT14: 0 | BU14: 0 | BV14: 0 | BW14: 0 | BX14: 0 | BY14: 0 | BZ14: 0 | CA14: 0 | CB14: 0 | CC14: 0 | CD14: 0 | CE14: 0 | CF14: 0 | CG14: 0 | CH14: 0 | CI14: 0 | CJ14: 0 | CK14: 0 | CL14: 0 | CM14: 0 | CN14: 0 | CO14: 0 | CP14: 0 | CQ14: 0 | CR14: 0 | CS14: 0 | CT14: 0 | CU14: 0 | CV14: 0 | CW14: 0
A15: 2022 | B15: 0 | C15: 1 | D15: 1 | E15: 0 | F15: 1 | G15: 0 | H15: 0 | I15: 0 | J15: 1 | K15: 1 | L15: 0 | M15: 0 | N15: 1 | O15: 10 | P15: 1 | Q15: 1 | R15: 0 | S15: 0 | T15: 0 | U15: 0 | V15: 0 | W15: 0 | X15: 1 | Y15: 1 | Z15: 0 | AA15: 0 | AB15: 0 | AC15: 0 | AD15: 1 | AE15: 1 | AF15: 0 | AG15: 0 | AH15: 1 | AI15: 1 | AJ15: 0 | AK15: 1 | AL15: 0 | AM15: 1 | AN15: 0 | AO15: 0 | AP15: 0 | AQ15: 1 | AR15: 0 | AS15: 0 | AT15: 1 | AU15: 0 | AV15: 0 | AW15: 1 | AX15: 0 | AY15: 0 | AZ15: 0 | BA15: 1 | BB15: 0 | BC15: 0 | BD15: 0 | BE15: 0 | BF15: 0 | BG15: 0 | BH15: 0 | BI15: 0 | BJ15: 0 | BK15: 0 | BL15: 0 | BM15: 0 | BN15: 0 | BO15: 0 | BP15: 0 | BQ15: 0 | BR15: 0 | BS15: 0 | BT15: 0 | BU15: 0 | BV15: 0 | BW15: 0 | BX15: 0 | BY15: 0 | BZ15: 0 | CA15: 0 | CB15: 0 | CC15: 0 | CD15: 0 | CE15: 0 | CF15: 0 | CG15: 0 | CH15: 0 | CI15: 0 | CJ15: 0 | CK15: 0 | CL15: 0 | CM15: 0 | CN15: 0 | CO15: 0 | CP15: 0 | CQ15: 0 | CR15: 0 | CS15: 0 | CT15: 0 | CU15: 0 | CV15: 0 | CW15: 0
A16: 2039 | B16: 1 | C16: 1 | D16: 1 | E16: 0 | F16: 0 | G16: 1 | H16: 0 | I16: 1 | J16: 0 | K16: 1 | L16: 0 | M16: 0 | N16: 1 | O16: 1 | P16: 10 | Q16: 1 | R16: 0 | S16: 0 | T16: 1 | U16: 1 | V16: 0 | W16: 0 | X16: 0 | Y16: 0 | Z16: 0 | AA16: 0 | AB16: 1 | AC16: 0 | AD16: 0 | AE16: 0 | AF16: 0 | AG16: 0 | AH16: 1 | AI16: 0 | AJ16: 0 | AK16: 1 | AL16: 1 | AM16: 1 | AN16: 0 | AO16: 0 | AP16: 1 | AQ16: 0 | AR16: 0 | AS16: 0 | AT16: 1 | AU16: 0 | AV16: 1 | AW16: 0 | AX16: 0 | AY16: 0 | AZ16: 1 | BA16: 0 | BB16: 0 | BC16: 0 | BD16: 0 | BE16: 0 | BF16: 0 | BG16: 0 | BH16: 0 | BI16: 0 | BJ16: 0 | BK16: 0 | BL16: 0 | BM16: 0 | BN16: 0 | BO16: 0 | BP16: 0 | BQ16: 0 | BR16: 0 | BS16: 0 | BT16: 0 | BU16: 0 | BV16: 0 | BW16: 0 | BX16: 0 | BY16: 0 | BZ16: 0 | CA16: 0 | CB16: 0 | CC16: 0 | CD16: 0 | CE16: 0 | CF16: 0 | CG16: 0 | CH16: 0 | CI16: 0 | CJ16: 0 | CK16: 0 | CL16: 0 | CM16: 0 | CN16: 0 | CO16: 0 | CP16: 0 | CQ16: 0 | CR16: 0 | CS16: 0 | CT16: 0 | CU16: 0 | CV16: 0 | CW16: 0
A17: 2062 | B17: 1 | C17: 0 | D17: 1 | E17: 0 | F17: 1 | G17: 0 | H17: 0 | I17: 0 | J17: 0 | K17: 0 | L17: 0 | M17: 1 | N17: 0 | O17: 1 | P17: 1 | Q17: 10 | R17: 0 | S17: 1 | T17: 1 | U17: 0 | V17: 0 | W17: 1 | X17: 0 | Y17: 0 | Z17: 1 | AA17: 1 | AB17: 0 | AC17: 0 | AD17: 1 | AE17: 1 | AF17: 1 | AG17: 0 | AH17: 0 | AI17: 0 | AJ17: 1 | AK17: 0 | AL17: 0 | AM17: 0 | AN17: 0 | AO17: 0 | AP17: 1 | AQ17: 0 | AR17: 1 | AS17: 0 | AT17: 0 | AU17: 1 | AV17: 0 | AW17: 0 | AX17: 0 | AY17: 1 | AZ17: 1 | BA17: 0 | BB17: 0 | BC17: 0 | BD17: 0 | BE17: 0 | BF17: 0 | BG17: 0 | BH17: 0 | BI17: 0 | BJ17: 0 | BK17: 0 | BL17: 0 | BM17: 0 | BN17: 0 | BO17: 0 | BP17: 0 | BQ17: 0 | BR17: 0 | BS17: 0 | BT17: 0 | BU17: 0 | BV17: 0 | BW17: 0 | BX17: 0 | BY17: 0 | BZ17: 0 | CA17: 0 | CB17: 0 | CC17: 0 | CD17: 0 | CE17: 0 | CF17: 0 | CG17: 0 | CH17: 0 | CI17: 0 | CJ17: 0 | CK17: 0 | CL17: 0 | CM17: 0 | CN17: 0 | CO17: 0 | CP17: 0 | CQ17: 0 | CR17: 0 | CS17: 0 | CT17: 0 | CU17: 0 | CV17: 0 | CW17: 0
A18: 2136 | B18: 0 | C18: 0 | D18: 1 | E18: 1 | F18: 1 | G18: 1 | H18: 0 | I18: 0 | J18: 0 | K18: 0 | L18: 1 | M18: 0 | N18: 0 | O18: 0 | P18: 0 | Q18: 0 | R18: 10 | S18: 0 | T18: 0 | U18: 1 | V18: 0 | W18: 0 | X18: 1 | Y18: 0 | Z18: 0 | AA18: 1 | AB18: 0 | AC18: 1 | AD18: 1 | AE18: 0 | AF18: 0 | AG18: 1 | AH18: 0 | AI18: 1 | AJ18: 0 | AK18: 0 | AL18: 1 | AM18: 0 | AN18: 0 | AO18: 0 | AP18: 1 | AQ18: 0 | AR18: 1 | AS18: 1 | AT18: 0 | AU18: 0 | AV18: 1 | AW18: 0 | AX18: 1 | AY18: 0 | AZ18: 1 | BA18: 1 | BB18: 0 | BC18: 0 | BD18: 0 | BE18: 0 | BF18: 0 | BG18: 0 | BH18: 0 | BI18: 0 | BJ18: 0 | BK18: 0 | BL18: 0 | BM18: 0 | BN18: 0 | BO18: 0 | BP18: 0 | BQ18: 0 | BR18: 0 | BS18: 0 | BT18: 0 | BU18: 0 | BV18: 0 | BW18: 0 | BX18: 0 | BY18: 0 | BZ18: 0 | CA18: 0 | CB18: 0 | CC18: 0 | CD18: 0 | CE18: 0 | CF18: 0 | CG18: 0 | CH18: 0 | CI18: 0 | CJ18: 0 | CK18: 0 | CL18: 0 | CM18: 0 | CN18: 0 | CO18: 0 | CP18: 0 | CQ18: 0 | CR18: 0 | CS18: 0 | CT18: 0 | CU18: 0 | CV18: 0 | CW18: 0
A19: 2151 | B19: 1 | C19: 1 | D19: 1 | E19: 0 | F19: 1 | G19: 0 | H19: 1 | I19: 0 | J19: 0 | K19: 0 | L19: 1 | M19: 1 | N19: 0 | O19: 0 | P19: 0 | Q19: 1 | R19: 0 | S19: 10 | T19: 1 | U19: 0 | V19: 0 | W19: 0 | X19: 0 | Y19: 0 | Z19: 1 | AA19: 0 | AB19: 0 | AC19: 0 | AD19: 1 | AE19: 1 | AF19: 1 | AG19: 0 | AH19: 0 | AI19: 0 | AJ19: 1 | AK19: 0 | AL19: 0 | AM19: 0 | AN19: 0 | AO19: 1 | AP19: 0 | AQ19: 1 | AR19: 0 | AS19: 1 | AT19: 0 | AU19: 0 | AV19: 0 | AW19: 0 | AX19: 1 | AY19: 0 | AZ19: 1 | BA19: 1 | BB19: 0 | BC19: 0 | BD19: 0 | BE19: 0 | BF19: 0 | BG19: 0 | BH19: 0 | BI19: 0 | BJ19: 0 | BK19: 0 | BL19: 0 | BM19: 0 | BN19: 0 | BO19: 0 | BP19: 0 | BQ19: 0 | BR19: 0 | BS19: 0 | BT19: 0 | BU19: 0 | BV19: 0 | BW19: 0 | BX19: 0 | BY19: 0 | BZ19: 0 | CA19: 0 | CB19: 0 | CC19: 0 | CD19: 0 | CE19: 0 | CF19: 0 | CG19: 0 | CH19: 0 | CI19: 0 | CJ19: 0 | CK19: 0 | CL19: 0 | CM19: 0 | CN19: 0 | CO19: 0 | CP19: 0 | CQ19: 0 | CR19: 0 | CS19: 0 | CT19: 0 | CU19: 0 | CV19: 0 | CW19: 0
A20: 2338 | B20: 0 | C20: 0 | D20: 0 | E20: 1 | F20: 0 | G20: 0 | H20: 0 | I20: 1 | J20: 0 | K20: 1 | L20: 0 | M20: 0 | N20: 1 | O20: 0 | P20: 1 | Q20: 1 | R20: 0 | S20: 1 | T20: 10 | U20: 0 | V20: 0 | W20: 0 | X20: 1 | Y20: 1 | Z20: 1 | AA20: 0 | AB20: 0 | AC20: 1 | AD20: 0 | AE20: 0 | AF20: 1 | AG20: 0 | AH20: 1 | AI20: 0 | AJ20: 1 | AK20: 0 | AL20: 1 | AM20: 1 | AN20: 1 | AO20: 1 | AP20: 1 | AQ20: 0 | AR20: 0 | AS20: 0 | AT20: 0 | AU20: 0 | AV20: 0 | AW20: 0 | AX20: 0 | AY20: 0 | AZ20: 1 | BA20: 0 | BB20: 0 | BC20: 0 | BD20: 0 | BE20: 0 | BF20: 0 | BG20: 0 | BH20: 0 | BI20: 0 | BJ20: 0 | BK20: 0 | BL20: 0 | BM20: 0 | BN20: 0 | BO20: 0 | BP20: 0 | BQ20: 0 | BR20: 0 | BS20: 0 | BT20: 0 | BU20: 0 | BV20: 0 | BW20: 0 | BX20: 0 | BY20: 0 | BZ20: 0 | CA20: 0 | CB20: 0 | CC20: 0 | CD20: 0 | CE20: 0 | CF20: 0 | CG20: 0 | CH20: 0 | CI20: 0 | CJ20: 0 | CK20: 0 | CL20: 0 | CM20: 0 | CN20: 0 | CO20: 0 | CP20: 0 | CQ20: 0 | CR20: 0 | CS20: 0 | CT20: 0 | CU20: 0 | CV20: 0 | CW20: 0
A21: 2451 | B21: 0 | C21: 1 | D21: 0 | E21: 0 | F21: 0 | G21: 1 | H21: 1 | I21: 1 | J21: 1 | K21: 1 | L21: 0 | M21: 0 | N21: 0 | O21: 0 | P21: 1 | Q21: 0 | R21: 1 | S21: 0 | T21: 0 | U21: 10 | V21: 0 | W21: 0 | X21: 1 | Y21: 0 | Z21: 1 | AA21: 0 | AB21: 0 | AC21: 0 | AD21: 0 | AE21: 1 | AF21: 1 | AG21: 0 | AH21: 0 | AI21: 1 | AJ21: 1 | AK21: 0 | AL21: 1 | AM21: 1 | AN21: 0 | AO21: 0 | AP21: 1 | AQ21: 0 | AR21: 0 | AS21: 0 | AT21: 0 | AU21: 1 | AV21: 1 | AW21: 0 | AX21: 0 | AY21: 0 | AZ21: 1 | BA21: 0 | BB21: 0 | BC21: 0 | BD21: 0 | BE21: 0 | BF21: 0 | BG21: 0 | BH21: 0 | BI21: 0 | BJ21: 0 | BK21: 0 | BL21: 0 | BM21: 0 | BN21: 0 | BO21: 0 | BP21: 0 | BQ21: 0 | BR21: 0 | BS21: 0 | BT21: 0 | BU21: 0 | BV21: 0 | BW21: 0 | BX21: 0 | BY21: 0 | BZ21: 0 | CA21: 0 | CB21: 0 | CC21: 0 | CD21: 0 | CE21: 0 | CF21: 0 | CG21: 0 | CH21: 0 | CI21: 0 | CJ21: 0 | CK21: 0 | CL21: 0 | CM21: 0 | CN21: 0 | CO21: 0 | CP21: 0 | CQ21: 0 | CR21: 0 | CS21: 0 | CT21: 0 | CU21: 0 | CV21: 0 | CW21: 0
A22: 2704 | B22: 0 | C22: 1 | D22: 0 | E22: 0 | F22: 0 | G22: 0 | H22: 0 | I22: 0 | J22: 1 | K22: 0 | L22: 0 | M22: 1 | N22: 1 | O22: 0 | P22: 0 | Q22: 0 | R22: 0 | S22: 0 | T22: 0 | U22: 0 | V22: 10 | W22: 0 | X22: 1 | Y22: 1 | Z22: 1 | AA22: 0 | AB22: 1 | AC22: 1 | AD22: 1 | AE22: 1 | AF22: 1 | AG22: 1 | AH22: 1 | AI22: 0 | AJ22: 0 | AK22: 0 | AL22: 0 | AM22: 0 | AN22: 0 | AO22: 1 | AP22: 0 | AQ22: 1 | AR22: 1 | AS22: 1 | AT22: 0 | AU22: 0 | AV22: 0 | AW22: 0 | AX22: 0 | AY22: 1 | AZ22: 0 | BA22: 1 | BB22: 0 | BC22: 0 | BD22: 0 | BE22: 0 | BF22: 0 | BG22: 0 | BH22: 0 | BI22: 0 | BJ22: 0 | BK22: 0 | BL22: 0 | BM22: 0 | BN22: 0 | BO22: 0 | BP22: 0 | BQ22: 0 | BR22: 0 | BS22: 0 | BT22: 0 | BU22: 0 | BV22: 0 | BW22: 0 | BX22: 0 | BY22: 0 | BZ22: 0 | CA22: 0 | CB22: 0 | CC22: 0 | CD22: 0 | CE22: 0 | CF22: 0 | CG22: 0 | CH22: 0 | CI22: 0 | CJ22: 0 | CK22: 0 | CL22: 0 | CM22: 0 | CN22: 0 | CO22: 0 | CP22: 0 | CQ22: 0 | CR22: 0 | CS22: 0 | CT22: 0 | CU22: 0 | CV22: 0 | CW22: 0
A23: 2709 | B23: 0 | C23: 1 | D23: 0 | E23: 0 | F23: 0 | G23: 1 | H23: 1 | I23: 1 | J23: 1 | K23: 1 | L23: 1 | M23: 0 | N23: 0 | O23: 0 | P23: 0 | Q23: 1 | R23: 0 | S23: 0 | T23: 0 | U23: 0 | V23: 0 | W23: 10 | X23: 0 | Y23: 0 | Z23: 0 | AA23: 1 | AB23: 0 | AC23: 0 | AD23: 1 | AE23: 0 | AF23: 0 | AG23: 1 | AH23: 1 | AI23: 1 | AJ23: 0 | AK23: 0 | AL23: 0 | AM23: 1 | AN23: 0 | AO23: 1 | AP23: 0 | AQ23: 0 | AR23: 1 | AS23: 1 | AT23: 0 | AU23: 0 | AV23: 1 | AW23: 0 | AX23: 1 | AY23: 1 | AZ23: 0 | BA23: 0 | BB23: 0 | BC23: 0 | BD23: 0 | BE23: 0 | BF23: 0 | BG23: 0 | BH23: 0 | BI23: 0 | BJ23: 0 | BK23: 0 | BL23: 0 | BM23: 0 | BN23: 0 | BO23: 0 | BP23: 0 | BQ23: 0 | BR23: 0 | BS23: 0 | BT23: 0 | BU23: 0 | BV23: 0 | BW23: 0 | BX23: 0 | BY23: 0 | BZ23: 0 | CA23: 0 | CB23: 0 | CC23: 0 | CD23: 0 | CE23: 0 | CF23: 0 | CG23: 0 | CH23: 0 | CI23: 0 | CJ23: 0 | CK23: 0 | CL23: 0 | CM23: 0 | CN23: 0 | CO23: 0 | CP23: 0 | CQ23: 0 | CR23: 0 | CS23: 0 | CT23: 0 | CU23: 0 | CV23: 0 | CW23: 0
A24: 2725 | B24: 0 | C24: 0 | D24: 1 | E24: 0 | F24: 1 | G24: 1 | H24: 0 | I24: 0 | J24: 0 | K24: 1 | L24: 1 | M24: 0 | N24: 0 | O24: 1 | P24: 0 | Q24: 0 | R24: 1 | S24: 0 | T24: 1 | U24: 1 | V24: 1 | W24: 0 | X24: 10 | Y24: 0 | Z24: 1 | AA24: 0 | AB24: 0 | AC24: 0 | AD24: 1 | AE24: 0 | AF24: 1 | AG24: 0 | AH24: 1 | AI24: 0 | AJ24: 0 | AK24: 1 | AL24: 1 | AM24: 0 | AN24: 0 | AO24: 0 | AP24: 0 | AQ24: 1 | AR24: 0 | AS24: 1 | AT24: 1 | AU24: 0 | AV24: 0 | AW24: 0 | AX24: 0 | AY24: 0 | AZ24: 0 | BA24: 1 | BB24: 0 | BC24: 0 | BD24: 0 | BE24: 0 | BF24: 0 | BG24: 0 | BH24: 0 | BI24: 0 | BJ24: 0 | BK24: 0 | BL24: 0 | BM24: 0 | BN24: 0 | BO24: 0 | BP24: 0 | BQ24: 0 | BR24: 0 | BS24: 0 | BT24: 0 | BU24: 0 | BV24: 0 | BW24: 0 | BX24: 0 | BY24: 0 | BZ24: 0 | CA24: 0 | CB24: 0 | CC24: 0 | CD24: 0 | CE24: 0 | CF24: 0 | CG24: 0 | CH24: 0 | CI24: 0 | CJ24: 0 | CK24: 0 | CL24: 0 | CM24: 0 | CN24: 0 | CO24: 0 | CP24: 0 | CQ24: 0 | CR24: 0 | CS24: 0 | CT24: 0 | CU24: 0 | CV24: 0 | CW24: 0
A25: 2781 | B25: 0 | C25: 1 | D25: 0 | E25: 1 | F25: 1 | G25: 1 | H25: 1 | I25: 1 | J25: 0 | K25: 0 | L25: 0 | M25: 0 | N25: 0 | O25: 1 | P25: 0 | Q25: 0 | R25: 0 | S25: 0 | T25: 1 | U25: 0 | V25: 1 | W25: 0 | X25: 0 | Y25: 10 | Z25: 1 | AA25: 1 | AB25: 1 | AC25: 0 | AD25: 0 | AE25: 1 | AF25: 0 | AG25: 0 | AH25: 0 | AI25: 1 | AJ25: 1 | AK25: 1 | AL25: 0 | AM25: 0 | AN25: 0 | AO25: 0 | AP25: 1 | AQ25: 1 | AR25: 0 | AS25: 0 | AT25: 0 | AU25: 1 | AV25: 0 | AW25: 0 | AX25: 1 | AY25: 0 | AZ25: 0 | BA25: 0 | BB25: 0 | BC25: 0 | BD25: 0 | BE25: 0 | BF25: 0 | BG25: 0 | BH25: 0 | BI25: 0 | BJ25: 0 | BK25: 0 | BL25: 0 | BM25: 0 | BN25: 0 | BO25: 0 | BP25: 0 | BQ25: 0 | BR25: 0 | BS25: 0 | BT25: 0 | BU25: 0 | BV25: 0 | BW25: 0 | BX25: 0 | BY25: 0 | BZ25: 0 | CA25: 0 | CB25: 0 | CC25: 0 | CD25: 0 | CE25: 0 | CF25: 0 | CG25: 0 | CH25: 0 | CI25: 0 | CJ25: 0 | CK25: 0 | CL25: 0 | CM25: 0 | CN25: 0 | CO25: 0 | CP25: 0 | CQ25: 0 | CR25: 0 | CS25: 0 | CT25: 0 | CU25: 0 | CV25: 0 | CW25: 0
A26: 3061 | B26: 1 | C26: 0 | D26: 0 | E26: 0 | F26: 1 | G26: 0 | H26: 0 | I26: 1 | J26: 1 | K26: 0 | L26: 1 | M26: 0 | N26: 0 | O26: 0 | P26: 0 | Q26: 1 | R26: 0 | S26: 1 | T26: 1 | U26: 1 | V26: 1 | W26: 0 | X26: 1 | Y26: 1 | Z26: 10 | AA26: 0 | AB26: 0 | AC26: 0 | AD26: 0 | AE26: 0 | AF26: 1 | AG26: 1 | AH26: 0 | AI26: 1 | AJ26: 0 | AK26: 0 | AL26: 0 | AM26: 0 | AN26: 0 | AO26: 0 | AP26: 1 | AQ26: 0 | AR26: 0 | AS26: 1 | AT26: 0 | AU26: 1 | AV26: 0 | AW26: 0 | AX26: 0 | AY26: 0 | AZ26: 1 | BA26: 1 | BB26: 0 | BC26: 0 | BD26: 0 | BE26: 0 | BF26: 0 | BG26: 0 | BH26: 0 | BI26: 0 | BJ26: 0 | BK26: 0 | BL26: 0 | BM26: 0 | BN26: 0 | BO26: 0 | BP26: 0 | BQ26: 0 | BR26: 0 | BS26: 0 | BT26: 0 | BU26: 0 | BV26: 0 | BW26: 0 | BX26: 0 | BY26: 0 | BZ26: 0 | CA26: 0 | CB26: 0 | CC26: 0 | CD26: 0 | CE26: 0 | CF26: 0 | CG26: 0 | CH26: 0 | CI26: 0 | CJ26: 0 | CK26: 0 | CL26: 0 | CM26: 0 | CN26: 0 | CO26: 0 | CP26: 0 | CQ26: 0 | CR26: 0 | CS26: 0 | CT26: 0 | CU26: 0 | CV26: 0 | CW26: 0
A27: 3067 | B27: 0 | C27: 0 | D27: 0 | E27: 1 | F27: 1 | G27: 1 | H27: 0 | I27: 0 | J27: 0 | K27: 0 | L27: 0 | M27: 0 | N27: 0 | O27: 0 | P27: 0 | Q27: 1 | R27: 1 | S27: 0 | T27: 0 | U27: 0 | V27: 0 | W27: 1 | X27: 0 | Y27: 1 | Z27: 0 | AA27: 10 | AB27: 1 | AC27: 0 | AD27: 0 | AE27: 0 | AF27: 0 | AG27: 0 | AH27: 1 | AI27: 1 | AJ27: 0 | AK27: 1 | AL27: 0 | AM27: 1 | AN27: 1 | AO27: 0 | AP27: 1 | AQ27: 0 | AR27: 0 | AS27: 1 | AT27: 0 | AU27: 1 | AV27: 1 | AW27: 1 | AX27: 0 | AY27: 1 | AZ27: 1 | BA27: 0 | BB27: 0 | BC27: 0 | BD27: 0 | BE27: 0 | BF27: 0 | BG27: 0 | BH27: 0 | BI27: 0 | BJ27: 0 | BK27: 0 | BL27: 0 | BM27: 0 | BN27: 0 | BO27: 0 | BP27: 0 | BQ27: 0 | BR27: 0 | BS27: 0 | BT27: 0 | BU27: 0 | BV27: 0 | BW27: 0 | BX27: 0 | BY27: 0 | BZ27: 0 | CA27: 0 | CB27: 0 | CC27: 0 | CD27: 0 | CE27: 0 | CF27: 0 | CG27: 0 | CH27: 0 | CI27: 0 | CJ27: 0 | CK27: 0 | CL27: 0 | CM27: 0 | CN27: 0 | CO27: 0 | CP27: 0 | CQ27: 0 | CR27: 0 | CS27: 0 | CT27: 0 | CU27: 0 | CV27: 0 | CW27: 0
A28: 3110 | B28: 1 | C28: 0 | D28: 0 | E28: 1 | F28: 1 | G28: 0 | H28: 0 | I28: 1 | J28: 0 | K28: 0 | L28: 1 | M28: 0 | N28: 1 | O28: 0 | P28: 1 | Q28: 0 | R28: 0 | S28: 0 | T28: 0 | U28: 0 | V28: 1 | W28: 0 | X28: 0 | Y28: 1 | Z28: 0 | AA28: 1 | AB28: 10 | AC28: 0 | AD28: 0 | AE28: 0 | AF28: 0 | AG28: 0 | AH28: 0 | AI28: 0 | AJ28: 1 | AK28: 1 | AL28: 0 | AM28: 0 | AN28: 1 | AO28: 1 | AP28: 1 | AQ28: 0 | AR28: 1 | AS28: 0 | AT28: 1 | AU28: 0 | AV28: 1 | AW28: 1 | AX28: 0 | AY28: 1 | AZ28: 0 | BA28: 0 | BB28: 0 | BC28: 0 | BD28: 0 | BE28: 0 | BF28: 0 | BG28: 0 | BH28: 0 | BI28: 0 | BJ28: 0 | BK28: 0 | BL28: 0 | BM28: 0 | BN28: 0 | BO28: 0 | BP28: 0 | BQ28: 0 | BR28: 0 | BS28: 0 | BT28: 0 | BU28: 0 | BV28: 0 | BW28: 0 | BX28: 0 | BY28: 0 | BZ28: 0 | CA28: 0 | CB28: 0 | CC28: 0 | CD28: 0 | CE28: 0 | CF28: 0 | CG28: 0 | CH28: 0 | CI28: 0 | CJ28: 0 | CK28: 0 | CL28: 0 | CM28: 0 | CN28: 0 | CO28: 0 | CP28: 0 | CQ28: 0 | CR28: 0 | CS28: 0 | CT28: 0 | CU28: 0 | CV28: 0 | CW28: 0
A29: 3135 | B29: 1 | C29: 0 | D29: 0 | E29: 1 | F29: 1 | G29: 0 | H29: 1 | I29: 0 | J29: 1 | K29: 1 | L29: 0 | M29: 0 | N29: 0 | O29: 0 | P29: 0 | Q29: 0 | R29: 1 | S29: 0 | T29: 1 | U29: 0 | V29: 1 | W29: 0 | X29: 0 | Y29: 0 | Z29: 0 | AA29: 0 | AB29: 0 | AC29: 10 | AD29: 1 | AE29: 1 | AF29: 1 | AG29: 1 | AH29: 0 | AI29: 0 | AJ29: 0 | AK29: 1 | AL29: 0 | AM29: 1 | AN29: 0 | AO29: 1 | AP29: 0 | AQ29: 1 | AR29: 0 | AS29: 0 | AT29: 1 | AU29: 1 | AV29: 0 | AW29: 1 | AX29: 0 | AY29: 0 | AZ29: 0 | BA29: 0 | BB29: 0 | BC29: 0 | BD29: 0 | BE29: 0 | BF29: 0 | BG29: 0 | BH29: 0 | BI29: 0 | BJ29: 0 | BK29: 0 | BL29: 0 | BM29: 0 | BN29: 0 | BO29: 0 | BP29: 0 | BQ29: 0 | BR29: 0 | BS29: 0 | BT29: 0 | BU29: 0 | BV29: 0 | BW29: 0 | BX29: 0 | BY29: 0 | BZ29: 0 | CA29: 0 | CB29: 0 | CC29: 0 | CD29: 0 | CE29: 0 | CF29: 0 | CG29: 0 | CH29: 0 | CI29: 0 | CJ29: 0 | CK29: 0 | CL29: 0 | CM29: 0 | CN29: 0 | CO29: 0 | CP29: 0 | CQ29: 0 | CR29: 0 | CS29: 0 | CT29: 0 | CU29: 0 | CV29: 0 | CW29: 0
A30: 3352 | B30: 0 | C30: 0 | D30: 0 | E30: 0 | F30: 0 | G30: 0 | H30: 1 | I30: 0 | J30: 1 | K30: 0 | L30: 1 | M30: 1 | N30: 0 | O30: 1 | P30: 0 | Q30: 1 | R30: 1 | S30: 1 | T30: 0 | U30: 0 | V30: 1 | W30: 1 | X30: 1 | Y30: 0 | Z30: 0 | AA30: 0 | AB30: 0 | AC30: 1 | AD30: 10 | AE30: 1 | AF30: 0 | AG30: 0 | AH30: 0 | AI30: 0 | AJ30: 0 | AK30: 0 | AL30: 0 | AM30: 1 | AN30: 0 | AO30: 1 | AP30: 1 | AQ30: 0 | AR30: 0 | AS30: 1 | AT30: 1 | AU30: 1 | AV30: 0 | AW30: 0 | AX30: 1 | AY30: 0 | AZ30: 0 | BA30: 0 | BB30: 0 | BC30: 0 | BD30: 0 | BE30: 0 | BF30: 0 | BG30: 0 | BH30: 0 | BI30: 0 | BJ30: 0 | BK30: 0 | BL30: 0 | BM30: 0 | BN30: 0 | BO30: 0 | BP30: 0 | BQ30: 0 | BR30: 0 | BS30: 0 | BT30: 0 | BU30: 0 | BV30: 0 | BW30: 0 | BX30: 0 | BY30: 0 | BZ30: 0 | CA30: 0 | CB30: 0 | CC30: 0 | CD30: 0 | CE30: 0 | CF30: 0 | CG30: 0 | CH30: 0 | CI30: 0 | CJ30: 0 | CK30: 0 | CL30: 0 | CM30: 0 | CN30: 0 | CO30: 0 | CP30: 0 | CQ30: 0 | CR30: 0 | CS30: 0 | CT30: 0 | CU30: 0 | CV30: 0 | CW30: 0
A31: 3390 | B31: 1 | C31: 0 | D31: 0 | E31: 0 | F31: 0 | G31: 0 | H31: 1 | I31: 0 | J31: 0 | K31: 0 | L31: 0 | M31: 1 | N31: 0 | O31: 1 | P31: 0 | Q31: 1 | R31: 0 | S31: 1 | T31: 0 | U31: 1 | V31: 1 | W31: 0 | X31: 0 | Y31: 1 | Z31: 0 | AA31: 0 | AB31: 0 | AC31: 1 | AD31: 1 | AE31: 10 | AF31: 1 | AG31: 1 | AH31: 0 | AI31: 0 | AJ31: 1 | AK31: 0 | AL31: 1 | AM31: 0 | AN31: 0 | AO31: 0 | AP31: 0 | AQ31: 1 | AR31: 0 | AS31: 0 | AT31: 0 | AU31: 0 | AV31: 1 | AW31: 0 | AX31: 1 | AY31: 1 | AZ31: 1 | BA31: 0 | BB31: 0 | BC31: 0 | BD31: 0 | BE31: 0 | BF31: 0 | BG31: 0 | BH31: 0 | BI31: 0 | BJ31: 0 | BK31: 0 | BL31: 0 | BM31: 0 | BN31: 0 | BO31: 0 | BP31: 0 | BQ31: 0 | BR31: 0 | BS31: 0 | BT31: 0 | BU31: 0 | BV31: 0 | BW31: 0 | BX31: 0 | BY31: 0 | BZ31: 0 | CA31: 0 | CB31: 0 | CC31: 0 | CD31: 0 | CE31: 0 | CF31: 0 | CG31: 0 | CH31: 0 | CI31: 0 | CJ31: 0 | CK31: 0 | CL31: 0 | CM31: 0 | CN31: 0 | CO31: 0 | CP31: 0 | CQ31: 0 | CR31: 0 | CS31: 0 | CT31: 0 | CU31: 0 | CV31: 0 | CW31: 0
A32: 3488 | B32: 0 | C32: 1 | D32: 0 | E32: 1 | F32: 0 | G32: 0 | H32: 0 | I32: 0 | J32: 1 | K32: 0 | L32: 0 | M32: 1 | N32: 0 | O32: 0 | P32: 0 | Q32: 1 | R32: 0 | S32: 1 | T32: 1 | U32: 1 | V32: 1 | W32: 0 | X32: 1 | Y32: 0 | Z32: 1 | AA32: 0 | AB32: 0 | AC32: 1 | AD32: 0 | AE32: 1 | AF32: 10 | AG32: 0 | AH32: 0 | AI32: 0 | AJ32: 0 | AK32: 0 | AL32: 1 | AM32: 0 | AN32: 1 | AO32: 0 | AP32: 0 | AQ32: 1 | AR32: 1 | AS32: 0 | AT32: 0 | AU32: 0 | AV32: 1 | AW32: 1 | AX32: 1 | AY32: 0 | AZ32: 0 | BA32: 0 | BB32: 0 | BC32: 0 | BD32: 0 | BE32: 0 | BF32: 0 | BG32: 0 | BH32: 0 | BI32: 0 | BJ32: 0 | BK32: 0 | BL32: 0 | BM32: 0 | BN32: 0 | BO32: 0 | BP32: 0 | BQ32: 0 | BR32: 0 | BS32: 0 | BT32: 0 | BU32: 0 | BV32: 0 | BW32: 0 | BX32: 0 | BY32: 0 | BZ32: 0 | CA32: 0 | CB32: 0 | CC32: 0 | CD32: 0 | CE32: 0 | CF32: 0 | CG32: 0 | CH32: 0 | CI32: 0 | CJ32: 0 | CK32: 0 | CL32: 0 | CM32: 0 | CN32: 0 | CO32: 0 | CP32: 0 | CQ32: 0 | CR32: 0 | CS32: 0 | CT32: 0 | CU32: 0 | CV32: 0 | CW32: 0
A33: 3695 | B33: 0 | C33: 0 | D33: 1 | E33: 0 | F33: 1 | G33: 0 | H33: 0 | I33: 1 | J33: 1 | K33: 1 | L33: 1 | M33: 0 | N33: 0 | O33: 0 | P33: 0 | Q33: 0 | R33: 1 | S33: 0 | T33: 0 | U33: 0 | V33: 1 | W33: 1 | X33: 0 | Y33: 0 | Z33: 1 | AA33: 0 | AB33: 0 | AC33: 1 | AD33: 0 | AE33: 1 | AF33: 0 | AG33: 10 | AH33: 0 | AI33: 0 | AJ33: 1 | AK33: 0 | AL33: 0 | AM33: 0 | AN33: 0 | AO33: 0 | AP33: 1 | AQ33: 1 | AR33: 1 | AS33: 0 | AT33: 0 | AU33: 1 | AV33: 1 | AW33: 1 | AX33: 1 | AY33: 0 | AZ33: 0 | BA33: 0 | BB33: 0 | BC33: 0 | BD33: 0 | BE33: 0 | BF33: 0 | BG33: 0 | BH33: 0 | BI33: 0 | BJ33: 0 | BK33: 0 | BL33: 0 | BM33: 0 | BN33: 0 | BO33: 0 | BP33: 0 | BQ33: 0 | BR33: 0 | BS33: 0 | BT33: 0 | BU33: 0 | BV33: 0 | BW33: 0 | BX33: 0 | BY33: 0 | BZ33: 0 | CA33: 0 | CB33: 0 | CC33: 0 | CD33: 0 | CE33: 0 | CF33: 0 | CG33: 0 | CH33: 0 | CI33: 0 | CJ33: 0 | CK33: 0 | CL33: 0 | CM33: 0 | CN33: 0 | CO33: 0 | CP33: 0 | CQ33: 0 | CR33: 0 | CS33: 0 | CT33: 0 | CU33: 0 | CV33: 0 | CW33: 0
A34: 4096 | B34: 1 | C34: 1 | D34: 0 | E34: 1 | F34: 0 | G34: 1 | H34: 0 | I34: 0 | J34: 0 | K34: 0 | L34: 0 | M34: 0 | N34: 0 | O34: 1 | P34: 1 | Q34: 0 | R34: 0 | S34: 0 | T34: 1 | U34: 0 | V34: 1 | W34: 1 | X34: 1 | Y34: 0 | Z34: 0 | AA34: 1 | AB34: 0 | AC34: 0 | AD34: 0 | AE34: 0 | AF34: 0 | AG34: 0 | AH34: 10 | AI34: 1 | AJ34: 1 | AK34: 1 | AL34: 1 | AM34: 1 | AN34: 0 | AO34: 0 | AP34: 0 | AQ34: 0 | AR34: 1 | AS34: 0 | AT34: 0 | AU34: 1 | AV34: 0 | AW34: 0 | AX34: 0 | AY34: 1 | AZ34: 0 | BA34: 1 | BB34: 0 | BC34: 0 | BD34: 0 | BE34: 0 | BF34: 0 | BG34: 0 | BH34: 0 | BI34: 0 | BJ34: 0 | BK34: 0 | BL34: 0 | BM34: 0 | BN34: 0 | BO34: 0 | BP34: 0 | BQ34: 0 | BR34: 0 | BS34: 0 | BT34: 0 | BU34: 0 | BV34: 0 | BW34: 0 | BX34: 0 | BY34: 0 | BZ34: 0 | CA34: 0 | CB34: 0 | CC34: 0 | CD34: 0 | CE34: 0 | CF34: 0 | CG34: 0 | CH34: 0 | CI34: 0 | CJ34: 0 | CK34: 0 | CL34: 0 | CM34: 0 | CN34: 0 | CO34: 0 | CP34: 0 | CQ34: 0 | CR34: 0 | CS34: 0 | CT34: 0 | CU34: 0 | CV34: 0 | CW34: 0
A35: 4143 | B35: 1 | C35: 0 | D35: 0 | E35: 0 | F35: 0 | G35: 0 | H35: 1 | I35: 1 | J35: 1 | K35: 1 | L35: 1 | M35: 0 | N35: 0 | O35: 1 | P35: 0 | Q35: 0 | R35: 1 | S35: 0 | T35: 0 | U35: 1 | V35: 0 | W35: 1 | X35: 0 | Y35: 1 | Z35: 1 | AA35: 1 | AB35: 0 | AC35: 0 | AD35: 0 | AE35: 0 | AF35: 0 | AG35: 0 | AH35: 1 | AI35: 10 | AJ35: 1 | AK35: 0 | AL35: 0 | AM35: 0 | AN35: 0 | AO35: 1 | AP35: 0 | AQ35: 0 | AR35: 1 | AS35: 0 | AT35: 0 | AU35: 0 | AV35: 1 | AW35: 0 | AX35: 0 | AY35: 1 | AZ35: 1 | BA35: 0 | BB35: 0 | BC35: 0 | BD35: 0 | BE35: 0 | BF35: 0 | BG35: 0 | BH35: 0 | BI35: 0 | BJ35: 0 | BK35: 0 | BL35: 0 | BM35: 0 | BN35: 0 | BO35: 0 | BP35: 0 | BQ35: 0 | BR35: 0 | BS35: 0 | BT35: 0 | BU35: 0 | BV35: 0 | BW35: 0 | BX35: 0 | BY35: 0 | BZ35: 0 | CA35: 0 | CB35: 0 | CC35: 0 | CD35: 0 | CE35: 0 | CF35: 0 | CG35: 0 | CH35: 0 | CI35: 0 | CJ35: 0 | CK35: 0 | CL35: 0 | CM35: 0 | CN35: 0 | CO35: 0 | CP35: 0 | CQ35: 0 | CR35: 0 | CS35: 0 | CT35: 0 | CU35: 0 | CV35: 0 | CW35: 0
A36: 4191 | B36: 0 | C36: 0 | D36: 1 | E36: 0 | F36: 0 | G36: 0 | H36: 0 | I36: 0 | J36: 0 | K36: 0 | L36: 0 | M36: 0 | N36: 0 | O36: 0 | P36: 0 | Q36: 1 | R36: 0 | S36: 1 | T36: 1 | U36: 1 | V36: 0 | W36: 0 | X36: 0 | Y36: 1 | Z36: 0 | AA36: 0 | AB36: 1 | AC36: 0 | AD36: 0 | AE36: 1 | AF36: 0 | AG36: 1 | AH36: 1 | AI36: 1 | AJ36: 10 | AK36: 1 | AL36: 0 | AM36: 0 | AN36: 0 | AO36: 1 | AP36: 0 | AQ36: 0 | AR36: 0 | AS36: 1 | AT36: 1 | AU36: 1 | AV36: 1 | AW36: 1 | AX36: 1 | AY36: 0 | AZ36: 1 | BA36: 0 | BB36: 0 | BC36: 0 | BD36: 0 | BE36: 0 | BF36: 0 | BG36: 0 | BH36: 0 | BI36: 0 | BJ36: 0 | BK36: 0 | BL36: 0 | BM36: 0 | BN36: 0 | BO36: 0 | BP36: 0 | BQ36: 0 | BR36: 0 | BS36: 0 | BT36: 0 | BU36: 0 | BV36: 0 | BW36: 0 | BX36: 0 | BY36: 0 | BZ36: 0 | CA36: 0 | CB36: 0 | CC36: 0 | CD36: 0 | CE36: 0 | CF36: 0 | CG36: 0 | CH36: 0 | CI36: 0 | CJ36: 0 | CK36: 0 | CL36: 0 | CM36: 0 | CN36: 0 | CO36: 0 | CP36: 0 | CQ36: 0 | CR36: 0 | CS36: 0 | CT36: 0 | CU36: 0 | CV36: 0 | CW36: 0
A37: 4241 | B37: 0 | C37: 0 | D37: 1 | E37: 1 | F37: 1 | G37: 0 | H37: 0 | I37: 0 | J37: 0 | K37: 1 | L37: 0 | M37: 0 | N37: 0 | O37: 1 | P37: 1 | Q37: 0 | R37: 0 | S37: 0 | T37: 0 | U37: 0 | V37: 0 | W37: 0 | X37: 1 | Y37: 1 | Z37: 0 | AA37: 1 | AB37: 1 | AC37: 1 | AD37: 0 | AE37: 0 | AF37: 0 | AG37: 0 | AH37: 1 | AI37: 0 | AJ37: 1 | AK37: 10 | AL37: 0 | AM37: 0 | AN37: 0 | AO37: 0 | AP37: 1 | AQ37: 1 | AR37: 0 | AS37: 0 | AT37: 1 | AU37: 1 | AV37: 0 | AW37: 1 | AX37: 0 | AY37: 1 | AZ37: 1 | BA37: 0 | BB37: 0 | BC37: 0 | BD37: 0 | BE37: 0 | BF37: 0 | BG37: 0 | BH37: 0 | BI37: 0 | BJ37: 0 | BK37: 0 | BL37: 0 | BM37: 0 | BN37: 0 | BO37: 0 | BP37: 0 | BQ37: 0 | BR37: 0 | BS37: 0 | BT37: 0 | BU37: 0 | BV37: 0 | BW37: 0 | BX37: 0 | BY37: 0 | BZ37: 0 | CA37: 0 | CB37: 0 | CC37: 0 | CD37: 0 | CE37: 0 | CF37: 0 | CG37: 0 | CH37: 0 | CI37: 0 | CJ37: 0 | CK37: 0 | CL37: 0 | CM37: 0 | CN37: 0 | CO37: 0 | CP37: 0 | CQ37: 0 | CR37: 0 | CS37: 0 | CT37: 0 | CU37: 0 | CV37: 0 | CW37: 0
A38: 4247 | B38: 1 | C38: 1 | D38: 1 | E38: 1 | F38: 1 | G38: 0 | H38: 1 | I38: 0 | J38: 0 | K38: 0 | L38: 0 | M38: 1 | N38: 0 | O38: 0 | P38: 1 | Q38: 0 | R38: 1 | S38: 0 | T38: 1 | U38: 1 | V38: 0 | W38: 0 | X38: 1 | Y38: 0 | Z38: 0 | AA38: 0 | AB38: 0 | AC38: 0 | AD38: 0 | AE38: 1 | AF38: 1 | AG38: 0 | AH38: 1 | AI38: 0 | AJ38: 0 | AK38: 0 | AL38: 10 | AM38: 0 | AN38: 1 | AO38: 0 | AP38: 1 | AQ38: 1 | AR38: 0 | AS38: 1 | AT38: 0 | AU38: 0 | AV38: 1 | AW38: 0 | AX38: 0 | AY38: 0 | AZ38: 0 | BA38: 0 | BB38: 0 | BC38: 0 | BD38: 0 | BE38: 0 | BF38: 0 | BG38: 0 | BH38: 0 | BI38: 0 | BJ38: 0 | BK38: 0 | BL38: 0 | BM38: 0 | BN38: 0 | BO38: 0 | BP38: 0 | BQ38: 0 | BR38: 0 | BS38: 0 | BT38: 0 | BU38: 0 | BV38: 0 | BW38: 0 | BX38: 0 | BY38: 0 | BZ38: 0 | CA38: 0 | CB38: 0 | CC38: 0 | CD38: 0 | CE38: 0 | CF38: 0 | CG38: 0 | CH38: 0 | CI38: 0 | CJ38: 0 | CK38: 0 | CL38: 0 | CM38: 0 | CN38: 0 | CO38: 0 | CP38: 0 | CQ38: 0 | CR38: 0 | CS38: 0 | CT38: 0 | CU38: 0 | CV38: 0 | CW38: 0
A39: 4292 | B39: 0 | C39: 0 | D39: 1 | E39: 1 | F39: 0 | G39: 0 | H39: 0 | I39: 1 | J39: 0 | K39: 0 | L39: 0 | M39: 0 | N39: 1 | O39: 1 | P39: 1 | Q39: 0 | R39: 0 | S39: 0 | T39: 1 | U39: 1 | V39: 0 | W39: 1 | X39: 0 | Y39: 0 | Z39: 0 | AA39: 1 | AB39: 0 | AC39: 1 | AD39: 1 | AE39: 0 | AF39: 0 | AG39: 0 | AH39: 1 | AI39: 0 | AJ39: 0 | AK39: 0 | AL39: 0 | AM39: 10 | AN39: 1 | AO39: 1 | AP39: 1 | AQ39: 0 | AR39: 0 | AS39: 1 | AT39: 1 | AU39: 0 | AV39: 0 | AW39: 0 | AX39: 1 | AY39: 1 | AZ39: 0 | BA39: 0 | BB39: 0 | BC39: 0 | BD39: 0 | BE39: 0 | BF39: 0 | BG39: 0 | BH39: 0 | BI39: 0 | BJ39: 0 | BK39: 0 | BL39: 0 | BM39: 0 | BN39: 0 | BO39: 0 | BP39: 0 | BQ39: 0 | BR39: 0 | BS39: 0 | BT39: 0 | BU39: 0 | BV39: 0 | BW39: 0 | BX39: 0 | BY39: 0 | BZ39: 0 | CA39: 0 | CB39: 0 | CC39: 0 | CD39: 0 | CE39: 0 | CF39: 0 | CG39: 0 | CH39: 0 | CI39: 0 | CJ39: 0 | CK39: 0 | CL39: 0 | CM39: 0 | CN39: 0 | CO39: 0 | CP39: 0 | CQ39: 0 | CR39: 0 | CS39: 0 | CT39: 0 | CU39: 0 | CV39: 0 | CW39: 0
A40: 4296 | B40: 0 | C40: 1 | D40: 0 | E40: 1 | F40: 1 | G40: 1 | H40: 0 | I40: 1 | J40: 1 | K40: 1 | L40: 0 | M40: 0 | N40: 1 | O40: 0 | P40: 0 | Q40: 0 | R40: 0 | S40: 0 | T40: 1 | U40: 0 | V40: 0 | W40: 0 | X40: 0 | Y40: 0 | Z40: 0 | AA40: 1 | AB40: 1 | AC40: 0 | AD40: 0 | AE40: 0 | AF40: 1 | AG40: 0 | AH40: 0 | AI40: 0 | AJ40: 0 | AK40: 0 | AL40: 1 | AM40: 1 | AN40: 10 | AO40: 1 | AP40: 0 | AQ40: 0 | AR40: 1 | AS40: 0 | AT40: 0 | AU40: 1 | AV40: 0 | AW40: 1 | AX40: 0 | AY40: 1 | AZ40: 1 | BA40: 0 | BB40: 0 | BC40: 0 | BD40: 0 | BE40: 0 | BF40: 0 | BG40: 0 | BH40: 0 | BI40: 0 | BJ40: 0 | BK40: 0 | BL40: 0 | BM40: 0 | BN40: 0 | BO40: 0 | BP40: 0 | BQ40: 0 | BR40: 0 | BS40: 0 | BT40: 0 | BU40: 0 | BV40: 0 | BW40: 0 | BX40: 0 | BY40: 0 | BZ40: 0 | CA40: 0 | CB40: 0 | CC40: 0 | CD40: 0 | CE40: 0 | CF40: 0 | CG40: 0 | CH40: 0 | CI40: 0 | CJ40: 0 | CK40: 0 | CL40: 0 | CM40: 0 | CN40: 0 | CO40: 0 | CP40: 0 | CQ40: 0 | CR40: 0 | CS40: 0 | CT40: 0 | CU40: 0 | CV40: 0 | CW40: 0
A41: 4329 | B41: 1 | C41: 1 | D41: 0 | E41: 1 | F41: 0 | G41: 1 | H41: 1 | I41: 1 | J41: 1 | K41: 0 | L41: 1 | M41: 0 | N41: 1 | O41: 0 | P41: 0 | Q41: 0 | R41: 0 | S41: 1 | T41: 1 | U41: 0 | V41: 1 | W41: 1 | X41: 0 | Y41: 0 | Z41: 0 | AA41: 0 | AB41: 1 | AC41: 1 | AD41: 1 | AE41: 0 | AF41: 0 | AG41: 0 | AH41: 0 | AI41: 1 | AJ41: 1 | AK41: 0 | AL41: 0 | AM41: 1 | AN41: 1 | AO41: 11 | AP41: 0 | AQ41: 0 | AR41: 1 | AS41: 0 | AT41: 0 | AU41: 0 | AV41: 0 | AW41: 0 | AX41: 1 | AY41: 0 | AZ41: 0 | BA41: 0 | BB41: 0 | BC41: 0 | BD41: 0 | BE41: 0 | BF41: 0 | BG41: 0 | BH41: 0 | BI41: 0 | BJ41: 0 | BK41: 0 | BL41: 0 | BM41: 0 | BN41: 0 | BO41: 0 | BP41: 0 | BQ41: 0 | BR41: 0 | BS41: 0 | BT41: 0 | BU41: 0 | BV41: 0 | BW41: 0 | BX41: 0 | BY41: 0 | BZ41: 0 | CA41: 0 | CB41: 0 | CC41: 0 | CD41: 0 | CE41: 0 | CF41: 0 | CG41: 0 | CH41: 0 | CI41: 0 | CJ41: 0 | CK41: 0 | CL41: 0 | CM41: 0 | CN41: 0 | CO41: 0 | CP41: 0 | CQ41: 0 | CR41: 0 | CS41: 0 | CT41: 0 | CU41: 0 | CV41: 0 | CW41: 0
A42: 4645 | B42: 0 | C42: 0 | D42: 0 | E42: 0 | F42: 1 | G42: 0 | H42: 0 | I42: 0 | J42: 1 | K42: 0 | L42: 0 | M42: 1 | N42: 0 | O42: 0 | P42: 1 | Q42: 1 | R42: 1 | S42: 0 | T42: 1 | U42: 1 | V42: 0 | W42: 0 | X42: 0 | Y42: 1 | Z42: 1 | AA42: 1 | AB42: 1 | AC42: 0 | AD42: 1 | AE42: 0 | AF42: 0 | AG42: 1 | AH42: 0 | AI42: 0 | AJ42: 0 | AK42: 1 | AL42: 1 | AM42: 1 | AN42: 0 | AO42: 0 | AP42: 10 | AQ42: 0 | AR42: 1 | AS42: 0 | AT42: 0 | AU42: 0 | AV42: 0 | AW42: 1 | AX42: 0 | AY42: 0 | AZ42: 1 | BA42: 0 | BB42: 0 | BC42: 0 | BD42: 0 | BE42: 0 | BF42: 0 | BG42: 0 | BH42: 0 | BI42: 0 | BJ42: 0 | BK42: 0 | BL42: 0 | BM42: 0 | BN42: 0 | BO42: 0 | BP42: 0 | BQ42: 0 | BR42: 0 | BS42: 0 | BT42: 0 | BU42: 0 | BV42: 0 | BW42: 0 | BX42: 0 | BY42: 0 | BZ42: 0 | CA42: 0 | CB42: 0 | CC42: 0 | CD42: 0 | CE42: 0 | CF42: 0 | CG42: 0 | CH42: 0 | CI42: 0 | CJ42: 0 | CK42: 0 | CL42: 0 | CM42: 0 | CN42: 0 | CO42: 0 | CP42: 0 | CQ42: 0 | CR42: 0 | CS42: 0 | CT42: 0 | CU42: 0 | CV42: 0 | CW42: 0
A43: 4655 | B43: 0 | C43: 0 | D43: 1 | E43: 1 | F43: 0 | G43: 0 | H43: 1 | I43: 0 | J43: 0 | K43: 1 | L43: 0 | M43: 0 | N43: 1 | O43: 1 | P43: 0 | Q43: 0 | R43: 0 | S43: 1 | T43: 0 | U43: 0 | V43: 1 | W43: 0 | X43: 1 | Y43: 1 | Z43: 0 | AA43: 0 | AB43: 0 | AC43: 1 | AD43: 0 | AE43: 1 | AF43: 1 | AG43: 1 | AH43: 0 | AI43: 0 | AJ43: 0 | AK43: 1 | AL43: 1 | AM43: 0 | AN43: 0 | AO43: 0 | AP43: 0 | AQ43: 10 | AR43: 1 | AS43: 1 | AT43: 0 | AU43: 0 | AV43: 0 | AW43: 0 | AX43: 1 | AY43: 0 | AZ43: 0 | BA43: 1 | BB43: 0 | BC43: 0 | BD43: 0 | BE43: 0 | BF43: 0 | BG43: 0 | BH43: 0 | BI43: 0 | BJ43: 0 | BK43: 0 | BL43: 0 | BM43: 0 | BN43: 0 | BO43: 0 | BP43: 0 | BQ43: 0 | BR43: 0 | BS43: 0 | BT43: 0 | BU43: 0 | BV43: 0 | BW43: 0 | BX43: 0 | BY43: 0 | BZ43: 0 | CA43: 0 | CB43: 0 | CC43: 0 | CD43: 0 | CE43: 0 | CF43: 0 | CG43: 0 | CH43: 0 | CI43: 0 | CJ43: 0 | CK43: 0 | CL43: 0 | CM43: 0 | CN43: 0 | CO43: 0 | CP43: 0 | CQ43: 0 | CR43: 0 | CS43: 0 | CT43: 0 | CU43: 0 | CV43: 0 | CW43: 0
A44: 4676 | B44: 0 | C44: 0 | D44: 1 | E44: 0 | F44: 0 | G44: 1 | H44: 1 | I44: 1 | J44: 1 | K44: 0 | L44: 0 | M44: 0 | N44: 0 | O44: 0 | P44: 0 | Q44: 1 | R44: 1 | S44: 0 | T44: 0 | U44: 0 | V44: 1 | W44: 1 | X44: 0 | Y44: 0 | Z44: 0 | AA44: 0 | AB44: 1 | AC44: 0 | AD44: 0 | AE44: 0 | AF44: 1 | AG44: 1 | AH44: 1 | AI44: 1 | AJ44: 0 | AK44: 0 | AL44: 0 | AM44: 0 | AN44: 1 | AO44: 1 | AP44: 1 | AQ44: 1 | AR44: 10 | AS44: 0 | AT44: 0 | AU44: 0 | AV44: 0 | AW44: 0 | AX44: 1 | AY44: 0 | AZ44: 0 | BA44: 1 | BB44: 0 | BC44: 0 | BD44: 0 | BE44: 0 | BF44: 0 | BG44: 0 | BH44: 0 | BI44: 0 | BJ44: 0 | BK44: 0 | BL44: 0 | BM44: 0 | BN44: 0 | BO44: 0 | BP44: 0 | BQ44: 0 | BR44: 0 | BS44: 0 | BT44: 0 | BU44: 0 | BV44: 0 | BW44: 0 | BX44: 0 | BY44: 0 | BZ44: 0 | CA44: 0 | CB44: 0 | CC44: 0 | CD44: 0 | CE44: 0 | CF44: 0 | CG44: 0 | CH44: 0 | CI44: 0 | CJ44: 0 | CK44: 0 | CL44: 0 | CM44: 0 | CN44: 0 | CO44: 0 | CP44: 0 | CQ44: 0 | CR44: 0 | CS44: 0 | CT44: 0 | CU44: 0 | CV44: 0 | CW44: 0
A45: 4702 | B45: 0 | C45: 0 | D45: 0 | E45: 0 | F45: 1 | G45: 1 | H45: 0 | I45: 1 | J45: 0 | K45: 0 | L45: 1 | M45: 0 | N45: 0 | O45: 0 | P45: 0 | Q45: 0 | R45: 1 | S45: 1 | T45: 0 | U45: 0 | V45: 1 | W45: 1 | X45: 1 | Y45: 0 | Z45: 1 | AA45: 1 | AB45: 0 | AC45: 0 | AD45: 1 | AE45: 0 | AF45: 0 | AG45: 0 | AH45: 0 | AI45: 0 | AJ45: 1 | AK45: 0 | AL45: 1 | AM45: 1 | AN45: 0 | AO45: 0 | AP45: 0 | AQ45: 1 | AR45: 0 | AS45: 10 | AT45: 1 | AU45: 0 | AV45: 1 | AW45: 0 | AX45: 1 | AY45: 0 | AZ45: 1 | BA45: 0 | BB45: 0 | BC45: 0 | BD45: 0 | BE45: 0 | BF45: 0 | BG45: 0 | BH45: 0 | BI45: 0 | BJ45: 0 | BK45: 0 | BL45: 0 | BM45: 0 | BN45: 0 | BO45: 0 | BP45: 0 | BQ45: 0 | BR45: 0 | BS45: 0 | BT45: 0 | BU45: 0 | BV45: 0 | BW45: 0 | BX45: 0 | BY45: 0 | BZ45: 0 | CA45: 0 | CB45: 0 | CC45: 0 | CD45: 0 | CE45: 0 | CF45: 0 | CG45: 0 | CH45: 0 | CI45: 0 | CJ45: 0 | CK45: 0 | CL45: 0 | CM45: 0 | CN45: 0 | CO45: 0 | CP45: 0 | CQ45: 0 | CR45: 0 | CS45: 0 | CT45: 0 | CU45: 0 | CV45: 0 | CW45: 0
A46: 4787 | B46: 0 | C46: 0 | D46: 0 | E46: 1 | F46: 0 | G46: 1 | H46: 1 | I46: 1 | J46: 0 | K46: 1 | L46: 0 | M46: 1 | N46: 1 | O46: 1 | P46: 1 | Q46: 0 | R46: 0 | S46: 0 | T46: 0 | U46: 0 | V46: 0 | W46: 0 | X46: 1 | Y46: 0 | Z46: 0 | AA46: 0 | AB46: 1 | AC46: 1 | AD46: 1 | AE46: 0 | AF46: 0 | AG46: 0 | AH46: 0 | AI46: 0 | AJ46: 1 | AK46: 1 | AL46: 0 | AM46: 1 | AN46: 0 | AO46: 0 | AP46: 0 | AQ46: 0 | AR46: 0 | AS46: 1 | AT46: 10 | AU46: 1 | AV46: 0 | AW46: 1 | AX46: 0 | AY46: 0 | AZ46: 0 | BA46: 1 | BB46: 0 | BC46: 0 | BD46: 0 | BE46: 0 | BF46: 0 | BG46: 0 | BH46: 0 | BI46: 0 | BJ46: 0 | BK46: 0 | BL46: 0 | BM46: 0 | BN46: 0 | BO46: 0 | BP46: 0 | BQ46: 0 | BR46: 0 | BS46: 0 | BT46: 0 | BU46: 0 | BV46: 0 | BW46: 0 | BX46: 0 | BY46: 0 | BZ46: 0 | CA46: 0 | CB46: 0 | CC46: 0 | CD46: 0 | CE46: 0 | CF46: 0 | CG46: 0 | CH46: 0 | CI46: 0 | CJ46: 0 | CK46: 0 | CL46: 0 | CM46: 0 | CN46: 0 | CO46: 0 | CP46: 0 | CQ46: 0 | CR46: 0 | CS46: 0 | CT46: 0 | CU46: 0 | CV46: 0 | CW46: 0
A47: 4979 | B47: 0 | C47: 0 | D47: 0 | E47: 0 | F47: 0 | G47: 1 | H47: 1 | I47: 0 | J47: 0 | K47: 0 | L47: 1 | M47: 1 | N47: 0 | O47: 0 | P47: 0 | Q47: 1 | R47: 0 | S47: 0 | T47: 0 | U47: 1 | V47: 0 | W47: 0 | X47: 0 | Y47: 1 | Z47: 1 | AA47: 1 | AB47: 0 | AC47: 1 | AD47: 1 | AE47: 0 | AF47: 0 | AG47: 1 | AH47: 1 | AI47: 0 | AJ47: 1 | AK47: 1 | AL47: 0 | AM47: 0 | AN47: 1 | AO47: 0 | AP47: 0 | AQ47: 0 | AR47: 0 | AS47: 0 | AT47: 1 | AU47: 10 | AV47: 1 | AW47: 0 | AX47: 1 | AY47: 0 | AZ47: 1 | BA47: 0 | BB47: 0 | BC47: 0 | BD47: 0 | BE47: 0 | BF47: 0 | BG47: 0 | BH47: 0 | BI47: 0 | BJ47: 0 | BK47: 0 | BL47: 0 | BM47: 0 | BN47: 0 | BO47: 0 | BP47: 0 | BQ47: 0 | BR47: 0 | BS47: 0 | BT47: 0 | BU47: 0 | BV47: 0 | BW47: 0 | BX47: 0 | BY47: 0 | BZ47: 0 | CA47: 0 | CB47: 0 | CC47: 0 | CD47: 0 | CE47: 0 | CF47: 0 | CG47: 0 | CH47: 0 | CI47: 0 | CJ47: 0 | CK47: 0 | CL47: 0 | CM47: 0 | CN47: 0 | CO47: 0 | CP47: 0 | CQ47: 0 | CR47: 0 | CS47: 0 | CT47: 0 | CU47: 0 | CV47: 0 | CW47: 0
A48: 5125 | B48: 0 | C48: 0 | D48: 1 | E48: 0 | F48: 1 | G48: 1 | H48: 0 | I48: 0 | J48: 0 | K48: 0 | L48: 0 | M48: 1 | N48: 0 | O48: 0 | P48: 1 | Q48: 0 | R48: 1 | S48: 0 | T48: 0 | U48: 1 | V48: 0 | W48: 1 | X48: 0 | Y48: 0 | Z48: 0 | AA48: 1 | AB48: 1 | AC48: 0 | AD48: 0 | AE48: 1 | AF48: 1 | AG48: 1 | AH48: 0 | AI48: 1 | AJ48: 1 | AK48: 0 | AL48: 1 | AM48: 0 | AN48: 0 | AO48: 0 | AP48: 0 | AQ48: 0 | AR48: 0 | AS48: 1 | AT48: 0 | AU48: 1 | AV48: 10 | AW48: 0 | AX48: 0 | AY48: 1 | AZ48: 0 | BA48: 1 | BB48: 0 | BC48: 0 | BD48: 0 | BE48: 0 | BF48: 0 | BG48: 0 | BH48: 0 | BI48: 0 | BJ48: 0 | BK48: 0 | BL48: 0 | BM48: 0 | BN48: 0 | BO48: 0 | BP48: 0 | BQ48: 0 | BR48: 0 | BS48: 0 | BT48: 0 | BU48: 0 | BV48: 0 | BW48: 0 | BX48: 0 | BY48: 0 | BZ48: 0 | CA48: 0 | CB48: 0 | CC48: 0 | CD48: 0 | CE48: 0 | CF48: 0 | CG48: 0 | CH48: 0 | CI48: 0 | CJ48: 0 | CK48: 0 | CL48: 0 | CM48: 0 | CN48: 0 | CO48: 0 | CP48: 0 | CQ48: 0 | CR48: 0 | CS48: 0 | CT48: 0 | CU48: 0 | CV48: 0 | CW48: 0
A49: 5350 | B49: 1 | C49: 0 | D49: 1 | E49: 1 | F49: 0 | G49: 1 | H49: 0 | I49: 0 | J49: 0 | K49: 1 | L49: 1 | M49: 1 | N49: 1 | O49: 1 | P49: 0 | Q49: 0 | R49: 0 | S49: 0 | T49: 0 | U49: 0 | V49: 0 | W49: 0 | X49: 0 | Y49: 0 | Z49: 0 | AA49: 1 | AB49: 1 | AC49: 1 | AD49: 0 | AE49: 0 | AF49: 1 | AG49: 1 | AH49: 0 | AI49: 0 | AJ49: 1 | AK49: 1 | AL49: 0 | AM49: 0 | AN49: 1 | AO49: 0 | AP49: 1 | AQ49: 0 | AR49: 0 | AS49: 0 | AT49: 1 | AU49: 0 | AV49: 0 | AW49: 10 | AX49: 0 | AY49: 1 | AZ49: 0 | BA49: 0 | BB49: 0 | BC49: 0 | BD49: 0 | BE49: 0 | BF49: 0 | BG49: 0 | BH49: 0 | BI49: 0 | BJ49: 0 | BK49: 0 | BL49: 0 | BM49: 0 | BN49: 0 | BO49: 0 | BP49: 0 | BQ49: 0 | BR49: 0 | BS49: 0 | BT49: 0 | BU49: 0 | BV49: 0 | BW49: 0 | BX49: 0 | BY49: 0 | BZ49: 0 | CA49: 0 | CB49: 0 | CC49: 0 | CD49: 0 | CE49: 0 | CF49: 0 | CG49: 0 | CH49: 0 | CI49: 0 | CJ49: 0 | CK49: 0 | CL49: 0 | CM49: 0 | CN49: 0 | CO49: 0 | CP49: 0 | CQ49: 0 | CR49: 0 | CS49: 0 | CT49: 0 | CU49: 0 | CV49: 0 | CW49: 0
A50: 5822 | B50: 0 | C50: 1 | D50: 0 | E50: 0 | F50: 0 | G50: 0 | H50: 0 | I50: 0 | J50: 1 | K50: 0 | L50: 0 | M50: 0 | N50: 1 | O50: 0 | P50: 0 | Q50: 0 | R50: 1 | S50: 1 | T50: 0 | U50: 0 | V50: 0 | W50: 1 | X50: 0 | Y50: 1 | Z50: 0 | AA50: 0 | AB50: 0 | AC50: 0 | AD50: 1 | AE50: 1 | AF50: 1 | AG50: 1 | AH50: 0 | AI50: 0 | AJ50: 1 | AK50: 0 | AL50: 0 | AM50: 1 | AN50: 0 | AO50: 1 | AP50: 0 | AQ50: 1 | AR50: 1 | AS50: 1 | AT50: 0 | AU50: 1 | AV50: 0 | AW50: 0 | AX50: 10 | AY50: 1 | AZ50: 0 | BA50: 1 | BB50: 0 | BC50: 0 | BD50: 0 | BE50: 0 | BF50: 0 | BG50: 0 | BH50: 0 | BI50: 0 | BJ50: 0 | BK50: 0 | BL50: 0 | BM50: 0 | BN50: 0 | BO50: 0 | BP50: 0 | BQ50: 0 | BR50: 0 | BS50: 0 | BT50: 0 | BU50: 0 | BV50: 0 | BW50: 0 | BX50: 0 | BY50: 0 | BZ50: 0 | CA50: 0 | CB50: 0 | CC50: 0 | CD50: 0 | CE50: 0 | CF50: 0 | CG50: 0 | CH50: 0 | CI50: 0 | CJ50: 0 | CK50: 0 | CL50: 0 | CM50: 0 | CN50: 0 | CO50: 0 | CP50: 0 | CQ50: 0 | CR50: 0 | CS50: 0 | CT50: 0 | CU50: 0 | CV50: 0 | CW50: 0
A51: 5847 | B51: 1 | C51: 1 | D51: 0 | E51: 0 | F51: 0 | G51: 0 | H51: 1 | I51: 0 | J51: 1 | K51: 0 | L51: 0 | M51: 1 | N51: 0 | O51: 0 | P51: 0 | Q51: 1 | R51: 0 | S51: 0 | T51: 0 | U51: 0 | V51: 1 | W51: 1 | X51: 0 | Y51: 0 | Z51: 0 | AA51: 1 | AB51: 1 | AC51: 0 | AD51: 0 | AE51: 1 | AF51: 0 | AG51: 0 | AH51: 1 | AI51: 1 | AJ51: 0 | AK51: 1 | AL51: 0 | AM51: 1 | AN51: 1 | AO51: 0 | AP51: 0 | AQ51: 0 | AR51: 0 | AS51: 0 | AT51: 0 | AU51: 0 | AV51: 1 | AW51: 1 | AX51: 1 | AY51: 10 | AZ51: 0 | BA51: 1 | BB51: 0 | BC51: 0 | BD51: 0 | BE51: 0 | BF51: 0 | BG51: 0 | BH51: 0 | BI51: 0 | BJ51: 0 | BK51: 0 | BL51: 0 | BM51: 0 | BN51: 0 | BO51: 0 | BP51: 0 | BQ51: 0 | BR51: 0 | BS51: 0 | BT51: 0 | BU51: 0 | BV51: 0 | BW51: 0 | BX51: 0 | BY51: 0 | BZ51: 0 | CA51: 0 | CB51: 0 | CC51: 0 | CD51: 0 | CE51: 0 | CF51: 0 | CG51: 0 | CH51: 0 | CI51: 0 | CJ51: 0 | CK51: 0 | CL51: 0 | CM51: 0 | CN51: 0 | CO51: 0 | CP51: 0 | CQ51: 0 | CR51: 0 | CS51: 0 | CT51: 0 | CU51: 0 | CV51: 0 | CW51: 0
A52: 5934 | B52: 0 | C52: 0 | D52: 0 | E52: 1 | F52: 0 | G52: 0 | H52: 1 | I52: 1 | J52: 0 | K52: 0 | L52: 0 | M52: 0 | N52: 1 | O52: 0 | P52: 1 | Q52: 1 | R52: 1 | S52: 1 | T52: 1 | U52: 1 | V52: 0 | W52: 0 | X52: 0 | Y52: 0 | Z52: 1 | AA52: 1 | AB52: 0 | AC52: 0 | AD52: 0 | AE52: 1 | AF52: 0 | AG52: 0 | AH52: 0 | AI52: 1 | AJ52: 1 | AK52: 1 | AL52: 0 | AM52: 0 | AN52: 1 | AO52: 0 | AP52: 1 | AQ52: 0 | AR52: 0 | AS52: 1 | AT52: 0 | AU52: 1 | AV52: 0 | AW52: 0 | AX52: 0 | AY52: 0 | AZ52: 10 | BA52: 0 | BB52: 0 | BC52: 0 | BD52: 0 | BE52: 0 | BF52: 0 | BG52: 0 | BH52: 0 | BI52: 0 | BJ52: 0 | BK52: 0 | BL52: 0 | BM52: 0 | BN52: 0 | BO52: 0 | BP52: 0 | BQ52: 0 | BR52: 0 | BS52: 0 | BT52: 0 | BU52: 0 | BV52: 0 | BW52: 0 | BX52: 0 | BY52: 0 | BZ52: 0 | CA52: 0 | CB52: 0 | CC52: 0 | CD52: 0 | CE52: 0 | CF52: 0 | CG52: 0 | CH52: 0 | CI52: 0 | CJ52: 0 | CK52: 0 | CL52: 0 | CM52: 0 | CN52: 0 | CO52: 0 | CP52: 0 | CQ52: 0 | CR52: 0 | CS52: 0 | CT52: 0 | CU52: 0 | CV52: 0 | CW52: 0
A53: 6237 | B53: 1 | C53: 1 | D53: 1 | E53: 0 | F53: 0 | G53: 1 | H53: 0 | I53: 0 | J53: 1 | K53: 0 | L53: 0 | M53: 1 | N53: 1 | O53: 1 | P53: 0 | Q53: 0 | R53: 1 | S53: 1 | T53: 0 | U53: 0 | V53: 1 | W53: 0 | X53: 1 | Y53: 0 | Z53: 1 | AA53: 0 | AB53: 0 | AC53: 0 | AD53: 0 | AE53: 0 | AF53: 0 | AG53: 0 | AH53: 1 | AI53: 0 | AJ53: 0 | AK53: 0 | AL53: 0 | AM53: 0 | AN53: 0 | AO53: 0 | AP53: 0 | AQ53: 1 | AR53: 1 | AS53: 0 | AT53: 1 | AU53: 0 | AV53: 1 | AW53: 0 | AX53: 1 | AY53: 1 | AZ53: 0 | BA53: 10 | BB53: 0 | BC53: 0 | BD53: 0 | BE53: 0 | BF53: 0 | BG53: 0 | BH53: 0 | BI53: 0 | BJ53: 0 | BK53: 0 | BL53: 0 | BM53: 0 | BN53: 0 | BO53: 0 | BP53: 0 | BQ53: 0 | BR53: 0 | BS53: 0 | BT53: 0 | BU53: 0 | BV53: 0 | BW53: 0 | BX53: 0 | BY53: 0 | BZ53: 0 | CA53: 0 | CB53: 0 | CC53: 0 | CD53: 0 | CE53: 0 | CF53: 0 | CG53: 0 | CH53: 0 | CI53: 0 | CJ53: 0 | CK53: 0 | CL53: 0 | CM53: 0 | CN53: 0 | CO53: 0 | CP53: 0 | CQ53: 0 | CR53: 0 | CS53: 0 | CT53: 0 | CU53: 0 | CV53: 0 | CW53: 0
B54: 0 | C54: 0 | D54: 0 | E54: 0 | F54: 0 | G54: 0 | H54: 0 | I54: 0 | J54: 0 | K54: 0 | L54: 0 | M54: 0 | N54: 0 | O54: 0 | P54: 0 | Q54: 0 | R54: 0 | S54: 0 | T54: 0 | U54: 0 | V54: 0 | W54: 0 | X54: 0 | Y54: 0 | Z54: 0 | AA54: 0 | AB54: 0 | AC54: 0 | AD54: 0 | AE54: 0 | AF54: 0 | AG54: 0 | AH54: 0 | AI54: 0 | AJ54: 0 | AK54: 0 | AL54: 0 | AM54: 0 | AN54: 0 | AO54: 0 | AP54: 0 | AQ54: 0 | AR54: 0 | AS54: 0 | AT54: 0 | AU54: 0 | AV54: 0 | AW54: 0 | AX54: 0 | AY54: 0 | AZ54: 0 | BA54: 0 | BB54: 124 | BC54: 124 | BD54: 124 | BE54: 124 | BF54: 124 | BG54: 124 | BH54: 124 | BI54: 124 | BJ54: 124 | BK54: 124 | BL54: 124 | BM54: 124 | BN54: 124 | BO54: 124 | BP54: 124 | BQ54: 124 | BR54: 124 | BS54: 124 | BT54: 124 | BU54: 124 | BV54: 124 | BW54: 124 | BX54: 124 | BY54: 124 | BZ54: 124 | CA54: 124 | CB54: 124 | CC54: 124 | CD54: 124 | CE54: 124 | CF54: 124 | CG54: 124 | CH54: 124 | CI54: 124 | CJ54: 124 | CK54: 124 | CL54: 124 | CM54: 124 | CN54: 124 | CO54: 124 | CP54: 124 | CQ54: 124 | CR54: 124 | CS54: 124 | CT54: 124 | CU54: 124 | CV54: 124 | CW54: 124
B55: 0 | C55: 0 | D55: 0 | E55: 0 | F55: 0 | G55: 0 | H55: 0 | I55: 0 | J55: 0 | K55: 0 | L55: 0 | M55: 0 | N55: 0 | O55: 0 | P55: 0 | Q55: 0 | R55: 0 | S55: 0 | T55: 0 | U55: 0 | V55: 0 | W55: 0 | X55: 0 | Y55: 0 | Z55: 0 | AA55: 0 | AB55: 0 | AC55: 0 | AD55: 0 | AE55: 0 | AF55: 0 | AG55: 0 | AH55: 0 | AI55: 0 | AJ55: 0 | AK55: 0 | AL55: 0 | AM55: 0 | AN55: 0 | AO55: 0 | AP55: 0 | AQ55: 0 | AR55: 0 | AS55: 0 | AT55: 0 | AU55: 0 | AV55: 0 | AW55: 0 | AX55: 0 | AY55: 0 | AZ55: 0 | BA55: 0 | BB55: 124 | BC55: 124 | BD55: 124 | BE55: 124 | BF55: 124 | BG55: 124 | BH55: 124 | BI55: 124 | BJ55: 124 | BK55: 124 | BL55: 124 | BM55: 124 | BN55: 124 | BO55: 124 | BP55: 124 | BQ55: 124 | BR55: 124 | BS55: 124 | BT55: 124 | BU55: 124 | BV55: 124 | BW55: 124 | BX55: 124 | BY55: 124 | BZ55: 124 | CA55: 124 | CB55: 124 | CC55: 124 | CD55: 124 | CE55: 124 | CF55: 124 | CG55: 124 | CH55: 124 | CI55: 124 | CJ55: 124 | CK55: 124 | CL55: 124 | CM55: 124 | CN55: 124 | CO55: 124 | CP55: 124 | CQ55: 124 | CR55: 124 | CS55: 124 | CT55: 124 | CU55: 124 | CV55: 124 | CW55: 124
B56: 0 | C56: 0 | D56: 0 | E56: 0 | F56: 0 | G56: 0 | H56: 0 | I56: 0 | J56: 0 | K56: 0 | L56: 0 | M56: 0 | N56: 0 | O56: 0 | P56: 0 | Q56: 0 | R56: 0 | S56: 0 | T56: 0 | U56: 0 | V56: 0 | W56: 0 | X56: 0 | Y56: 0 | Z56: 0 | AA56: 0 | AB56: 0 | AC56: 0 | AD56: 0 | AE56: 0 | AF56: 0 | AG56: 0 | AH56: 0 | AI56: 0 | AJ56: 0 | AK56: 0 | AL56: 0 | AM56: 0 | AN56: 0 | AO56: 0 | AP56: 0 | AQ56: 0 | AR56: 0 | AS56: 0 | AT56: 0 | AU56: 0 | AV56: 0 | AW56: 0 | AX56: 0 | AY56: 0 | AZ56: 0 | BA56: 0 | BB56: 124 | BC56: 124 | BD56: 124 | BE56: 124 | BF56: 124 | BG56: 124 | BH56: 124 | BI56: 124 | BJ56: 124 | BK56: 124 | BL56: 124 | BM56: 124 | BN56: 124 | BO56: 124 | BP56: 124 | BQ56: 124 | BR56: 124 | BS56: 124 | BT56: 124 | BU56: 124 | BV56: 124 | BW56: 124 | BX56: 124 | BY56: 124 | BZ56: 124 | CA56: 124 | CB56: 124 | CC56: 124 | CD56: 124 | CE56: 124 | CF56: 124 | CG56: 124 | CH56: 124 | CI56: 124 | CJ56: 124 | CK56: 124 | CL56: 124 | CM56: 124 | CN56: 124 | CO56: 124 | CP56: 124 | CQ56: 124 | CR56: 124 | CS56: 124 | CT56: 124 | CU56: 124 | CV56: 124 | CW56: 124
B57: 0 | C57: 0 | D57: 0 | E57: 0 | F57: 0 | G57: 0 | H57: 0 | I57: 0 | J57: 0 | K57: 0 | L57: 0 | M57: 0 | N57: 0 | O57: 0 | P57: 0 | Q57: 0 | R57: 0 | S57: 0 | T57: 0 | U57: 0 | V57: 0 | W57: 0 | X57: 0 | Y57: 0 | Z57: 0 | AA57: 0 | AB57: 0 | AC57: 0 | AD57: 0 | AE57: 0 | AF57: 0 | AG57: 0 | AH57: 0 | AI57: 0 | AJ57: 0 | AK57: 0 | AL57: 0 | AM57: 0 | AN57: 0 | AO57: 0 | AP57: 0 | AQ57: 0 | AR57: 0 | AS57: 0 | AT57: 0 | AU57: 0 | AV57: 0 | AW57: 0 | AX57: 0 | AY57: 0 | AZ57: 0 | BA57: 0 | BB57: 124 | BC57: 124 | BD57: 124 | BE57: 124 | BF57: 124 | BG57: 124 | BH57: 124 | BI57: 124 | BJ57: 124 | BK57: 124 | BL57: 124 | BM57: 124 | BN57: 124 | BO57: 124 | BP57: 124 | BQ57: 124 | BR57: 124 | BS57: 124 | BT57: 124 | BU57: 124 | BV57: 124 | BW57: 124 | BX57: 124 | BY57: 124 | BZ57: 124 | CA57: 124 | CB57: 124 | CC57: 124 | CD57: 124 | CE57: 124 | CF57: 124 | CG57: 124 | CH57: 124 | CI57: 124 | CJ57: 124 | CK57: 124 | CL57: 124 | CM57: 124 | CN57: 124 | CO57: 124 | CP57: 124 | CQ57: 124 | CR57: 124 | CS57: 124 | CT57: 124 | CU57: 124 | CV57: 124 | CW57: 124
B58: 0 | C58: 0 | D58: 0 | E58: 0 | F58: 0 | G58: 0 | H58: 0 | I58: 0 | J58: 0 | K58: 0 | L58: 0 | M58: 0 | N58: 0 | O58: 0 | P58: 0 | Q58: 0 | R58: 0 | S58: 0 | T58: 0 | U58: 0 | V58: 0 | W58: 0 | X58: 0 | Y58: 0 | Z58: 0 | AA58: 0 | AB58: 0 | AC58: 0 | AD58: 0 | AE58: 0 | AF58: 0 | AG58: 0 | AH58: 0 | AI58: 0 | AJ58: 0 | AK58: 0 | AL58: 0 | AM58: 0 | AN58: 0 | AO58: 0 | AP58: 0 | AQ58: 0 | AR58: 0 | AS58: 0 | AT58: 0 | AU58: 0 | AV58: 0 | AW58: 0 | AX58: 0 | AY58: 0 | AZ58: 0 | BA58: 0 | BB58: 124 | BC58: 124 | BD58: 124 | BE58: 124 | BF58: 124 | BG58: 124 | BH58: 124 | BI58: 124 | BJ58: 124 | BK58: 124 | BL58: 124 | BM58: 124 | BN58: 124 | BO58: 124 | BP58: 124 | BQ58: 124 | BR58: 124 | BS58: 124 | BT58: 124 | BU58: 124 | BV58: 124 | BW58: 124 | BX58: 124 | BY58: 124 | BZ58: 124 | CA58: 124 | CB58: 124 | CC58: 124 | CD58: 124 | CE58: 124 | CF58: 124 | CG58: 124 | CH58: 124 | CI58: 124 | CJ58: 124 | CK58: 124 | CL58: 124 | CM58: 124 | CN58: 124 | CO58: 124 | CP58: 124 | CQ58: 124 | CR58: 124 | CS58: 124 | CT58: 124 | CU58: 124 | CV58: 124 | CW58: 124
B59: 0 | C59: 0 | D59: 0 | E59: 0 | F59: 0 | G59: 0 | H59: 0 | I59: 0 | J59: 0 | K59: 0 | L59: 0 | M59: 0 | N59: 0 | O59: 0 | P59: 0 | Q59: 0 | R59: 0 | S59: 0 | T59: 0 | U59: 0 | V59: 0 | W59: 0 | X59: 0 | Y59: 0 | Z59: 0 | AA59: 0 | AB59: 0 | AC59: 0 | AD59: 0 | AE59: 0 | AF59: 0 | AG59: 0 | AH59: 0 | AI59: 0 | AJ59: 0 | AK59: 0 | AL59: 0 | AM59: 0 | AN59: 0 | AO59: 0 | AP59: 0 | AQ59: 0 | AR59: 0 | AS59: 0 | AT59: 0 | AU59: 0 | AV59: 0 | AW59: 0 | AX59: 0 | AY59: 0 | AZ59: 0 | BA59: 0 | BB59: 124 | BC59: 124 | BD59: 124 | BE59: 124 | BF59: 124 | BG59: 124 | BH59: 124 | BI59: 124 | BJ59: 124 | BK59: 124 | BL59: 124 | BM59: 124 | BN59: 124 | BO59: 124 | BP59: 124 | BQ59: 124 | BR59: 124 | BS59: 124 | BT59: 124 | BU59: 124 | BV59: 124 | BW59: 124 | BX59: 124 | BY59: 124 | BZ59: 124 | CA59: 124 | CB59: 124 | CC59: 124 | CD59: 124 | CE59: 124 | CF59: 124 | CG59: 124 | CH59: 124 | CI59: 124 | CJ59: 124 | CK59: 124 | CL59: 124 | CM59: 124 | CN59: 124 | CO59: 124 | CP59: 124 | CQ59: 124 | CR59: 124 | CS59: 124 | CT59: 124 | CU59: 124 | CV59: 124 | CW59: 124
B60: 0 | C60: 0 | D60: 0 | E60: 0 | F60: 0 | G60: 0 | H60: 0 | I60: 0 | J60: 0 | K60: 0 | L60: 0 | M60: 0 | N60: 0 | O60: 0 | P60: 0 | Q60: 0 | R60: 0 | S60: 0 | T60: 0 | U60: 0 | V60: 0 | W60: 0 | X60: 0 | Y60: 0 | Z60: 0 | AA60: 0 | AB60: 0 | AC60: 0 | AD60: 0 | AE60: 0 | AF60: 0 | AG60: 0 | AH60: 0 | AI60: 0 | AJ60: 0 | AK60: 0 | AL60: 0 | AM60: 0 | AN60: 0 | AO60: 0 | AP60: 0 | AQ60: 0 | AR60: 0 | AS60: 0 | AT60: 0 | AU60: 0 | AV60: 0 | AW60: 0 | AX60: 0 | AY60: 0 | AZ60: 0 | BA60: 0 | BB60: 124 | BC60: 124 | BD60: 124 | BE60: 124 | BF60: 124 | BG60: 124 | BH60: 124 | BI60: 124 | BJ60: 124 | BK60: 124 | BL60: 124 | BM60: 124 | BN60: 124 | BO60: 124 | BP60: 124 | BQ60: 124 | BR60: 124 | BS60: 124 | BT60: 124 | BU60: 124 | BV60: 124 | BW60: 124 | BX60: 124 | BY60: 124 | BZ60: 124 | CA60: 124 | CB60: 124 | CC60: 124 | CD60: 124 | CE60: 124 | CF60: 124 | CG60: 124 | CH60: 124 | CI60: 124 | CJ60: 124 | CK60: 124 | CL60: 124 | CM60: 124 | CN60: 124 | CO60: 124 | CP60: 124 | CQ60: 124 | CR60: 124 | CS60: 124 | CT60: 124 | CU60: 124 | CV60: 124 | CW60: 124
B61: 0 | C61: 0 | D61: 0 | E61: 0 | F61: 0 | G61: 0 | H61: 0 | I61: 0 | J61: 0 | K61: 0 | L61: 0 | M61: 0 | N61: 0 | O61: 0 | P61: 0 | Q61: 0 | R61: 0 | S61: 0 | T61: 0 | U61: 0 | V61: 0 | W61: 0 | X61: 0 | Y61: 0 | Z61: 0 | AA61: 0 | AB61: 0 | AC61: 0 | AD61: 0 | AE61: 0 | AF61: 0 | AG61: 0 | AH61: 0 | AI61: 0 | AJ61: 0 | AK61: 0 | AL61: 0 | AM61: 0 | AN61: 0 | AO61: 0 | AP61: 0 | AQ61: 0 | AR61: 0 | AS61: 0 | AT61: 0 | AU61: 0 | AV61: 0 | AW61: 0 | AX61: 0 | AY61: 0 | AZ61: 0 | BA61: 0 | BB61: 124 | BC61: 124 | BD61: 124 | BE61: 124 | BF61: 124 | BG61: 124 | BH61: 124 | BI61: 124 | BJ61: 124 | BK61: 124 | BL61: 124 | BM61: 124 | BN61: 124 | BO61: 124 | BP61: 124 | BQ61: 124 | BR61: 124 | BS61: 124 | BT61: 124 | BU61: 124 | BV61: 124 | BW61: 124 | BX61: 124 | BY61: 124 | BZ61: 124 | CA61: 124 | CB61: 124 | CC61: 124 | CD61: 124 | CE61: 124 | CF61: 124 | CG61: 124 | CH61: 124 | CI61: 124 | CJ61: 124 | CK61: 124 | CL61: 124 | CM61: 124 | CN61: 124 | CO61: 124 | CP61: 124 | CQ61: 124 | CR61: 124 | CS61: 124 | CT61: 124 | CU61: 124 | CV61: 124 | CW61: 124
B62: 0 | C62: 0 | D62: 0 | E62: 0 | F62: 0 | G62: 0 | H62: 0 | I62: 0 | J62: 0 | K62: 0 | L62: 0 | M62: 0 | N62: 0 | O62: 0 | P62: 0 | Q62: 0 | R62: 0 | S62: 0 | T62: 0 | U62: 0 | V62: 0 | W62: 0 | X62: 0 | Y62: 0 | Z62: 0 | AA62: 0 | AB62: 0 | AC62: 0 | AD62: 0 | AE62: 0 | AF62: 0 | AG62: 0 | AH62: 0 | AI62: 0 | AJ62: 0 | AK62: 0 | AL62: 0 | AM62: 0 | AN62: 0 | AO62: 0 | AP62: 0 | AQ62: 0 | AR62: 0 | AS62: 0 | AT62: 0 | AU62: 0 | AV62: 0 | AW62: 0 | AX62: 0 | AY62: 0 | AZ62: 0 | BA62: 0 | BB62: 124 | BC62: 124 | BD62: 124 | BE62: 124 | BF62: 124 | BG62: 124 | BH62: 124 | BI62: 124 | BJ62: 124 | BK62: 124 | BL62: 124 | BM62: 124 | BN62: 124 | BO62: 124 | BP62: 124 | BQ62: 124 | BR62: 124 | BS62: 124 | BT62: 124 | BU62: 124 | BV62: 124 | BW62: 124 | BX62: 124 | BY62: 124 | BZ62: 124 | CA62: 124 | CB62: 124 | CC62: 124 | CD62: 124 | CE62: 124 | CF62: 124 | CG62: 124 | CH62: 124 | CI62: 124 | CJ62: 124 | CK62: 124 | CL62: 124 | CM62: 124 | CN62: 124 | CO62: 124 | CP62: 124 | CQ62: 124 | CR62: 124 | CS62: 124 | CT62: 124 | CU62: 124 | CV62: 124 | CW62: 124
B63: 0 | C63: 0 | D63: 0 | E63: 0 | F63: 0 | G63: 0 | H63: 0 | I63: 0 | J63: 0 | K63: 0 | L63: 0 | M63: 0 | N63: 0 | O63: 0 | P63: 0 | Q63: 0 | R63: 0 | S63: 0 | T63: 0 | U63: 0 | V63: 0 | W63: 0 | X63: 0 | Y63: 0 | Z63: 0 | AA63: 0 | AB63: 0 | AC63: 0 | AD63: 0 | AE63: 0 | AF63: 0 | AG63: 0 | AH63: 0 | AI63: 0 | AJ63: 0 | AK63: 0 | AL63: 0 | AM63: 0 | AN63: 0 | AO63: 0 | AP63: 0 | AQ63: 0 | AR63: 0 | AS63: 0 | AT63: 0 | AU63: 0 | AV63: 0 | AW63: 0 | AX63: 0 | AY63: 0 | AZ63: 0 | BA63: 0 | BB63: 124 | BC63: 124 | BD63: 124 | BE63: 124 | BF63: 124 | BG63: 124 | BH63: 124 | BI63: 124 | BJ63: 124 | BK63: 124 | BL63: 124 | BM63: 124 | BN63: 124 | BO63: 124 | BP63: 124 | BQ63: 124 | BR63: 124 | BS63: 124 | BT63: 124 | BU63: 124 | BV63: 124 | BW63: 124 | BX63: 124 | BY63: 124 | BZ63: 124 | CA63: 124 | CB63: 124 | CC63: 124 | CD63: 124 | CE63: 124 | CF63: 124 | CG63: 124 | CH63: 124 | CI63: 124 | CJ63: 124 | CK63: 124 | CL63: 124 | CM63: 124 | CN63: 124 | CO63: 124 | CP63: 124 | CQ63: 124 | CR63: 124 | CS63: 124 | CT63: 124 | CU63: 124 | CV63: 124 | CW63: 124
B64: 0 | C64: 0 | D64: 0 | E64: 0 | F64: 0 | G64: 0 | H64: 0 | I64: 0 | J64: 0 | K64: 0 | L64: 0 | M64: 0 | N64: 0 | O64: 0 | P64: 0 | Q64: 0 | R64: 0 | S64: 0 | T64: 0 | U64: 0 | V64: 0 | W64: 0 | X64: 0 | Y64: 0 | Z64: 0 | AA64: 0 | AB64: 0 | AC64: 0 | AD64: 0 | AE64: 0 | AF64: 0 | AG64: 0 | AH64: 0 | AI64: 0 | AJ64: 0 | AK64: 0 | AL64: 0 | AM64: 0 | AN64: 0 | AO64: 0 | AP64: 0 | AQ64: 0 | AR64: 0 | AS64: 0 | AT64: 0 | AU64: 0 | AV64: 0 | AW64: 0 | AX64: 0 | AY64: 0 | AZ64: 0 | BA64: 0 | BB64: 124 | BC64: 124 | BD64: 124 | BE64: 124 | BF64: 124 | BG64: 124 | BH64: 124 | BI64: 124 | BJ64: 124 | BK64: 124 | BL64: 124 | BM64: 124 | BN64: 124 | BO64: 124 | BP64: 124 | BQ64: 124 | BR64: 124 | BS64: 124 | BT64: 124 | BU64: 124 | BV64: 124 | BW64: 124 | BX64: 124 | BY64: 124 | BZ64: 124 | CA64: 124 | CB64: 124 | CC64: 124 | CD64: 124 | CE64: 124 | CF64: 124 | CG64: 124 | CH64: 124 | CI64: 124 | CJ64: 124 | CK64: 124 | CL64: 124 | CM64: 124 | CN64: 124 | CO64: 124 | CP64: 124 | CQ64: 124 | CR64: 124 | CS64: 124 | CT64: 124 | CU64: 124 | CV64: 124 | CW64: 124
B65: 0 | C65: 0 | D65: 0 | E65: 0 | F65: 0 | G65: 0 | H65: 0 | I65: 0 | J65: 0 | K65: 0 | L65: 0 | M65: 0 | N65: 0 | O65: 0 | P65: 0 | Q65: 0 | R65: 0 | S65: 0 | T65: 0 | U65: 0 | V65: 0 | W65: 0 | X65: 0 | Y65: 0 | Z65: 0 | AA65: 0 | AB65: 0 | AC65: 0 | AD65: 0 | AE65: 0 | AF65: 0 | AG65: 0 | AH65: 0 | AI65: 0 | AJ65: 0 | AK65: 0 | AL65: 0 | AM65: 0 | AN65: 0 | AO65: 0 | AP65: 0 | AQ65: 0 | AR65: 0 | AS65: 0 | AT65: 0 | AU65: 0 | AV65: 0 | AW65: 0 | AX65: 0 | AY65: 0 | AZ65: 0 | BA65: 0 | BB65: 124 | BC65: 124 | BD65: 124 | BE65: 124 | BF65: 124 | BG65: 124 | BH65: 124 | BI65: 124 | BJ65: 124 | BK65: 124 | BL65: 124 | BM65: 124 | BN65: 124 | BO65: 124 | BP65: 124 | BQ65: 124 | BR65: 124 | BS65: 124 | BT65: 124 | BU65: 124 | BV65: 124 | BW65: 124 | BX65: 124 | BY65: 124 | BZ65: 124 | CA65: 124 | CB65: 124 | CC65: 124 | CD65: 124 | CE65: 124 | CF65: 124 | CG65: 124 | CH65: 124 | CI65: 124 | CJ65: 124 | CK65: 124 | CL65: 124 | CM65: 124 | CN65: 124 | CO65: 124 | CP65: 124 | CQ65: 124 | CR65: 124 | CS65: 124 | CT65: 124 | CU65: 124 | CV65: 124 | CW65: 124
B66: 0 | C66: 0 | D66: 0 | E66: 0 | F66: 0 | G66: 0 | H66: 0 | I66: 0 | J66: 0 | K66: 0 | L66: 0 | M66: 0 | N66: 0 | O66: 0 | P66: 0 | Q66: 0 | R66: 0 | S66: 0 | T66: 0 | U66: 0 | V66: 0 | W66: 0 | X66: 0 | Y66: 0 | Z66: 0 | AA66: 0 | AB66: 0 | AC66: 0 | AD66: 0 | AE66: 0 | AF66: 0 | AG66: 0 | AH66: 0 | AI66: 0 | AJ66: 0 | AK66: 0 | AL66: 0 | AM66: 0 | AN66: 0 | AO66: 0 | AP66: 0 | AQ66: 0 | AR66: 0 | AS66: 0 | AT66: 0 | AU66: 0 | AV66: 0 | AW66: 0 | AX66: 0 | AY66: 0 | AZ66: 0 | BA66: 0 | BB66: 124 | BC66: 124 | BD66: 124 | BE66: 124 | BF66: 124 | BG66: 124 | BH66: 124 | BI66: 124 | BJ66: 124 | BK66: 124 | BL66: 124 | BM66: 124 | BN66: 124 | BO66: 124 | BP66: 124 | BQ66: 124 | BR66: 124 | BS66: 124 | BT66: 124 | BU66: 124 | BV66: 124 | BW66: 124 | BX66: 124 | BY66: 124 | BZ66: 124 | CA66: 124 | CB66: 124 | CC66: 124 | CD66: 124 | CE66: 124 | CF66: 124 | CG66: 124 | CH66: 124 | CI66: 124 | CJ66: 124 | CK66: 124 | CL66: 124 | CM66: 124 | CN66: 124 | CO66: 124 | CP66: 124 | CQ66: 124 | CR66: 124 | CS66: 124 | CT66: 124 | CU66: 124 | CV66: 124 | CW66: 124
B67: 0 | C67: 0 | D67: 0 | E67: 0 | F67: 0 | G67: 0 | H67: 0 | I67: 0 | J67: 0 | K67: 0 | L67: 0 | M67: 0 | N67: 0 | O67: 0 | P67: 0 | Q67: 0 | R67: 0 | S67: 0 | T67: 0 | U67: 0 | V67: 0 | W67: 0 | X67: 0 | Y67: 0 | Z67: 0 | AA67: 0 | AB67: 0 | AC67: 0 | AD67: 0 | AE67: 0 | AF67: 0 | AG67: 0 | AH67: 0 | AI67: 0 | AJ67: 0 | AK67: 0 | AL67: 0 | AM67: 0 | AN67: 0 | AO67: 0 | AP67: 0 | AQ67: 0 | AR67: 0 | AS67: 0 | AT67: 0 | AU67: 0 | AV67: 0 | AW67: 0 | AX67: 0 | AY67: 0 | AZ67: 0 | BA67: 0 | BB67: 124 | BC67: 124 | BD67: 124 | BE67: 124 | BF67: 124 | BG67: 124 | BH67: 124 | BI67: 124 | BJ67: 124 | BK67: 124 | BL67: 124 | BM67: 124 | BN67: 124 | BO67: 124 | BP67: 124 | BQ67: 124 | BR67: 124 | BS67: 124 | BT67: 124 | BU67: 124 | BV67: 124 | BW67: 124 | BX67: 124 | BY67: 124 | BZ67: 124 | CA67: 124 | CB67: 124 | CC67: 124 | CD67: 124 | CE67: 124 | CF67: 124 | CG67: 124 | CH67: 124 | CI67: 124 | CJ67: 124 | CK67: 124 | CL67: 124 | CM67: 124 | CN67: 124 | CO67: 124 | CP67: 124 | CQ67: 124 | CR67: 124 | CS67: 124 | CT67: 124 | CU67: 124 | CV67: 124 | CW67: 124
B68: 0 | C68: 0 | D68: 0 | E68: 0 | F68: 0 | G68: 0 | H68: 0 | I68: 0 | J68: 0 | K68: 0 | L68: 0 | M68: 0 | N68: 0 | O68: 0 | P68: 0 | Q68: 0 | R68: 0 | S68: 0 | T68: 0 | U68: 0 | V68: 0 | W68: 0 | X68: 0 | Y68: 0 | Z68: 0 | AA68: 0 | AB68: 0 | AC68: 0 | AD68: 0 | AE68: 0 | AF68: 0 | AG68: 0 | AH68: 0 | AI68: 0 | AJ68: 0 | AK68: 0 | AL68: 0 | AM68: 0 | AN68: 0 | AO68: 0 | AP68: 0 | AQ68: 0 | AR68: 0 | AS68: 0 | AT68: 0 | AU68: 0 | AV68: 0 | AW68: 0 | AX68: 0 | AY68: 0 | AZ68: 0 | BA68: 0 | BB68: 124 | BC68: 124 | BD68: 124 | BE68: 124 | BF68: 124 | BG68: 124 | BH68: 124 | BI68: 124 | BJ68: 124 | BK68: 124 | BL68: 124 | BM68: 124 | BN68: 124 | BO68: 124 | BP68: 124 | BQ68: 124 | BR68: 124 | BS68: 124 | BT68: 124 | BU68: 124 | BV68: 124 | BW68: 124 | BX68: 124 | BY68: 124 | BZ68: 124 | CA68: 124 | CB68: 124 | CC68: 124 | CD68: 124 | CE68: 124 | CF68: 124 | CG68: 124 | CH68: 124 | CI68: 124 | CJ68: 124 | CK68: 124 | CL68: 124 | CM68: 124 | CN68: 124 | CO68: 124 | CP68: 124 | CQ68: 124 | CR68: 124 | CS68: 124 | CT68: 124 | CU68: 124 | CV68: 124 | CW68: 124
B69: 0 | C69: 0 | D69: 0 | E69: 0 | F69: 0 | G69: 0 | H69: 0 | I69: 0 | J69: 0 | K69: 0 | L69: 0 | M69: 0 | N69: 0 | O69: 0 | P69: 0 | Q69: 0 | R69: 0 | S69: 0 | T69: 0 | U69: 0 | V69: 0 | W69: 0 | X69: 0 | Y69: 0 | Z69: 0 | AA69: 0 | AB69: 0 | AC69: 0 | AD69: 0 | AE69: 0 | AF69: 0 | AG69: 0 | AH69: 0 | AI69: 0 | AJ69: 0 | AK69: 0 | AL69: 0 | AM69: 0 | AN69: 0 | AO69: 0 | AP69: 0 | AQ69: 0 | AR69: 0 | AS69: 0 | AT69: 0 | AU69: 0 | AV69: 0 | AW69: 0 | AX69: 0 | AY69: 0 | AZ69: 0 | BA69: 0 | BB69: 124 | BC69: 124 | BD69: 124 | BE69: 124 | BF69: 124 | BG69: 124 | BH69: 124 | BI69: 124 | BJ69: 124 | BK69: 124 | BL69: 124 | BM69: 124 | BN69: 124 | BO69: 124 | BP69: 124 | BQ69: 124 | BR69: 124 | BS69: 124 | BT69: 124 | BU69: 124 | BV69: 124 | BW69: 124 | BX69: 124 | BY69: 124 | BZ69: 124 | CA69: 124 | CB69: 124 | CC69: 124 | CD69: 124 | CE69: 124 | CF69: 124 | CG69: 124 | CH69: 124 | CI69: 124 | CJ69: 124 | CK69: 124 | CL69: 124 | CM69: 124 | CN69: 124 | CO69: 124 | CP69: 124 | CQ69: 124 | CR69: 124 | CS69: 124 | CT69: 124 | CU69: 124 | CV69: 124 | CW69: 124
B70: 0 | C70: 0 | D70: 0 | E70: 0 | F70: 0 | G70: 0 | H70: 0 | I70: 0 | J70: 0 | K70: 0 | L70: 0 | M70: 0 | N70: 0 | O70: 0 | P70: 0 | Q70: 0 | R70: 0 | S70: 0 | T70: 0 | U70: 0 | V70: 0 | W70: 0 | X70: 0 | Y70: 0 | Z70: 0 | AA70: 0 | AB70: 0 | AC70: 0 | AD70: 0 | AE70: 0 | AF70: 0 | AG70: 0 | AH70: 0 | AI70: 0 | AJ70: 0 | AK70: 0 | AL70: 0 | AM70: 0 | AN70: 0 | AO70: 0 | AP70: 0 | AQ70: 0 | AR70: 0 | AS70: 0 | AT70: 0 | AU70: 0 | AV70: 0 | AW70: 0 | AX70: 0 | AY70: 0 | AZ70: 0 | BA70: 0 | BB70: 124 | BC70: 124 | BD70: 124 | BE70: 124 | BF70: 124 | BG70: 124 | BH70: 124 | BI70: 124 | BJ70: 124 | BK70: 124 | BL70: 124 | BM70: 124 | BN70: 124 | BO70: 124 | BP70: 124 | BQ70: 124 | BR70: 124 | BS70: 124 | BT70: 124 | BU70: 124 | BV70: 124 | BW70: 124 | BX70: 124 | BY70: 124 | BZ70: 124 | CA70: 124 | CB70: 124 | CC70: 124 | CD70: 124 | CE70: 124 | CF70: 124 | CG70: 124 | CH70: 124 | CI70: 124 | CJ70: 124 | CK70: 124 | CL70: 124 | CM70: 124 | CN70: 124 | CO70: 124 | CP70: 124 | CQ70: 124 | CR70: 124 | CS70: 124 | CT70: 124 | CU70: 124 | CV70: 124 | CW70: 124
B71: 0 | C71: 0 | D71: 0 | E71: 0 | F71: 0 | G71: 0 | H71: 0 | I71: 0 | J71: 0 | K71: 0 | L71: 0 | M71: 0 | N71: 0 | O71: 0 | P71: 0 | Q71: 0 | R71: 0 | S71: 0 | T71: 0 | U71: 0 | V71: 0 | W71: 0 | X71: 0 | Y71: 0 | Z71: 0 | AA71: 0 | AB71: 0 | AC71: 0 | AD71: 0 | AE71: 0 | AF71: 0 | AG71: 0 | AH71: 0 | AI71: 0 | AJ71: 0 | AK71: 0 | AL71: 0 | AM71: 0 | AN71: 0 | AO71: 0 | AP71: 0 | AQ71: 0 | AR71: 0 | AS71: 0 | AT71: 0 | AU71: 0 | AV71: 0 | AW71: 0 | AX71: 0 | AY71: 0 | AZ71: 0 | BA71: 0 | BB71: 124 | BC71: 124 | BD71: 124 | BE71: 124 | BF71: 124 | BG71: 124 | BH71: 124 | BI71: 124 | BJ71: 124 | BK71: 124 | BL71: 124 | BM71: 124 | BN71: 124 | BO71: 124 | BP71: 124 | BQ71: 124 | BR71: 124 | BS71: 124 | BT71: 124 | BU71: 124 | BV71: 124 | BW71: 124 | BX71: 124 | BY71: 124 | BZ71: 124 | CA71: 124 | CB71: 124 | CC71: 124 | CD71: 124 | CE71: 124 | CF71: 124 | CG71: 124 | CH71: 124 | CI71: 124 | CJ71: 124 | CK71: 124 | CL71: 124 | CM71: 124 | CN71: 124 | CO71: 124 | CP71: 124 | CQ71: 124 | CR71: 124 | CS71: 124 | CT71: 124 | CU71: 124 | CV71: 124 | CW71: 124
B72: 0 | C72: 0 | D72: 0 | E72: 0 | F72: 0 | G72: 0 | H72: 0 | I72: 0 | J72: 0 | K72: 0 | L72: 0 | M72: 0 | N72: 0 | O72: 0 | P72: 0 | Q72: 0 | R72: 0 | S72: 0 | T72: 0 | U72: 0 | V72: 0 | W72: 0 | X72: 0 | Y72: 0 | Z72: 0 | AA72: 0 | AB72: 0 | AC72: 0 | AD72: 0 | AE72: 0 | AF72: 0 | AG72: 0 | AH72: 0 | AI72: 0 | AJ72: 0 | AK72: 0 | AL72: 0 | AM72: 0 | AN72: 0 | AO72: 0 | AP72: 0 | AQ72: 0 | AR72: 0 | AS72: 0 | AT72: 0 | AU72: 0 | AV72: 0 | AW72: 0 | AX72: 0 | AY72: 0 | AZ72: 0 | BA72: 0 | BB72: 124 | BC72: 124 | BD72: 124 | BE72: 124 | BF72: 124 | BG72: 124 | BH72: 124 | BI72: 124 | BJ72: 124 | BK72: 124 | BL72: 124 | BM72: 124 | BN72: 124 | BO72: 124 | BP72: 124 | BQ72: 124 | BR72: 124 | BS72: 124 | BT72: 124 | BU72: 124 | BV72: 124 | BW72: 124 | BX72: 124 | BY72: 124 | BZ72: 124 | CA72: 124 | CB72: 124 | CC72: 124 | CD72: 124 | CE72: 124 | CF72: 124 | CG72: 124 | CH72: 124 | CI72: 124 | CJ72: 124 | CK72: 124 | CL72: 124 | CM72: 124 | CN72: 124 | CO72: 124 | CP72: 124 | CQ72: 124 | CR72: 124 | CS72: 124 | CT72: 124 | CU72: 124 | CV72: 124 | CW72: 124
B73: 0 | C73: 0 | D73: 0 | E73: 0 | F73: 0 | G73: 0 | H73: 0 | I73: 0 | J73: 0 | K73: 0 | L73: 0 | M73: 0 | N73: 0 | O73: 0 | P73: 0 | Q73: 0 | R73: 0 | S73: 0 | T73: 0 | U73: 0 | V73: 0 | W73: 0 | X73: 0 | Y73: 0 | Z73: 0 | AA73: 0 | AB73: 0 | AC73: 0 | AD73: 0 | AE73: 0 | AF73: 0 | AG73: 0 | AH73: 0 | AI73: 0 | AJ73: 0 | AK73: 0 | AL73: 0 | AM73: 0 | AN73: 0 | AO73: 0 | AP73: 0 | AQ73: 0 | AR73: 0 | AS73: 0 | AT73: 0 | AU73: 0 | AV73: 0 | AW73: 0 | AX73: 0 | AY73: 0 | AZ73: 0 | BA73: 0 | BB73: 124 | BC73: 124 | BD73: 124 | BE73: 124 | BF73: 124 | BG73: 124 | BH73: 124 | BI73: 124 | BJ73: 124 | BK73: 124 | BL73: 124 | BM73: 124 | BN73: 124 | BO73: 124 | BP73: 124 | BQ73: 124 | BR73: 124 | BS73: 124 | BT73: 124 | BU73: 124 | BV73: 124 | BW73: 124 | BX73: 124 | BY73: 124 | BZ73: 124 | CA73: 124 | CB73: 124 | CC73: 124 | CD73: 124 | CE73: 124 | CF73: 124 | CG73: 124 | CH73: 124 | CI73: 124 | CJ73: 124 | CK73: 124 | CL73: 124 | CM73: 124 | CN73: 124 | CO73: 124 | CP73: 124 | CQ73: 124 | CR73: 124 | CS73: 124 | CT73: 124 | CU73: 124 | CV73: 124 | CW73: 124
B74: 0 | C74: 0 | D74: 0 | E74: 0 | F74: 0 | G74: 0 | H74: 0 | I74: 0 | J74: 0 | K74: 0 | L74: 0 | M74: 0 | N74: 0 | O74: 0 | P74: 0 | Q74: 0 | R74: 0 | S74: 0 | T74: 0 | U74: 0 | V74: 0 | W74: 0 | X74: 0 | Y74: 0 | Z74: 0 | AA74: 0 | AB74: 0 | AC74: 0 | AD74: 0 | AE74: 0 | AF74: 0 | AG74: 0 | AH74: 0 | AI74: 0 | AJ74: 0 | AK74: 0 | AL74: 0 | AM74: 0 | AN74: 0 | AO74: 0 | AP74: 0 | AQ74: 0 | AR74: 0 | AS74: 0 | AT74: 0 | AU74: 0 | AV74: 0 | AW74: 0 | AX74: 0 | AY74: 0 | AZ74: 0 | BA74: 0 | BB74: 124 | BC74: 124 | BD74: 124 | BE74: 124 | BF74: 124 | BG74: 124 | BH74: 124 | BI74: 124 | BJ74: 124 | BK74: 124 | BL74: 124 | BM74: 124 | BN74: 124 | BO74: 124 | BP74: 124 | BQ74: 124 | BR74: 124 | BS74: 124 | BT74: 124 | BU74: 124 | BV74: 124 | BW74: 124 | BX74: 124 | BY74: 124 | BZ74: 124 | CA74: 124 | CB74: 124 | CC74: 124 | CD74: 124 | CE74: 124 | CF74: 124 | CG74: 124 | CH74: 124 | CI74: 124 | CJ74: 124 | CK74: 124 | CL74: 124 | CM74: 124 | CN74: 124 | CO74: 124 | CP74: 124 | CQ74: 124 | CR74: 124 | CS74: 124 | CT74: 124 | CU74: 124 | CV74: 124 | CW74: 124
B75: 0 | C75: 0 | D75: 0 | E75: 0 | F75: 0 | G75: 0 | H75: 0 | I75: 0 | J75: 0 | K75: 0 | L75: 0 | M75: 0 | N75: 0 | O75: 0 | P75: 0 | Q75: 0 | R75: 0 | S75: 0 | T75: 0 | U75: 0 | V75: 0 | W75: 0 | X75: 0 | Y75: 0 | Z75: 0 | AA75: 0 | AB75: 0 | AC75: 0 | AD75: 0 | AE75: 0 | AF75: 0 | AG75: 0 | AH75: 0 | AI75: 0 | AJ75: 0 | AK75: 0 | AL75: 0 | AM75: 0 | AN75: 0 | AO75: 0 | AP75: 0 | AQ75: 0 | AR75: 0 | AS75: 0 | AT75: 0 | AU75: 0 | AV75: 0 | AW75: 0 | AX75: 0 | AY75: 0 | AZ75: 0 | BA75: 0 | BB75: 124 | BC75: 124 | BD75: 124 | BE75: 124 | BF75: 124 | BG75: 124 | BH75: 124 | BI75: 124 | BJ75: 124 | BK75: 124 | BL75: 124 | BM75: 124 | BN75: 124 | BO75: 124 | BP75: 124 | BQ75: 124 | BR75: 124 | BS75: 124 | BT75: 124 | BU75: 124 | BV75: 124 | BW75: 124 | BX75: 124 | BY75: 124 | BZ75: 124 | CA75: 124 | CB75: 124 | CC75: 124 | CD75: 124 | CE75: 124 | CF75: 124 | CG75: 124 | CH75: 124 | CI75: 124 | CJ75: 124 | CK75: 124 | CL75: 124 | CM75: 124 | CN75: 124 | CO75: 124 | CP75: 124 | CQ75: 124 | CR75: 124 | CS75: 124 | CT75: 124 | CU75: 124 | CV75: 124 | CW75: 124
B76: 0 | C76: 0 | D76: 0 | E76: 0 | F76: 0 | G76: 0 | H76: 0 | I76: 0 | J76: 0 | K76: 0 | L76: 0 | M76: 0 | N76: 0 | O76: 0 | P76: 0 | Q76: 0 | R76: 0 | S76: 0 | T76: 0 | U76: 0 | V76: 0 | W76: 0 | X76: 0 | Y76: 0 | Z76: 0 | AA76: 0 | AB76: 0 | AC76: 0 | AD76: 0 | AE76: 0 | AF76: 0 | AG76: 0 | AH76: 0 | AI76: 0 | AJ76: 0 | AK76: 0 | AL76: 0 | AM76: 0 | AN76: 0 | AO76: 0 | AP76: 0 | AQ76: 0 | AR76: 0 | AS76: 0 | AT76: 0 | AU76: 0 | AV76: 0 | AW76: 0 | AX76: 0 | AY76: 0 | AZ76: 0 | BA76: 0 | BB76: 124 | BC76: 124 | BD76: 124 | BE76: 124 | BF76: 124 | BG76: 124 | BH76: 124 | BI76: 124 | BJ76: 124 | BK76: 124 | BL76: 124 | BM76: 124 | BN76: 124 | BO76: 124 | BP76: 124 | BQ76: 124 | BR76: 124 | BS76: 124 | BT76: 124 | BU76: 124 | BV76: 124 | BW76: 124 | BX76: 124 | BY76: 124 | BZ76: 124 | CA76: 124 | CB76: 124 | CC76: 124 | CD76: 124 | CE76: 124 | CF76: 124 | CG76: 124 | CH76: 124 | CI76: 124 | CJ76: 124 | CK76: 124 | CL76: 124 | CM76: 124 | CN76: 124 | CO76: 124 | CP76: 124 | CQ76: 124 | CR76: 124 | CS76: 124 | CT76: 124 | CU76: 124 | CV76: 124 | CW76: 124
B77: 0 | C77: 0 | D77: 0 | E77: 0 | F77: 0 | G77: 0 | H77: 0 | I77: 0 | J77: 0 | K77: 0 | L77: 0 | M77: 0 | N77: 0 | O77: 0 | P77: 0 | Q77: 0 | R77: 0 | S77: 0 | T77: 0 | U77: 0 | V77: 0 | W77: 0 | X77: 0 | Y77: 0 | Z77: 0 | AA77: 0 | AB77: 0 | AC77: 0 | AD77: 0 | AE77: 0 | AF77: 0 | AG77: 0 | AH77: 0 | AI77: 0 | AJ77: 0 | AK77: 0 | AL77: 0 | AM77: 0 | AN77: 0 | AO77: 0 | AP77: 0 | AQ77: 0 | AR77: 0 | AS77: 0 | AT77: 0 | AU77: 0 | AV77: 0 | AW77: 0 | AX77: 0 | AY77: 0 | AZ77: 0 | BA77: 0 | BB77: 124 | BC77: 124 | BD77: 124 | BE77: 124 | BF77: 124 | BG77: 124 | BH77: 124 | BI77: 124 | BJ77: 124 | BK77: 124 | BL77: 124 | BM77: 124 | BN77: 124 | BO77: 124 | BP77: 124 | BQ77: 124 | BR77: 124 | BS77: 124 | BT77: 124 | BU77: 124 | BV77: 124 | BW77: 124 | BX77: 124 | BY77: 124 | BZ77: 124 | CA77: 124 | CB77: 124 | CC77: 124 | CD77: 124 | CE77: 124 | CF77: 124 | CG77: 124 | CH77: 124 | CI77: 124 | CJ77: 124 | CK77: 124 | CL77: 124 | CM77: 124 | CN77: 124 | CO77: 124 | CP77: 124 | CQ77: 124 | CR77: 124 | CS77: 124 | CT77: 124 | CU77: 124 | CV77: 124 | CW77: 124
B78: 0 | C78: 0 | D78: 0 | E78: 0 | F78: 0 | G78: 0 | H78: 0 | I78: 0 | J78: 0 | K78: 0 | L78: 0 | M78: 0 | N78: 0 | O78: 0 | P78: 0 | Q78: 0 | R78: 0 | S78: 0 | T78: 0 | U78: 0 | V78: 0 | W78: 0 | X78: 0 | Y78: 0 | Z78: 0 | AA78: 0 | AB78: 0 | AC78: 0 | AD78: 0 | AE78: 0 | AF78: 0 | AG78: 0 | AH78: 0 | AI78: 0 | AJ78: 0 | AK78: 0 | AL78: 0 | AM78: 0 | AN78: 0 | AO78: 0 | AP78: 0 | AQ78: 0 | AR78: 0 | AS78: 0 | AT78: 0 | AU78: 0 | AV78: 0 | AW78: 0 | AX78: 0 | AY78: 0 | AZ78: 0 | BA78: 0 | BB78: 124 | BC78: 124 | BD78: 124 | BE78: 124 | BF78: 124 | BG78: 124 | BH78: 124 | BI78: 124 | BJ78: 124 | BK78: 124 | BL78: 124 | BM78: 124 | BN78: 124 | BO78: 124 | BP78: 124 | BQ78: 124 | BR78: 124 | BS78: 124 | BT78: 124 | BU78: 124 | BV78: 124 | BW78: 124 | BX78: 124 | BY78: 124 | BZ78: 124 | CA78: 124 | CB78: 124 | CC78: 124 | CD78: 124 | CE78: 124 | CF78: 124 | CG78: 124 | CH78: 124 | CI78: 124 | CJ78: 124 | CK78: 124 | CL78: 124 | CM78: 124 | CN78: 124 | CO78: 124 | CP78: 124 | CQ78: 124 | CR78: 124 | CS78: 124 | CT78: 124 | CU78: 124 | CV78: 124 | CW78: 124
B79: 0 | C79: 0 | D79: 0 | E79: 0 | F79: 0 | G79: 0 | H79: 0 | I79: 0 | J79: 0 | K79: 0 | L79: 0 | M79: 0 | N79: 0 | O79: 0 | P79: 0 | Q79: 0 | R79: 0 | S79: 0 | T79: 0 | U79: 0 | V79: 0 | W79: 0 | X79: 0 | Y79: 0 | Z79: 0 | AA79: 0 | AB79: 0 | AC79: 0 | AD79: 0 | AE79: 0 | AF79: 0 | AG79: 0 | AH79: 0 | AI79: 0 | AJ79: 0 | AK79: 0 | AL79: 0 | AM79: 0 | AN79: 0 | AO79: 0 | AP79: 0 | AQ79: 0 | AR79: 0 | AS79: 0 | AT79: 0 | AU79: 0 | AV79: 0 | AW79: 0 | AX79: 0 | AY79: 0 | AZ79: 0 | BA79: 0 | BB79: 124 | BC79: 124 | BD79: 124 | BE79: 124 | BF79: 124 | BG79: 124 | BH79: 124 | BI79: 124 | BJ79: 124 | BK79: 124 | BL79: 124 | BM79: 124 | BN79: 124 | BO79: 124 | BP79: 124 | BQ79: 124 | BR79: 124 | BS79: 124 | BT79: 124 | BU79: 124 | BV79: 124 | BW79: 124 | BX79: 124 | BY79: 124 | BZ79: 124 | CA79: 124 | CB79: 124 | CC79: 124 | CD79: 124 | CE79: 124 | CF79: 124 | CG79: 124 | CH79: 124 | CI79: 124 | CJ79: 124 | CK79: 124 | CL79: 124 | CM79: 124 | CN79: 124 | CO79: 124 | CP79: 124 | CQ79: 124 | CR79: 124 | CS79: 124 | CT79: 124 | CU79: 124 | CV79: 124 | CW79: 124
B80: 0 | C80: 0 | D80: 0 | E80: 0 | F80: 0 | G80: 0 | H80: 0 | I80: 0 | J80: 0 | K80: 0 | L80: 0 | M80: 0 | N80: 0 | O80: 0 | P80: 0 | Q80: 0 | R80: 0 | S80: 0 | T80: 0 | U80: 0 | V80: 0 | W80: 0 | X80: 0 | Y80: 0 | Z80: 0 | AA80: 0 | AB80: 0 | AC80: 0 | AD80: 0 | AE80: 0 | AF80: 0 | AG80: 0 | AH80: 0 | AI80: 0 | AJ80: 0 | AK80: 0 | AL80: 0 | AM80: 0 | AN80: 0 | AO80: 0 | AP80: 0 | AQ80: 0 | AR80: 0 | AS80: 0 | AT80: 0 | AU80: 0 | AV80: 0 | AW80: 0 | AX80: 0 | AY80: 0 | AZ80: 0 | BA80: 0 | BB80: 124 | BC80: 124 | BD80: 124 | BE80: 124 | BF80: 124 | BG80: 124 | BH80: 124 | BI80: 124 | BJ80: 124 | BK80: 124 | BL80: 124 | BM80: 124 | BN80: 124 | BO80: 124 | BP80: 124 | BQ80: 124 | BR80: 124 | BS80: 124 | BT80: 124 | BU80: 124 | BV80: 124 | BW80: 124 | BX80: 124 | BY80: 124 | BZ80: 124 | CA80: 124 | CB80: 124 | CC80: 124 | CD80: 124 | CE80: 124 | CF80: 124 | CG80: 124 | CH80: 124 | CI80: 124 | CJ80: 124 | CK80: 124 | CL80: 124 | CM80: 124 | CN80: 124 | CO80: 124 | CP80: 124 | CQ80: 124 | CR80: 124 | CS80: 124 | CT80: 124 | CU80: 124 | CV80: 124 | CW80: 124
B81: 0 | C81: 0 | D81: 0 | E81: 0 | F81: 0 | G81: 0 | H81: 0 | I81: 0 | J81: 0 | K81: 0 | L81: 0 | M81: 0 | N81: 0 | O81: 0 | P81: 0 | Q81: 0 | R81: 0 | S81: 0 | T81: 0 | U81: 0 | V81: 0 | W81: 0 | X81: 0 | Y81: 0 | Z81: 0 | AA81: 0 | AB81: 0 | AC81: 0 | AD81: 0 | AE81: 0 | AF81: 0 | AG81: 0 | AH81: 0 | AI81: 0 | AJ81: 0 | AK81: 0 | AL81: 0 | AM81: 0 | AN81: 0 | AO81: 0 | AP81: 0 | AQ81: 0 | AR81: 0 | AS81: 0 | AT81: 0 | AU81: 0 | AV81: 0 | AW81: 0 | AX81: 0 | AY81: 0 | AZ81: 0 | BA81: 0 | BB81: 124 | BC81: 124 | BD81: 124 | BE81: 124 | BF81: 124 | BG81: 124 | BH81: 124 | BI81: 124 | BJ81: 124 | BK81: 124 | BL81: 124 | BM81: 124 | BN81: 124 | BO81: 124 | BP81: 124 | BQ81: 124 | BR81: 124 | BS81: 124 | BT81: 124 | BU81: 124 | BV81: 124 | BW81: 124 | BX81: 124 | BY81: 124 | BZ81: 124 | CA81: 124 | CB81: 124 | CC81: 124 | CD81: 124 | CE81: 124 | CF81: 124 | CG81: 124 | CH81: 124 | CI81: 124 | CJ81: 124 | CK81: 124 | CL81: 124 | CM81: 124 | CN81: 124 | CO81: 124 | CP81: 124 | CQ81: 124 | CR81: 124 | CS81: 124 | CT81: 124 | CU81: 124 | CV81: 124 | CW81: 124
B82: 0 | C82: 0 | D82: 0 | E82: 0 | F82: 0 | G82: 0 | H82: 0 | I82: 0 | J82: 0 | K82: 0 | L82: 0 | M82: 0 | N82: 0 | O82: 0 | P82: 0 | Q82: 0 | R82: 0 | S82: 0 | T82: 0 | U82: 0 | V82: 0 | W82: 0 | X82: 0 | Y82: 0 | Z82: 0 | AA82: 0 | AB82: 0 | AC82: 0 | AD82: 0 | AE82: 0 | AF82: 0 | AG82: 0 | AH82: 0 | AI82: 0 | AJ82: 0 | AK82: 0 | AL82: 0 | AM82: 0 | AN82: 0 | AO82: 0 | AP82: 0 | AQ82: 0 | AR82: 0 | AS82: 0 | AT82: 0 | AU82: 0 | AV82: 0 | AW82: 0 | AX82: 0 | AY82: 0 | AZ82: 0 | BA82: 0 | BB82: 124 | BC82: 124 | BD82: 124 | BE82: 124 | BF82: 124 | BG82: 124 | BH82: 124 | BI82: 124 | BJ82: 124 | BK82: 124 | BL82: 124 | BM82: 124 | BN82: 124 | BO82: 124 | BP82: 124 | BQ82: 124 | BR82: 124 | BS82: 124 | BT82: 124 | BU82: 124 | BV82: 124 | BW82: 124 | BX82: 124 | BY82: 124 | BZ82: 124 | CA82: 124 | CB82: 124 | CC82: 124 | CD82: 124 | CE82: 124 | CF82: 124 | CG82: 124 | CH82: 124 | CI82: 124 | CJ82: 124 | CK82: 124 | CL82: 124 | CM82: 124 | CN82: 124 | CO82: 124 | CP82: 124 | CQ82: 124 | CR82: 124 | CS82: 124 | CT82: 124 | CU82: 124 | CV82: 124 | CW82: 124
B83: 0 | C83: 0 | D83: 0 | E83: 0 | F83: 0 | G83: 0 | H83: 0 | I83: 0 | J83: 0 | K83: 0 | L83: 0 | M83: 0 | N83: 0 | O83: 0 | P83: 0 | Q83: 0 | R83: 0 | S83: 0 | T83: 0 | U83: 0 | V83: 0 | W83: 0 | X83: 0 | Y83: 0 | Z83: 0 | AA83: 0 | AB83: 0 | AC83: 0 | AD83: 0 | AE83: 0 | AF83: 0 | AG83: 0 | AH83: 0 | AI83: 0 | AJ83: 0 | AK83: 0 | AL83: 0 | AM83: 0 | AN83: 0 | AO83: 0 | AP83: 0 | AQ83: 0 | AR83: 0 | AS83: 0 | AT83: 0 | AU83: 0 | AV83: 0 | AW83: 0 | AX83: 0 | AY83: 0 | AZ83: 0 | BA83: 0 | BB83: 124 | BC83: 124 | BD83: 124 | BE83: 124 | BF83: 124 | BG83: 124 | BH83: 124 | BI83: 124 | BJ83: 124 | BK83: 124 | BL83: 124 | BM83: 124 | BN83: 124 | BO83: 124 | BP83: 124 | BQ83: 124 | BR83: 124 | BS83: 124 | BT83: 124 | BU83: 124 | BV83: 124 | BW83: 124 | BX83: 124 | BY83: 124 | BZ83: 124 | CA83: 124 | CB83: 124 | CC83: 124 | CD83: 124 | CE83: 124 | CF83: 124 | CG83: 124 | CH83: 124 | CI83: 124 | CJ83: 124 | CK83: 124 | CL83: 124 | CM83: 124 | CN83: 124 | CO83: 124 | CP83: 124 | CQ83: 124 | CR83: 124 | CS83: 124 | CT83: 124 | CU83: 124 | CV83: 124 | CW83: 124
B84: 0 | C84: 0 | D84: 0 | E84: 0 | F84: 0 | G84: 0 | H84: 0 | I84: 0 | J84: 0 | K84: 0 | L84: 0 | M84: 0 | N84: 0 | O84: 0 | P84: 0 | Q84: 0 | R84: 0 | S84: 0 | T84: 0 | U84: 0 | V84: 0 | W84: 0 | X84: 0 | Y84: 0 | Z84: 0 | AA84: 0 | AB84: 0 | AC84: 0 | AD84: 0 | AE84: 0 | AF84: 0 | AG84: 0 | AH84: 0 | AI84: 0 | AJ84: 0 | AK84: 0 | AL84: 0 | AM84: 0 | AN84: 0 | AO84: 0 | AP84: 0 | AQ84: 0 | AR84: 0 | AS84: 0 | AT84: 0 | AU84: 0 | AV84: 0 | AW84: 0 | AX84: 0 | AY84: 0 | AZ84: 0 | BA84: 0 | BB84: 124 | BC84: 124 | BD84: 124 | BE84: 124 | BF84: 124 | BG84: 124 | BH84: 124 | BI84: 124 | BJ84: 124 | BK84: 124 | BL84: 124 | BM84: 124 | BN84: 124 | BO84: 124 | BP84: 124 | BQ84: 124 | BR84: 124 | BS84: 124 | BT84: 124 | BU84: 124 | BV84: 124 | BW84: 124 | BX84: 124 | BY84: 124 | BZ84: 124 | CA84: 124 | CB84: 124 | CC84: 124 | CD84: 124 | CE84: 124 | CF84: 124 | CG84: 124 | CH84: 124 | CI84: 124 | CJ84: 124 | CK84: 124 | CL84: 124 | CM84: 124 | CN84: 124 | CO84: 124 | CP84: 124 | CQ84: 124 | CR84: 124 | CS84: 124 | CT84: 124 | CU84: 124 | CV84: 124 | CW84: 124
B85: 0 | C85: 0 | D85: 0 | E85: 0 | F85: 0 | G85: 0 | H85: 0 | I85: 0 | J85: 0 | K85: 0 | L85: 0 | M85: 0 | N85: 0 | O85: 0 | P85: 0 | Q85: 0 | R85: 0 | S85: 0 | T85: 0 | U85: 0 | V85: 0 | W85: 0 | X85: 0 | Y85: 0 | Z85: 0 | AA85: 0 | AB85: 0 | AC85: 0 | AD85: 0 | AE85: 0 | AF85: 0 | AG85: 0 | AH85: 0 | AI85: 0 | AJ85: 0 | AK85: 0 | AL85: 0 | AM85: 0 | AN85: 0 | AO85: 0 | AP85: 0 | AQ85: 0 | AR85: 0 | AS85: 0 | AT85: 0 | AU85: 0 | AV85: 0 | AW85: 0 | AX85: 0 | AY85: 0 | AZ85: 0 | BA85: 0 | BB85: 124 | BC85: 124 | BD85: 124 | BE85: 124 | BF85: 124 | BG85: 124 | BH85: 124 | BI85: 124 | BJ85: 124 | BK85: 124 | BL85: 124 | BM85: 124 | BN85: 124 | BO85: 124 | BP85: 124 | BQ85: 124 | BR85: 124 | BS85: 124 | BT85: 124 | BU85: 124 | BV85: 124 | BW85: 124 | BX85: 124 | BY85: 124 | BZ85: 124 | CA85: 124 | CB85: 124 | CC85: 124 | CD85: 124 | CE85: 124 | CF85: 124 | CG85: 124 | CH85: 124 | CI85: 124 | CJ85: 124 | CK85: 124 | CL85: 124 | CM85: 124 | CN85: 124 | CO85: 124 | CP85: 124 | CQ85: 124 | CR85: 124 | CS85: 124 | CT85: 124 | CU85: 124 | CV85: 124 | CW85: 124
B86: 0 | C86: 0 | D86: 0 | E86: 0 | F86: 0 | G86: 0 | H86: 0 | I86: 0 | J86: 0 | K86: 0 | L86: 0 | M86: 0 | N86: 0 | O86: 0 | P86: 0 | Q86: 0 | R86: 0 | S86: 0 | T86: 0 | U86: 0 | V86: 0 | W86: 0 | X86: 0 | Y86: 0 | Z86: 0 | AA86: 0 | AB86: 0 | AC86: 0 | AD86: 0 | AE86: 0 | AF86: 0 | AG86: 0 | AH86: 0 | AI86: 0 | AJ86: 0 | AK86: 0 | AL86: 0 | AM86: 0 | AN86: 0 | AO86: 0 | AP86: 0 | AQ86: 0 | AR86: 0 | AS86: 0 | AT86: 0 | AU86: 0 | AV86: 0 | AW86: 0 | AX86: 0 | AY86: 0 | AZ86: 0 | BA86: 0 | BB86: 124 | BC86: 124 | BD86: 124 | BE86: 124 | BF86: 124 | BG86: 124 | BH86: 124 | BI86: 124 | BJ86: 124 | BK86: 124 | BL86: 124 | BM86: 124 | BN86: 124 | BO86: 124 | BP86: 124 | BQ86: 124 | BR86: 124 | BS86: 124 | BT86: 124 | BU86: 124 | BV86: 124 | BW86: 124 | BX86: 124 | BY86: 124 | BZ86: 124 | CA86: 124 | CB86: 124 | CC86: 124 | CD86: 124 | CE86: 124 | CF86: 124 | CG86: 124 | CH86: 124 | CI86: 124 | CJ86: 124 | CK86: 124 | CL86: 124 | CM86: 124 | CN86: 124 | CO86: 124 | CP86: 124 | CQ86: 124 | CR86: 124 | CS86: 124 | CT86: 124 | CU86: 124 | CV86: 124 | CW86: 124
B87: 0 | C87: 0 | D87: 0 | E87: 0 | F87: 0 | G87: 0 | H87: 0 | I87: 0 | J87: 0 | K87: 0 | L87: 0 | M87: 0 | N87: 0 | O87: 0 | P87: 0 | Q87: 0 | R87: 0 | S87: 0 | T87: 0 | U87: 0 | V87: 0 | W87: 0 | X87: 0 | Y87: 0 | Z87: 0 | AA87: 0 | AB87: 0 | AC87: 0 | AD87: 0 | AE87: 0 | AF87: 0 | AG87: 0 | AH87: 0 | AI87: 0 | AJ87: 0 | AK87: 0 | AL87: 0 | AM87: 0 | AN87: 0 | AO87: 0 | AP87: 0 | AQ87: 0 | AR87: 0 | AS87: 0 | AT87: 0 | AU87: 0 | AV87: 0 | AW87: 0 | AX87: 0 | AY87: 0 | AZ87: 0 | BA87: 0 | BB87: 124 | BC87: 124 | BD87: 124 | BE87: 124 | BF87: 124 | BG87: 124 | BH87: 124 | BI87: 124 | BJ87: 124 | BK87: 124 | BL87: 124 | BM87: 124 | BN87: 124 | BO87: 124 | BP87: 124 | BQ87: 124 | BR87: 124 | BS87: 124 | BT87: 124 | BU87: 124 | BV87: 124 | BW87: 124 | BX87: 124 | BY87: 124 | BZ87: 124 | CA87: 124 | CB87: 124 | CC87: 124 | CD87: 124 | CE87: 124 | CF87: 124 | CG87: 124 | CH87: 124 | CI87: 124 | CJ87: 124 | CK87: 124 | CL87: 124 | CM87: 124 | CN87: 124 | CO87: 124 | CP87: 124 | CQ87: 124 | CR87: 124 | CS87: 124 | CT87: 124 | CU87: 124 | CV87: 124 | CW87: 124
B88: 0 | C88: 0 | D88: 0 | E88: 0 | F88: 0 | G88: 0 | H88: 0 | I88: 0 | J88: 0 | K88: 0 | L88: 0 | M88: 0 | N88: 0 | O88: 0 | P88: 0 | Q88: 0 | R88: 0 | S88: 0 | T88: 0 | U88: 0 | V88: 0 | W88: 0 | X88: 0 | Y88: 0 | Z88: 0 | AA88: 0 | AB88: 0 | AC88: 0 | AD88: 0 | AE88: 0 | AF88: 0 | AG88: 0 | AH88: 0 | AI88: 0 | AJ88: 0 | AK88: 0 | AL88: 0 | AM88: 0 | AN88: 0 | AO88: 0 | AP88: 0 | AQ88: 0 | AR88: 0 | AS88: 0 | AT88: 0 | AU88: 0 | AV88: 0 | AW88: 0 | AX88: 0 | AY88: 0 | AZ88: 0 | BA88: 0 | BB88: 124 | BC88: 124 | BD88: 124 | BE88: 124 | BF88: 124 | BG88: 124 | BH88: 124 | BI88: 124 | BJ88: 124 | BK88: 124 | BL88: 124 | BM88: 124 | BN88: 124 | BO88: 124 | BP88: 124 | BQ88: 124 | BR88: 124 | BS88: 124 | BT88: 124 | BU88: 124 | BV88: 124 | BW88: 124 | BX88: 124 | BY88: 124 | BZ88: 124 | CA88: 124 | CB88: 124 | CC88: 124 | CD88: 124 | CE88: 124 | CF88: 124 | CG88: 124 | CH88: 124 | CI88: 124 | CJ88: 124 | CK88: 124 | CL88: 124 | CM88: 124 | CN88: 124 | CO88: 124 | CP88: 124 | CQ88: 124 | CR88: 124 | CS88: 124 | CT88: 124 | CU88: 124 | CV88: 124 | CW88: 124
B89: 0 | C89: 0 | D89: 0 | E89: 0 | F89: 0 | G89: 0 | H89: 0 | I89: 0 | J89: 0 | K89: 0 | L89: 0 | M89: 0 | N89: 0 | O89: 0 | P89: 0 | Q89: 0 | R89: 0 | S89: 0 | T89: 0 | U89: 0 | V89: 0 | W89: 0 | X89: 0 | Y89: 0 | Z89: 0 | AA89: 0 | AB89: 0 | AC89: 0 | AD89: 0 | AE89: 0 | AF89: 0 | AG89: 0 | AH89: 0 | AI89: 0 | AJ89: 0 | AK89: 0 | AL89: 0 | AM89: 0 | AN89: 0 | AO89: 0 | AP89: 0 | AQ89: 0 | AR89: 0 | AS89: 0 | AT89: 0 | AU89: 0 | AV89: 0 | AW89: 0 | AX89: 0 | AY89: 0 | AZ89: 0 | BA89: 0 | BB89: 124 | BC89: 124 | BD89: 124 | BE89: 124 | BF89: 124 | BG89: 124 | BH89: 124 | BI89: 124 | BJ89: 124 | BK89: 124 | BL89: 124 | BM89: 124 | BN89: 124 | BO89: 124 | BP89: 124 | BQ89: 124 | BR89: 124 | BS89: 124 | BT89: 124 | BU89: 124 | BV89: 124 | BW89: 124 | BX89: 124 | BY89: 124 | BZ89: 124 | CA89: 124 | CB89: 124 | CC89: 124 | CD89: 124 | CE89: 124 | CF89: 124 | CG89: 124 | CH89: 124 | CI89: 124 | CJ89: 124 | CK89: 124 | CL89: 124 | CM89: 124 | CN89: 124 | CO89: 124 | CP89: 124 | CQ89: 124 | CR89: 124 | CS89: 124 | CT89: 124 | CU89: 124 | CV89: 124 | CW89: 124
B90: 0 | C90: 0 | D90: 0 | E90: 0 | F90: 0 | G90: 0 | H90: 0 | I90: 0 | J90: 0 | K90: 0 | L90: 0 | M90: 0 | N90: 0 | O90: 0 | P90: 0 | Q90: 0 | R90: 0 | S90: 0 | T90: 0 | U90: 0 | V90: 0 | W90: 0 | X90: 0 | Y90: 0 | Z90: 0 | AA90: 0 | AB90: 0 | AC90: 0 | AD90: 0 | AE90: 0 | AF90: 0 | AG90: 0 | AH90: 0 | AI90: 0 | AJ90: 0 | AK90: 0 | AL90: 0 | AM90: 0 | AN90: 0 | AO90: 0 | AP90: 0 | AQ90: 0 | AR90: 0 | AS90: 0 | AT90: 0 | AU90: 0 | AV90: 0 | AW90: 0 | AX90: 0 | AY90: 0 | AZ90: 0 | BA90: 0 | BB90: 124 | BC90: 124 | BD90: 124 | BE90: 124 | BF90: 124 | BG90: 124 | BH90: 124 | BI90: 124 | BJ90: 124 | BK90: 124 | BL90: 124 | BM90: 124 | BN90: 124 | BO90: 124 | BP90: 124 | BQ90: 124 | BR90: 124 | BS90: 124 | BT90: 124 | BU90: 124 | BV90: 124 | BW90: 124 | BX90: 124 | BY90: 124 | BZ90: 124 | CA90: 124 | CB90: 124 | CC90: 124 | CD90: 124 | CE90: 124 | CF90: 124 | CG90: 124 | CH90: 124 | CI90: 124 | CJ90: 124 | CK90: 124 | CL90: 124 | CM90: 124 | CN90: 124 | CO90: 124 | CP90: 124 | CQ90: 124 | CR90: 124 | CS90: 124 | CT90: 124 | CU90: 124 | CV90: 124 | CW90: 124
B91: 0 | C91: 0 | D91: 0 | E91: 0 | F91: 0 | G91: 0 | H91: 0 | I91: 0 | J91: 0 | K91: 0 | L91: 0 | M91: 0 | N91: 0 | O91: 0 | P91: 0 | Q91: 0 | R91: 0 | S91: 0 | T91: 0 | U91: 0 | V91: 0 | W91: 0 | X91: 0 | Y91: 0 | Z91: 0 | AA91: 0 | AB91: 0 | AC91: 0 | AD91: 0 | AE91: 0 | AF91: 0 | AG91: 0 | AH91: 0 | AI91: 0 | AJ91: 0 | AK91: 0 | AL91: 0 | AM91: 0 | AN91: 0 | AO91: 0 | AP91: 0 | AQ91: 0 | AR91: 0 | AS91: 0 | AT91: 0 | AU91: 0 | AV91: 0 | AW91: 0 | AX91: 0 | AY91: 0 | AZ91: 0 | BA91: 0 | BB91: 124 | BC91: 124 | BD91: 124 | BE91: 124 | BF91: 124 | BG91: 124 | BH91: 124 | BI91: 124 | BJ91: 124 | BK91: 124 | BL91: 124 | BM91: 124 | BN91: 124 | BO91: 124 | BP91: 124 | BQ91: 124 | BR91: 124 | BS91: 124 | BT91: 124 | BU91: 124 | BV91: 124 | BW91: 124 | BX91: 124 | BY91: 124 | BZ91: 124 | CA91: 124 | CB91: 124 | CC91: 124 | CD91: 124 | CE91: 124 | CF91: 124 | CG91: 124 | CH91: 124 | CI91: 124 | CJ91: 124 | CK91: 124 | CL91: 124 | CM91: 124 | CN91: 124 | CO91: 124 | CP91: 124 | CQ91: 124 | CR91: 124 | CS91: 124 | CT91: 124 | CU91: 124 | CV91: 124 | CW91: 124
B92: 0 | C92: 0 | D92: 0 | E92: 0 | F92: 0 | G92: 0 | H92: 0 | I92: 0 | J92: 0 | K92: 0 | L92: 0 | M92: 0 | N92: 0 | O92: 0 | P92: 0 | Q92: 0 | R92: 0 | S92: 0 | T92: 0 | U92: 0 | V92: 0 | W92: 0 | X92: 0 | Y92: 0 | Z92: 0 | AA92: 0 | AB92: 0 | AC92: 0 | AD92: 0 | AE92: 0 | AF92: 0 | AG92: 0 | AH92: 0 | AI92: 0 | AJ92: 0 | AK92: 0 | AL92: 0 | AM92: 0 | AN92: 0 | AO92: 0 | AP92: 0 | AQ92: 0 | AR92: 0 | AS92: 0 | AT92: 0 | AU92: 0 | AV92: 0 | AW92: 0 | AX92: 0 | AY92: 0 | AZ92: 0 | BA92: 0 | BB92: 124 | BC92: 124 | BD92: 124 | BE92: 124 | BF92: 124 | BG92: 124 | BH92: 124 | BI92: 124 | BJ92: 124 | BK92: 124 | BL92: 124 | BM92: 124 | BN92: 124 | BO92: 124 | BP92: 124 | BQ92: 124 | BR92: 124 | BS92: 124 | BT92: 124 | BU92: 124 | BV92: 124 | BW92: 124 | BX92: 124 | BY92: 124 | BZ92: 124 | CA92: 124 | CB92: 124 | CC92: 124 | CD92: 124 | CE92: 124 | CF92: 124 | CG92: 124 | CH92: 124 | CI92: 124 | CJ92: 124 | CK92: 124 | CL92: 124 | CM92: 124 | CN92: 124 | CO92: 124 | CP92: 124 | CQ92: 124 | CR92: 124 | CS92: 124 | CT92: 124 | CU92: 124 | CV92: 124 | CW92: 124
B93: 0 | C93: 0 | D93: 0 | E93: 0 | F93: 0 | G93: 0 | H93: 0 | I93: 0 | J93: 0 | K93: 0 | L93: 0 | M93: 0 | N93: 0 | O93: 0 | P93: 0 | Q93: 0 | R93: 0 | S93: 0 | T93: 0 | U93: 0 | V93: 0 | W93: 0 | X93: 0 | Y93: 0 | Z93: 0 | AA93: 0 | AB93: 0 | AC93: 0 | AD93: 0 | AE93: 0 | AF93: 0 | AG93: 0 | AH93: 0 | AI93: 0 | AJ93: 0 | AK93: 0 | AL93: 0 | AM93: 0 | AN93: 0 | AO93: 0 | AP93: 0 | AQ93: 0 | AR93: 0 | AS93: 0 | AT93: 0 | AU93: 0 | AV93: 0 | AW93: 0 | AX93: 0 | AY93: 0 | AZ93: 0 | BA93: 0 | BB93: 124 | BC93: 124 | BD93: 124 | BE93: 124 | BF93: 124 | BG93: 124 | BH93: 124 | BI93: 124 | BJ93: 124 | BK93: 124 | BL93: 124 | BM93: 124 | BN93: 124 | BO93: 124 | BP93: 124 | BQ93: 124 | BR93: 124 | BS93: 124 | BT93: 124 | BU93: 124 | BV93: 124 | BW93: 124 | BX93: 124 | BY93: 124 | BZ93: 124 | CA93: 124 | CB93: 124 | CC93: 124 | CD93: 124 | CE93: 124 | CF93: 124 | CG93: 124 | CH93: 124 | CI93: 124 | CJ93: 124 | CK93: 124 | CL93: 124 | CM93: 124 | CN93: 124 | CO93: 124 | CP93: 124 | CQ93: 124 | CR93: 124 | CS93: 124 | CT93: 124 | CU93: 124 | CV93: 124 | CW93: 124
B94: 0 | C94: 0 | D94: 0 | E94: 0 | F94: 0 | G94: 0 | H94: 0 | I94: 0 | J94: 0 | K94: 0 | L94: 0 | M94: 0 | N94: 0 | O94: 0 | P94: 0 | Q94: 0 | R94: 0 | S94: 0 | T94: 0 | U94: 0 | V94: 0 | W94: 0 | X94: 0 | Y94: 0 | Z94: 0 | AA94: 0 | AB94: 0 | AC94: 0 | AD94: 0 | AE94: 0 | AF94: 0 | AG94: 0 | AH94: 0 | AI94: 0 | AJ94: 0 | AK94: 0 | AL94: 0 | AM94: 0 | AN94: 0 | AO94: 0 | AP94: 0 | AQ94: 0 | AR94: 0 | AS94: 0 | AT94: 0 | AU94: 0 | AV94: 0 | AW94: 0 | AX94: 0 | AY94: 0 | AZ94: 0 | BA94: 0 | BB94: 124 | BC94: 124 | BD94: 124 | BE94: 124 | BF94: 124 | BG94: 124 | BH94: 124 | BI94: 124 | BJ94: 124 | BK94: 124 | BL94: 124 | BM94: 124 | BN94: 124 | BO94: 124 | BP94: 124 | BQ94: 124 | BR94: 124 | BS94: 124 | BT94: 124 | BU94: 124 | BV94: 124 | BW94: 124 | BX94: 124 | BY94: 124 | BZ94: 124 | CA94: 124 | CB94: 124 | CC94: 124 | CD94: 124 | CE94: 124 | CF94: 124 | CG94: 124 | CH94: 124 | CI94: 124 | CJ94: 124 | CK94: 124 | CL94: 124 | CM94: 124 | CN94: 124 | CO94: 124 | CP94: 124 | CQ94: 124 | CR94: 124 | CS94: 124 | CT94: 124 | CU94: 124 | CV94: 124 | CW94: 124
B95: 0 | C95: 0 | D95: 0 | E95: 0 | F95: 0 | G95: 0 | H95: 0 | I95: 0 | J95: 0 | K95: 0 | L95: 0 | M95: 0 | N95: 0 | O95: 0 | P95: 0 | Q95: 0 | R95: 0 | S95: 0 | T95: 0 | U95: 0 | V95: 0 | W95: 0 | X95: 0 | Y95: 0 | Z95: 0 | AA95: 0 | AB95: 0 | AC95: 0 | AD95: 0 | AE95: 0 | AF95: 0 | AG95: 0 | AH95: 0 | AI95: 0 | AJ95: 0 | AK95: 0 | AL95: 0 | AM95: 0 | AN95: 0 | AO95: 0 | AP95: 0 | AQ95: 0 | AR95: 0 | AS95: 0 | AT95: 0 | AU95: 0 | AV95: 0 | AW95: 0 | AX95: 0 | AY95: 0 | AZ95: 0 | BA95: 0 | BB95: 124 | BC95: 124 | BD95: 124 | BE95: 124 | BF95: 124 | BG95: 124 | BH95: 124 | BI95: 124 | BJ95: 124 | BK95: 124 | BL95: 124 | BM95: 124 | BN95: 124 | BO95: 124 | BP95: 124 | BQ95: 124 | BR95: 124 | BS95: 124 | BT95: 124 | BU95: 124 | BV95: 124 | BW95: 124 | BX95: 124 | BY95: 124 | BZ95: 124 | CA95: 124 | CB95: 124 | CC95: 124 | CD95: 124 | CE95: 124 | CF95: 124 | CG95: 124 | CH95: 124 | CI95: 124 | CJ95: 124 | CK95: 124 | CL95: 124 | CM95: 124 | CN95: 124 | CO95: 124 | CP95: 124 | CQ95: 124 | CR95: 124 | CS95: 124 | CT95: 124 | CU95: 124 | CV95: 124 | CW95: 124
B96: 0 | C96: 0 | D96: 0 | E96: 0 | F96: 0 | G96: 0 | H96: 0 | I96: 0 | J96: 0 | K96: 0 | L96: 0 | M96: 0 | N96: 0 | O96: 0 | P96: 0 | Q96: 0 | R96: 0 | S96: 0 | T96: 0 | U96: 0 | V96: 0 | W96: 0 | X96: 0 | Y96: 0 | Z96: 0 | AA96: 0 | AB96: 0 | AC96: 0 | AD96: 0 | AE96: 0 | AF96: 0 | AG96: 0 | AH96: 0 | AI96: 0 | AJ96: 0 | AK96: 0 | AL96: 0 | AM96: 0 | AN96: 0 | AO96: 0 | AP96: 0 | AQ96: 0 | AR96: 0 | AS96: 0 | AT96: 0 | AU96: 0 | AV96: 0 | AW96: 0 | AX96: 0 | AY96: 0 | AZ96: 0 | BA96: 0 | BB96: 124 | BC96: 124 | BD96: 124 | BE96: 124 | BF96: 124 | BG96: 124 | BH96: 124 | BI96: 124 | BJ96: 124 | BK96: 124 | BL96: 124 | BM96: 124 | BN96: 124 | BO96: 124 | BP96: 124 | BQ96: 124 | BR96: 124 | BS96: 124 | BT96: 124 | BU96: 124 | BV96: 124 | BW96: 124 | BX96: 124 | BY96: 124 | BZ96: 124 | CA96: 124 | CB96: 124 | CC96: 124 | CD96: 124 | CE96: 124 | CF96: 124 | CG96: 124 | CH96: 124 | CI96: 124 | CJ96: 124 | CK96: 124 | CL96: 124 | CM96: 124 | CN96: 124 | CO96: 124 | CP96: 124 | CQ96: 124 | CR96: 124 | CS96: 124 | CT96: 124 | CU96: 124 | CV96: 124 | CW96: 124
B97: 0 | C97: 0 | D97: 0 | E97: 0 | F97: 0 | G97: 0 | H97: 0 | I97: 0 | J97: 0 | K97: 0 | L97: 0 | M97: 0 | N97: 0 | O97: 0 | P97: 0 | Q97: 0 | R97: 0 | S97: 0 | T97: 0 | U97: 0 | V97: 0 | W97: 0 | X97: 0 | Y97: 0 | Z97: 0 | AA97: 0 | AB97: 0 | AC97: 0 | AD97: 0 | AE97: 0 | AF97: 0 | AG97: 0 | AH97: 0 | AI97: 0 | AJ97: 0 | AK97: 0 | AL97: 0 | AM97: 0 | AN97: 0 | AO97: 0 | AP97: 0 | AQ97: 0 | AR97: 0 | AS97: 0 | AT97: 0 | AU97: 0 | AV97: 0 | AW97: 0 | AX97: 0 | AY97: 0 | AZ97: 0 | BA97: 0 | BB97: 124 | BC97: 124 | BD97: 124 | BE97: 124 | BF97: 124 | BG97: 124 | BH97: 124 | BI97: 124 | BJ97: 124 | BK97: 124 | BL97: 124 | BM97: 124 | BN97: 124 | BO97: 124 | BP97: 124 | BQ97: 124 | BR97: 124 | BS97: 124 | BT97: 124 | BU97: 124 | BV97: 124 | BW97: 124 | BX97: 124 | BY97: 124 | BZ97: 124 | CA97: 124 | CB97: 124 | CC97: 124 | CD97: 124 | CE97: 124 | CF97: 124 | CG97: 124 | CH97: 124 | CI97: 124 | CJ97: 124 | CK97: 124 | CL97: 124 | CM97: 124 | CN97: 124 | CO97: 124 | CP97: 124 | CQ97: 124 | CR97: 124 | CS97: 124 | CT97: 124 | CU97: 124 | CV97: 124 | CW97: 124
B98: 0 | C98: 0 | D98: 0 | E98: 0 | F98: 0 | G98: 0 | H98: 0 | I98: 0 | J98: 0 | K98: 0 | L98: 0 | M98: 0 | N98: 0 | O98: 0 | P98: 0 | Q98: 0 | R98: 0 | S98: 0 | T98: 0 | U98: 0 | V98: 0 | W98: 0 | X98: 0 | Y98: 0 | Z98: 0 | AA98: 0 | AB98: 0 | AC98: 0 | AD98: 0 | AE98: 0 | AF98: 0 | AG98: 0 | AH98: 0 | AI98: 0 | AJ98: 0 | AK98: 0 | AL98: 0 | AM98: 0 | AN98: 0 | AO98: 0 | AP98: 0 | AQ98: 0 | AR98: 0 | AS98: 0 | AT98: 0 | AU98: 0 | AV98: 0 | AW98: 0 | AX98: 0 | AY98: 0 | AZ98: 0 | BA98: 0 | BB98: 124 | BC98: 124 | BD98: 124 | BE98: 124 | BF98: 124 | BG98: 124 | BH98: 124 | BI98: 124 | BJ98: 124 | BK98: 124 | BL98: 124 | BM98: 124 | BN98: 124 | BO98: 124 | BP98: 124 | BQ98: 124 | BR98: 124 | BS98: 124 | BT98: 124 | BU98: 124 | BV98: 124 | BW98: 124 | BX98: 124 | BY98: 124 | BZ98: 124 | CA98: 124 | CB98: 124 | CC98: 124 | CD98: 124 | CE98: 124 | CF98: 124 | CG98: 124 | CH98: 124 | CI98: 124 | CJ98: 124 | CK98: 124 | CL98: 124 | CM98: 124 | CN98: 124 | CO98: 124 | CP98: 124 | CQ98: 124 | CR98: 124 | CS98: 124 | CT98: 124 | CU98: 124 | CV98: 124 | CW98: 124
B99: 0 | C99: 0 | D99: 0 | E99: 0 | F99: 0 | G99: 0 | H99: 0 | I99: 0 | J99: 0 | K99: 0 | L99: 0 | M99: 0 | N99: 0 | O99: 0 | P99: 0 | Q99: 0 | R99: 0 | S99: 0 | T99: 0 | U99: 0 | V99: 0 | W99: 0 | X99: 0 | Y99: 0 | Z99: 0 | AA99: 0 | AB99: 0 | AC99: 0 | AD99: 0 | AE99: 0 | AF99: 0 | AG99: 0 | AH99: 0 | AI99: 0 | AJ99: 0 | AK99: 0 | AL99: 0 | AM99: 0 | AN99: 0 | AO99: 0 | AP99: 0 | AQ99: 0 | AR99: 0 | AS99: 0 | AT99: 0 | AU99: 0 | AV99: 0 | AW99: 0 | AX99: 0 | AY99: 0 | AZ99: 0 | BA99: 0 | BB99: 124 | BC99: 124 | BD99: 124 | BE99: 124 | BF99: 124 | BG99: 124 | BH99: 124 | BI99: 124 | BJ99: 124 | BK99: 124 | BL99: 124 | BM99: 124 | BN99: 124 | BO99: 124 | BP99: 124 | BQ99: 124 | BR99: 124 | BS99: 124 | BT99: 124 | BU99: 124 | BV99: 124 | BW99: 124 | BX99: 124 | BY99: 124 | BZ99: 124 | CA99: 124 | CB99: 124 | CC99: 124 | CD99: 124 | CE99: 124 | CF99: 124 | CG99: 124 | CH99: 124 | CI99: 124 | CJ99: 124 | CK99: 124 | CL99: 124 | CM99: 124 | CN99: 124 | CO99: 124 | CP99: 124 | CQ99: 124 | CR99: 124 | CS99: 124 | CT99: 124 | CU99: 124 | CV99: 124 | CW99: 124
B100: 0 | C100: 0 | D100: 0 | E100: 0 | F100: 0 | G100: 0 | H100: 0 | I100: 0 | J100: 0 | K100: 0 | L100: 0 | M100: 0 | N100: 0 | O100: 0 | P100: 0 | Q100: 0 | R100: 0 | S100: 0 | T100: 0 | U100: 0 | V100: 0 | W100: 0 | X100: 0 | Y100: 0 | Z100: 0 | AA100: 0 | AB100: 0 | AC100: 0 | AD100: 0 | AE100: 0 | AF100: 0 | AG100: 0 | AH100: 0 | AI100: 0 | AJ100: 0 | AK100: 0 | AL100: 0 | AM100: 0 | AN100: 0 | AO100: 0 | AP100: 0 | AQ100: 0 | AR100: 0 | AS100: 0 | AT100: 0 | AU100: 0 | AV100: 0 | AW100: 0 | AX100: 0 | AY100: 0 | AZ100: 0 | BA100: 0 | BB100: 124 | BC100: 124 | BD100: 124 | BE100: 124 | BF100: 124 | BG100: 124 | BH100: 124 | BI100: 124 | BJ100: 124 | BK100: 124 | BL100: 124 | BM100: 124 | BN100: 124 | BO100: 124 | BP100: 124 | BQ100: 124 | BR100: 124 | BS100: 124 | BT100: 124 | BU100: 124 | BV100: 124 | BW100: 124 | BX100: 124 | BY100: 124 | BZ100: 124 | CA100: 124 | CB100: 124 | CC100: 124 | CD100: 124 | CE100: 124 | CF100: 124 | CG100: 124 | CH100: 124 | CI100: 124 | CJ100: 124 | CK100: 124 | CL100: 124 | CM100: 124 | CN100: 124 | CO100: 124 | CP100: 124 | CQ100: 124 | CR100: 124 | CS100: 124 | CT100: 124 | CU100: 124 | CV100: 124 | CW100: 124
B101: 0 | C101: 0 | D101: 0 | E101: 0 | F101: 0 | G101: 0 | H101: 0 | I101: 0 | J101: 0 | K101: 0 | L101: 0 | M101: 0 | N101: 0 | O101: 0 | P101: 0 | Q101: 0 | R101: 0 | S101: 0 | T101: 0 | U101: 0 | V101: 0 | W101: 0 | X101: 0 | Y101: 0 | Z101: 0 | AA101: 0 | AB101: 0 | AC101: 0 | AD101: 0 | AE101: 0 | AF101: 0 | AG101: 0 | AH101: 0 | AI101: 0 | AJ101: 0 | AK101: 0 | AL101: 0 | AM101: 0 | AN101: 0 | AO101: 0 | AP101: 0 | AQ101: 0 | AR101: 0 | AS101: 0 | AT101: 0 | AU101: 0 | AV101: 0 | AW101: 0 | AX101: 0 | AY101: 0 | AZ101: 0 | BA101: 0 | BB101: 124 | BC101: 124 | BD101: 124 | BE101: 124 | BF101: 124 | BG101: 124 | BH101: 124 | BI101: 124 | BJ101: 124 | BK101: 124 | BL101: 124 | BM101: 124 | BN101: 124 | BO101: 124 | BP101: 124 | BQ101: 124 | BR101: 124 | BS101: 124 | BT101: 124 | BU101: 124 | BV101: 124 | BW101: 124 | BX101: 124 | BY101: 124 | BZ101: 124 | CA101: 124 | CB101: 124 | CC101: 124 | CD101: 124 | CE101: 124 | CF101: 124 | CG101: 124 | CH101: 124 | CI101: 124 | CJ101: 124 | CK101: 124 | CL101: 124 | CM101: 124 | CN101: 124 | CO101: 124 | CP101: 124 | CQ101: 124 | CR101: 124 | CS101: 124 | CT101: 124 | CU101: 124 | CV101: 124 | CW101: 124

Sheet M
A1: 10 | B1: 1 | C1: 1 | D1: 0 | E1: 0 | F1: 0 | G1: 1 | H1: 1 | I1: 0 | J1: 1 | K1: 1 | L1: 0 | M1: 0 | N1: 0 | O1: 1 | P1: 1 | Q1: 0 | R1: 1 | S1: 0 | T1: 0 | U1: 0 | V1: 0 | W1: 0 | X1: 0 | Y1: 1 | Z1: 0 | AA1: 1 | AB1: 1 | AC1: 0 | AD1: 1 | AE1: 0 | AF1: 0 | AG1: 1 | AH1: 1 | AI1: 0 | AJ1: 0 | AK1: 1 | AL1: 0 | AM1: 0 | AN1: 1 | AO1: 0 | AP1: 0 | AQ1: 0 | AR1: 0 | AS1: 0 | AT1: 0 | AU1: 0 | AV1: 1 | AW1: 0 | AX1: 1 | AY1: 0 | AZ1: 1 | BA1: 0 | BB1: 0 | BC1: 0 | BD1: 0 | BE1: 0 | BF1: 0 | BG1: 0 | BH1: 0 | BI1: 0 | BJ1: 0 | BK1: 0 | BL1: 0 | BM1: 0 | BN1: 0 | BO1: 0 | BP1: 0 | BQ1: 0 | BR1: 0 | BS1: 0 | BT1: 0 | BU1: 0 | BV1: 0 | BW1: 0 | BX1: 0 | BY1: 0 | BZ1: 0 | CA1: 0 | CB1: 0 | CC1: 0 | CD1: 0 | CE1: 0 | CF1: 0 | CG1: 0 | CH1: 0 | CI1: 0 | CJ1: 0 | CK1: 0 | CL1: 0 | CM1: 0 | CN1: 0 | CO1: 0 | CP1: 0 | CQ1: 0 | CR1: 0 | CS1: 0 | CT1: 0 | CU1: 0 | CV1: 0
A2: 1 | B2: 10 | C2: 0 | D2: 0 | E2: 1 | F2: 1 | G2: 0 | H2: 1 | I2: 0 | J2: 0 | K2: 0 | L2: 0 | M2: 1 | N2: 1 | O2: 1 | P2: 0 | Q2: 0 | R2: 1 | S2: 0 | T2: 1 | U2: 1 | V2: 1 | W2: 0 | X2: 1 | Y2: 0 | Z2: 0 | AA2: 0 | AB2: 0 | AC2: 0 | AD2: 0 | AE2: 1 | AF2: 0 | AG2: 1 | AH2: 0 | AI2: 0 | AJ2: 0 | AK2: 1 | AL2: 0 | AM2: 1 | AN2: 1 | AO2: 0 | AP2: 0 | AQ2: 0 | AR2: 0 | AS2: 0 | AT2: 0 | AU2: 0 | AV2: 0 | AW2: 1 | AX2: 1 | AY2: 0 | AZ2: 1 | BA2: 0 | BB2: 0 | BC2: 0 | BD2: 0 | BE2: 0 | BF2: 0 | BG2: 0 | BH2: 0 | BI2: 0 | BJ2: 0 | BK2: 0 | BL2: 0 | BM2: 0 | BN2: 0 | BO2: 0 | BP2: 0 | BQ2: 0 | BR2: 0 | BS2: 0 | BT2: 0 | BU2: 0 | BV2: 0 | BW2: 0 | BX2: 0 | BY2: 0 | BZ2: 0 | CA2: 0 | CB2: 0 | CC2: 0 | CD2: 0 | CE2: 0 | CF2: 0 | CG2: 0 | CH2: 0 | CI2: 0 | CJ2: 0 | CK2: 0 | CL2: 0 | CM2: 0 | CN2: 0 | CO2: 0 | CP2: 0 | CQ2: 0 | CR2: 0 | CS2: 0 | CT2: 0 | CU2: 0 | CV2: 0
A3: 1 | B3: 0 | C3: 10 | D3: 0 | E3: 0 | F3: 0 | G3: 0 | H3: 0 | I3: 0 | J3: 0 | K3: 1 | L3: 1 | M3: 1 | N3: 1 | O3: 1 | P3: 1 | Q3: 1 | R3: 1 | S3: 0 | T3: 0 | U3: 0 | V3: 0 | W3: 1 | X3: 0 | Y3: 0 | Z3: 0 | AA3: 0 | AB3: 0 | AC3: 0 | AD3: 0 | AE3: 0 | AF3: 1 | AG3: 0 | AH3: 0 | AI3: 1 | AJ3: 1 | AK3: 1 | AL3: 1 | AM3: 0 | AN3: 0 | AO3: 0 | AP3: 1 | AQ3: 1 | AR3: 0 | AS3: 0 | AT3: 0 | AU3: 1 | AV3: 1 | AW3: 0 | AX3: 0 | AY3: 0 | AZ3: 1 | BA3: 0 | BB3: 0 | BC3: 0 | BD3: 0 | BE3: 0 | BF3: 0 | BG3: 0 | BH3: 0 | BI3: 0 | BJ3: 0 | BK3: 0 | BL3: 0 | BM3: 0 | BN3: 0 | BO3: 0 | BP3: 0 | BQ3: 0 | BR3: 0 | BS3: 0 | BT3: 0 | BU3: 0 | BV3: 0 | BW3: 0 | BX3: 0 | BY3: 0 | BZ3: 0 | CA3: 0 | CB3: 0 | CC3: 0 | CD3: 0 | CE3: 0 | CF3: 0 | CG3: 0 | CH3: 0 | CI3: 0 | CJ3: 0 | CK3: 0 | CL3: 0 | CM3: 0 | CN3: 0 | CO3: 0 | CP3: 0 | CQ3: 0 | CR3: 0 | CS3: 0 | CT3: 0 | CU3: 0 | CV3: 0
A4: 0 | B4: 0 | C4: 0 | D4: 10 | E4: 0 | F4: 0 | G4: 0 | H4: 0 | I4: 1 | J4: 1 | K4: 0 | L4: 0 | M4: 1 | N4: 0 | O4: 0 | P4: 0 | Q4: 1 | R4: 0 | S4: 1 | T4: 0 | U4: 0 | V4: 0 | W4: 0 | X4: 1 | Y4: 0 | Z4: 1 | AA4: 1 | AB4: 1 | AC4: 0 | AD4: 0 | AE4: 1 | AF4: 0 | AG4: 1 | AH4: 0 | AI4: 0 | AJ4: 1 | AK4: 1 | AL4: 1 | AM4: 1 | AN4: 1 | AO4: 0 | AP4: 1 | AQ4: 0 | AR4: 0 | AS4: 1 | AT4: 0 | AU4: 0 | AV4: 1 | AW4: 0 | AX4: 0 | AY4: 1 | AZ4: 0 | BA4: 0 | BB4: 0 | BC4: 0 | BD4: 0 | BE4: 0 | BF4: 0 | BG4: 0 | BH4: 0 | BI4: 0 | BJ4: 0 | BK4: 0 | BL4: 0 | BM4: 0 | BN4: 0 | BO4: 0 | BP4: 0 | BQ4: 0 | BR4: 0 | BS4: 0 | BT4: 0 | BU4: 0 | BV4: 0 | BW4: 0 | BX4: 0 | BY4: 0 | BZ4: 0 | CA4: 0 | CB4: 0 | CC4: 0 | CD4: 0 | CE4: 0 | CF4: 0 | CG4: 0 | CH4: 0 | CI4: 0 | CJ4: 0 | CK4: 0 | CL4: 0 | CM4: 0 | CN4: 0 | CO4: 0 | CP4: 0 | CQ4: 0 | CR4: 0 | CS4: 0 | CT4: 0 | CU4: 0 | CV4: 0
A5: 0 | B5: 1 | C5: 0 | D5: 0 | E5: 10 | F5: 0 | G5: 0 | H5: 0 | I5: 0 | J5: 1 | K5: 1 | L5: 0 | M5: 0 | N5: 1 | O5: 0 | P5: 1 | Q5: 1 | R5: 1 | S5: 0 | T5: 0 | U5: 0 | V5: 0 | W5: 1 | X5: 1 | Y5: 1 | Z5: 1 | AA5: 1 | AB5: 1 | AC5: 0 | AD5: 0 | AE5: 0 | AF5: 1 | AG5: 0 | AH5: 0 | AI5: 0 | AJ5: 1 | AK5: 1 | AL5: 0 | AM5: 1 | AN5: 0 | AO5: 1 | AP5: 0 | AQ5: 0 | AR5: 1 | AS5: 0 | AT5: 0 | AU5: 1 | AV5: 0 | AW5: 0 | AX5: 0 | AY5: 0 | AZ5: 0 | BA5: 0 | BB5: 0 | BC5: 0 | BD5: 0 | BE5: 0 | BF5: 0 | BG5: 0 | BH5: 0 | BI5: 0 | BJ5: 0 | BK5: 0 | BL5: 0 | BM5: 0 | BN5: 0 | BO5: 0 | BP5: 0 | BQ5: 0 | BR5: 0 | BS5: 0 | BT5: 0 | BU5: 0 | BV5: 0 | BW5: 0 | BX5: 0 | BY5: 0 | BZ5: 0 | CA5: 0 | CB5: 0 | CC5: 0 | CD5: 0 | CE5: 0 | CF5: 0 | CG5: 0 | CH5: 0 | CI5: 0 | CJ5: 0 | CK5: 0 | CL5: 0 | CM5: 0 | CN5: 0 | CO5: 0 | CP5: 0 | CQ5: 0 | CR5: 0 | CS5: 0 | CT5: 0 | CU5: 0 | CV5: 0
A6: 0 | B6: 1 | C6: 0 | D6: 0 | E6: 0 | F6: 10 | G6: 0 | H6: 1 | I6: 0 | J6: 0 | K6: 0 | L6: 1 | M6: 0 | N6: 0 | O6: 1 | P6: 0 | Q6: 1 | R6: 0 | S6: 0 | T6: 1 | U6: 0 | V6: 1 | W6: 1 | X6: 1 | Y6: 0 | Z6: 1 | AA6: 0 | AB6: 0 | AC6: 0 | AD6: 0 | AE6: 0 | AF6: 0 | AG6: 1 | AH6: 0 | AI6: 0 | AJ6: 0 | AK6: 0 | AL6: 0 | AM6: 1 | AN6: 1 | AO6: 0 | AP6: 0 | AQ6: 1 | AR6: 1 | AS6: 1 | AT6: 1 | AU6: 1 | AV6: 1 | AW6: 0 | AX6: 0 | AY6: 0 | AZ6: 1 | BA6: 0 | BB6: 0 | BC6: 0 | BD6: 0 | BE6: 0 | BF6: 0 | BG6: 0 | BH6: 0 | BI6: 0 | BJ6: 0 | BK6: 0 | BL6: 0 | BM6: 0 | BN6: 0 | BO6: 0 | BP6: 0 | BQ6: 0 | BR6: 0 | BS6: 0 | BT6: 0 | BU6: 0 | BV6: 0 | BW6: 0 | BX6: 0 | BY6: 0 | BZ6: 0 | CA6: 0 | CB6: 0 | CC6: 0 | CD6: 0 | CE6: 0 | CF6: 0 | CG6: 0 | CH6: 0 | CI6: 0 | CJ6: 0 | CK6: 0 | CL6: 0 | CM6: 0 | CN6: 0 | CO6: 0 | CP6: 0 | CQ6: 0 | CR6: 0 | CS6: 0 | CT6: 0 | CU6: 0 | CV6: 0
A7: 1 | B7: 0 | C7: 0 | D7: 0 | E7: 0 | F7: 0 | G7: 10 | H7: 0 | I7: 0 | J7: 1 | K7: 1 | L7: 0 | M7: 1 | N7: 0 | O7: 0 | P7: 0 | Q7: 0 | R7: 1 | S7: 0 | T7: 1 | U7: 0 | V7: 1 | W7: 0 | X7: 1 | Y7: 0 | Z7: 0 | AA7: 0 | AB7: 1 | AC7: 1 | AD7: 1 | AE7: 0 | AF7: 0 | AG7: 0 | AH7: 1 | AI7: 0 | AJ7: 0 | AK7: 1 | AL7: 0 | AM7: 0 | AN7: 1 | AO7: 0 | AP7: 1 | AQ7: 1 | AR7: 0 | AS7: 1 | AT7: 1 | AU7: 0 | AV7: 0 | AW7: 0 | AX7: 1 | AY7: 1 | AZ7: 0 | BA7: 0 | BB7: 0 | BC7: 0 | BD7: 0 | BE7: 0 | BF7: 0 | BG7: 0 | BH7: 0 | BI7: 0 | BJ7: 0 | BK7: 0 | BL7: 0 | BM7: 0 | BN7: 0 | BO7: 0 | BP7: 0 | BQ7: 0 | BR7: 0 | BS7: 0 | BT7: 0 | BU7: 0 | BV7: 0 | BW7: 0 | BX7: 0 | BY7: 0 | BZ7: 0 | CA7: 0 | CB7: 0 | CC7: 0 | CD7: 0 | CE7: 0 | CF7: 0 | CG7: 0 | CH7: 0 | CI7: 0 | CJ7: 0 | CK7: 0 | CL7: 0 | CM7: 0 | CN7: 0 | CO7: 0 | CP7: 0 | CQ7: 0 | CR7: 0 | CS7: 0 | CT7: 0 | CU7: 0 | CV7: 0
A8: 1 | B8: 1 | C8: 0 | D8: 0 | E8: 0 | F8: 1 | G8: 0 | H8: 10 | I8: 0 | J8: 0 | K8: 1 | L8: 0 | M8: 0 | N8: 0 | O8: 1 | P8: 0 | Q8: 0 | R8: 0 | S8: 1 | T8: 1 | U8: 0 | V8: 1 | W8: 0 | X8: 1 | Y8: 1 | Z8: 0 | AA8: 1 | AB8: 0 | AC8: 0 | AD8: 0 | AE8: 0 | AF8: 1 | AG8: 0 | AH8: 1 | AI8: 0 | AJ8: 0 | AK8: 0 | AL8: 1 | AM8: 1 | AN8: 1 | AO8: 0 | AP8: 0 | AQ8: 1 | AR8: 1 | AS8: 1 | AT8: 0 | AU8: 0 | AV8: 0 | AW8: 0 | AX8: 0 | AY8: 1 | AZ8: 0 | BA8: 0 | BB8: 0 | BC8: 0 | BD8: 0 | BE8: 0 | BF8: 0 | BG8: 0 | BH8: 0 | BI8: 0 | BJ8: 0 | BK8: 0 | BL8: 0 | BM8: 0 | BN8: 0 | BO8: 0 | BP8: 0 | BQ8: 0 | BR8: 0 | BS8: 0 | BT8: 0 | BU8: 0 | BV8: 0 | BW8: 0 | BX8: 0 | BY8: 0 | BZ8: 0 | CA8: 0 | CB8: 0 | CC8: 0 | CD8: 0 | CE8: 0 | CF8: 0 | CG8: 0 | CH8: 0 | CI8: 0 | CJ8: 0 | CK8: 0 | CL8: 0 | CM8: 0 | CN8: 0 | CO8: 0 | CP8: 0 | CQ8: 0 | CR8: 0 | CS8: 0 | CT8: 0 | CU8: 0 | CV8: 0
A9: 0 | B9: 0 | C9: 0 | D9: 1 | E9: 0 | F9: 0 | G9: 0 | H9: 0 | I9: 10 | J9: 1 | K9: 0 | L9: 1 | M9: 0 | N9: 1 | O9: 0 | P9: 0 | Q9: 0 | R9: 0 | S9: 0 | T9: 1 | U9: 1 | V9: 1 | W9: 0 | X9: 0 | Y9: 1 | Z9: 0 | AA9: 0 | AB9: 1 | AC9: 1 | AD9: 0 | AE9: 1 | AF9: 1 | AG9: 0 | AH9: 1 | AI9: 0 | AJ9: 0 | AK9: 0 | AL9: 0 | AM9: 1 | AN9: 1 | AO9: 1 | AP9: 0 | AQ9: 1 | AR9: 0 | AS9: 0 | AT9: 0 | AU9: 0 | AV9: 0 | AW9: 1 | AX9: 1 | AY9: 0 | AZ9: 1 | BA9: 0 | BB9: 0 | BC9: 0 | BD9: 0 | BE9: 0 | BF9: 0 | BG9: 0 | BH9: 0 | BI9: 0 | BJ9: 0 | BK9: 0 | BL9: 0 | BM9: 0 | BN9: 0 | BO9: 0 | BP9: 0 | BQ9: 0 | BR9: 0 | BS9: 0 | BT9: 0 | BU9: 0 | BV9: 0 | BW9: 0 | BX9: 0 | BY9: 0 | BZ9: 0 | CA9: 0 | CB9: 0 | CC9: 0 | CD9: 0 | CE9: 0 | CF9: 0 | CG9: 0 | CH9: 0 | CI9: 0 | CJ9: 0 | CK9: 0 | CL9: 0 | CM9: 0 | CN9: 0 | CO9: 0 | CP9: 0 | CQ9: 0 | CR9: 0 | CS9: 0 | CT9: 0 | CU9: 0 | CV9: 0
A10: 1 | B10: 0 | C10: 0 | D10: 1 | E10: 1 | F10: 0 | G10: 1 | H10: 0 | I10: 1 | J10: 11 | K10: 1 | L10: 1 | M10: 1 | N10: 1 | O10: 1 | P10: 0 | Q10: 0 | R10: 0 | S10: 1 | T10: 1 | U10: 0 | V10: 1 | W10: 1 | X10: 0 | Y10: 0 | Z10: 0 | AA10: 0 | AB10: 1 | AC10: 0 | AD10: 0 | AE10: 0 | AF10: 1 | AG10: 0 | AH10: 1 | AI10: 0 | AJ10: 1 | AK10: 0 | AL10: 0 | AM10: 1 | AN10: 0 | AO10: 0 | AP10: 1 | AQ10: 0 | AR10: 0 | AS10: 1 | AT10: 0 | AU10: 0 | AV10: 1 | AW10: 0 | AX10: 0 | AY10: 0 | AZ10: 0 | BA10: 0 | BB10: 0 | BC10: 0 | BD10: 0 | BE10: 0 | BF10: 0 | BG10: 0 | BH10: 0 | BI10: 0 | BJ10: 0 | BK10: 0 | BL10: 0 | BM10: 0 | BN10: 0 | BO10: 0 | BP10: 0 | BQ10: 0 | BR10: 0 | BS10: 0 | BT10: 0 | BU10: 0 | BV10: 0 | BW10: 0 | BX10: 0 | BY10: 0 | BZ10: 0 | CA10: 0 | CB10: 0 | CC10: 0 | CD10: 0 | CE10: 0 | CF10: 0 | CG10: 0 | CH10: 0 | CI10: 0 | CJ10: 0 | CK10: 0 | CL10: 0 | CM10: 0 | CN10: 0 | CO10: 0 | CP10: 0 | CQ10: 0 | CR10: 0 | CS10: 0 | CT10: 0 | CU10: 0 | CV10: 0
A11: 1 | B11: 0 | C11: 1 | D11: 0 | E11: 1 | F11: 0 | G11: 1 | H11: 1 | I11: 0 | J11: 1 | K11: 10 | L11: 1 | M11: 0 | N11: 0 | O11: 0 | P11: 0 | Q11: 1 | R11: 1 | S11: 0 | T11: 0 | U11: 0 | V11: 1 | W11: 1 | X11: 0 | Y11: 1 | Z11: 0 | AA11: 1 | AB11: 0 | AC11: 1 | AD11: 0 | AE11: 0 | AF11: 1 | AG11: 0 | AH11: 1 | AI11: 0 | AJ11: 0 | AK11: 0 | AL11: 0 | AM11: 0 | AN11: 1 | AO11: 0 | AP11: 0 | AQ11: 0 | AR11: 1 | AS11: 0 | AT11: 1 | AU11: 0 | AV11: 1 | AW11: 0 | AX11: 0 | AY11: 0 | AZ11: 0 | BA11: 0 | BB11: 0 | BC11: 0 | BD11: 0 | BE11: 0 | BF11: 0 | BG11: 0 | BH11: 0 | BI11: 0 | BJ11: 0 | BK11: 0 | BL11: 0 | BM11: 0 | BN11: 0 | BO11: 0 | BP11: 0 | BQ11: 0 | BR11: 0 | BS11: 0 | BT11: 0 | BU11: 0 | BV11: 0 | BW11: 0 | BX11: 0 | BY11: 0 | BZ11: 0 | CA11: 0 | CB11: 0 | CC11: 0 | CD11: 0 | CE11: 0 | CF11: 0 | CG11: 0 | CH11: 0 | CI11: 0 | CJ11: 0 | CK11: 0 | CL11: 0 | CM11: 0 | CN11: 0 | CO11: 0 | CP11: 0 | CQ11: 0 | CR11: 0 | CS11: 0 | CT11: 0 | CU11: 0 | CV11: 0
A12: 0 | B12: 0 | C12: 1 | D12: 0 | E12: 0 | F12: 1 | G12: 0 | H12: 0 | I12: 1 | J12: 1 | K12: 1 | L12: 10 | M12: 1 | N12: 0 | O12: 0 | P12: 1 | Q12: 0 | R12: 1 | S12: 0 | T12: 0 | U12: 1 | V12: 0 | W12: 0 | X12: 0 | Y12: 0 | Z12: 0 | AA12: 0 | AB12: 0 | AC12: 1 | AD12: 1 | AE12: 1 | AF12: 0 | AG12: 0 | AH12: 0 | AI12: 0 | AJ12: 0 | AK12: 1 | AL12: 0 | AM12: 0 | AN12: 0 | AO12: 1 | AP12: 0 | AQ12: 0 | AR12: 0 | AS12: 1 | AT12: 1 | AU12: 1 | AV12: 1 | AW12: 0 | AX12: 1 | AY12: 0 | AZ12: 1 | BA12: 0 | BB12: 0 | BC12: 0 | BD12: 0 | BE12: 0 | BF12: 0 | BG12: 0 | BH12: 0 | BI12: 0 | BJ12: 0 | BK12: 0 | BL12: 0 | BM12: 0 | BN12: 0 | BO12: 0 | BP12: 0 | BQ12: 0 | BR12: 0 | BS12: 0 | BT12: 0 | BU12: 0 | BV12: 0 | BW12: 0 | BX12: 0 | BY12: 0 | BZ12: 0 | CA12: 0 | CB12: 0 | CC12: 0 | CD12: 0 | CE12: 0 | CF12: 0 | CG12: 0 | CH12: 0 | CI12: 0 | CJ12: 0 | CK12: 0 | CL12: 0 | CM12: 0 | CN12: 0 | CO12: 0 | CP12: 0 | CQ12: 0 | CR12: 0 | CS12: 0 | CT12: 0 | CU12: 0 | CV12: 0
A13: 0 | B13: 1 | C13: 1 | D13: 1 | E13: 0 | F13: 0 | G13: 1 | H13: 0 | I13: 0 | J13: 1 | K13: 0 | L13: 1 | M13: 10 | N13: 1 | O13: 1 | P13: 0 | Q13: 0 | R13: 0 | S13: 1 | T13: 0 | U13: 1 | V13: 0 | W13: 0 | X13: 0 | Y13: 0 | Z13: 0 | AA13: 1 | AB13: 0 | AC13: 0 | AD13: 0 | AE13: 0 | AF13: 0 | AG13: 0 | AH13: 0 | AI13: 0 | AJ13: 0 | AK13: 0 | AL13: 1 | AM13: 1 | AN13: 1 | AO13: 0 | AP13: 1 | AQ13: 0 | AR13: 0 | AS13: 1 | AT13: 0 | AU13: 0 | AV13: 1 | AW13: 1 | AX13: 0 | AY13: 1 | AZ13: 1 | BA13: 0 | BB13: 0 | BC13: 0 | BD13: 0 | BE13: 0 | BF13: 0 | BG13: 0 | BH13: 0 | BI13: 0 | BJ13: 0 | BK13: 0 | BL13: 0 | BM13: 0 | BN13: 0 | BO13: 0 | BP13: 0 | BQ13: 0 | BR13: 0 | BS13: 0 | BT13: 0 | BU13: 0 | BV13: 0 | BW13: 0 | BX13: 0 | BY13: 0 | BZ13: 0 | CA13: 0 | CB13: 0 | CC13: 0 | CD13: 0 | CE13: 0 | CF13: 0 | CG13: 0 | CH13: 0 | CI13: 0 | CJ13: 0 | CK13: 0 | CL13: 0 | CM13: 0 | CN13: 0 | CO13: 0 | CP13: 0 | CQ13: 0 | CR13: 0 | CS13: 0 | CT13: 0 | CU13: 0 | CV13: 0
A14: 0 | B14: 1 | C14: 1 | D14: 0 | E14: 1 | F14: 0 | G14: 0 | H14: 0 | I14: 1 | J14: 1 | K14: 0 | L14: 0 | M14: 1 | N14: 10 | O14: 1 | P14: 1 | Q14: 0 | R14: 0 | S14: 0 | T14: 0 | U14: 0 | V14: 0 | W14: 1 | X14: 1 | Y14: 0 | Z14: 0 | AA14: 0 | AB14: 0 | AC14: 1 | AD14: 1 | AE14: 0 | AF14: 0 | AG14: 1 | AH14: 1 | AI14: 0 | AJ14: 1 | AK14: 0 | AL14: 1 | AM14: 0 | AN14: 0 | AO14: 0 | AP14: 1 | AQ14: 0 | AR14: 0 | AS14: 1 | AT14: 0 | AU14: 0 | AV14: 1 | AW14: 0 | AX14: 0 | AY14: 0 | AZ14: 1 | BA14: 0 | BB14: 0 | BC14: 0 | BD14: 0 | BE14: 0 | BF14: 0 | BG14: 0 | BH14: 0 | BI14: 0 | BJ14: 0 | BK14: 0 | BL14: 0 | BM14: 0 | BN14: 0 | BO14: 0 | BP14: 0 | BQ14: 0 | BR14: 0 | BS14: 0 | BT14: 0 | BU14: 0 | BV14: 0 | BW14: 0 | BX14: 0 | BY14: 0 | BZ14: 0 | CA14: 0 | CB14: 0 | CC14: 0 | CD14: 0 | CE14: 0 | CF14: 0 | CG14: 0 | CH14: 0 | CI14: 0 | CJ14: 0 | CK14: 0 | CL14: 0 | CM14: 0 | CN14: 0 | CO14: 0 | CP14: 0 | CQ14: 0 | CR14: 0 | CS14: 0 | CT14: 0 | CU14: 0 | CV14: 0
A15: 1 | B15: 1 | C15: 1 | D15: 0 | E15: 0 | F15: 1 | G15: 0 | H15: 1 | I15: 0 | J15: 1 | K15: 0 | L15: 0 | M15: 1 | N15: 1 | O15: 10 | P15: 1 | Q15: 0 | R15: 0 | S15: 1 | T15: 1 | U15: 0 | V15: 0 | W15: 0 | X15: 0 | Y15: 0 | Z15: 0 | AA15: 1 | AB15: 0 | AC15: 0 | AD15: 0 | AE15: 0 | AF15: 0 | AG15: 1 | AH15: 0 | AI15: 0 | AJ15: 1 | AK15: 1 | AL15: 1 | AM15: 0 | AN15: 0 | AO15: 1 | AP15: 0 | AQ15: 0 | AR15: 0 | AS15: 1 | AT15: 0 | AU15: 1 | AV15: 0 | AW15: 0 | AX15: 0 | AY15: 1 | AZ15: 0 | BA15: 0 | BB15: 0 | BC15: 0 | BD15: 0 | BE15: 0 | BF15: 0 | BG15: 0 | BH15: 0 | BI15: 0 | BJ15: 0 | BK15: 0 | BL15: 0 | BM15: 0 | BN15: 0 | BO15: 0 | BP15: 0 | BQ15: 0 | BR15: 0 | BS15: 0 | BT15: 0 | BU15: 0 | BV15: 0 | BW15: 0 | BX15: 0 | BY15: 0 | BZ15: 0 | CA15: 0 | CB15: 0 | CC15: 0 | CD15: 0 | CE15: 0 | CF15: 0 | CG15: 0 | CH15: 0 | CI15: 0 | CJ15: 0 | CK15: 0 | CL15: 0 | CM15: 0 | CN15: 0 | CO15: 0 | CP15: 0 | CQ15: 0 | CR15: 0 | CS15: 0 | CT15: 0 | CU15: 0 | CV15: 0
A16: 1 | B16: 0 | C16: 1 | D16: 0 | E16: 1 | F16: 0 | G16: 0 | H16: 0 | I16: 0 | J16: 0 | K16: 0 | L16: 1 | M16: 0 | N16: 1 | O16: 1 | P16: 10 | Q16: 0 | R16: 1 | S16: 1 | T16: 0 | U16: 0 | V16: 1 | W16: 0 | X16: 0 | Y16: 1 | Z16: 1 | AA16: 0 | AB16: 0 | AC16: 1 | AD16: 1 | AE16: 1 | AF16: 0 | AG16: 0 | AH16: 0 | AI16: 1 | AJ16: 0 | AK16: 0 | AL16: 0 | AM16: 0 | AN16: 0 | AO16: 1 | AP16: 0 | AQ16: 1 | AR16: 0 | AS16: 0 | AT16: 1 | AU16: 0 | AV16: 0 | AW16: 0 | AX16: 1 | AY16: 1 | AZ16: 0 | BA16: 0 | BB16: 0 | BC16: 0 | BD16: 0 | BE16: 0 | BF16: 0 | BG16: 0 | BH16: 0 | BI16: 0 | BJ16: 0 | BK16: 0 | BL16: 0 | BM16: 0 | BN16: 0 | BO16: 0 | BP16: 0 | BQ16: 0 | BR16: 0 | BS16: 0 | BT16: 0 | BU16: 0 | BV16: 0 | BW16: 0 | BX16: 0 | BY16: 0 | BZ16: 0 | CA16: 0 | CB16: 0 | CC16: 0 | CD16: 0 | CE16: 0 | CF16: 0 | CG16: 0 | CH16: 0 | CI16: 0 | CJ16: 0 | CK16: 0 | CL16: 0 | CM16: 0 | CN16: 0 | CO16: 0 | CP16: 0 | CQ16: 0 | CR16: 0 | CS16: 0 | CT16: 0 | CU16: 0 | CV16: 0
A17: 0 | B17: 0 | C17: 1 | D17: 1 | E17: 1 | F17: 1 | G17: 0 | H17: 0 | I17: 0 | J17: 0 | K17: 1 | L17: 0 | M17: 0 | N17: 0 | O17: 0 | P17: 0 | Q17: 10 | R17: 0 | S17: 0 | T17: 1 | U17: 0 | V17: 0 | W17: 1 | X17: 0 | Y17: 0 | Z17: 1 | AA17: 0 | AB17: 1 | AC17: 1 | AD17: 0 | AE17: 0 | AF17: 1 | AG17: 0 | AH17: 1 | AI17: 0 | AJ17: 0 | AK17: 1 | AL17: 0 | AM17: 0 | AN17: 0 | AO17: 1 | AP17: 0 | AQ17: 1 | AR17: 1 | AS17: 0 | AT17: 0 | AU17: 1 | AV17: 0 | AW17: 1 | AX17: 0 | AY17: 1 | AZ17: 1 | BA17: 0 | BB17: 0 | BC17: 0 | BD17: 0 | BE17: 0 | BF17: 0 | BG17: 0 | BH17: 0 | BI17: 0 | BJ17: 0 | BK17: 0 | BL17: 0 | BM17: 0 | BN17: 0 | BO17: 0 | BP17: 0 | BQ17: 0 | BR17: 0 | BS17: 0 | BT17: 0 | BU17: 0 | BV17: 0 | BW17: 0 | BX17: 0 | BY17: 0 | BZ17: 0 | CA17: 0 | CB17: 0 | CC17: 0 | CD17: 0 | CE17: 0 | CF17: 0 | CG17: 0 | CH17: 0 | CI17: 0 | CJ17: 0 | CK17: 0 | CL17: 0 | CM17: 0 | CN17: 0 | CO17: 0 | CP17: 0 | CQ17: 0 | CR17: 0 | CS17: 0 | CT17: 0 | CU17: 0 | CV17: 0
A18: 1 | B18: 1 | C18: 1 | D18: 0 | E18: 1 | F18: 0 | G18: 1 | H18: 0 | I18: 0 | J18: 0 | K18: 1 | L18: 1 | M18: 0 | N18: 0 | O18: 0 | P18: 1 | Q18: 0 | R18: 10 | S18: 1 | T18: 0 | U18: 0 | V18: 0 | W18: 0 | X18: 0 | Y18: 1 | Z18: 0 | AA18: 0 | AB18: 0 | AC18: 1 | AD18: 1 | AE18: 1 | AF18: 0 | AG18: 0 | AH18: 0 | AI18: 1 | AJ18: 0 | AK18: 0 | AL18: 0 | AM18: 0 | AN18: 1 | AO18: 0 | AP18: 1 | AQ18: 0 | AR18: 1 | AS18: 0 | AT18: 0 | AU18: 0 | AV18: 0 | AW18: 1 | AX18: 0 | AY18: 1 | AZ18: 1 | BA18: 0 | BB18: 0 | BC18: 0 | BD18: 0 | BE18: 0 | BF18: 0 | BG18: 0 | BH18: 0 | BI18: 0 | BJ18: 0 | BK18: 0 | BL18: 0 | BM18: 0 | BN18: 0 | BO18: 0 | BP18: 0 | BQ18: 0 | BR18: 0 | BS18: 0 | BT18: 0 | BU18: 0 | BV18: 0 | BW18: 0 | BX18: 0 | BY18: 0 | BZ18: 0 | CA18: 0 | CB18: 0 | CC18: 0 | CD18: 0 | CE18: 0 | CF18: 0 | CG18: 0 | CH18: 0 | CI18: 0 | CJ18: 0 | CK18: 0 | CL18: 0 | CM18: 0 | CN18: 0 | CO18: 0 | CP18: 0 | CQ18: 0 | CR18: 0 | CS18: 0 | CT18: 0 | CU18: 0 | CV18: 0
A19: 0 | B19: 0 | C19: 0 | D19: 1 | E19: 0 | F19: 0 | G19: 0 | H19: 1 | I19: 0 | J19: 1 | K19: 0 | L19: 0 | M19: 1 | N19: 0 | O19: 1 | P19: 1 | Q19: 0 | R19: 1 | S19: 10 | T19: 0 | U19: 0 | V19: 0 | W19: 1 | X19: 1 | Y19: 1 | Z19: 0 | AA19: 0 | AB19: 1 | AC19: 0 | AD19: 0 | AE19: 1 | AF19: 0 | AG19: 1 | AH19: 0 | AI19: 1 | AJ19: 0 | AK19: 1 | AL19: 1 | AM19: 1 | AN19: 1 | AO19: 1 | AP19: 0 | AQ19: 0 | AR19: 0 | AS19: 0 | AT19: 0 | AU19: 0 | AV19: 0 | AW19: 0 | AX19: 0 | AY19: 1 | AZ19: 0 | BA19: 0 | BB19: 0 | BC19: 0 | BD19: 0 | BE19: 0 | BF19: 0 | BG19: 0 | BH19: 0 | BI19: 0 | BJ19: 0 | BK19: 0 | BL19: 0 | BM19: 0 | BN19: 0 | BO19: 0 | BP19: 0 | BQ19: 0 | BR19: 0 | BS19: 0 | BT19: 0 | BU19: 0 | BV19: 0 | BW19: 0 | BX19: 0 | BY19: 0 | BZ19: 0 | CA19: 0 | CB19: 0 | CC19: 0 | CD19: 0 | CE19: 0 | CF19: 0 | CG19: 0 | CH19: 0 | CI19: 0 | CJ19: 0 | CK19: 0 | CL19: 0 | CM19: 0 | CN19: 0 | CO19: 0 | CP19: 0 | CQ19: 0 | CR19: 0 | CS19: 0 | CT19: 0 | CU19: 0 | CV19: 0
A20: 0 | B20: 1 | C20: 0 | D20: 0 | E20: 0 | F20: 1 | G20: 1 | H20: 1 | I20: 1 | J20: 1 | K20: 0 | L20: 0 | M20: 0 | N20: 0 | O20: 1 | P20: 0 | Q20: 1 | R20: 0 | S20: 0 | T20: 10 | U20: 0 | V20: 0 | W20: 1 | X20: 0 | Y20: 1 | Z20: 0 | AA20: 0 | AB20: 0 | AC20: 0 | AD20: 1 | AE20: 1 | AF20: 0 | AG20: 0 | AH20: 1 | AI20: 1 | AJ20: 0 | AK20: 1 | AL20: 1 | AM20: 0 | AN20: 0 | AO20: 1 | AP20: 0 | AQ20: 0 | AR20: 0 | AS20: 0 | AT20: 1 | AU20: 1 | AV20: 0 | AW20: 0 | AX20: 0 | AY20: 1 | AZ20: 0 | BA20: 0 | BB20: 0 | BC20: 0 | BD20: 0 | BE20: 0 | BF20: 0 | BG20: 0 | BH20: 0 | BI20: 0 | BJ20: 0 | BK20: 0 | BL20: 0 | BM20: 0 | BN20: 0 | BO20: 0 | BP20: 0 | BQ20: 0 | BR20: 0 | BS20: 0 | BT20: 0 | BU20: 0 | BV20: 0 | BW20: 0 | BX20: 0 | BY20: 0 | BZ20: 0 | CA20: 0 | CB20: 0 | CC20: 0 | CD20: 0 | CE20: 0 | CF20: 0 | CG20: 0 | CH20: 0 | CI20: 0 | CJ20: 0 | CK20: 0 | CL20: 0 | CM20: 0 | CN20: 0 | CO20: 0 | CP20: 0 | CQ20: 0 | CR20: 0 | CS20: 0 | CT20: 0 | CU20: 0 | CV20: 0
A21: 0 | B21: 1 | C21: 0 | D21: 0 | E21: 0 | F21: 0 | G21: 0 | H21: 0 | I21: 1 | J21: 0 | K21: 0 | L21: 1 | M21: 1 | N21: 0 | O21: 0 | P21: 0 | Q21: 0 | R21: 0 | S21: 0 | T21: 0 | U21: 10 | V21: 0 | W21: 1 | X21: 1 | Y21: 1 | Z21: 0 | AA21: 1 | AB21: 1 | AC21: 1 | AD21: 1 | AE21: 1 | AF21: 1 | AG21: 1 | AH21: 0 | AI21: 0 | AJ21: 0 | AK21: 0 | AL21: 0 | AM21: 0 | AN21: 1 | AO21: 0 | AP21: 1 | AQ21: 1 | AR21: 1 | AS21: 0 | AT21: 0 | AU21: 0 | AV21: 0 | AW21: 0 | AX21: 1 | AY21: 0 | AZ21: 1 | BA21: 0 | BB21: 0 | BC21: 0 | BD21: 0 | BE21: 0 | BF21: 0 | BG21: 0 | BH21: 0 | BI21: 0 | BJ21: 0 | BK21: 0 | BL21: 0 | BM21: 0 | BN21: 0 | BO21: 0 | BP21: 0 | BQ21: 0 | BR21: 0 | BS21: 0 | BT21: 0 | BU21: 0 | BV21: 0 | BW21: 0 | BX21: 0 | BY21: 0 | BZ21: 0 | CA21: 0 | CB21: 0 | CC21: 0 | CD21: 0 | CE21: 0 | CF21: 0 | CG21: 0 | CH21: 0 | CI21: 0 | CJ21: 0 | CK21: 0 | CL21: 0 | CM21: 0 | CN21: 0 | CO21: 0 | CP21: 0 | CQ21: 0 | CR21: 0 | CS21: 0 | CT21: 0 | CU21: 0 | CV21: 0
A22: 0 | B22: 1 | C22: 0 | D22: 0 | E22: 0 | F22: 1 | G22: 1 | H22: 1 | I22: 1 | J22: 1 | K22: 1 | L22: 0 | M22: 0 | N22: 0 | O22: 0 | P22: 1 | Q22: 0 | R22: 0 | S22: 0 | T22: 0 | U22: 0 | V22: 10 | W22: 0 | X22: 0 | Y22: 0 | Z22: 1 | AA22: 0 | AB22: 0 | AC22: 1 | AD22: 0 | AE22: 0 | AF22: 1 | AG22: 1 | AH22: 1 | AI22: 0 | AJ22: 0 | AK22: 0 | AL22: 1 | AM22: 0 | AN22: 1 | AO22: 0 | AP22: 0 | AQ22: 1 | AR22: 1 | AS22: 0 | AT22: 0 | AU22: 1 | AV22: 0 | AW22: 1 | AX22: 1 | AY22: 0 | AZ22: 0 | BA22: 0 | BB22: 0 | BC22: 0 | BD22: 0 | BE22: 0 | BF22: 0 | BG22: 0 | BH22: 0 | BI22: 0 | BJ22: 0 | BK22: 0 | BL22: 0 | BM22: 0 | BN22: 0 | BO22: 0 | BP22: 0 | BQ22: 0 | BR22: 0 | BS22: 0 | BT22: 0 | BU22: 0 | BV22: 0 | BW22: 0 | BX22: 0 | BY22: 0 | BZ22: 0 | CA22: 0 | CB22: 0 | CC22: 0 | CD22: 0 | CE22: 0 | CF22: 0 | CG22: 0 | CH22: 0 | CI22: 0 | CJ22: 0 | CK22: 0 | CL22: 0 | CM22: 0 | CN22: 0 | CO22: 0 | CP22: 0 | CQ22: 0 | CR22: 0 | CS22: 0 | CT22: 0 | CU22: 0 | CV22: 0
A23: 0 | B23: 0 | C23: 1 | D23: 0 | E23: 1 | F23: 1 | G23: 0 | H23: 0 | I23: 0 | J23: 1 | K23: 1 | L23: 0 | M23: 0 | N23: 1 | O23: 0 | P23: 0 | Q23: 1 | R23: 0 | S23: 1 | T23: 1 | U23: 1 | V23: 0 | W23: 10 | X23: 0 | Y23: 1 | Z23: 0 | AA23: 0 | AB23: 0 | AC23: 1 | AD23: 0 | AE23: 1 | AF23: 0 | AG23: 1 | AH23: 0 | AI23: 0 | AJ23: 1 | AK23: 1 | AL23: 0 | AM23: 0 | AN23: 0 | AO23: 0 | AP23: 1 | AQ23: 0 | AR23: 1 | AS23: 1 | AT23: 0 | AU23: 0 | AV23: 0 | AW23: 0 | AX23: 0 | AY23: 0 | AZ23: 1 | BA23: 0 | BB23: 0 | BC23: 0 | BD23: 0 | BE23: 0 | BF23: 0 | BG23: 0 | BH23: 0 | BI23: 0 | BJ23: 0 | BK23: 0 | BL23: 0 | BM23: 0 | BN23: 0 | BO23: 0 | BP23: 0 | BQ23: 0 | BR23: 0 | BS23: 0 | BT23: 0 | BU23: 0 | BV23: 0 | BW23: 0 | BX23: 0 | BY23: 0 | BZ23: 0 | CA23: 0 | CB23: 0 | CC23: 0 | CD23: 0 | CE23: 0 | CF23: 0 | CG23: 0 | CH23: 0 | CI23: 0 | CJ23: 0 | CK23: 0 | CL23: 0 | CM23: 0 | CN23: 0 | CO23: 0 | CP23: 0 | CQ23: 0 | CR23: 0 | CS23: 0 | CT23: 0 | CU23: 0 | CV23: 0
A24: 0 | B24: 1 | C24: 0 | D24: 1 | E24: 1 | F24: 1 | G24: 1 | H24: 1 | I24: 0 | J24: 0 | K24: 0 | L24: 0 | M24: 0 | N24: 1 | O24: 0 | P24: 0 | Q24: 0 | R24: 0 | S24: 1 | T24: 0 | U24: 1 | V24: 0 | W24: 0 | X24: 10 | Y24: 1 | Z24: 1 | AA24: 1 | AB24: 0 | AC24: 0 | AD24: 1 | AE24: 0 | AF24: 0 | AG24: 0 | AH24: 1 | AI24: 1 | AJ24: 1 | AK24: 0 | AL24: 0 | AM24: 0 | AN24: 0 | AO24: 1 | AP24: 1 | AQ24: 0 | AR24: 0 | AS24: 0 | AT24: 1 | AU24: 0 | AV24: 0 | AW24: 1 | AX24: 0 | AY24: 0 | AZ24: 0 | BA24: 0 | BB24: 0 | BC24: 0 | BD24: 0 | BE24: 0 | BF24: 0 | BG24: 0 | BH24: 0 | BI24: 0 | BJ24: 0 | BK24: 0 | BL24: 0 | BM24: 0 | BN24: 0 | BO24: 0 | BP24: 0 | BQ24: 0 | BR24: 0 | BS24: 0 | BT24: 0 | BU24: 0 | BV24: 0 | BW24: 0 | BX24: 0 | BY24: 0 | BZ24: 0 | CA24: 0 | CB24: 0 | CC24: 0 | CD24: 0 | CE24: 0 | CF24: 0 | CG24: 0 | CH24: 0 | CI24: 0 | CJ24: 0 | CK24: 0 | CL24: 0 | CM24: 0 | CN24: 0 | CO24: 0 | CP24: 0 | CQ24: 0 | CR24: 0 | CS24: 0 | CT24: 0 | CU24: 0 | CV24: 0
A25: 1 | B25: 0 | C25: 0 | D25: 0 | E25: 1 | F25: 0 | G25: 0 | H25: 1 | I25: 1 | J25: 0 | K25: 1 | L25: 0 | M25: 0 | N25: 0 | O25: 0 | P25: 1 | Q25: 0 | R25: 1 | S25: 1 | T25: 1 | U25: 1 | V25: 0 | W25: 1 | X25: 1 | Y25: 10 | Z25: 0 | AA25: 0 | AB25: 0 | AC25: 0 | AD25: 0 | AE25: 1 | AF25: 1 | AG25: 0 | AH25: 1 | AI25: 0 | AJ25: 0 | AK25: 0 | AL25: 0 | AM25: 0 | AN25: 0 | AO25: 1 | AP25: 0 | AQ25: 0 | AR25: 1 | AS25: 0 | AT25: 1 | AU25: 0 | AV25: 0 | AW25: 0 | AX25: 0 | AY25: 1 | AZ25: 1 | BA25: 0 | BB25: 0 | BC25: 0 | BD25: 0 | BE25: 0 | BF25: 0 | BG25: 0 | BH25: 0 | BI25: 0 | BJ25: 0 | BK25: 0 | BL25: 0 | BM25: 0 | BN25: 0 | BO25: 0 | BP25: 0 | BQ25: 0 | BR25: 0 | BS25: 0 | BT25: 0 | BU25: 0 | BV25: 0 | BW25: 0 | BX25: 0 | BY25: 0 | BZ25: 0 | CA25: 0 | CB25: 0 | CC25: 0 | CD25: 0 | CE25: 0 | CF25: 0 | CG25: 0 | CH25: 0 | CI25: 0 | CJ25: 0 | CK25: 0 | CL25: 0 | CM25: 0 | CN25: 0 | CO25: 0 | CP25: 0 | CQ25: 0 | CR25: 0 | CS25: 0 | CT25: 0 | CU25: 0 | CV25: 0
A26: 0 | B26: 0 | C26: 0 | D26: 1 | E26: 1 | F26: 1 | G26: 0 | H26: 0 | I26: 0 | J26: 0 | K26: 0 | L26: 0 | M26: 0 | N26: 0 | O26: 0 | P26: 1 | Q26: 1 | R26: 0 | S26: 0 | T26: 0 | U26: 0 | V26: 1 | W26: 0 | X26: 1 | Y26: 0 | Z26: 10 | AA26: 1 | AB26: 0 | AC26: 0 | AD26: 0 | AE26: 0 | AF26: 0 | AG26: 1 | AH26: 1 | AI26: 0 | AJ26: 1 | AK26: 0 | AL26: 1 | AM26: 1 | AN26: 0 | AO26: 1 | AP26: 0 | AQ26: 0 | AR26: 1 | AS26: 0 | AT26: 1 | AU26: 1 | AV26: 1 | AW26: 0 | AX26: 1 | AY26: 1 | AZ26: 0 | BA26: 0 | BB26: 0 | BC26: 0 | BD26: 0 | BE26: 0 | BF26: 0 | BG26: 0 | BH26: 0 | BI26: 0 | BJ26: 0 | BK26: 0 | BL26: 0 | BM26: 0 | BN26: 0 | BO26: 0 | BP26: 0 | BQ26: 0 | BR26: 0 | BS26: 0 | BT26: 0 | BU26: 0 | BV26: 0 | BW26: 0 | BX26: 0 | BY26: 0 | BZ26: 0 | CA26: 0 | CB26: 0 | CC26: 0 | CD26: 0 | CE26: 0 | CF26: 0 | CG26: 0 | CH26: 0 | CI26: 0 | CJ26: 0 | CK26: 0 | CL26: 0 | CM26: 0 | CN26: 0 | CO26: 0 | CP26: 0 | CQ26: 0 | CR26: 0 | CS26: 0 | CT26: 0 | CU26: 0 | CV26: 0
A27: 1 | B27: 0 | C27: 0 | D27: 1 | E27: 1 | F27: 0 | G27: 0 | H27: 1 | I27: 0 | J27: 0 | K27: 1 | L27: 0 | M27: 1 | N27: 0 | O27: 1 | P27: 0 | Q27: 0 | R27: 0 | S27: 0 | T27: 0 | U27: 1 | V27: 0 | W27: 0 | X27: 1 | Y27: 0 | Z27: 1 | AA27: 10 | AB27: 0 | AC27: 0 | AD27: 0 | AE27: 0 | AF27: 0 | AG27: 0 | AH27: 0 | AI27: 1 | AJ27: 1 | AK27: 0 | AL27: 0 | AM27: 1 | AN27: 1 | AO27: 1 | AP27: 0 | AQ27: 1 | AR27: 0 | AS27: 1 | AT27: 0 | AU27: 1 | AV27: 1 | AW27: 0 | AX27: 1 | AY27: 0 | AZ27: 0 | BA27: 0 | BB27: 0 | BC27: 0 | BD27: 0 | BE27: 0 | BF27: 0 | BG27: 0 | BH27: 0 | BI27: 0 | BJ27: 0 | BK27: 0 | BL27: 0 | BM27: 0 | BN27: 0 | BO27: 0 | BP27: 0 | BQ27: 0 | BR27: 0 | BS27: 0 | BT27: 0 | BU27: 0 | BV27: 0 | BW27: 0 | BX27: 0 | BY27: 0 | BZ27: 0 | CA27: 0 | CB27: 0 | CC27: 0 | CD27: 0 | CE27: 0 | CF27: 0 | CG27: 0 | CH27: 0 | CI27: 0 | CJ27: 0 | CK27: 0 | CL27: 0 | CM27: 0 | CN27: 0 | CO27: 0 | CP27: 0 | CQ27: 0 | CR27: 0 | CS27: 0 | CT27: 0 | CU27: 0 | CV27: 0
A28: 1 | B28: 0 | C28: 0 | D28: 1 | E28: 1 | F28: 0 | G28: 1 | H28: 0 | I28: 1 | J28: 1 | K28: 0 | L28: 0 | M28: 0 | N28: 0 | O28: 0 | P28: 0 | Q28: 1 | R28: 0 | S28: 1 | T28: 0 | U28: 1 | V28: 0 | W28: 0 | X28: 0 | Y28: 0 | Z28: 0 | AA28: 0 | AB28: 10 | AC28: 1 | AD28: 1 | AE28: 1 | AF28: 1 | AG28: 0 | AH28: 0 | AI28: 0 | AJ28: 1 | AK28: 0 | AL28: 1 | AM28: 0 | AN28: 1 | AO28: 0 | AP28: 1 | AQ28: 0 | AR28: 0 | AS28: 1 | AT28: 1 | AU28: 0 | AV28: 1 | AW28: 0 | AX28: 0 | AY28: 0 | AZ28: 0 | BA28: 0 | BB28: 0 | BC28: 0 | BD28: 0 | BE28: 0 | BF28: 0 | BG28: 0 | BH28: 0 | BI28: 0 | BJ28: 0 | BK28: 0 | BL28: 0 | BM28: 0 | BN28: 0 | BO28: 0 | BP28: 0 | BQ28: 0 | BR28: 0 | BS28: 0 | BT28: 0 | BU28: 0 | BV28: 0 | BW28: 0 | BX28: 0 | BY28: 0 | BZ28: 0 | CA28: 0 | CB28: 0 | CC28: 0 | CD28: 0 | CE28: 0 | CF28: 0 | CG28: 0 | CH28: 0 | CI28: 0 | CJ28: 0 | CK28: 0 | CL28: 0 | CM28: 0 | CN28: 0 | CO28: 0 | CP28: 0 | CQ28: 0 | CR28: 0 | CS28: 0 | CT28: 0 | CU28: 0 | CV28: 0
A29: 0 | B29: 0 | C29: 0 | D29: 0 | E29: 0 | F29: 0 | G29: 1 | H29: 0 | I29: 1 | J29: 0 | K29: 1 | L29: 1 | M29: 0 | N29: 1 | O29: 0 | P29: 1 | Q29: 1 | R29: 1 | S29: 0 | T29: 0 | U29: 1 | V29: 1 | W29: 1 | X29: 0 | Y29: 0 | Z29: 0 | AA29: 0 | AB29: 1 | AC29: 10 | AD29: 1 | AE29: 0 | AF29: 0 | AG29: 0 | AH29: 0 | AI29: 0 | AJ29: 0 | AK29: 0 | AL29: 1 | AM29: 0 | AN29: 1 | AO29: 1 | AP29: 0 | AQ29: 0 | AR29: 1 | AS29: 1 | AT29: 1 | AU29: 0 | AV29: 0 | AW29: 1 | AX29: 0 | AY29: 0 | AZ29: 0 | BA29: 0 | BB29: 0 | BC29: 0 | BD29: 0 | BE29: 0 | BF29: 0 | BG29: 0 | BH29: 0 | BI29: 0 | BJ29: 0 | BK29: 0 | BL29: 0 | BM29: 0 | BN29: 0 | BO29: 0 | BP29: 0 | BQ29: 0 | BR29: 0 | BS29: 0 | BT29: 0 | BU29: 0 | BV29: 0 | BW29: 0 | BX29: 0 | BY29: 0 | BZ29: 0 | CA29: 0 | CB29: 0 | CC29: 0 | CD29: 0 | CE29: 0 | CF29: 0 | CG29: 0 | CH29: 0 | CI29: 0 | CJ29: 0 | CK29: 0 | CL29: 0 | CM29: 0 | CN29: 0 | CO29: 0 | CP29: 0 | CQ29: 0 | CR29: 0 | CS29: 0 | CT29: 0 | CU29: 0 | CV29: 0
A30: 1 | B30: 0 | C30: 0 | D30: 0 | E30: 0 | F30: 0 | G30: 1 | H30: 0 | I30: 0 | J30: 0 | K30: 0 | L30: 1 | M30: 0 | N30: 1 | O30: 0 | P30: 1 | Q30: 0 | R30: 1 | S30: 0 | T30: 1 | U30: 1 | V30: 0 | W30: 0 | X30: 1 | Y30: 0 | Z30: 0 | AA30: 0 | AB30: 1 | AC30: 1 | AD30: 10 | AE30: 1 | AF30: 1 | AG30: 0 | AH30: 0 | AI30: 1 | AJ30: 0 | AK30: 1 | AL30: 0 | AM30: 0 | AN30: 0 | AO30: 0 | AP30: 1 | AQ30: 0 | AR30: 0 | AS30: 0 | AT30: 0 | AU30: 1 | AV30: 0 | AW30: 1 | AX30: 1 | AY30: 1 | AZ30: 0 | BA30: 0 | BB30: 0 | BC30: 0 | BD30: 0 | BE30: 0 | BF30: 0 | BG30: 0 | BH30: 0 | BI30: 0 | BJ30: 0 | BK30: 0 | BL30: 0 | BM30: 0 | BN30: 0 | BO30: 0 | BP30: 0 | BQ30: 0 | BR30: 0 | BS30: 0 | BT30: 0 | BU30: 0 | BV30: 0 | BW30: 0 | BX30: 0 | BY30: 0 | BZ30: 0 | CA30: 0 | CB30: 0 | CC30: 0 | CD30: 0 | CE30: 0 | CF30: 0 | CG30: 0 | CH30: 0 | CI30: 0 | CJ30: 0 | CK30: 0 | CL30: 0 | CM30: 0 | CN30: 0 | CO30: 0 | CP30: 0 | CQ30: 0 | CR30: 0 | CS30: 0 | CT30: 0 | CU30: 0 | CV30: 0
A31: 0 | B31: 1 | C31: 0 | D31: 1 | E31: 0 | F31: 0 | G31: 0 | H31: 0 | I31: 1 | J31: 0 | K31: 0 | L31: 1 | M31: 0 | N31: 0 | O31: 0 | P31: 1 | Q31: 0 | R31: 1 | S31: 1 | T31: 1 | U31: 1 | V31: 0 | W31: 1 | X31: 0 | Y31: 1 | Z31: 0 | AA31: 0 | AB31: 1 | AC31: 0 | AD31: 1 | AE31: 10 | AF31: 0 | AG31: 0 | AH31: 0 | AI31: 0 | AJ31: 0 | AK31: 1 | AL31: 0 | AM31: 1 | AN31: 0 | AO31: 0 | AP31: 1 | AQ31: 1 | AR31: 0 | AS31: 0 | AT31: 0 | AU31: 1 | AV31: 1 | AW31: 1 | AX31: 0 | AY31: 0 | AZ31: 0 | BA31: 0 | BB31: 0 | BC31: 0 | BD31: 0 | BE31: 0 | BF31: 0 | BG31: 0 | BH31: 0 | BI31: 0 | BJ31: 0 | BK31: 0 | BL31: 0 | BM31: 0 | BN31: 0 | BO31: 0 | BP31: 0 | BQ31: 0 | BR31: 0 | BS31: 0 | BT31: 0 | BU31: 0 | BV31: 0 | BW31: 0 | BX31: 0 | BY31: 0 | BZ31: 0 | CA31: 0 | CB31: 0 | CC31: 0 | CD31: 0 | CE31: 0 | CF31: 0 | CG31: 0 | CH31: 0 | CI31: 0 | CJ31: 0 | CK31: 0 | CL31: 0 | CM31: 0 | CN31: 0 | CO31: 0 | CP31: 0 | CQ31: 0 | CR31: 0 | CS31: 0 | CT31: 0 | CU31: 0 | CV31: 0
A32: 0 | B32: 0 | C32: 1 | D32: 0 | E32: 1 | F32: 0 | G32: 0 | H32: 1 | I32: 1 | J32: 1 | K32: 1 | L32: 0 | M32: 0 | N32: 0 | O32: 0 | P32: 0 | Q32: 1 | R32: 0 | S32: 0 | T32: 0 | U32: 1 | V32: 1 | W32: 0 | X32: 0 | Y32: 1 | Z32: 0 | AA32: 0 | AB32: 1 | AC32: 0 | AD32: 1 | AE32: 0 | AF32: 10 | AG32: 0 | AH32: 0 | AI32: 1 | AJ32: 0 | AK32: 0 | AL32: 0 | AM32: 0 | AN32: 0 | AO32: 1 | AP32: 1 | AQ32: 1 | AR32: 0 | AS32: 0 | AT32: 1 | AU32: 1 | AV32: 1 | AW32: 1 | AX32: 0 | AY32: 0 | AZ32: 0 | BA32: 0 | BB32: 0 | BC32: 0 | BD32: 0 | BE32: 0 | BF32: 0 | BG32: 0 | BH32: 0 | BI32: 0 | BJ32: 0 | BK32: 0 | BL32: 0 | BM32: 0 | BN32: 0 | BO32: 0 | BP32: 0 | BQ32: 0 | BR32: 0 | BS32: 0 | BT32: 0 | BU32: 0 | BV32: 0 | BW32: 0 | BX32: 0 | BY32: 0 | BZ32: 0 | CA32: 0 | CB32: 0 | CC32: 0 | CD32: 0 | CE32: 0 | CF32: 0 | CG32: 0 | CH32: 0 | CI32: 0 | CJ32: 0 | CK32: 0 | CL32: 0 | CM32: 0 | CN32: 0 | CO32: 0 | CP32: 0 | CQ32: 0 | CR32: 0 | CS32: 0 | CT32: 0 | CU32: 0 | CV32: 0
A33: 1 | B33: 1 | C33: 0 | D33: 1 | E33: 0 | F33: 1 | G33: 0 | H33: 0 | I33: 0 | J33: 0 | K33: 0 | L33: 0 | M33: 0 | N33: 1 | O33: 1 | P33: 0 | Q33: 0 | R33: 0 | S33: 1 | T33: 0 | U33: 1 | V33: 1 | W33: 1 | X33: 0 | Y33: 0 | Z33: 1 | AA33: 0 | AB33: 0 | AC33: 0 | AD33: 0 | AE33: 0 | AF33: 0 | AG33: 10 | AH33: 1 | AI33: 1 | AJ33: 1 | AK33: 1 | AL33: 1 | AM33: 0 | AN33: 0 | AO33: 0 | AP33: 0 | AQ33: 1 | AR33: 0 | AS33: 0 | AT33: 1 | AU33: 0 | AV33: 0 | AW33: 0 | AX33: 1 | AY33: 0 | AZ33: 1 | BA33: 0 | BB33: 0 | BC33: 0 | BD33: 0 | BE33: 0 | BF33: 0 | BG33: 0 | BH33: 0 | BI33: 0 | BJ33: 0 | BK33: 0 | BL33: 0 | BM33: 0 | BN33: 0 | BO33: 0 | BP33: 0 | BQ33: 0 | BR33: 0 | BS33: 0 | BT33: 0 | BU33: 0 | BV33: 0 | BW33: 0 | BX33: 0 | BY33: 0 | BZ33: 0 | CA33: 0 | CB33: 0 | CC33: 0 | CD33: 0 | CE33: 0 | CF33: 0 | CG33: 0 | CH33: 0 | CI33: 0 | CJ33: 0 | CK33: 0 | CL33: 0 | CM33: 0 | CN33: 0 | CO33: 0 | CP33: 0 | CQ33: 0 | CR33: 0 | CS33: 0 | CT33: 0 | CU33: 0 | CV33: 0
A34: 1 | B34: 0 | C34: 0 | D34: 0 | E34: 0 | F34: 0 | G34: 1 | H34: 1 | I34: 1 | J34: 1 | K34: 1 | L34: 0 | M34: 0 | N34: 1 | O34: 0 | P34: 0 | Q34: 1 | R34: 0 | S34: 0 | T34: 1 | U34: 0 | V34: 1 | W34: 0 | X34: 1 | Y34: 1 | Z34: 1 | AA34: 0 | AB34: 0 | AC34: 0 | AD34: 0 | AE34: 0 | AF34: 0 | AG34: 1 | AH34: 10 | AI34: 1 | AJ34: 0 | AK34: 0 | AL34: 0 | AM34: 0 | AN34: 1 | AO34: 0 | AP34: 0 | AQ34: 1 | AR34: 0 | AS34: 0 | AT34: 0 | AU34: 1 | AV34: 0 | AW34: 0 | AX34: 1 | AY34: 1 | AZ34: 0 | BA34: 0 | BB34: 0 | BC34: 0 | BD34: 0 | BE34: 0 | BF34: 0 | BG34: 0 | BH34: 0 | BI34: 0 | BJ34: 0 | BK34: 0 | BL34: 0 | BM34: 0 | BN34: 0 | BO34: 0 | BP34: 0 | BQ34: 0 | BR34: 0 | BS34: 0 | BT34: 0 | BU34: 0 | BV34: 0 | BW34: 0 | BX34: 0 | BY34: 0 | BZ34: 0 | CA34: 0 | CB34: 0 | CC34: 0 | CD34: 0 | CE34: 0 | CF34: 0 | CG34: 0 | CH34: 0 | CI34: 0 | CJ34: 0 | CK34: 0 | CL34: 0 | CM34: 0 | CN34: 0 | CO34: 0 | CP34: 0 | CQ34: 0 | CR34: 0 | CS34: 0 | CT34: 0 | CU34: 0 | CV34: 0
A35: 0 | B35: 0 | C35: 1 | D35: 0 | E35: 0 | F35: 0 | G35: 0 | H35: 0 | I35: 0 | J35: 0 | K35: 0 | L35: 0 | M35: 0 | N35: 0 | O35: 0 | P35: 1 | Q35: 0 | R35: 1 | S35: 1 | T35: 1 | U35: 0 | V35: 0 | W35: 0 | X35: 1 | Y35: 0 | Z35: 0 | AA35: 1 | AB35: 0 | AC35: 0 | AD35: 1 | AE35: 0 | AF35: 1 | AG35: 1 | AH35: 1 | AI35: 10 | AJ35: 1 | AK35: 0 | AL35: 0 | AM35: 0 | AN35: 1 | AO35: 0 | AP35: 0 | AQ35: 0 | AR35: 1 | AS35: 1 | AT35: 1 | AU35: 1 | AV35: 1 | AW35: 1 | AX35: 0 | AY35: 1 | AZ35: 0 | BA35: 0 | BB35: 0 | BC35: 0 | BD35: 0 | BE35: 0 | BF35: 0 | BG35: 0 | BH35: 0 | BI35: 0 | BJ35: 0 | BK35: 0 | BL35: 0 | BM35: 0 | BN35: 0 | BO35: 0 | BP35: 0 | BQ35: 0 | BR35: 0 | BS35: 0 | BT35: 0 | BU35: 0 | BV35: 0 | BW35: 0 | BX35: 0 | BY35: 0 | BZ35: 0 | CA35: 0 | CB35: 0 | CC35: 0 | CD35: 0 | CE35: 0 | CF35: 0 | CG35: 0 | CH35: 0 | CI35: 0 | CJ35: 0 | CK35: 0 | CL35: 0 | CM35: 0 | CN35: 0 | CO35: 0 | CP35: 0 | CQ35: 0 | CR35: 0 | CS35: 0 | CT35: 0 | CU35: 0 | CV35: 0
A36: 0 | B36: 0 | C36: 1 | D36: 1 | E36: 1 | F36: 0 | G36: 0 | H36: 0 | I36: 0 | J36: 1 | K36: 0 | L36: 0 | M36: 0 | N36: 1 | O36: 1 | P36: 0 | Q36: 0 | R36: 0 | S36: 0 | T36: 0 | U36: 0 | V36: 0 | W36: 1 | X36: 1 | Y36: 0 | Z36: 1 | AA36: 1 | AB36: 1 | AC36: 0 | AD36: 0 | AE36: 0 | AF36: 0 | AG36: 1 | AH36: 0 | AI36: 1 | AJ36: 10 | AK36: 0 | AL36: 0 | AM36: 0 | AN36: 0 | AO36: 1 | AP36: 1 | AQ36: 0 | AR36: 0 | AS36: 1 | AT36: 1 | AU36: 0 | AV36: 1 | AW36: 0 | AX36: 1 | AY36: 1 | AZ36: 0 | BA36: 0 | BB36: 0 | BC36: 0 | BD36: 0 | BE36: 0 | BF36: 0 | BG36: 0 | BH36: 0 | BI36: 0 | BJ36: 0 | BK36: 0 | BL36: 0 | BM36: 0 | BN36: 0 | BO36: 0 | BP36: 0 | BQ36: 0 | BR36: 0 | BS36: 0 | BT36: 0 | BU36: 0 | BV36: 0 | BW36: 0 | BX36: 0 | BY36: 0 | BZ36: 0 | CA36: 0 | CB36: 0 | CC36: 0 | CD36: 0 | CE36: 0 | CF36: 0 | CG36: 0 | CH36: 0 | CI36: 0 | CJ36: 0 | CK36: 0 | CL36: 0 | CM36: 0 | CN36: 0 | CO36: 0 | CP36: 0 | CQ36: 0 | CR36: 0 | CS36: 0 | CT36: 0 | CU36: 0 | CV36: 0
A37: 1 | B37: 1 | C37: 1 | D37: 1 | E37: 1 | F37: 0 | G37: 1 | H37: 0 | I37: 0 | J37: 0 | K37: 0 | L37: 1 | M37: 0 | N37: 0 | O37: 1 | P37: 0 | Q37: 1 | R37: 0 | S37: 1 | T37: 1 | U37: 0 | V37: 0 | W37: 1 | X37: 0 | Y37: 0 | Z37: 0 | AA37: 0 | AB37: 0 | AC37: 0 | AD37: 1 | AE37: 1 | AF37: 0 | AG37: 1 | AH37: 0 | AI37: 0 | AJ37: 0 | AK37: 10 | AL37: 0 | AM37: 1 | AN37: 0 | AO37: 1 | AP37: 1 | AQ37: 0 | AR37: 1 | AS37: 0 | AT37: 0 | AU37: 1 | AV37: 0 | AW37: 0 | AX37: 0 | AY37: 0 | AZ37: 0 | BA37: 0 | BB37: 0 | BC37: 0 | BD37: 0 | BE37: 0 | BF37: 0 | BG37: 0 | BH37: 0 | BI37: 0 | BJ37: 0 | BK37: 0 | BL37: 0 | BM37: 0 | BN37: 0 | BO37: 0 | BP37: 0 | BQ37: 0 | BR37: 0 | BS37: 0 | BT37: 0 | BU37: 0 | BV37: 0 | BW37: 0 | BX37: 0 | BY37: 0 | BZ37: 0 | CA37: 0 | CB37: 0 | CC37: 0 | CD37: 0 | CE37: 0 | CF37: 0 | CG37: 0 | CH37: 0 | CI37: 0 | CJ37: 0 | CK37: 0 | CL37: 0 | CM37: 0 | CN37: 0 | CO37: 0 | CP37: 0 | CQ37: 0 | CR37: 0 | CS37: 0 | CT37: 0 | CU37: 0 | CV37: 0
A38: 0 | B38: 0 | C38: 1 | D38: 1 | E38: 0 | F38: 0 | G38: 0 | H38: 1 | I38: 0 | J38: 0 | K38: 0 | L38: 0 | M38: 1 | N38: 1 | O38: 1 | P38: 0 | Q38: 0 | R38: 0 | S38: 1 | T38: 1 | U38: 0 | V38: 1 | W38: 0 | X38: 0 | Y38: 0 | Z38: 1 | AA38: 0 | AB38: 1 | AC38: 1 | AD38: 0 | AE38: 0 | AF38: 0 | AG38: 1 | AH38: 0 | AI38: 0 | AJ38: 0 | AK38: 0 | AL38: 10 | AM38: 1 | AN38: 1 | AO38: 1 | AP38: 0 | AQ38: 0 | AR38: 1 | AS38: 1 | AT38: 0 | AU38: 0 | AV38: 0 | AW38: 1 | AX38: 1 | AY38: 0 | AZ38: 0 | BA38: 0 | BB38: 0 | BC38: 0 | BD38: 0 | BE38: 0 | BF38: 0 | BG38: 0 | BH38: 0 | BI38: 0 | BJ38: 0 | BK38: 0 | BL38: 0 | BM38: 0 | BN38: 0 | BO38: 0 | BP38: 0 | BQ38: 0 | BR38: 0 | BS38: 0 | BT38: 0 | BU38: 0 | BV38: 0 | BW38: 0 | BX38: 0 | BY38: 0 | BZ38: 0 | CA38: 0 | CB38: 0 | CC38: 0 | CD38: 0 | CE38: 0 | CF38: 0 | CG38: 0 | CH38: 0 | CI38: 0 | CJ38: 0 | CK38: 0 | CL38: 0 | CM38: 0 | CN38: 0 | CO38: 0 | CP38: 0 | CQ38: 0 | CR38: 0 | CS38: 0 | CT38: 0 | CU38: 0 | CV38: 0
A39: 0 | B39: 1 | C39: 0 | D39: 1 | E39: 1 | F39: 1 | G39: 0 | H39: 1 | I39: 1 | J39: 1 | K39: 0 | L39: 0 | M39: 1 | N39: 0 | O39: 0 | P39: 0 | Q39: 0 | R39: 0 | S39: 1 | T39: 0 | U39: 0 | V39: 0 | W39: 0 | X39: 0 | Y39: 0 | Z39: 1 | AA39: 1 | AB39: 0 | AC39: 0 | AD39: 0 | AE39: 1 | AF39: 0 | AG39: 0 | AH39: 0 | AI39: 0 | AJ39: 0 | AK39: 1 | AL39: 1 | AM39: 10 | AN39: 1 | AO39: 0 | AP39: 0 | AQ39: 1 | AR39: 0 | AS39: 0 | AT39: 1 | AU39: 0 | AV39: 1 | AW39: 0 | AX39: 1 | AY39: 1 | AZ39: 0 | BA39: 0 | BB39: 0 | BC39: 0 | BD39: 0 | BE39: 0 | BF39: 0 | BG39: 0 | BH39: 0 | BI39: 0 | BJ39: 0 | BK39: 0 | BL39: 0 | BM39: 0 | BN39: 0 | BO39: 0 | BP39: 0 | BQ39: 0 | BR39: 0 | BS39: 0 | BT39: 0 | BU39: 0 | BV39: 0 | BW39: 0 | BX39: 0 | BY39: 0 | BZ39: 0 | CA39: 0 | CB39: 0 | CC39: 0 | CD39: 0 | CE39: 0 | CF39: 0 | CG39: 0 | CH39: 0 | CI39: 0 | CJ39: 0 | CK39: 0 | CL39: 0 | CM39: 0 | CN39: 0 | CO39: 0 | CP39: 0 | CQ39: 0 | CR39: 0 | CS39: 0 | CT39: 0 | CU39: 0 | CV39: 0
A40: 1 | B40: 1 | C40: 0 | D40: 1 | E40: 0 | F40: 1 | G40: 1 | H40: 1 | I40: 1 | J40: 0 | K40: 1 | L40: 0 | M40: 1 | N40: 0 | O40: 0 | P40: 0 | Q40: 0 | R40: 1 | S40: 1 | T40: 0 | U40: 1 | V40: 1 | W40: 0 | X40: 0 | Y40: 0 | Z40: 0 | AA40: 1 | AB40: 1 | AC40: 1 | AD40: 0 | AE40: 0 | AF40: 0 | AG40: 0 | AH40: 1 | AI40: 1 | AJ40: 0 | AK40: 0 | AL40: 1 | AM40: 1 | AN40: 11 | AO40: 0 | AP40: 0 | AQ40: 1 | AR40: 0 | AS40: 0 | AT40: 0 | AU40: 0 | AV40: 0 | AW40: 1 | AX40: 0 | AY40: 0 | AZ40: 0 | BA40: 0 | BB40: 0 | BC40: 0 | BD40: 0 | BE40: 0 | BF40: 0 | BG40: 0 | BH40: 0 | BI40: 0 | BJ40: 0 | BK40: 0 | BL40: 0 | BM40: 0 | BN40: 0 | BO40: 0 | BP40: 0 | BQ40: 0 | BR40: 0 | BS40: 0 | BT40: 0 | BU40: 0 | BV40: 0 | BW40: 0 | BX40: 0 | BY40: 0 | BZ40: 0 | CA40: 0 | CB40: 0 | CC40: 0 | CD40: 0 | CE40: 0 | CF40: 0 | CG40: 0 | CH40: 0 | CI40: 0 | CJ40: 0 | CK40: 0 | CL40: 0 | CM40: 0 | CN40: 0 | CO40: 0 | CP40: 0 | CQ40: 0 | CR40: 0 | CS40: 0 | CT40: 0 | CU40: 0 | CV40: 0
A41: 0 | B41: 0 | C41: 0 | D41: 0 | E41: 1 | F41: 0 | G41: 0 | H41: 0 | I41: 1 | J41: 0 | K41: 0 | L41: 1 | M41: 0 | N41: 0 | O41: 1 | P41: 1 | Q41: 1 | R41: 0 | S41: 1 | T41: 1 | U41: 0 | V41: 0 | W41: 0 | X41: 1 | Y41: 1 | Z41: 1 | AA41: 1 | AB41: 0 | AC41: 1 | AD41: 0 | AE41: 0 | AF41: 1 | AG41: 0 | AH41: 0 | AI41: 0 | AJ41: 1 | AK41: 1 | AL41: 1 | AM41: 0 | AN41: 0 | AO41: 10 | AP41: 0 | AQ41: 1 | AR41: 0 | AS41: 0 | AT41: 0 | AU41: 0 | AV41: 1 | AW41: 0 | AX41: 0 | AY41: 1 | AZ41: 0 | BA41: 0 | BB41: 0 | BC41: 0 | BD41: 0 | BE41: 0 | BF41: 0 | BG41: 0 | BH41: 0 | BI41: 0 | BJ41: 0 | BK41: 0 | BL41: 0 | BM41: 0 | BN41: 0 | BO41: 0 | BP41: 0 | BQ41: 0 | BR41: 0 | BS41: 0 | BT41: 0 | BU41: 0 | BV41: 0 | BW41: 0 | BX41: 0 | BY41: 0 | BZ41: 0 | CA41: 0 | CB41: 0 | CC41: 0 | CD41: 0 | CE41: 0 | CF41: 0 | CG41: 0 | CH41: 0 | CI41: 0 | CJ41: 0 | CK41: 0 | CL41: 0 | CM41: 0 | CN41: 0 | CO41: 0 | CP41: 0 | CQ41: 0 | CR41: 0 | CS41: 0 | CT41: 0 | CU41: 0 | CV41: 0
A42: 0 | B42: 0 | C42: 1 | D42: 1 | E42: 0 | F42: 0 | G42: 1 | H42: 0 | I42: 0 | J42: 1 | K42: 0 | L42: 0 | M42: 1 | N42: 1 | O42: 0 | P42: 0 | Q42: 0 | R42: 1 | S42: 0 | T42: 0 | U42: 1 | V42: 0 | W42: 1 | X42: 1 | Y42: 0 | Z42: 0 | AA42: 0 | AB42: 1 | AC42: 0 | AD42: 1 | AE42: 1 | AF42: 1 | AG42: 0 | AH42: 0 | AI42: 0 | AJ42: 1 | AK42: 1 | AL42: 0 | AM42: 0 | AN42: 0 | AO42: 0 | AP42: 10 | AQ42: 1 | AR42: 1 | AS42: 0 | AT42: 0 | AU42: 0 | AV42: 0 | AW42: 1 | AX42: 0 | AY42: 0 | AZ42: 1 | BA42: 0 | BB42: 0 | BC42: 0 | BD42: 0 | BE42: 0 | BF42: 0 | BG42: 0 | BH42: 0 | BI42: 0 | BJ42: 0 | BK42: 0 | BL42: 0 | BM42: 0 | BN42: 0 | BO42: 0 | BP42: 0 | BQ42: 0 | BR42: 0 | BS42: 0 | BT42: 0 | BU42: 0 | BV42: 0 | BW42: 0 | BX42: 0 | BY42: 0 | BZ42: 0 | CA42: 0 | CB42: 0 | CC42: 0 | CD42: 0 | CE42: 0 | CF42: 0 | CG42: 0 | CH42: 0 | CI42: 0 | CJ42: 0 | CK42: 0 | CL42: 0 | CM42: 0 | CN42: 0 | CO42: 0 | CP42: 0 | CQ42: 0 | CR42: 0 | CS42: 0 | CT42: 0 | CU42: 0 | CV42: 0
A43: 0 | B43: 0 | C43: 1 | D43: 0 | E43: 0 | F43: 1 | G43: 1 | H43: 1 | I43: 1 | J43: 0 | K43: 0 | L43: 0 | M43: 0 | N43: 0 | O43: 0 | P43: 1 | Q43: 1 | R43: 0 | S43: 0 | T43: 0 | U43: 1 | V43: 1 | W43: 0 | X43: 0 | Y43: 0 | Z43: 0 | AA43: 1 | AB43: 0 | AC43: 0 | AD43: 0 | AE43: 1 | AF43: 1 | AG43: 1 | AH43: 1 | AI43: 0 | AJ43: 0 | AK43: 0 | AL43: 0 | AM43: 1 | AN43: 1 | AO43: 1 | AP43: 1 | AQ43: 10 | AR43: 0 | AS43: 0 | AT43: 0 | AU43: 0 | AV43: 0 | AW43: 1 | AX43: 0 | AY43: 0 | AZ43: 1 | BA43: 0 | BB43: 0 | BC43: 0 | BD43: 0 | BE43: 0 | BF43: 0 | BG43: 0 | BH43: 0 | BI43: 0 | BJ43: 0 | BK43: 0 | BL43: 0 | BM43: 0 | BN43: 0 | BO43: 0 | BP43: 0 | BQ43: 0 | BR43: 0 | BS43: 0 | BT43: 0 | BU43: 0 | BV43: 0 | BW43: 0 | BX43: 0 | BY43: 0 | BZ43: 0 | CA43: 0 | CB43: 0 | CC43: 0 | CD43: 0 | CE43: 0 | CF43: 0 | CG43: 0 | CH43: 0 | CI43: 0 | CJ43: 0 | CK43: 0 | CL43: 0 | CM43: 0 | CN43: 0 | CO43: 0 | CP43: 0 | CQ43: 0 | CR43: 0 | CS43: 0 | CT43: 0 | CU43: 0 | CV43: 0
A44: 0 | B44: 0 | C44: 0 | D44: 0 | E44: 1 | F44: 1 | G44: 0 | H44: 1 | I44: 0 | J44: 0 | K44: 1 | L44: 0 | M44: 0 | N44: 0 | O44: 0 | P44: 0 | Q44: 1 | R44: 1 | S44: 0 | T44: 0 | U44: 1 | V44: 1 | W44: 1 | X44: 0 | Y44: 1 | Z44: 1 | AA44: 0 | AB44: 0 | AC44: 1 | AD44: 0 | AE44: 0 | AF44: 0 | AG44: 0 | AH44: 0 | AI44: 1 | AJ44: 0 | AK44: 1 | AL44: 1 | AM44: 0 | AN44: 0 | AO44: 0 | AP44: 1 | AQ44: 0 | AR44: 10 | AS44: 1 | AT44: 0 | AU44: 1 | AV44: 0 | AW44: 1 | AX44: 0 | AY44: 1 | AZ44: 0 | BA44: 0 | BB44: 0 | BC44: 0 | BD44: 0 | BE44: 0 | BF44: 0 | BG44: 0 | BH44: 0 | BI44: 0 | BJ44: 0 | BK44: 0 | BL44: 0 | BM44: 0 | BN44: 0 | BO44: 0 | BP44: 0 | BQ44: 0 | BR44: 0 | BS44: 0 | BT44: 0 | BU44: 0 | BV44: 0 | BW44: 0 | BX44: 0 | BY44: 0 | BZ44: 0 | CA44: 0 | CB44: 0 | CC44: 0 | CD44: 0 | CE44: 0 | CF44: 0 | CG44: 0 | CH44: 0 | CI44: 0 | CJ44: 0 | CK44: 0 | CL44: 0 | CM44: 0 | CN44: 0 | CO44: 0 | CP44: 0 | CQ44: 0 | CR44: 0 | CS44: 0 | CT44: 0 | CU44: 0 | CV44: 0
A45: 0 | B45: 0 | C45: 0 | D45: 1 | E45: 0 | F45: 1 | G45: 1 | H45: 1 | I45: 0 | J45: 1 | K45: 0 | L45: 1 | M45: 1 | N45: 1 | O45: 1 | P45: 0 | Q45: 0 | R45: 0 | S45: 0 | T45: 0 | U45: 0 | V45: 0 | W45: 1 | X45: 0 | Y45: 0 | Z45: 0 | AA45: 1 | AB45: 1 | AC45: 1 | AD45: 0 | AE45: 0 | AF45: 0 | AG45: 0 | AH45: 0 | AI45: 1 | AJ45: 1 | AK45: 0 | AL45: 1 | AM45: 0 | AN45: 0 | AO45: 0 | AP45: 0 | AQ45: 0 | AR45: 1 | AS45: 10 | AT45: 1 | AU45: 0 | AV45: 1 | AW45: 0 | AX45: 0 | AY45: 0 | AZ45: 1 | BA45: 0 | BB45: 0 | BC45: 0 | BD45: 0 | BE45: 0 | BF45: 0 | BG45: 0 | BH45: 0 | BI45: 0 | BJ45: 0 | BK45: 0 | BL45: 0 | BM45: 0 | BN45: 0 | BO45: 0 | BP45: 0 | BQ45: 0 | BR45: 0 | BS45: 0 | BT45: 0 | BU45: 0 | BV45: 0 | BW45: 0 | BX45: 0 | BY45: 0 | BZ45: 0 | CA45: 0 | CB45: 0 | CC45: 0 | CD45: 0 | CE45: 0 | CF45: 0 | CG45: 0 | CH45: 0 | CI45: 0 | CJ45: 0 | CK45: 0 | CL45: 0 | CM45: 0 | CN45: 0 | CO45: 0 | CP45: 0 | CQ45: 0 | CR45: 0 | CS45: 0 | CT45: 0 | CU45: 0 | CV45: 0
A46: 0 | B46: 0 | C46: 0 | D46: 0 | E46: 0 | F46: 1 | G46: 1 | H46: 0 | I46: 0 | J46: 0 | K46: 1 | L46: 1 | M46: 0 | N46: 0 | O46: 0 | P46: 1 | Q46: 0 | R46: 0 | S46: 0 | T46: 1 | U46: 0 | V46: 0 | W46: 0 | X46: 1 | Y46: 1 | Z46: 1 | AA46: 0 | AB46: 1 | AC46: 1 | AD46: 0 | AE46: 0 | AF46: 1 | AG46: 1 | AH46: 0 | AI46: 1 | AJ46: 1 | AK46: 0 | AL46: 0 | AM46: 1 | AN46: 0 | AO46: 0 | AP46: 0 | AQ46: 0 | AR46: 0 | AS46: 1 | AT46: 10 | AU46: 1 | AV46: 0 | AW46: 1 | AX46: 0 | AY46: 1 | AZ46: 0 | BA46: 0 | BB46: 0 | BC46: 0 | BD46: 0 | BE46: 0 | BF46: 0 | BG46: 0 | BH46: 0 | BI46: 0 | BJ46: 0 | BK46: 0 | BL46: 0 | BM46: 0 | BN46: 0 | BO46: 0 | BP46: 0 | BQ46: 0 | BR46: 0 | BS46: 0 | BT46: 0 | BU46: 0 | BV46: 0 | BW46: 0 | BX46: 0 | BY46: 0 | BZ46: 0 | CA46: 0 | CB46: 0 | CC46: 0 | CD46: 0 | CE46: 0 | CF46: 0 | CG46: 0 | CH46: 0 | CI46: 0 | CJ46: 0 | CK46: 0 | CL46: 0 | CM46: 0 | CN46: 0 | CO46: 0 | CP46: 0 | CQ46: 0 | CR46: 0 | CS46: 0 | CT46: 0 | CU46: 0 | CV46: 0
A47: 0 | B47: 0 | C47: 1 | D47: 0 | E47: 1 | F47: 1 | G47: 0 | H47: 0 | I47: 0 | J47: 0 | K47: 0 | L47: 1 | M47: 0 | N47: 0 | O47: 1 | P47: 0 | Q47: 1 | R47: 0 | S47: 0 | T47: 1 | U47: 0 | V47: 1 | W47: 0 | X47: 0 | Y47: 0 | Z47: 1 | AA47: 1 | AB47: 0 | AC47: 0 | AD47: 1 | AE47: 1 | AF47: 1 | AG47: 0 | AH47: 1 | AI47: 1 | AJ47: 0 | AK47: 1 | AL47: 0 | AM47: 0 | AN47: 0 | AO47: 0 | AP47: 0 | AQ47: 0 | AR47: 1 | AS47: 0 | AT47: 1 | AU47: 10 | AV47: 0 | AW47: 0 | AX47: 1 | AY47: 0 | AZ47: 1 | BA47: 0 | BB47: 0 | BC47: 0 | BD47: 0 | BE47: 0 | BF47: 0 | BG47: 0 | BH47: 0 | BI47: 0 | BJ47: 0 | BK47: 0 | BL47: 0 | BM47: 0 | BN47: 0 | BO47: 0 | BP47: 0 | BQ47: 0 | BR47: 0 | BS47: 0 | BT47: 0 | BU47: 0 | BV47: 0 | BW47: 0 | BX47: 0 | BY47: 0 | BZ47: 0 | CA47: 0 | CB47: 0 | CC47: 0 | CD47: 0 | CE47: 0 | CF47: 0 | CG47: 0 | CH47: 0 | CI47: 0 | CJ47: 0 | CK47: 0 | CL47: 0 | CM47: 0 | CN47: 0 | CO47: 0 | CP47: 0 | CQ47: 0 | CR47: 0 | CS47: 0 | CT47: 0 | CU47: 0 | CV47: 0
A48: 1 | B48: 0 | C48: 1 | D48: 1 | E48: 0 | F48: 1 | G48: 0 | H48: 0 | I48: 0 | J48: 1 | K48: 1 | L48: 1 | M48: 1 | N48: 1 | O48: 0 | P48: 0 | Q48: 0 | R48: 0 | S48: 0 | T48: 0 | U48: 0 | V48: 0 | W48: 0 | X48: 0 | Y48: 0 | Z48: 1 | AA48: 1 | AB48: 1 | AC48: 0 | AD48: 0 | AE48: 1 | AF48: 1 | AG48: 0 | AH48: 0 | AI48: 1 | AJ48: 1 | AK48: 0 | AL48: 0 | AM48: 1 | AN48: 0 | AO48: 1 | AP48: 0 | AQ48: 0 | AR48: 0 | AS48: 1 | AT48: 0 | AU48: 0 | AV48: 10 | AW48: 0 | AX48: 1 | AY48: 0 | AZ48: 0 | BA48: 0 | BB48: 0 | BC48: 0 | BD48: 0 | BE48: 0 | BF48: 0 | BG48: 0 | BH48: 0 | BI48: 0 | BJ48: 0 | BK48: 0 | BL48: 0 | BM48: 0 | BN48: 0 | BO48: 0 | BP48: 0 | BQ48: 0 | BR48: 0 | BS48: 0 | BT48: 0 | BU48: 0 | BV48: 0 | BW48: 0 | BX48: 0 | BY48: 0 | BZ48: 0 | CA48: 0 | CB48: 0 | CC48: 0 | CD48: 0 | CE48: 0 | CF48: 0 | CG48: 0 | CH48: 0 | CI48: 0 | CJ48: 0 | CK48: 0 | CL48: 0 | CM48: 0 | CN48: 0 | CO48: 0 | CP48: 0 | CQ48: 0 | CR48: 0 | CS48: 0 | CT48: 0 | CU48: 0 | CV48: 0
A49: 0 | B49: 1 | C49: 0 | D49: 0 | E49: 0 | F49: 0 | G49: 0 | H49: 0 | I49: 1 | J49: 0 | K49: 0 | L49: 0 | M49: 1 | N49: 0 | O49: 0 | P49: 0 | Q49: 1 | R49: 1 | S49: 0 | T49: 0 | U49: 0 | V49: 1 | W49: 0 | X49: 1 | Y49: 0 | Z49: 0 | AA49: 0 | AB49: 0 | AC49: 1 | AD49: 1 | AE49: 1 | AF49: 1 | AG49: 0 | AH49: 0 | AI49: 1 | AJ49: 0 | AK49: 0 | AL49: 1 | AM49: 0 | AN49: 1 | AO49: 0 | AP49: 1 | AQ49: 1 | AR49: 1 | AS49: 0 | AT49: 1 | AU49: 0 | AV49: 0 | AW49: 10 | AX49: 1 | AY49: 0 | AZ49: 1 | BA49: 0 | BB49: 0 | BC49: 0 | BD49: 0 | BE49: 0 | BF49: 0 | BG49: 0 | BH49: 0 | BI49: 0 | BJ49: 0 | BK49: 0 | BL49: 0 | BM49: 0 | BN49: 0 | BO49: 0 | BP49: 0 | BQ49: 0 | BR49: 0 | BS49: 0 | BT49: 0 | BU49: 0 | BV49: 0 | BW49: 0 | BX49: 0 | BY49: 0 | BZ49: 0 | CA49: 0 | CB49: 0 | CC49: 0 | CD49: 0 | CE49: 0 | CF49: 0 | CG49: 0 | CH49: 0 | CI49: 0 | CJ49: 0 | CK49: 0 | CL49: 0 | CM49: 0 | CN49: 0 | CO49: 0 | CP49: 0 | CQ49: 0 | CR49: 0 | CS49: 0 | CT49: 0 | CU49: 0 | CV49: 0
A50: 1 | B50: 1 | C50: 0 | D50: 0 | E50: 0 | F50: 0 | G50: 1 | H50: 0 | I50: 1 | J50: 0 | K50: 0 | L50: 1 | M50: 0 | N50: 0 | O50: 0 | P50: 1 | Q50: 0 | R50: 0 | S50: 0 | T50: 0 | U50: 1 | V50: 1 | W50: 0 | X50: 0 | Y50: 0 | Z50: 1 | AA50: 1 | AB50: 0 | AC50: 0 | AD50: 1 | AE50: 0 | AF50: 0 | AG50: 1 | AH50: 1 | AI50: 0 | AJ50: 1 | AK50: 0 | AL50: 1 | AM50: 1 | AN50: 0 | AO50: 0 | AP50: 0 | AQ50: 0 | AR50: 0 | AS50: 0 | AT50: 0 | AU50: 1 | AV50: 1 | AW50: 1 | AX50: 10 | AY50: 0 | AZ50: 1 | BA50: 0 | BB50: 0 | BC50: 0 | BD50: 0 | BE50: 0 | BF50: 0 | BG50: 0 | BH50: 0 | BI50: 0 | BJ50: 0 | BK50: 0 | BL50: 0 | BM50: 0 | BN50: 0 | BO50: 0 | BP50: 0 | BQ50: 0 | BR50: 0 | BS50: 0 | BT50: 0 | BU50: 0 | BV50: 0 | BW50: 0 | BX50: 0 | BY50: 0 | BZ50: 0 | CA50: 0 | CB50: 0 | CC50: 0 | CD50: 0 | CE50: 0 | CF50: 0 | CG50: 0 | CH50: 0 | CI50: 0 | CJ50: 0 | CK50: 0 | CL50: 0 | CM50: 0 | CN50: 0 | CO50: 0 | CP50: 0 | CQ50: 0 | CR50: 0 | CS50: 0 | CT50: 0 | CU50: 0 | CV50: 0
A51: 0 | B51: 0 | C51: 0 | D51: 1 | E51: 0 | F51: 0 | G51: 1 | H51: 1 | I51: 0 | J51: 0 | K51: 0 | L51: 0 | M51: 1 | N51: 0 | O51: 1 | P51: 1 | Q51: 1 | R51: 1 | S51: 1 | T51: 1 | U51: 0 | V51: 0 | W51: 0 | X51: 0 | Y51: 1 | Z51: 1 | AA51: 0 | AB51: 0 | AC51: 0 | AD51: 1 | AE51: 0 | AF51: 0 | AG51: 0 | AH51: 1 | AI51: 1 | AJ51: 1 | AK51: 0 | AL51: 0 | AM51: 1 | AN51: 0 | AO51: 1 | AP51: 0 | AQ51: 0 | AR51: 1 | AS51: 0 | AT51: 1 | AU51: 0 | AV51: 0 | AW51: 0 | AX51: 0 | AY51: 10 | AZ51: 0 | BA51: 0 | BB51: 0 | BC51: 0 | BD51: 0 | BE51: 0 | BF51: 0 | BG51: 0 | BH51: 0 | BI51: 0 | BJ51: 0 | BK51: 0 | BL51: 0 | BM51: 0 | BN51: 0 | BO51: 0 | BP51: 0 | BQ51: 0 | BR51: 0 | BS51: 0 | BT51: 0 | BU51: 0 | BV51: 0 | BW51: 0 | BX51: 0 | BY51: 0 | BZ51: 0 | CA51: 0 | CB51: 0 | CC51: 0 | CD51: 0 | CE51: 0 | CF51: 0 | CG51: 0 | CH51: 0 | CI51: 0 | CJ51: 0 | CK51: 0 | CL51: 0 | CM51: 0 | CN51: 0 | CO51: 0 | CP51: 0 | CQ51: 0 | CR51: 0 | CS51: 0 | CT51: 0 | CU51: 0 | CV51: 0
A52: 1 | B52: 1 | C52: 1 | D52: 0 | E52: 0 | F52: 1 | G52: 0 | H52: 0 | I52: 1 | J52: 0 | K52: 0 | L52: 1 | M52: 1 | N52: 1 | O52: 0 | P52: 0 | Q52: 1 | R52: 1 | S52: 0 | T52: 0 | U52: 1 | V52: 0 | W52: 1 | X52: 0 | Y52: 1 | Z52: 0 | AA52: 0 | AB52: 0 | AC52: 0 | AD52: 0 | AE52: 0 | AF52: 0 | AG52: 1 | AH52: 0 | AI52: 0 | AJ52: 0 | AK52: 0 | AL52: 0 | AM52: 0 | AN52: 0 | AO52: 0 | AP52: 1 | AQ52: 1 | AR52: 0 | AS52: 1 | AT52: 0 | AU52: 1 | AV52: 0 | AW52: 1 | AX52: 1 | AY52: 0 | AZ52: 10 | BA52: 0 | BB52: 0 | BC52: 0 | BD52: 0 | BE52: 0 | BF52: 0 | BG52: 0 | BH52: 0 | BI52: 0 | BJ52: 0 | BK52: 0 | BL52: 0 | BM52: 0 | BN52: 0 | BO52: 0 | BP52: 0 | BQ52: 0 | BR52: 0 | BS52: 0 | BT52: 0 | BU52: 0 | BV52: 0 | BW52: 0 | BX52: 0 | BY52: 0 | BZ52: 0 | CA52: 0 | CB52: 0 | CC52: 0 | CD52: 0 | CE52: 0 | CF52: 0 | CG52: 0 | CH52: 0 | CI52: 0 | CJ52: 0 | CK52: 0 | CL52: 0 | CM52: 0 | CN52: 0 | CO52: 0 | CP52: 0 | CQ52: 0 | CR52: 0 | CS52: 0 | CT52: 0 | CU52: 0 | CV52: 0
A53: 0 | B53: 0 | C53: 0 | D53: 0 | E53: 0 | F53: 0 | G53: 0 | H53: 0 | I53: 0 | J53: 0 | K53: 0 | L53: 0 | M53: 0 | N53: 0 | O53: 0 | P53: 0 | Q53: 0 | R53: 0 | S53: 0 | T53: 0 | U53: 0 | V53: 0 | W53: 0 | X53: 0 | Y53: 0 | Z53: 0 | AA53: 0 | AB53: 0 | AC53: 0 | AD53: 0 | AE53: 0 | AF53: 0 | AG53: 0 | AH53: 0 | AI53: 0 | AJ53: 0 | AK53: 0 | AL53: 0 | AM53: 0 | AN53: 0 | AO53: 0 | AP53: 0 | AQ53: 0 | AR53: 0 | AS53: 0 | AT53: 0 | AU53: 0 | AV53: 0 | AW53: 0 | AX53: 0 | AY53: 0 | AZ53: 0 | BA53: 124 | BB53: 124 | BC53: 124 | BD53: 124 | BE53: 124 | BF53: 124 | BG53: 124 | BH53: 124 | BI53: 124 | BJ53: 124 | BK53: 124 | BL53: 124 | BM53: 124 | BN53: 124 | BO53: 124 | BP53: 124 | BQ53: 124 | BR53: 124 | BS53: 124 | BT53: 124 | BU53: 124 | BV53: 124 | BW53: 124 | BX53: 124 | BY53: 124 | BZ53: 124 | CA53: 124 | CB53: 124 | CC53: 124 | CD53: 124 | CE53: 124 | CF53: 124 | CG53: 124 | CH53: 124 | CI53: 124 | CJ53: 124 | CK53: 124 | CL53: 124 | CM53: 124 | CN53: 124 | CO53: 124 | CP53: 124 | CQ53: 124 | CR53: 124 | CS53: 124 | CT53: 124 | CU53: 124 | CV53: 124
A54: 0 | B54: 0 | C54: 0 | D54: 0 | E54: 0 | F54: 0 | G54: 0 | H54: 0 | I54: 0 | J54: 0 | K54: 0 | L54: 0 | M54: 0 | N54: 0 | O54: 0 | P54: 0 | Q54: 0 | R54: 0 | S54: 0 | T54: 0 | U54: 0 | V54: 0 | W54: 0 | X54: 0 | Y54: 0 | Z54: 0 | AA54: 0 | AB54: 0 | AC54: 0 | AD54: 0 | AE54: 0 | AF54: 0 | AG54: 0 | AH54: 0 | AI54: 0 | AJ54: 0 | AK54: 0 | AL54: 0 | AM54: 0 | AN54: 0 | AO54: 0 | AP54: 0 | AQ54: 0 | AR54: 0 | AS54: 0 | AT54: 0 | AU54: 0 | AV54: 0 | AW54: 0 | AX54: 0 | AY54: 0 | AZ54: 0 | BA54: 124 | BB54: 124 | BC54: 124 | BD54: 124 | BE54: 124 | BF54: 124 | BG54: 124 | BH54: 124 | BI54: 124 | BJ54: 124 | BK54: 124 | BL54: 124 | BM54: 124 | BN54: 124 | BO54: 124 | BP54: 124 | BQ54: 124 | BR54: 124 | BS54: 124 | BT54: 124 | BU54: 124 | BV54: 124 | BW54: 124 | BX54: 124 | BY54: 124 | BZ54: 124 | CA54: 124 | CB54: 124 | CC54: 124 | CD54: 124 | CE54: 124 | CF54: 124 | CG54: 124 | CH54: 124 | CI54: 124 | CJ54: 124 | CK54: 124 | CL54: 124 | CM54: 124 | CN54: 124 | CO54: 124 | CP54: 124 | CQ54: 124 | CR54: 124 | CS54: 124 | CT54: 124 | CU54: 124 | CV54: 124
A55: 0 | B55: 0 | C55: 0 | D55: 0 | E55: 0 | F55: 0 | G55: 0 | H55: 0 | I55: 0 | J55: 0 | K55: 0 | L55: 0 | M55: 0 | N55: 0 | O55: 0 | P55: 0 | Q55: 0 | R55: 0 | S55: 0 | T55: 0 | U55: 0 | V55: 0 | W55: 0 | X55: 0 | Y55: 0 | Z55: 0 | AA55: 0 | AB55: 0 | AC55: 0 | AD55: 0 | AE55: 0 | AF55: 0 | AG55: 0 | AH55: 0 | AI55: 0 | AJ55: 0 | AK55: 0 | AL55: 0 | AM55: 0 | AN55: 0 | AO55: 0 | AP55: 0 | AQ55: 0 | AR55: 0 | AS55: 0 | AT55: 0 | AU55: 0 | AV55: 0 | AW55: 0 | AX55: 0 | AY55: 0 | AZ55: 0 | BA55: 124 | BB55: 124 | BC55: 124 | BD55: 124 | BE55: 124 | BF55: 124 | BG55: 124 | BH55: 124 | BI55: 124 | BJ55: 124 | BK55: 124 | BL55: 124 | BM55: 124 | BN55: 124 | BO55: 124 | BP55: 124 | BQ55: 124 | BR55: 124 | BS55: 124 | BT55: 124 | BU55: 124 | BV55: 124 | BW55: 124 | BX55: 124 | BY55: 124 | BZ55: 124 | CA55: 124 | CB55: 124 | CC55: 124 | CD55: 124 | CE55: 124 | CF55: 124 | CG55: 124 | CH55: 124 | CI55: 124 | CJ55: 124 | CK55: 124 | CL55: 124 | CM55: 124 | CN55: 124 | CO55: 124 | CP55: 124 | CQ55: 124 | CR55: 124 | CS55: 124 | CT55: 124 | CU55: 124 | CV55: 124
A56: 0 | B56: 0 | C56: 0 | D56: 0 | E56: 0 | F56: 0 | G56: 0 | H56: 0 | I56: 0 | J56: 0 | K56: 0 | L56: 0 | M56: 0 | N56: 0 | O56: 0 | P56: 0 | Q56: 0 | R56: 0 | S56: 0 | T56: 0 | U56: 0 | V56: 0 | W56: 0 | X56: 0 | Y56: 0 | Z56: 0 | AA56: 0 | AB56: 0 | AC56: 0 | AD56: 0 | AE56: 0 | AF56: 0 | AG56: 0 | AH56: 0 | AI56: 0 | AJ56: 0 | AK56: 0 | AL56: 0 | AM56: 0 | AN56: 0 | AO56: 0 | AP56: 0 | AQ56: 0 | AR56: 0 | AS56: 0 | AT56: 0 | AU56: 0 | AV56: 0 | AW56: 0 | AX56: 0 | AY56: 0 | AZ56: 0 | BA56: 124 | BB56: 124 | BC56: 124 | BD56: 124 | BE56: 124 | BF56: 124 | BG56: 124 | BH56: 124 | BI56: 124 | BJ56: 124 | BK56: 124 | BL56: 124 | BM56: 124 | BN56: 124 | BO56: 124 | BP56: 124 | BQ56: 124 | BR56: 124 | BS56: 124 | BT56: 124 | BU56: 124 | BV56: 124 | BW56: 124 | BX56: 124 | BY56: 124 | BZ56: 124 | CA56: 124 | CB56: 124 | CC56: 124 | CD56: 124 | CE56: 124 | CF56: 124 | CG56: 124 | CH56: 124 | CI56: 124 | CJ56: 124 | CK56: 124 | CL56: 124 | CM56: 124 | CN56: 124 | CO56: 124 | CP56: 124 | CQ56: 124 | CR56: 124 | CS56: 124 | CT56: 124 | CU56: 124 | CV56: 124
A57: 0 | B57: 0 | C57: 0 | D57: 0 | E57: 0 | F57: 0 | G57: 0 | H57: 0 | I57: 0 | J57: 0 | K57: 0 | L57: 0 | M57: 0 | N57: 0 | O57: 0 | P57: 0 | Q57: 0 | R57: 0 | S57: 0 | T57: 0 | U57: 0 | V57: 0 | W57: 0 | X57: 0 | Y57: 0 | Z57: 0 | AA57: 0 | AB57: 0 | AC57: 0 | AD57: 0 | AE57: 0 | AF57: 0 | AG57: 0 | AH57: 0 | AI57: 0 | AJ57: 0 | AK57: 0 | AL57: 0 | AM57: 0 | AN57: 0 | AO57: 0 | AP57: 0 | AQ57: 0 | AR57: 0 | AS57: 0 | AT57: 0 | AU57: 0 | AV57: 0 | AW57: 0 | AX57: 0 | AY57: 0 | AZ57: 0 | BA57: 124 | BB57: 124 | BC57: 124 | BD57: 124 | BE57: 124 | BF57: 124 | BG57: 124 | BH57: 124 | BI57: 124 | BJ57: 124 | BK57: 124 | BL57: 124 | BM57: 124 | BN57: 124 | BO57: 124 | BP57: 124 | BQ57: 124 | BR57: 124 | BS57: 124 | BT57: 124 | BU57: 124 | BV57: 124 | BW57: 124 | BX57: 124 | BY57: 124 | BZ57: 124 | CA57: 124 | CB57: 124 | CC57: 124 | CD57: 124 | CE57: 124 | CF57: 124 | CG57: 124 | CH57: 124 | CI57: 124 | CJ57: 124 | CK57: 124 | CL57: 124 | CM57: 124 | CN57: 124 | CO57: 124 | CP57: 124 | CQ57: 124 | CR57: 124 | CS57: 124 | CT57: 124 | CU57: 124 | CV57: 124
A58: 0 | B58: 0 | C58: 0 | D58: 0 | E58: 0 | F58: 0 | G58: 0 | H58: 0 | I58: 0 | J58: 0 | K58: 0 | L58: 0 | M58: 0 | N58: 0 | O58: 0 | P58: 0 | Q58: 0 | R58: 0 | S58: 0 | T58: 0 | U58: 0 | V58: 0 | W58: 0 | X58: 0 | Y58: 0 | Z58: 0 | AA58: 0 | AB58: 0 | AC58: 0 | AD58: 0 | AE58: 0 | AF58: 0 | AG58: 0 | AH58: 0 | AI58: 0 | AJ58: 0 | AK58: 0 | AL58: 0 | AM58: 0 | AN58: 0 | AO58: 0 | AP58: 0 | AQ58: 0 | AR58: 0 | AS58: 0 | AT58: 0 | AU58: 0 | AV58: 0 | AW58: 0 | AX58: 0 | AY58: 0 | AZ58: 0 | BA58: 124 | BB58: 124 | BC58: 124 | BD58: 124 | BE58: 124 | BF58: 124 | BG58: 124 | BH58: 124 | BI58: 124 | BJ58: 124 | BK58: 124 | BL58: 124 | BM58: 124 | BN58: 124 | BO58: 124 | BP58: 124 | BQ58: 124 | BR58: 124 | BS58: 124 | BT58: 124 | BU58: 124 | BV58: 124 | BW58: 124 | BX58: 124 | BY58: 124 | BZ58: 124 | CA58: 124 | CB58: 124 | CC58: 124 | CD58: 124 | CE58: 124 | CF58: 124 | CG58: 124 | CH58: 124 | CI58: 124 | CJ58: 124 | CK58: 124 | CL58: 124 | CM58: 124 | CN58: 124 | CO58: 124 | CP58: 124 | CQ58: 124 | CR58: 124 | CS58: 124 | CT58: 124 | CU58: 124 | CV58: 124
A59: 0 | B59: 0 | C59: 0 | D59: 0 | E59: 0 | F59: 0 | G59: 0 | H59: 0 | I59: 0 | J59: 0 | K59: 0 | L59: 0 | M59: 0 | N59: 0 | O59: 0 | P59: 0 | Q59: 0 | R59: 0 | S59: 0 | T59: 0 | U59: 0 | V59: 0 | W59: 0 | X59: 0 | Y59: 0 | Z59: 0 | AA59: 0 | AB59: 0 | AC59: 0 | AD59: 0 | AE59: 0 | AF59: 0 | AG59: 0 | AH59: 0 | AI59: 0 | AJ59: 0 | AK59: 0 | AL59: 0 | AM59: 0 | AN59: 0 | AO59: 0 | AP59: 0 | AQ59: 0 | AR59: 0 | AS59: 0 | AT59: 0 | AU59: 0 | AV59: 0 | AW59: 0 | AX59: 0 | AY59: 0 | AZ59: 0 | BA59: 124 | BB59: 124 | BC59: 124 | BD59: 124 | BE59: 124 | BF59: 124 | BG59: 124 | BH59: 124 | BI59: 124 | BJ59: 124 | BK59: 124 | BL59: 124 | BM59: 124 | BN59: 124 | BO59: 124 | BP59: 124 | BQ59: 124 | BR59: 124 | BS59: 124 | BT59: 124 | BU59: 124 | BV59: 124 | BW59: 124 | BX59: 124 | BY59: 124 | BZ59: 124 | CA59: 124 | CB59: 124 | CC59: 124 | CD59: 124 | CE59: 124 | CF59: 124 | CG59: 124 | CH59: 124 | CI59: 124 | CJ59: 124 | CK59: 124 | CL59: 124 | CM59: 124 | CN59: 124 | CO59: 124 | CP59: 124 | CQ59: 124 | CR59: 124 | CS59: 124 | CT59: 124 | CU59: 124 | CV59: 124
A60: 0 | B60: 0 | C60: 0 | D60: 0 | E60: 0 | F60: 0 | G60: 0 | H60: 0 | I60: 0 | J60: 0 | K60: 0 | L60: 0 | M60: 0 | N60: 0 | O60: 0 | P60: 0 | Q60: 0 | R60: 0 | S60: 0 | T60: 0 | U60: 0 | V60: 0 | W60: 0 | X60: 0 | Y60: 0 | Z60: 0 | AA60: 0 | AB60: 0 | AC60: 0 | AD60: 0 | AE60: 0 | AF60: 0 | AG60: 0 | AH60: 0 | AI60: 0 | AJ60: 0 | AK60: 0 | AL60: 0 | AM60: 0 | AN60: 0 | AO60: 0 | AP60: 0 | AQ60: 0 | AR60: 0 | AS60: 0 | AT60: 0 | AU60: 0 | AV60: 0 | AW60: 0 | AX60: 0 | AY60: 0 | AZ60: 0 | BA60: 124 | BB60: 124 | BC60: 124 | BD60: 124 | BE60: 124 | BF60: 124 | BG60: 124 | BH60: 124 | BI60: 124 | BJ60: 124 | BK60: 124 | BL60: 124 | BM60: 124 | BN60: 124 | BO60: 124 | BP60: 124 | BQ60: 124 | BR60: 124 | BS60: 124 | BT60: 124 | BU60: 124 | BV60: 124 | BW60: 124 | BX60: 124 | BY60: 124 | BZ60: 124 | CA60: 124 | CB60: 124 | CC60: 124 | CD60: 124 | CE60: 124 | CF60: 124 | CG60: 124 | CH60: 124 | CI60: 124 | CJ60: 124 | CK60: 124 | CL60: 124 | CM60: 124 | CN60: 124 | CO60: 124 | CP60: 124 | CQ60: 124 | CR60: 124 | CS60: 124 | CT60: 124 | CU60: 124 | CV60: 124
A61: 0 | B61: 0 | C61: 0 | D61: 0 | E61: 0 | F61: 0 | G61: 0 | H61: 0 | I61: 0 | J61: 0 | K61: 0 | L61: 0 | M61: 0 | N61: 0 | O61: 0 | P61: 0 | Q61: 0 | R61: 0 | S61: 0 | T61: 0 | U61: 0 | V61: 0 | W61: 0 | X61: 0 | Y61: 0 | Z61: 0 | AA61: 0 | AB61: 0 | AC61: 0 | AD61: 0 | AE61: 0 | AF61: 0 | AG61: 0 | AH61: 0 | AI61: 0 | AJ61: 0 | AK61: 0 | AL61: 0 | AM61: 0 | AN61: 0 | AO61: 0 | AP61: 0 | AQ61: 0 | AR61: 0 | AS61: 0 | AT61: 0 | AU61: 0 | AV61: 0 | AW61: 0 | AX61: 0 | AY61: 0 | AZ61: 0 | BA61: 124 | BB61: 124 | BC61: 124 | BD61: 124 | BE61: 124 | BF61: 124 | BG61: 124 | BH61: 124 | BI61: 124 | BJ61: 124 | BK61: 124 | BL61: 124 | BM61: 124 | BN61: 124 | BO61: 124 | BP61: 124 | BQ61: 124 | BR61: 124 | BS61: 124 | BT61: 124 | BU61: 124 | BV61: 124 | BW61: 124 | BX61: 124 | BY61: 124 | BZ61: 124 | CA61: 124 | CB61: 124 | CC61: 124 | CD61: 124 | CE61: 124 | CF61: 124 | CG61: 124 | CH61: 124 | CI61: 124 | CJ61: 124 | CK61: 124 | CL61: 124 | CM61: 124 | CN61: 124 | CO61: 124 | CP61: 124 | CQ61: 124 | CR61: 124 | CS61: 124 | CT61: 124 | CU61: 124 | CV61: 124
A62: 0 | B62: 0 | C62: 0 | D62: 0 | E62: 0 | F62: 0 | G62: 0 | H62: 0 | I62: 0 | J62: 0 | K62: 0 | L62: 0 | M62: 0 | N62: 0 | O62: 0 | P62: 0 | Q62: 0 | R62: 0 | S62: 0 | T62: 0 | U62: 0 | V62: 0 | W62: 0 | X62: 0 | Y62: 0 | Z62: 0 | AA62: 0 | AB62: 0 | AC62: 0 | AD62: 0 | AE62: 0 | AF62: 0 | AG62: 0 | AH62: 0 | AI62: 0 | AJ62: 0 | AK62: 0 | AL62: 0 | AM62: 0 | AN62: 0 | AO62: 0 | AP62: 0 | AQ62: 0 | AR62: 0 | AS62: 0 | AT62: 0 | AU62: 0 | AV62: 0 | AW62: 0 | AX62: 0 | AY62: 0 | AZ62: 0 | BA62: 124 | BB62: 124 | BC62: 124 | BD62: 124 | BE62: 124 | BF62: 124 | BG62: 124 | BH62: 124 | BI62: 124 | BJ62: 124 | BK62: 124 | BL62: 124 | BM62: 124 | BN62: 124 | BO62: 124 | BP62: 124 | BQ62: 124 | BR62: 124 | BS62: 124 | BT62: 124 | BU62: 124 | BV62: 124 | BW62: 124 | BX62: 124 | BY62: 124 | BZ62: 124 | CA62: 124 | CB62: 124 | CC62: 124 | CD62: 124 | CE62: 124 | CF62: 124 | CG62: 124 | CH62: 124 | CI62: 124 | CJ62: 124 | CK62: 124 | CL62: 124 | CM62: 124 | CN62: 124 | CO62: 124 | CP62: 124 | CQ62: 124 | CR62: 124 | CS62: 124 | CT62: 124 | CU62: 124 | CV62: 124
A63: 0 | B63: 0 | C63: 0 | D63: 0 | E63: 0 | F63: 0 | G63: 0 | H63: 0 | I63: 0 | J63: 0 | K63: 0 | L63: 0 | M63: 0 | N63: 0 | O63: 0 | P63: 0 | Q63: 0 | R63: 0 | S63: 0 | T63: 0 | U63: 0 | V63: 0 | W63: 0 | X63: 0 | Y63: 0 | Z63: 0 | AA63: 0 | AB63: 0 | AC63: 0 | AD63: 0 | AE63: 0 | AF63: 0 | AG63: 0 | AH63: 0 | AI63: 0 | AJ63: 0 | AK63: 0 | AL63: 0 | AM63: 0 | AN63: 0 | AO63: 0 | AP63: 0 | AQ63: 0 | AR63: 0 | AS63: 0 | AT63: 0 | AU63: 0 | AV63: 0 | AW63: 0 | AX63: 0 | AY63: 0 | AZ63: 0 | BA63: 124 | BB63: 124 | BC63: 124 | BD63: 124 | BE63: 124 | BF63: 124 | BG63: 124 | BH63: 124 | BI63: 124 | BJ63: 124 | BK63: 124 | BL63: 124 | BM63: 124 | BN63: 124 | BO63: 124 | BP63: 124 | BQ63: 124 | BR63: 124 | BS63: 124 | BT63: 124 | BU63: 124 | BV63: 124 | BW63: 124 | BX63: 124 | BY63: 124 | BZ63: 124 | CA63: 124 | CB63: 124 | CC63: 124 | CD63: 124 | CE63: 124 | CF63: 124 | CG63: 124 | CH63: 124 | CI63: 124 | CJ63: 124 | CK63: 124 | CL63: 124 | CM63: 124 | CN63: 124 | CO63: 124 | CP63: 124 | CQ63: 124 | CR63: 124 | CS63: 124 | CT63: 124 | CU63: 124 | CV63: 124
A64: 0 | B64: 0 | C64: 0 | D64: 0 | E64: 0 | F64: 0 | G64: 0 | H64: 0 | I64: 0 | J64: 0 | K64: 0 | L64: 0 | M64: 0 | N64: 0 | O64: 0 | P64: 0 | Q64: 0 | R64: 0 | S64: 0 | T64: 0 | U64: 0 | V64: 0 | W64: 0 | X64: 0 | Y64: 0 | Z64: 0 | AA64: 0 | AB64: 0 | AC64: 0 | AD64: 0 | AE64: 0 | AF64: 0 | AG64: 0 | AH64: 0 | AI64: 0 | AJ64: 0 | AK64: 0 | AL64: 0 | AM64: 0 | AN64: 0 | AO64: 0 | AP64: 0 | AQ64: 0 | AR64: 0 | AS64: 0 | AT64: 0 | AU64: 0 | AV64: 0 | AW64: 0 | AX64: 0 | AY64: 0 | AZ64: 0 | BA64: 124 | BB64: 124 | BC64: 124 | BD64: 124 | BE64: 124 | BF64: 124 | BG64: 124 | BH64: 124 | BI64: 124 | BJ64: 124 | BK64: 124 | BL64: 124 | BM64: 124 | BN64: 124 | BO64: 124 | BP64: 124 | BQ64: 124 | BR64: 124 | BS64: 124 | BT64: 124 | BU64: 124 | BV64: 124 | BW64: 124 | BX64: 124 | BY64: 124 | BZ64: 124 | CA64: 124 | CB64: 124 | CC64: 124 | CD64: 124 | CE64: 124 | CF64: 124 | CG64: 124 | CH64: 124 | CI64: 124 | CJ64: 124 | CK64: 124 | CL64: 124 | CM64: 124 | CN64: 124 | CO64: 124 | CP64: 124 | CQ64: 124 | CR64: 124 | CS64: 124 | CT64: 124 | CU64: 124 | CV64: 124
A65: 0 | B65: 0 | C65: 0 | D65: 0 | E65: 0 | F65: 0 | G65: 0 | H65: 0 | I65: 0 | J65: 0 | K65: 0 | L65: 0 | M65: 0 | N65: 0 | O65: 0 | P65: 0 | Q65: 0 | R65: 0 | S65: 0 | T65: 0 | U65: 0 | V65: 0 | W65: 0 | X65: 0 | Y65: 0 | Z65: 0 | AA65: 0 | AB65: 0 | AC65: 0 | AD65: 0 | AE65: 0 | AF65: 0 | AG65: 0 | AH65: 0 | AI65: 0 | AJ65: 0 | AK65: 0 | AL65: 0 | AM65: 0 | AN65: 0 | AO65: 0 | AP65: 0 | AQ65: 0 | AR65: 0 | AS65: 0 | AT65: 0 | AU65: 0 | AV65: 0 | AW65: 0 | AX65: 0 | AY65: 0 | AZ65: 0 | BA65: 124 | BB65: 124 | BC65: 124 | BD65: 124 | BE65: 124 | BF65: 124 | BG65: 124 | BH65: 124 | BI65: 124 | BJ65: 124 | BK65: 124 | BL65: 124 | BM65: 124 | BN65: 124 | BO65: 124 | BP65: 124 | BQ65: 124 | BR65: 124 | BS65: 124 | BT65: 124 | BU65: 124 | BV65: 124 | BW65: 124 | BX65: 124 | BY65: 124 | BZ65: 124 | CA65: 124 | CB65: 124 | CC65: 124 | CD65: 124 | CE65: 124 | CF65: 124 | CG65: 124 | CH65: 124 | CI65: 124 | CJ65: 124 | CK65: 124 | CL65: 124 | CM65: 124 | CN65: 124 | CO65: 124 | CP65: 124 | CQ65: 124 | CR65: 124 | CS65: 124 | CT65: 124 | CU65: 124 | CV65: 124
A66: 0 | B66: 0 | C66: 0 | D66: 0 | E66: 0 | F66: 0 | G66: 0 | H66: 0 | I66: 0 | J66: 0 | K66: 0 | L66: 0 | M66: 0 | N66: 0 | O66: 0 | P66: 0 | Q66: 0 | R66: 0 | S66: 0 | T66: 0 | U66: 0 | V66: 0 | W66: 0 | X66: 0 | Y66: 0 | Z66: 0 | AA66: 0 | AB66: 0 | AC66: 0 | AD66: 0 | AE66: 0 | AF66: 0 | AG66: 0 | AH66: 0 | AI66: 0 | AJ66: 0 | AK66: 0 | AL66: 0 | AM66: 0 | AN66: 0 | AO66: 0 | AP66: 0 | AQ66: 0 | AR66: 0 | AS66: 0 | AT66: 0 | AU66: 0 | AV66: 0 | AW66: 0 | AX66: 0 | AY66: 0 | AZ66: 0 | BA66: 124 | BB66: 124 | BC66: 124 | BD66: 124 | BE66: 124 | BF66: 124 | BG66: 124 | BH66: 124 | BI66: 124 | BJ66: 124 | BK66: 124 | BL66: 124 | BM66: 124 | BN66: 124 | BO66: 124 | BP66: 124 | BQ66: 124 | BR66: 124 | BS66: 124 | BT66: 124 | BU66: 124 | BV66: 124 | BW66: 124 | BX66: 124 | BY66: 124 | BZ66: 124 | CA66: 124 | CB66: 124 | CC66: 124 | CD66: 124 | CE66: 124 | CF66: 124 | CG66: 124 | CH66: 124 | CI66: 124 | CJ66: 124 | CK66: 124 | CL66: 124 | CM66: 124 | CN66: 124 | CO66: 124 | CP66: 124 | CQ66: 124 | CR66: 124 | CS66: 124 | CT66: 124 | CU66: 124 | CV66: 124
A67: 0 | B67: 0 | C67: 0 | D67: 0 | E67: 0 | F67: 0 | G67: 0 | H67: 0 | I67: 0 | J67: 0 | K67: 0 | L67: 0 | M67: 0 | N67: 0 | O67: 0 | P67: 0 | Q67: 0 | R67: 0 | S67: 0 | T67: 0 | U67: 0 | V67: 0 | W67: 0 | X67: 0 | Y67: 0 | Z67: 0 | AA67: 0 | AB67: 0 | AC67: 0 | AD67: 0 | AE67: 0 | AF67: 0 | AG67: 0 | AH67: 0 | AI67: 0 | AJ67: 0 | AK67: 0 | AL67: 0 | AM67: 0 | AN67: 0 | AO67: 0 | AP67: 0 | AQ67: 0 | AR67: 0 | AS67: 0 | AT67: 0 | AU67: 0 | AV67: 0 | AW67: 0 | AX67: 0 | AY67: 0 | AZ67: 0 | BA67: 124 | BB67: 124 | BC67: 124 | BD67: 124 | BE67: 124 | BF67: 124 | BG67: 124 | BH67: 124 | BI67: 124 | BJ67: 124 | BK67: 124 | BL67: 124 | BM67: 124 | BN67: 124 | BO67: 124 | BP67: 124 | BQ67: 124 | BR67: 124 | BS67: 124 | BT67: 124 | BU67: 124 | BV67: 124 | BW67: 124 | BX67: 124 | BY67: 124 | BZ67: 124 | CA67: 124 | CB67: 124 | CC67: 124 | CD67: 124 | CE67: 124 | CF67: 124 | CG67: 124 | CH67: 124 | CI67: 124 | CJ67: 124 | CK67: 124 | CL67: 124 | CM67: 124 | CN67: 124 | CO67: 124 | CP67: 124 | CQ67: 124 | CR67: 124 | CS67: 124 | CT67: 124 | CU67: 124 | CV67: 124
A68: 0 | B68: 0 | C68: 0 | D68: 0 | E68: 0 | F68: 0 | G68: 0 | H68: 0 | I68: 0 | J68: 0 | K68: 0 | L68: 0 | M68: 0 | N68: 0 | O68: 0 | P68: 0 | Q68: 0 | R68: 0 | S68: 0 | T68: 0 | U68: 0 | V68: 0 | W68: 0 | X68: 0 | Y68: 0 | Z68: 0 | AA68: 0 | AB68: 0 | AC68: 0 | AD68: 0 | AE68: 0 | AF68: 0 | AG68: 0 | AH68: 0 | AI68: 0 | AJ68: 0 | AK68: 0 | AL68: 0 | AM68: 0 | AN68: 0 | AO68: 0 | AP68: 0 | AQ68: 0 | AR68: 0 | AS68: 0 | AT68: 0 | AU68: 0 | AV68: 0 | AW68: 0 | AX68: 0 | AY68: 0 | AZ68: 0 | BA68: 124 | BB68: 124 | BC68: 124 | BD68: 124 | BE68: 124 | BF68: 124 | BG68: 124 | BH68: 124 | BI68: 124 | BJ68: 124 | BK68: 124 | BL68: 124 | BM68: 124 | BN68: 124 | BO68: 124 | BP68: 124 | BQ68: 124 | BR68: 124 | BS68: 124 | BT68: 124 | BU68: 124 | BV68: 124 | BW68: 124 | BX68: 124 | BY68: 124 | BZ68: 124 | CA68: 124 | CB68: 124 | CC68: 124 | CD68: 124 | CE68: 124 | CF68: 124 | CG68: 124 | CH68: 124 | CI68: 124 | CJ68: 124 | CK68: 124 | CL68: 124 | CM68: 124 | CN68: 124 | CO68: 124 | CP68: 124 | CQ68: 124 | CR68: 124 | CS68: 124 | CT68: 124 | CU68: 124 | CV68: 124
A69: 0 | B69: 0 | C69: 0 | D69: 0 | E69: 0 | F69: 0 | G69: 0 | H69: 0 | I69: 0 | J69: 0 | K69: 0 | L69: 0 | M69: 0 | N69: 0 | O69: 0 | P69: 0 | Q69: 0 | R69: 0 | S69: 0 | T69: 0 | U69: 0 | V69: 0 | W69: 0 | X69: 0 | Y69: 0 | Z69: 0 | AA69: 0 | AB69: 0 | AC69: 0 | AD69: 0 | AE69: 0 | AF69: 0 | AG69: 0 | AH69: 0 | AI69: 0 | AJ69: 0 | AK69: 0 | AL69: 0 | AM69: 0 | AN69: 0 | AO69: 0 | AP69: 0 | AQ69: 0 | AR69: 0 | AS69: 0 | AT69: 0 | AU69: 0 | AV69: 0 | AW69: 0 | AX69: 0 | AY69: 0 | AZ69: 0 | BA69: 124 | BB69: 124 | BC69: 124 | BD69: 124 | BE69: 124 | BF69: 124 | BG69: 124 | BH69: 124 | BI69: 124 | BJ69: 124 | BK69: 124 | BL69: 124 | BM69: 124 | BN69: 124 | BO69: 124 | BP69: 124 | BQ69: 124 | BR69: 124 | BS69: 124 | BT69: 124 | BU69: 124 | BV69: 124 | BW69: 124 | BX69: 124 | BY69: 124 | BZ69: 124 | CA69: 124 | CB69: 124 | CC69: 124 | CD69: 124 | CE69: 124 | CF69: 124 | CG69: 124 | CH69: 124 | CI69: 124 | CJ69: 124 | CK69: 124 | CL69: 124 | CM69: 124 | CN69: 124 | CO69: 124 | CP69: 124 | CQ69: 124 | CR69: 124 | CS69: 124 | CT69: 124 | CU69: 124 | CV69: 124
A70: 0 | B70: 0 | C70: 0 | D70: 0 | E70: 0 | F70: 0 | G70: 0 | H70: 0 | I70: 0 | J70: 0 | K70: 0 | L70: 0 | M70: 0 | N70: 0 | O70: 0 | P70: 0 | Q70: 0 | R70: 0 | S70: 0 | T70: 0 | U70: 0 | V70: 0 | W70: 0 | X70: 0 | Y70: 0 | Z70: 0 | AA70: 0 | AB70: 0 | AC70: 0 | AD70: 0 | AE70: 0 | AF70: 0 | AG70: 0 | AH70: 0 | AI70: 0 | AJ70: 0 | AK70: 0 | AL70: 0 | AM70: 0 | AN70: 0 | AO70: 0 | AP70: 0 | AQ70: 0 | AR70: 0 | AS70: 0 | AT70: 0 | AU70: 0 | AV70: 0 | AW70: 0 | AX70: 0 | AY70: 0 | AZ70: 0 | BA70: 124 | BB70: 124 | BC70: 124 | BD70: 124 | BE70: 124 | BF70: 124 | BG70: 124 | BH70: 124 | BI70: 124 | BJ70: 124 | BK70: 124 | BL70: 124 | BM70: 124 | BN70: 124 | BO70: 124 | BP70: 124 | BQ70: 124 | BR70: 124 | BS70: 124 | BT70: 124 | BU70: 124 | BV70: 124 | BW70: 124 | BX70: 124 | BY70: 124 | BZ70: 124 | CA70: 124 | CB70: 124 | CC70: 124 | CD70: 124 | CE70: 124 | CF70: 124 | CG70: 124 | CH70: 124 | CI70: 124 | CJ70: 124 | CK70: 124 | CL70: 124 | CM70: 124 | CN70: 124 | CO70: 124 | CP70: 124 | CQ70: 124 | CR70: 124 | CS70: 124 | CT70: 124 | CU70: 124 | CV70: 124
A71: 0 | B71: 0 | C71: 0 | D71: 0 | E71: 0 | F71: 0 | G71: 0 | H71: 0 | I71: 0 | J71: 0 | K71: 0 | L71: 0 | M71: 0 | N71: 0 | O71: 0 | P71: 0 | Q71: 0 | R71: 0 | S71: 0 | T71: 0 | U71: 0 | V71: 0 | W71: 0 | X71: 0 | Y71: 0 | Z71: 0 | AA71: 0 | AB71: 0 | AC71: 0 | AD71: 0 | AE71: 0 | AF71: 0 | AG71: 0 | AH71: 0 | AI71: 0 | AJ71: 0 | AK71: 0 | AL71: 0 | AM71: 0 | AN71: 0 | AO71: 0 | AP71: 0 | AQ71: 0 | AR71: 0 | AS71: 0 | AT71: 0 | AU71: 0 | AV71: 0 | AW71: 0 | AX71: 0 | AY71: 0 | AZ71: 0 | BA71: 124 | BB71: 124 | BC71: 124 | BD71: 124 | BE71: 124 | BF71: 124 | BG71: 124 | BH71: 124 | BI71: 124 | BJ71: 124 | BK71: 124 | BL71: 124 | BM71: 124 | BN71: 124 | BO71: 124 | BP71: 124 | BQ71: 124 | BR71: 124 | BS71: 124 | BT71: 124 | BU71: 124 | BV71: 124 | BW71: 124 | BX71: 124 | BY71: 124 | BZ71: 124 | CA71: 124 | CB71: 124 | CC71: 124 | CD71: 124 | CE71: 124 | CF71: 124 | CG71: 124 | CH71: 124 | CI71: 124 | CJ71: 124 | CK71: 124 | CL71: 124 | CM71: 124 | CN71: 124 | CO71: 124 | CP71: 124 | CQ71: 124 | CR71: 124 | CS71: 124 | CT71: 124 | CU71: 124 | CV71: 124
A72: 0 | B72: 0 | C72: 0 | D72: 0 | E72: 0 | F72: 0 | G72: 0 | H72: 0 | I72: 0 | J72: 0 | K72: 0 | L72: 0 | M72: 0 | N72: 0 | O72: 0 | P72: 0 | Q72: 0 | R72: 0 | S72: 0 | T72: 0 | U72: 0 | V72: 0 | W72: 0 | X72: 0 | Y72: 0 | Z72: 0 | AA72: 0 | AB72: 0 | AC72: 0 | AD72: 0 | AE72: 0 | AF72: 0 | AG72: 0 | AH72: 0 | AI72: 0 | AJ72: 0 | AK72: 0 | AL72: 0 | AM72: 0 | AN72: 0 | AO72: 0 | AP72: 0 | AQ72: 0 | AR72: 0 | AS72: 0 | AT72: 0 | AU72: 0 | AV72: 0 | AW72: 0 | AX72: 0 | AY72: 0 | AZ72: 0 | BA72: 124 | BB72: 124 | BC72: 124 | BD72: 124 | BE72: 124 | BF72: 124 | BG72: 124 | BH72: 124 | BI72: 124 | BJ72: 124 | BK72: 124 | BL72: 124 | BM72: 124 | BN72: 124 | BO72: 124 | BP72: 124 | BQ72: 124 | BR72: 124 | BS72: 124 | BT72: 124 | BU72: 124 | BV72: 124 | BW72: 124 | BX72: 124 | BY72: 124 | BZ72: 124 | CA72: 124 | CB72: 124 | CC72: 124 | CD72: 124 | CE72: 124 | CF72: 124 | CG72: 124 | CH72: 124 | CI72: 124 | CJ72: 124 | CK72: 124 | CL72: 124 | CM72: 124 | CN72: 124 | CO72: 124 | CP72: 124 | CQ72: 124 | CR72: 124 | CS72: 124 | CT72: 124 | CU72: 124 | CV72: 124
A73: 0 | B73: 0 | C73: 0 | D73: 0 | E73: 0 | F73: 0 | G73: 0 | H73: 0 | I73: 0 | J73: 0 | K73: 0 | L73: 0 | M73: 0 | N73: 0 | O73: 0 | P73: 0 | Q73: 0 | R73: 0 | S73: 0 | T73: 0 | U73: 0 | V73: 0 | W73: 0 | X73: 0 | Y73: 0 | Z73: 0 | AA73: 0 | AB73: 0 | AC73: 0 | AD73: 0 | AE73: 0 | AF73: 0 | AG73: 0 | AH73: 0 | AI73: 0 | AJ73: 0 | AK73: 0 | AL73: 0 | AM73: 0 | AN73: 0 | AO73: 0 | AP73: 0 | AQ73: 0 | AR73: 0 | AS73: 0 | AT73: 0 | AU73: 0 | AV73: 0 | AW73: 0 | AX73: 0 | AY73: 0 | AZ73: 0 | BA73: 124 | BB73: 124 | BC73: 124 | BD73: 124 | BE73: 124 | BF73: 124 | BG73: 124 | BH73: 124 | BI73: 124 | BJ73: 124 | BK73: 124 | BL73: 124 | BM73: 124 | BN73: 124 | BO73: 124 | BP73: 124 | BQ73: 124 | BR73: 124 | BS73: 124 | BT73: 124 | BU73: 124 | BV73: 124 | BW73: 124 | BX73: 124 | BY73: 124 | BZ73: 124 | CA73: 124 | CB73: 124 | CC73: 124 | CD73: 124 | CE73: 124 | CF73: 124 | CG73: 124 | CH73: 124 | CI73: 124 | CJ73: 124 | CK73: 124 | CL73: 124 | CM73: 124 | CN73: 124 | CO73: 124 | CP73: 124 | CQ73: 124 | CR73: 124 | CS73: 124 | CT73: 124 | CU73: 124 | CV73: 124
A74: 0 | B74: 0 | C74: 0 | D74: 0 | E74: 0 | F74: 0 | G74: 0 | H74: 0 | I74: 0 | J74: 0 | K74: 0 | L74: 0 | M74: 0 | N74: 0 | O74: 0 | P74: 0 | Q74: 0 | R74: 0 | S74: 0 | T74: 0 | U74: 0 | V74: 0 | W74: 0 | X74: 0 | Y74: 0 | Z74: 0 | AA74: 0 | AB74: 0 | AC74: 0 | AD74: 0 | AE74: 0 | AF74: 0 | AG74: 0 | AH74: 0 | AI74: 0 | AJ74: 0 | AK74: 0 | AL74: 0 | AM74: 0 | AN74: 0 | AO74: 0 | AP74: 0 | AQ74: 0 | AR74: 0 | AS74: 0 | AT74: 0 | AU74: 0 | AV74: 0 | AW74: 0 | AX74: 0 | AY74: 0 | AZ74: 0 | BA74: 124 | BB74: 124 | BC74: 124 | BD74: 124 | BE74: 124 | BF74: 124 | BG74: 124 | BH74: 124 | BI74: 124 | BJ74: 124 | BK74: 124 | BL74: 124 | BM74: 124 | BN74: 124 | BO74: 124 | BP74: 124 | BQ74: 124 | BR74: 124 | BS74: 124 | BT74: 124 | BU74: 124 | BV74: 124 | BW74: 124 | BX74: 124 | BY74: 124 | BZ74: 124 | CA74: 124 | CB74: 124 | CC74: 124 | CD74: 124 | CE74: 124 | CF74: 124 | CG74: 124 | CH74: 124 | CI74: 124 | CJ74: 124 | CK74: 124 | CL74: 124 | CM74: 124 | CN74: 124 | CO74: 124 | CP74: 124 | CQ74: 124 | CR74: 124 | CS74: 124 | CT74: 124 | CU74: 124 | CV74: 124
A75: 0 | B75: 0 | C75: 0 | D75: 0 | E75: 0 | F75: 0 | G75: 0 | H75: 0 | I75: 0 | J75: 0 | K75: 0 | L75: 0 | M75: 0 | N75: 0 | O75: 0 | P75: 0 | Q75: 0 | R75: 0 | S75: 0 | T75: 0 | U75: 0 | V75: 0 | W75: 0 | X75: 0 | Y75: 0 | Z75: 0 | AA75: 0 | AB75: 0 | AC75: 0 | AD75: 0 | AE75: 0 | AF75: 0 | AG75: 0 | AH75: 0 | AI75: 0 | AJ75: 0 | AK75: 0 | AL75: 0 | AM75: 0 | AN75: 0 | AO75: 0 | AP75: 0 | AQ75: 0 | AR75: 0 | AS75: 0 | AT75: 0 | AU75: 0 | AV75: 0 | AW75: 0 | AX75: 0 | AY75: 0 | AZ75: 0 | BA75: 124 | BB75: 124 | BC75: 124 | BD75: 124 | BE75: 124 | BF75: 124 | BG75: 124 | BH75: 124 | BI75: 124 | BJ75: 124 | BK75: 124 | BL75: 124 | BM75: 124 | BN75: 124 | BO75: 124 | BP75: 124 | BQ75: 124 | BR75: 124 | BS75: 124 | BT75: 124 | BU75: 124 | BV75: 124 | BW75: 124 | BX75: 124 | BY75: 124 | BZ75: 124 | CA75: 124 | CB75: 124 | CC75: 124 | CD75: 124 | CE75: 124 | CF75: 124 | CG75: 124 | CH75: 124 | CI75: 124 | CJ75: 124 | CK75: 124 | CL75: 124 | CM75: 124 | CN75: 124 | CO75: 124 | CP75: 124 | CQ75: 124 | CR75: 124 | CS75: 124 | CT75: 124 | CU75: 124 | CV75: 124
A76: 0 | B76: 0 | C76: 0 | D76: 0 | E76: 0 | F76: 0 | G76: 0 | H76: 0 | I76: 0 | J76: 0 | K76: 0 | L76: 0 | M76: 0 | N76: 0 | O76: 0 | P76: 0 | Q76: 0 | R76: 0 | S76: 0 | T76: 0 | U76: 0 | V76: 0 | W76: 0 | X76: 0 | Y76: 0 | Z76: 0 | AA76: 0 | AB76: 0 | AC76: 0 | AD76: 0 | AE76: 0 | AF76: 0 | AG76: 0 | AH76: 0 | AI76: 0 | AJ76: 0 | AK76: 0 | AL76: 0 | AM76: 0 | AN76: 0 | AO76: 0 | AP76: 0 | AQ76: 0 | AR76: 0 | AS76: 0 | AT76: 0 | AU76: 0 | AV76: 0 | AW76: 0 | AX76: 0 | AY76: 0 | AZ76: 0 | BA76: 124 | BB76: 124 | BC76: 124 | BD76: 124 | BE76: 124 | BF76: 124 | BG76: 124 | BH76: 124 | BI76: 124 | BJ76: 124 | BK76: 124 | BL76: 124 | BM76: 124 | BN76: 124 | BO76: 124 | BP76: 124 | BQ76: 124 | BR76: 124 | BS76: 124 | BT76: 124 | BU76: 124 | BV76: 124 | BW76: 124 | BX76: 124 | BY76: 124 | BZ76: 124 | CA76: 124 | CB76: 124 | CC76: 124 | CD76: 124 | CE76: 124 | CF76: 124 | CG76: 124 | CH76: 124 | CI76: 124 | CJ76: 124 | CK76: 124 | CL76: 124 | CM76: 124 | CN76: 124 | CO76: 124 | CP76: 124 | CQ76: 124 | CR76: 124 | CS76: 124 | CT76: 124 | CU76: 124 | CV76: 124
A77: 0 | B77: 0 | C77: 0 | D77: 0 | E77: 0 | F77: 0 | G77: 0 | H77: 0 | I77: 0 | J77: 0 | K77: 0 | L77: 0 | M77: 0 | N77: 0 | O77: 0 | P77: 0 | Q77: 0 | R77: 0 | S77: 0 | T77: 0 | U77: 0 | V77: 0 | W77: 0 | X77: 0 | Y77: 0 | Z77: 0 | AA77: 0 | AB77: 0 | AC77: 0 | AD77: 0 | AE77: 0 | AF77: 0 | AG77: 0 | AH77: 0 | AI77: 0 | AJ77: 0 | AK77: 0 | AL77: 0 | AM77: 0 | AN77: 0 | AO77: 0 | AP77: 0 | AQ77: 0 | AR77: 0 | AS77: 0 | AT77: 0 | AU77: 0 | AV77: 0 | AW77: 0 | AX77: 0 | AY77: 0 | AZ77: 0 | BA77: 124 | BB77: 124 | BC77: 124 | BD77: 124 | BE77: 124 | BF77: 124 | BG77: 124 | BH77: 124 | BI77: 124 | BJ77: 124 | BK77: 124 | BL77: 124 | BM77: 124 | BN77: 124 | BO77: 124 | BP77: 124 | BQ77: 124 | BR77: 124 | BS77: 124 | BT77: 124 | BU77: 124 | BV77: 124 | BW77: 124 | BX77: 124 | BY77: 124 | BZ77: 124 | CA77: 124 | CB77: 124 | CC77: 124 | CD77: 124 | CE77: 124 | CF77: 124 | CG77: 124 | CH77: 124 | CI77: 124 | CJ77: 124 | CK77: 124 | CL77: 124 | CM77: 124 | CN77: 124 | CO77: 124 | CP77: 124 | CQ77: 124 | CR77: 124 | CS77: 124 | CT77: 124 | CU77: 124 | CV77: 124
A78: 0 | B78: 0 | C78: 0 | D78: 0 | E78: 0 | F78: 0 | G78: 0 | H78: 0 | I78: 0 | J78: 0 | K78: 0 | L78: 0 | M78: 0 | N78: 0 | O78: 0 | P78: 0 | Q78: 0 | R78: 0 | S78: 0 | T78: 0 | U78: 0 | V78: 0 | W78: 0 | X78: 0 | Y78: 0 | Z78: 0 | AA78: 0 | AB78: 0 | AC78: 0 | AD78: 0 | AE78: 0 | AF78: 0 | AG78: 0 | AH78: 0 | AI78: 0 | AJ78: 0 | AK78: 0 | AL78: 0 | AM78: 0 | AN78: 0 | AO78: 0 | AP78: 0 | AQ78: 0 | AR78: 0 | AS78: 0 | AT78: 0 | AU78: 0 | AV78: 0 | AW78: 0 | AX78: 0 | AY78: 0 | AZ78: 0 | BA78: 124 | BB78: 124 | BC78: 124 | BD78: 124 | BE78: 124 | BF78: 124 | BG78: 124 | BH78: 124 | BI78: 124 | BJ78: 124 | BK78: 124 | BL78: 124 | BM78: 124 | BN78: 124 | BO78: 124 | BP78: 124 | BQ78: 124 | BR78: 124 | BS78: 124 | BT78: 124 | BU78: 124 | BV78: 124 | BW78: 124 | BX78: 124 | BY78: 124 | BZ78: 124 | CA78: 124 | CB78: 124 | CC78: 124 | CD78: 124 | CE78: 124 | CF78: 124 | CG78: 124 | CH78: 124 | CI78: 124 | CJ78: 124 | CK78: 124 | CL78: 124 | CM78: 124 | CN78: 124 | CO78: 124 | CP78: 124 | CQ78: 124 | CR78: 124 | CS78: 124 | CT78: 124 | CU78: 124 | CV78: 124
A79: 0 | B79: 0 | C79: 0 | D79: 0 | E79: 0 | F79: 0 | G79: 0 | H79: 0 | I79: 0 | J79: 0 | K79: 0 | L79: 0 | M79: 0 | N79: 0 | O79: 0 | P79: 0 | Q79: 0 | R79: 0 | S79: 0 | T79: 0 | U79: 0 | V79: 0 | W79: 0 | X79: 0 | Y79: 0 | Z79: 0 | AA79: 0 | AB79: 0 | AC79: 0 | AD79: 0 | AE79: 0 | AF79: 0 | AG79: 0 | AH79: 0 | AI79: 0 | AJ79: 0 | AK79: 0 | AL79: 0 | AM79: 0 | AN79: 0 | AO79: 0 | AP79: 0 | AQ79: 0 | AR79: 0 | AS79: 0 | AT79: 0 | AU79: 0 | AV79: 0 | AW79: 0 | AX79: 0 | AY79: 0 | AZ79: 0 | BA79: 124 | BB79: 124 | BC79: 124 | BD79: 124 | BE79: 124 | BF79: 124 | BG79: 124 | BH79: 124 | BI79: 124 | BJ79: 124 | BK79: 124 | BL79: 124 | BM79: 124 | BN79: 124 | BO79: 124 | BP79: 124 | BQ79: 124 | BR79: 124 | BS79: 124 | BT79: 124 | BU79: 124 | BV79: 124 | BW79: 124 | BX79: 124 | BY79: 124 | BZ79: 124 | CA79: 124 | CB79: 124 | CC79: 124 | CD79: 124 | CE79: 124 | CF79: 124 | CG79: 124 | CH79: 124 | CI79: 124 | CJ79: 124 | CK79: 124 | CL79: 124 | CM79: 124 | CN79: 124 | CO79: 124 | CP79: 124 | CQ79: 124 | CR79: 124 | CS79: 124 | CT79: 124 | CU79: 124 | CV79: 124
A80: 0 | B80: 0 | C80: 0 | D80: 0 | E80: 0 | F80: 0 | G80: 0 | H80: 0 | I80: 0 | J80: 0 | K80: 0 | L80: 0 | M80: 0 | N80: 0 | O80: 0 | P80: 0 | Q80: 0 | R80: 0 | S80: 0 | T80: 0 | U80: 0 | V80: 0 | W80: 0 | X80: 0 | Y80: 0 | Z80: 0 | AA80: 0 | AB80: 0 | AC80: 0 | AD80: 0 | AE80: 0 | AF80: 0 | AG80: 0 | AH80: 0 | AI80: 0 | AJ80: 0 | AK80: 0 | AL80: 0 | AM80: 0 | AN80: 0 | AO80: 0 | AP80: 0 | AQ80: 0 | AR80: 0 | AS80: 0 | AT80: 0 | AU80: 0 | AV80: 0 | AW80: 0 | AX80: 0 | AY80: 0 | AZ80: 0 | BA80: 124 | BB80: 124 | BC80: 124 | BD80: 124 | BE80: 124 | BF80: 124 | BG80: 124 | BH80: 124 | BI80: 124 | BJ80: 124 | BK80: 124 | BL80: 124 | BM80: 124 | BN80: 124 | BO80: 124 | BP80: 124 | BQ80: 124 | BR80: 124 | BS80: 124 | BT80: 124 | BU80: 124 | BV80: 124 | BW80: 124 | BX80: 124 | BY80: 124 | BZ80: 124 | CA80: 124 | CB80: 124 | CC80: 124 | CD80: 124 | CE80: 124 | CF80: 124 | CG80: 124 | CH80: 124 | CI80: 124 | CJ80: 124 | CK80: 124 | CL80: 124 | CM80: 124 | CN80: 124 | CO80: 124 | CP80: 124 | CQ80: 124 | CR80: 124 | CS80: 124 | CT80: 124 | CU80: 124 | CV80: 124
A81: 0 | B81: 0 | C81: 0 | D81: 0 | E81: 0 | F81: 0 | G81: 0 | H81: 0 | I81: 0 | J81: 0 | K81: 0 | L81: 0 | M81: 0 | N81: 0 | O81: 0 | P81: 0 | Q81: 0 | R81: 0 | S81: 0 | T81: 0 | U81: 0 | V81: 0 | W81: 0 | X81: 0 | Y81: 0 | Z81: 0 | AA81: 0 | AB81: 0 | AC81: 0 | AD81: 0 | AE81: 0 | AF81: 0 | AG81: 0 | AH81: 0 | AI81: 0 | AJ81: 0 | AK81: 0 | AL81: 0 | AM81: 0 | AN81: 0 | AO81: 0 | AP81: 0 | AQ81: 0 | AR81: 0 | AS81: 0 | AT81: 0 | AU81: 0 | AV81: 0 | AW81: 0 | AX81: 0 | AY81: 0 | AZ81: 0 | BA81: 124 | BB81: 124 | BC81: 124 | BD81: 124 | BE81: 124 | BF81: 124 | BG81: 124 | BH81: 124 | BI81: 124 | BJ81: 124 | BK81: 124 | BL81: 124 | BM81: 124 | BN81: 124 | BO81: 124 | BP81: 124 | BQ81: 124 | BR81: 124 | BS81: 124 | BT81: 124 | BU81: 124 | BV81: 124 | BW81: 124 | BX81: 124 | BY81: 124 | BZ81: 124 | CA81: 124 | CB81: 124 | CC81: 124 | CD81: 124 | CE81: 124 | CF81: 124 | CG81: 124 | CH81: 124 | CI81: 124 | CJ81: 124 | CK81: 124 | CL81: 124 | CM81: 124 | CN81: 124 | CO81: 124 | CP81: 124 | CQ81: 124 | CR81: 124 | CS81: 124 | CT81: 124 | CU81: 124 | CV81: 124
A82: 0 | B82: 0 | C82: 0 | D82: 0 | E82: 0 | F82: 0 | G82: 0 | H82: 0 | I82: 0 | J82: 0 | K82: 0 | L82: 0 | M82: 0 | N82: 0 | O82: 0 | P82: 0 | Q82: 0 | R82: 0 | S82: 0 | T82: 0 | U82: 0 | V82: 0 | W82: 0 | X82: 0 | Y82: 0 | Z82: 0 | AA82: 0 | AB82: 0 | AC82: 0 | AD82: 0 | AE82: 0 | AF82: 0 | AG82: 0 | AH82: 0 | AI82: 0 | AJ82: 0 | AK82: 0 | AL82: 0 | AM82: 0 | AN82: 0 | AO82: 0 | AP82: 0 | AQ82: 0 | AR82: 0 | AS82: 0 | AT82: 0 | AU82: 0 | AV82: 0 | AW82: 0 | AX82: 0 | AY82: 0 | AZ82: 0 | BA82: 124 | BB82: 124 | BC82: 124 | BD82: 124 | BE82: 124 | BF82: 124 | BG82: 124 | BH82: 124 | BI82: 124 | BJ82: 124 | BK82: 124 | BL82: 124 | BM82: 124 | BN82: 124 | BO82: 124 | BP82: 124 | BQ82: 124 | BR82: 124 | BS82: 124 | BT82: 124 | BU82: 124 | BV82: 124 | BW82: 124 | BX82: 124 | BY82: 124 | BZ82: 124 | CA82: 124 | CB82: 124 | CC82: 124 | CD82: 124 | CE82: 124 | CF82: 124 | CG82: 124 | CH82: 124 | CI82: 124 | CJ82: 124 | CK82: 124 | CL82: 124 | CM82: 124 | CN82: 124 | CO82: 124 | CP82: 124 | CQ82: 124 | CR82: 124 | CS82: 124 | CT82: 124 | CU82: 124 | CV82: 124
A83: 0 | B83: 0 | C83: 0 | D83: 0 | E83: 0 | F83: 0 | G83: 0 | H83: 0 | I83: 0 | J83: 0 | K83: 0 | L83: 0 | M83: 0 | N83: 0 | O83: 0 | P83: 0 | Q83: 0 | R83: 0 | S83: 0 | T83: 0 | U83: 0 | V83: 0 | W83: 0 | X83: 0 | Y83: 0 | Z83: 0 | AA83: 0 | AB83: 0 | AC83: 0 | AD83: 0 | AE83: 0 | AF83: 0 | AG83: 0 | AH83: 0 | AI83: 0 | AJ83: 0 | AK83: 0 | AL83: 0 | AM83: 0 | AN83: 0 | AO83: 0 | AP83: 0 | AQ83: 0 | AR83: 0 | AS83: 0 | AT83: 0 | AU83: 0 | AV83: 0 | AW83: 0 | AX83: 0 | AY83: 0 | AZ83: 0 | BA83: 124 | BB83: 124 | BC83: 124 | BD83: 124 | BE83: 124 | BF83: 124 | BG83: 124 | BH83: 124 | BI83: 124 | BJ83: 124 | BK83: 124 | BL83: 124 | BM83: 124 | BN83: 124 | BO83: 124 | BP83: 124 | BQ83: 124 | BR83: 124 | BS83: 124 | BT83: 124 | BU83: 124 | BV83: 124 | BW83: 124 | BX83: 124 | BY83: 124 | BZ83: 124 | CA83: 124 | CB83: 124 | CC83: 124 | CD83: 124 | CE83: 124 | CF83: 124 | CG83: 124 | CH83: 124 | CI83: 124 | CJ83: 124 | CK83: 124 | CL83: 124 | CM83: 124 | CN83: 124 | CO83: 124 | CP83: 124 | CQ83: 124 | CR83: 124 | CS83: 124 | CT83: 124 | CU83: 124 | CV83: 124
A84: 0 | B84: 0 | C84: 0 | D84: 0 | E84: 0 | F84: 0 | G84: 0 | H84: 0 | I84: 0 | J84: 0 | K84: 0 | L84: 0 | M84: 0 | N84: 0 | O84: 0 | P84: 0 | Q84: 0 | R84: 0 | S84: 0 | T84: 0 | U84: 0 | V84: 0 | W84: 0 | X84: 0 | Y84: 0 | Z84: 0 | AA84: 0 | AB84: 0 | AC84: 0 | AD84: 0 | AE84: 0 | AF84: 0 | AG84: 0 | AH84: 0 | AI84: 0 | AJ84: 0 | AK84: 0 | AL84: 0 | AM84: 0 | AN84: 0 | AO84: 0 | AP84: 0 | AQ84: 0 | AR84: 0 | AS84: 0 | AT84: 0 | AU84: 0 | AV84: 0 | AW84: 0 | AX84: 0 | AY84: 0 | AZ84: 0 | BA84: 124 | BB84: 124 | BC84: 124 | BD84: 124 | BE84: 124 | BF84: 124 | BG84: 124 | BH84: 124 | BI84: 124 | BJ84: 124 | BK84: 124 | BL84: 124 | BM84: 124 | BN84: 124 | BO84: 124 | BP84: 124 | BQ84: 124 | BR84: 124 | BS84: 124 | BT84: 124 | BU84: 124 | BV84: 124 | BW84: 124 | BX84: 124 | BY84: 124 | BZ84: 124 | CA84: 124 | CB84: 124 | CC84: 124 | CD84: 124 | CE84: 124 | CF84: 124 | CG84: 124 | CH84: 124 | CI84: 124 | CJ84: 124 | CK84: 124 | CL84: 124 | CM84: 124 | CN84: 124 | CO84: 124 | CP84: 124 | CQ84: 124 | CR84: 124 | CS84: 124 | CT84: 124 | CU84: 124 | CV84: 124
A85: 0 | B85: 0 | C85: 0 | D85: 0 | E85: 0 | F85: 0 | G85: 0 | H85: 0 | I85: 0 | J85: 0 | K85: 0 | L85: 0 | M85: 0 | N85: 0 | O85: 0 | P85: 0 | Q85: 0 | R85: 0 | S85: 0 | T85: 0 | U85: 0 | V85: 0 | W85: 0 | X85: 0 | Y85: 0 | Z85: 0 | AA85: 0 | AB85: 0 | AC85: 0 | AD85: 0 | AE85: 0 | AF85: 0 | AG85: 0 | AH85: 0 | AI85: 0 | AJ85: 0 | AK85: 0 | AL85: 0 | AM85: 0 | AN85: 0 | AO85: 0 | AP85: 0 | AQ85: 0 | AR85: 0 | AS85: 0 | AT85: 0 | AU85: 0 | AV85: 0 | AW85: 0 | AX85: 0 | AY85: 0 | AZ85: 0 | BA85: 124 | BB85: 124 | BC85: 124 | BD85: 124 | BE85: 124 | BF85: 124 | BG85: 124 | BH85: 124 | BI85: 124 | BJ85: 124 | BK85: 124 | BL85: 124 | BM85: 124 | BN85: 124 | BO85: 124 | BP85: 124 | BQ85: 124 | BR85: 124 | BS85: 124 | BT85: 124 | BU85: 124 | BV85: 124 | BW85: 124 | BX85: 124 | BY85: 124 | BZ85: 124 | CA85: 124 | CB85: 124 | CC85: 124 | CD85: 124 | CE85: 124 | CF85: 124 | CG85: 124 | CH85: 124 | CI85: 124 | CJ85: 124 | CK85: 124 | CL85: 124 | CM85: 124 | CN85: 124 | CO85: 124 | CP85: 124 | CQ85: 124 | CR85: 124 | CS85: 124 | CT85: 124 | CU85: 124 | CV85: 124
A86: 0 | B86: 0 | C86: 0 | D86: 0 | E86: 0 | F86: 0 | G86: 0 | H86: 0 | I86: 0 | J86: 0 | K86: 0 | L86: 0 | M86: 0 | N86: 0 | O86: 0 | P86: 0 | Q86: 0 | R86: 0 | S86: 0 | T86: 0 | U86: 0 | V86: 0 | W86: 0 | X86: 0 | Y86: 0 | Z86: 0 | AA86: 0 | AB86: 0 | AC86: 0 | AD86: 0 | AE86: 0 | AF86: 0 | AG86: 0 | AH86: 0 | AI86: 0 | AJ86: 0 | AK86: 0 | AL86: 0 | AM86: 0 | AN86: 0 | AO86: 0 | AP86: 0 | AQ86: 0 | AR86: 0 | AS86: 0 | AT86: 0 | AU86: 0 | AV86: 0 | AW86: 0 | AX86: 0 | AY86: 0 | AZ86: 0 | BA86: 124 | BB86: 124 | BC86: 124 | BD86: 124 | BE86: 124 | BF86: 124 | BG86: 124 | BH86: 124 | BI86: 124 | BJ86: 124 | BK86: 124 | BL86: 124 | BM86: 124 | BN86: 124 | BO86: 124 | BP86: 124 | BQ86: 124 | BR86: 124 | BS86: 124 | BT86: 124 | BU86: 124 | BV86: 124 | BW86: 124 | BX86: 124 | BY86: 124 | BZ86: 124 | CA86: 124 | CB86: 124 | CC86: 124 | CD86: 124 | CE86: 124 | CF86: 124 | CG86: 124 | CH86: 124 | CI86: 124 | CJ86: 124 | CK86: 124 | CL86: 124 | CM86: 124 | CN86: 124 | CO86: 124 | CP86: 124 | CQ86: 124 | CR86: 124 | CS86: 124 | CT86: 124 | CU86: 124 | CV86: 124
A87: 0 | B87: 0 | C87: 0 | D87: 0 | E87: 0 | F87: 0 | G87: 0 | H87: 0 | I87: 0 | J87: 0 | K87: 0 | L87: 0 | M87: 0 | N87: 0 | O87: 0 | P87: 0 | Q87: 0 | R87: 0 | S87: 0 | T87: 0 | U87: 0 | V87: 0 | W87: 0 | X87: 0 | Y87: 0 | Z87: 0 | AA87: 0 | AB87: 0 | AC87: 0 | AD87: 0 | AE87: 0 | AF87: 0 | AG87: 0 | AH87: 0 | AI87: 0 | AJ87: 0 | AK87: 0 | AL87: 0 | AM87: 0 | AN87: 0 | AO87: 0 | AP87: 0 | AQ87: 0 | AR87: 0 | AS87: 0 | AT87: 0 | AU87: 0 | AV87: 0 | AW87: 0 | AX87: 0 | AY87: 0 | AZ87: 0 | BA87: 124 | BB87: 124 | BC87: 124 | BD87: 124 | BE87: 124 | BF87: 124 | BG87: 124 | BH87: 124 | BI87: 124 | BJ87: 124 | BK87: 124 | BL87: 124 | BM87: 124 | BN87: 124 | BO87: 124 | BP87: 124 | BQ87: 124 | BR87: 124 | BS87: 124 | BT87: 124 | BU87: 124 | BV87: 124 | BW87: 124 | BX87: 124 | BY87: 124 | BZ87: 124 | CA87: 124 | CB87: 124 | CC87: 124 | CD87: 124 | CE87: 124 | CF87: 124 | CG87: 124 | CH87: 124 | CI87: 124 | CJ87: 124 | CK87: 124 | CL87: 124 | CM87: 124 | CN87: 124 | CO87: 124 | CP87: 124 | CQ87: 124 | CR87: 124 | CS87: 124 | CT87: 124 | CU87: 124 | CV87: 124
A88: 0 | B88: 0 | C88: 0 | D88: 0 | E88: 0 | F88: 0 | G88: 0 | H88: 0 | I88: 0 | J88: 0 | K88: 0 | L88: 0 | M88: 0 | N88: 0 | O88: 0 | P88: 0 | Q88: 0 | R88: 0 | S88: 0 | T88: 0 | U88: 0 | V88: 0 | W88: 0 | X88: 0 | Y88: 0 | Z88: 0 | AA88: 0 | AB88: 0 | AC88: 0 | AD88: 0 | AE88: 0 | AF88: 0 | AG88: 0 | AH88: 0 | AI88: 0 | AJ88: 0 | AK88: 0 | AL88: 0 | AM88: 0 | AN88: 0 | AO88: 0 | AP88: 0 | AQ88: 0 | AR88: 0 | AS88: 0 | AT88: 0 | AU88: 0 | AV88: 0 | AW88: 0 | AX88: 0 | AY88: 0 | AZ88: 0 | BA88: 124 | BB88: 124 | BC88: 124 | BD88: 124 | BE88: 124 | BF88: 124 | BG88: 124 | BH88: 124 | BI88: 124 | BJ88: 124 | BK88: 124 | BL88: 124 | BM88: 124 | BN88: 124 | BO88: 124 | BP88: 124 | BQ88: 124 | BR88: 124 | BS88: 124 | BT88: 124 | BU88: 124 | BV88: 124 | BW88: 124 | BX88: 124 | BY88: 124 | BZ88: 124 | CA88: 124 | CB88: 124 | CC88: 124 | CD88: 124 | CE88: 124 | CF88: 124 | CG88: 124 | CH88: 124 | CI88: 124 | CJ88: 124 | CK88: 124 | CL88: 124 | CM88: 124 | CN88: 124 | CO88: 124 | CP88: 124 | CQ88: 124 | CR88: 124 | CS88: 124 | CT88: 124 | CU88: 124 | CV88: 124
A89: 0 | B89: 0 | C89: 0 | D89: 0 | E89: 0 | F89: 0 | G89: 0 | H89: 0 | I89: 0 | J89: 0 | K89: 0 | L89: 0 | M89: 0 | N89: 0 | O89: 0 | P89: 0 | Q89: 0 | R89: 0 | S89: 0 | T89: 0 | U89: 0 | V89: 0 | W89: 0 | X89: 0 | Y89: 0 | Z89: 0 | AA89: 0 | AB89: 0 | AC89: 0 | AD89: 0 | AE89: 0 | AF89: 0 | AG89: 0 | AH89: 0 | AI89: 0 | AJ89: 0 | AK89: 0 | AL89: 0 | AM89: 0 | AN89: 0 | AO89: 0 | AP89: 0 | AQ89: 0 | AR89: 0 | AS89: 0 | AT89: 0 | AU89: 0 | AV89: 0 | AW89: 0 | AX89: 0 | AY89: 0 | AZ89: 0 | BA89: 124 | BB89: 124 | BC89: 124 | BD89: 124 | BE89: 124 | BF89: 124 | BG89: 124 | BH89: 124 | BI89: 124 | BJ89: 124 | BK89: 124 | BL89: 124 | BM89: 124 | BN89: 124 | BO89: 124 | BP89: 124 | BQ89: 124 | BR89: 124 | BS89: 124 | BT89: 124 | BU89: 124 | BV89: 124 | BW89: 124 | BX89: 124 | BY89: 124 | BZ89: 124 | CA89: 124 | CB89: 124 | CC89: 124 | CD89: 124 | CE89: 124 | CF89: 124 | CG89: 124 | CH89: 124 | CI89: 124 | CJ89: 124 | CK89: 124 | CL89: 124 | CM89: 124 | CN89: 124 | CO89: 124 | CP89: 124 | CQ89: 124 | CR89: 124 | CS89: 124 | CT89: 124 | CU89: 124 | CV89: 124
A90: 0 | B90: 0 | C90: 0 | D90: 0 | E90: 0 | F90: 0 | G90: 0 | H90: 0 | I90: 0 | J90: 0 | K90: 0 | L90: 0 | M90: 0 | N90: 0 | O90: 0 | P90: 0 | Q90: 0 | R90: 0 | S90: 0 | T90: 0 | U90: 0 | V90: 0 | W90: 0 | X90: 0 | Y90: 0 | Z90: 0 | AA90: 0 | AB90: 0 | AC90: 0 | AD90: 0 | AE90: 0 | AF90: 0 | AG90: 0 | AH90: 0 | AI90: 0 | AJ90: 0 | AK90: 0 | AL90: 0 | AM90: 0 | AN90: 0 | AO90: 0 | AP90: 0 | AQ90: 0 | AR90: 0 | AS90: 0 | AT90: 0 | AU90: 0 | AV90: 0 | AW90: 0 | AX90: 0 | AY90: 0 | AZ90: 0 | BA90: 124 | BB90: 124 | BC90: 124 | BD90: 124 | BE90: 124 | BF90: 124 | BG90: 124 | BH90: 124 | BI90: 124 | BJ90: 124 | BK90: 124 | BL90: 124 | BM90: 124 | BN90: 124 | BO90: 124 | BP90: 124 | BQ90: 124 | BR90: 124 | BS90: 124 | BT90: 124 | BU90: 124 | BV90: 124 | BW90: 124 | BX90: 124 | BY90: 124 | BZ90: 124 | CA90: 124 | CB90: 124 | CC90: 124 | CD90: 124 | CE90: 124 | CF90: 124 | CG90: 124 | CH90: 124 | CI90: 124 | CJ90: 124 | CK90: 124 | CL90: 124 | CM90: 124 | CN90: 124 | CO90: 124 | CP90: 124 | CQ90: 124 | CR90: 124 | CS90: 124 | CT90: 124 | CU90: 124 | CV90: 124
A91: 0 | B91: 0 | C91: 0 | D91: 0 | E91: 0 | F91: 0 | G91: 0 | H91: 0 | I91: 0 | J91: 0 | K91: 0 | L91: 0 | M91: 0 | N91: 0 | O91: 0 | P91: 0 | Q91: 0 | R91: 0 | S91: 0 | T91: 0 | U91: 0 | V91: 0 | W91: 0 | X91: 0 | Y91: 0 | Z91: 0 | AA91: 0 | AB91: 0 | AC91: 0 | AD91: 0 | AE91: 0 | AF91: 0 | AG91: 0 | AH91: 0 | AI91: 0 | AJ91: 0 | AK91: 0 | AL91: 0 | AM91: 0 | AN91: 0 | AO91: 0 | AP91: 0 | AQ91: 0 | AR91: 0 | AS91: 0 | AT91: 0 | AU91: 0 | AV91: 0 | AW91: 0 | AX91: 0 | AY91: 0 | AZ91: 0 | BA91: 124 | BB91: 124 | BC91: 124 | BD91: 124 | BE91: 124 | BF91: 124 | BG91: 124 | BH91: 124 | BI91: 124 | BJ91: 124 | BK91: 124 | BL91: 124 | BM91: 124 | BN91: 124 | BO91: 124 | BP91: 124 | BQ91: 124 | BR91: 124 | BS91: 124 | BT91: 124 | BU91: 124 | BV91: 124 | BW91: 124 | BX91: 124 | BY91: 124 | BZ91: 124 | CA91: 124 | CB91: 124 | CC91: 124 | CD91: 124 | CE91: 124 | CF91: 124 | CG91: 124 | CH91: 124 | CI91: 124 | CJ91: 124 | CK91: 124 | CL91: 124 | CM91: 124 | CN91: 124 | CO91: 124 | CP91: 124 | CQ91: 124 | CR91: 124 | CS91: 124 | CT91: 124 | CU91: 124 | CV91: 124
A92: 0 | B92: 0 | C92: 0 | D92: 0 | E92: 0 | F92: 0 | G92: 0 | H92: 0 | I92: 0 | J92: 0 | K92: 0 | L92: 0 | M92: 0 | N92: 0 | O92: 0 | P92: 0 | Q92: 0 | R92: 0 | S92: 0 | T92: 0 | U92: 0 | V92: 0 | W92: 0 | X92: 0 | Y92: 0 | Z92: 0 | AA92: 0 | AB92: 0 | AC92: 0 | AD92: 0 | AE92: 0 | AF92: 0 | AG92: 0 | AH92: 0 | AI92: 0 | AJ92: 0 | AK92: 0 | AL92: 0 | AM92: 0 | AN92: 0 | AO92: 0 | AP92: 0 | AQ92: 0 | AR92: 0 | AS92: 0 | AT92: 0 | AU92: 0 | AV92: 0 | AW92: 0 | AX92: 0 | AY92: 0 | AZ92: 0 | BA92: 124 | BB92: 124 | BC92: 124 | BD92: 124 | BE92: 124 | BF92: 124 | BG92: 124 | BH92: 124 | BI92: 124 | BJ92: 124 | BK92: 124 | BL92: 124 | BM92: 124 | BN92: 124 | BO92: 124 | BP92: 124 | BQ92: 124 | BR92: 124 | BS92: 124 | BT92: 124 | BU92: 124 | BV92: 124 | BW92: 124 | BX92: 124 | BY92: 124 | BZ92: 124 | CA92: 124 | CB92: 124 | CC92: 124 | CD92: 124 | CE92: 124 | CF92: 124 | CG92: 124 | CH92: 124 | CI92: 124 | CJ92: 124 | CK92: 124 | CL92: 124 | CM92: 124 | CN92: 124 | CO92: 124 | CP92: 124 | CQ92: 124 | CR92: 124 | CS92: 124 | CT92: 124 | CU92: 124 | CV92: 124
A93: 0 | B93: 0 | C93: 0 | D93: 0 | E93: 0 | F93: 0 | G93: 0 | H93: 0 | I93: 0 | J93: 0 | K93: 0 | L93: 0 | M93: 0 | N93: 0 | O93: 0 | P93: 0 | Q93: 0 | R93: 0 | S93: 0 | T93: 0 | U93: 0 | V93: 0 | W93: 0 | X93: 0 | Y93: 0 | Z93: 0 | AA93: 0 | AB93: 0 | AC93: 0 | AD93: 0 | AE93: 0 | AF93: 0 | AG93: 0 | AH93: 0 | AI93: 0 | AJ93: 0 | AK93: 0 | AL93: 0 | AM93: 0 | AN93: 0 | AO93: 0 | AP93: 0 | AQ93: 0 | AR93: 0 | AS93: 0 | AT93: 0 | AU93: 0 | AV93: 0 | AW93: 0 | AX93: 0 | AY93: 0 | AZ93: 0 | BA93: 124 | BB93: 124 | BC93: 124 | BD93: 124 | BE93: 124 | BF93: 124 | BG93: 124 | BH93: 124 | BI93: 124 | BJ93: 124 | BK93: 124 | BL93: 124 | BM93: 124 | BN93: 124 | BO93: 124 | BP93: 124 | BQ93: 124 | BR93: 124 | BS93: 124 | BT93: 124 | BU93: 124 | BV93: 124 | BW93: 124 | BX93: 124 | BY93: 124 | BZ93: 124 | CA93: 124 | CB93: 124 | CC93: 124 | CD93: 124 | CE93: 124 | CF93: 124 | CG93: 124 | CH93: 124 | CI93: 124 | CJ93: 124 | CK93: 124 | CL93: 124 | CM93: 124 | CN93: 124 | CO93: 124 | CP93: 124 | CQ93: 124 | CR93: 124 | CS93: 124 | CT93: 124 | CU93: 124 | CV93: 124
A94: 0 | B94: 0 | C94: 0 | D94: 0 | E94: 0 | F94: 0 | G94: 0 | H94: 0 | I94: 0 | J94: 0 | K94: 0 | L94: 0 | M94: 0 | N94: 0 | O94: 0 | P94: 0 | Q94: 0 | R94: 0 | S94: 0 | T94: 0 | U94: 0 | V94: 0 | W94: 0 | X94: 0 | Y94: 0 | Z94: 0 | AA94: 0 | AB94: 0 | AC94: 0 | AD94: 0 | AE94: 0 | AF94: 0 | AG94: 0 | AH94: 0 | AI94: 0 | AJ94: 0 | AK94: 0 | AL94: 0 | AM94: 0 | AN94: 0 | AO94: 0 | AP94: 0 | AQ94: 0 | AR94: 0 | AS94: 0 | AT94: 0 | AU94: 0 | AV94: 0 | AW94: 0 | AX94: 0 | AY94: 0 | AZ94: 0 | BA94: 124 | BB94: 124 | BC94: 124 | BD94: 124 | BE94: 124 | BF94: 124 | BG94: 124 | BH94: 124 | BI94: 124 | BJ94: 124 | BK94: 124 | BL94: 124 | BM94: 124 | BN94: 124 | BO94: 124 | BP94: 124 | BQ94: 124 | BR94: 124 | BS94: 124 | BT94: 124 | BU94: 124 | BV94: 124 | BW94: 124 | BX94: 124 | BY94: 124 | BZ94: 124 | CA94: 124 | CB94: 124 | CC94: 124 | CD94: 124 | CE94: 124 | CF94: 124 | CG94: 124 | CH94: 124 | CI94: 124 | CJ94: 124 | CK94: 124 | CL94: 124 | CM94: 124 | CN94: 124 | CO94: 124 | CP94: 124 | CQ94: 124 | CR94: 124 | CS94: 124 | CT94: 124 | CU94: 124 | CV94: 124
A95: 0 | B95: 0 | C95: 0 | D95: 0 | E95: 0 | F95: 0 | G95: 0 | H95: 0 | I95: 0 | J95: 0 | K95: 0 | L95: 0 | M95: 0 | N95: 0 | O95: 0 | P95: 0 | Q95: 0 | R95: 0 | S95: 0 | T95: 0 | U95: 0 | V95: 0 | W95: 0 | X95: 0 | Y95: 0 | Z95: 0 | AA95: 0 | AB95: 0 | AC95: 0 | AD95: 0 | AE95: 0 | AF95: 0 | AG95: 0 | AH95: 0 | AI95: 0 | AJ95: 0 | AK95: 0 | AL95: 0 | AM95: 0 | AN95: 0 | AO95: 0 | AP95: 0 | AQ95: 0 | AR95: 0 | AS95: 0 | AT95: 0 | AU95: 0 | AV95: 0 | AW95: 0 | AX95: 0 | AY95: 0 | AZ95: 0 | BA95: 124 | BB95: 124 | BC95: 124 | BD95: 124 | BE95: 124 | BF95: 124 | BG95: 124 | BH95: 124 | BI95: 124 | BJ95: 124 | BK95: 124 | BL95: 124 | BM95: 124 | BN95: 124 | BO95: 124 | BP95: 124 | BQ95: 124 | BR95: 124 | BS95: 124 | BT95: 124 | BU95: 124 | BV95: 124 | BW95: 124 | BX95: 124 | BY95: 124 | BZ95: 124 | CA95: 124 | CB95: 124 | CC95: 124 | CD95: 124 | CE95: 124 | CF95: 124 | CG95: 124 | CH95: 124 | CI95: 124 | CJ95: 124 | CK95: 124 | CL95: 124 | CM95: 124 | CN95: 124 | CO95: 124 | CP95: 124 | CQ95: 124 | CR95: 124 | CS95: 124 | CT95: 124 | CU95: 124 | CV95: 124
A96: 0 | B96: 0 | C96: 0 | D96: 0 | E96: 0 | F96: 0 | G96: 0 | H96: 0 | I96: 0 | J96: 0 | K96: 0 | L96: 0 | M96: 0 | N96: 0 | O96: 0 | P96: 0 | Q96: 0 | R96: 0 | S96: 0 | T96: 0 | U96: 0 | V96: 0 | W96: 0 | X96: 0 | Y96: 0 | Z96: 0 | AA96: 0 | AB96: 0 | AC96: 0 | AD96: 0 | AE96: 0 | AF96: 0 | AG96: 0 | AH96: 0 | AI96: 0 | AJ96: 0 | AK96: 0 | AL96: 0 | AM96: 0 | AN96: 0 | AO96: 0 | AP96: 0 | AQ96: 0 | AR96: 0 | AS96: 0 | AT96: 0 | AU96: 0 | AV96: 0 | AW96: 0 | AX96: 0 | AY96: 0 | AZ96: 0 | BA96: 124 | BB96: 124 | BC96: 124 | BD96: 124 | BE96: 124 | BF96: 124 | BG96: 124 | BH96: 124 | BI96: 124 | BJ96: 124 | BK96: 124 | BL96: 124 | BM96: 124 | BN96: 124 | BO96: 124 | BP96: 124 | BQ96: 124 | BR96: 124 | BS96: 124 | BT96: 124 | BU96: 124 | BV96: 124 | BW96: 124 | BX96: 124 | BY96: 124 | BZ96: 124 | CA96: 124 | CB96: 124 | CC96: 124 | CD96: 124 | CE96: 124 | CF96: 124 | CG96: 124 | CH96: 124 | CI96: 124 | CJ96: 124 | CK96: 124 | CL96: 124 | CM96: 124 | CN96: 124 | CO96: 124 | CP96: 124 | CQ96: 124 | CR96: 124 | CS96: 124 | CT96: 124 | CU96: 124 | CV96: 124
A97: 0 | B97: 0 | C97: 0 | D97: 0 | E97: 0 | F97: 0 | G97: 0 | H97: 0 | I97: 0 | J97: 0 | K97: 0 | L97: 0 | M97: 0 | N97: 0 | O97: 0 | P97: 0 | Q97: 0 | R97: 0 | S97: 0 | T97: 0 | U97: 0 | V97: 0 | W97: 0 | X97: 0 | Y97: 0 | Z97: 0 | AA97: 0 | AB97: 0 | AC97: 0 | AD97: 0 | AE97: 0 | AF97: 0 | AG97: 0 | AH97: 0 | AI97: 0 | AJ97: 0 | AK97: 0 | AL97: 0 | AM97: 0 | AN97: 0 | AO97: 0 | AP97: 0 | AQ97: 0 | AR97: 0 | AS97: 0 | AT97: 0 | AU97: 0 | AV97: 0 | AW97: 0 | AX97: 0 | AY97: 0 | AZ97: 0 | BA97: 124 | BB97: 124 | BC97: 124 | BD97: 124 | BE97: 124 | BF97: 124 | BG97: 124 | BH97: 124 | BI97: 124 | BJ97: 124 | BK97: 124 | BL97: 124 | BM97: 124 | BN97: 124 | BO97: 124 | BP97: 124 | BQ97: 124 | BR97: 124 | BS97: 124 | BT97: 124 | BU97: 124 | BV97: 124 | BW97: 124 | BX97: 124 | BY97: 124 | BZ97: 124 | CA97: 124 | CB97: 124 | CC97: 124 | CD97: 124 | CE97: 124 | CF97: 124 | CG97: 124 | CH97: 124 | CI97: 124 | CJ97: 124 | CK97: 124 | CL97: 124 | CM97: 124 | CN97: 124 | CO97: 124 | CP97: 124 | CQ97: 124 | CR97: 124 | CS97: 124 | CT97: 124 | CU97: 124 | CV97: 124
A98: 0 | B98: 0 | C98: 0 | D98: 0 | E98: 0 | F98: 0 | G98: 0 | H98: 0 | I98: 0 | J98: 0 | K98: 0 | L98: 0 | M98: 0 | N98: 0 | O98: 0 | P98: 0 | Q98: 0 | R98: 0 | S98: 0 | T98: 0 | U98: 0 | V98: 0 | W98: 0 | X98: 0 | Y98: 0 | Z98: 0 | AA98: 0 | AB98: 0 | AC98: 0 | AD98: 0 | AE98: 0 | AF98: 0 | AG98: 0 | AH98: 0 | AI98: 0 | AJ98: 0 | AK98: 0 | AL98: 0 | AM98: 0 | AN98: 0 | AO98: 0 | AP98: 0 | AQ98: 0 | AR98: 0 | AS98: 0 | AT98: 0 | AU98: 0 | AV98: 0 | AW98: 0 | AX98: 0 | AY98: 0 | AZ98: 0 | BA98: 124 | BB98: 124 | BC98: 124 | BD98: 124 | BE98: 124 | BF98: 124 | BG98: 124 | BH98: 124 | BI98: 124 | BJ98: 124 | BK98: 124 | BL98: 124 | BM98: 124 | BN98: 124 | BO98: 124 | BP98: 124 | BQ98: 124 | BR98: 124 | BS98: 124 | BT98: 124 | BU98: 124 | BV98: 124 | BW98: 124 | BX98: 124 | BY98: 124 | BZ98: 124 | CA98: 124 | CB98: 124 | CC98: 124 | CD98: 124 | CE98: 124 | CF98: 124 | CG98: 124 | CH98: 124 | CI98: 124 | CJ98: 124 | CK98: 124 | CL98: 124 | CM98: 124 | CN98: 124 | CO98: 124 | CP98: 124 | CQ98: 124 | CR98: 124 | CS98: 124 | CT98: 124 | CU98: 124 | CV98: 124
A99: 0 | B99: 0 | C99: 0 | D99: 0 | E99: 0 | F99: 0 | G99: 0 | H99: 0 | I99: 0 | J99: 0 | K99: 0 | L99: 0 | M99: 0 | N99: 0 | O99: 0 | P99: 0 | Q99: 0 | R99: 0 | S99: 0 | T99: 0 | U99: 0 | V99: 0 | W99: 0 | X99: 0 | Y99: 0 | Z99: 0 | AA99: 0 | AB99: 0 | AC99: 0 | AD99: 0 | AE99: 0 | AF99: 0 | AG99: 0 | AH99: 0 | AI99: 0 | AJ99: 0 | AK99: 0 | AL99: 0 | AM99: 0 | AN99: 0 | AO99: 0 | AP99: 0 | AQ99: 0 | AR99: 0 | AS99: 0 | AT99: 0 | AU99: 0 | AV99: 0 | AW99: 0 | AX99: 0 | AY99: 0 | AZ99: 0 | BA99: 124 | BB99: 124 | BC99: 124 | BD99: 124 | BE99: 124 | BF99: 124 | BG99: 124 | BH99: 124 | BI99: 124 | BJ99: 124 | BK99: 124 | BL99: 124 | BM99: 124 | BN99: 124 | BO99: 124 | BP99: 124 | BQ99: 124 | BR99: 124 | BS99: 124 | BT99: 124 | BU99: 124 | BV99: 124 | BW99: 124 | BX99: 124 | BY99: 124 | BZ99: 124 | CA99: 124 | CB99: 124 | CC99: 124 | CD99: 124 | CE99: 124 | CF99: 124 | CG99: 124 | CH99: 124 | CI99: 124 | CJ99: 124 | CK99: 124 | CL99: 124 | CM99: 124 | CN99: 124 | CO99: 124 | CP99: 124 | CQ99: 124 | CR99: 124 | CS99: 124 | CT99: 124 | CU99: 124 | CV99: 124
A100: 0 | B100: 0 | C100: 0 | D100: 0 | E100: 0 | F100: 0 | G100: 0 | H100: 0 | I100: 0 | J100: 0 | K100: 0 | L100: 0 | M100: 0 | N100: 0 | O100: 0 | P100: 0 | Q100: 0 | R100: 0 | S100: 0 | T100: 0 | U100: 0 | V100: 0 | W100: 0 | X100: 0 | Y100: 0 | Z100: 0 | AA100: 0 | AB100: 0 | AC100: 0 | AD100: 0 | AE100: 0 | AF100: 0 | AG100: 0 | AH100: 0 | AI100: 0 | AJ100: 0 | AK100: 0 | AL100: 0 | AM100: 0 | AN100: 0 | AO100: 0 | AP100: 0 | AQ100: 0 | AR100: 0 | AS100: 0 | AT100: 0 | AU100: 0 | AV100: 0 | AW100: 0 | AX100: 0 | AY100: 0 | AZ100: 0 | BA100: 124 | BB100: 124 | BC100: 124 | BD100: 124 | BE100: 124 | BF100: 124 | BG100: 124 | BH100: 124 | BI100: 124 | BJ100: 124 | BK100: 124 | BL100: 124 | BM100: 124 | BN100: 124 | BO100: 124 | BP100: 124 | BQ100: 124 | BR100: 124 | BS100: 124 | BT100: 124 | BU100: 124 | BV100: 124 | BW100: 124 | BX100: 124 | BY100: 124 | BZ100: 124 | CA100: 124 | CB100: 124 | CC100: 124 | CD100: 124 | CE100: 124 | CF100: 124 | CG100: 124 | CH100: 124 | CI100: 124 | CJ100: 124 | CK100: 124 | CL100: 124 | CM100: 124 | CN100: 124 | CO100: 124 | CP100: 124 | CQ100: 124 | CR100: 124 | CS100: 124 | CT100: 124 | CU100: 124 | CV100: 124

Sheet S
A1: =SUMIF(Interface!$F$2:$F$101,"="&Interface!B2,Interface!$L$2:$L$101)+SUMIF(Interface!$G$2:$G$101,"="&Interface!B2,Interface!$L$2:$L$101)+SUMIF(Interface!$H$2:$H$101,"="&Interface!B2,Interface!$L$2:$L$101)+SUMIF(Interface!$I$2:$I$101,"="&Interface!B2,Interface!$M$2:$M$101)+SUMIF(Interface!$J$2:$J$101,"="&Interface!B2,Interface!$M$2:$M$101)+SUMIF(Interface!$K$2:$K$101,"="&Interface!B2,Interface!$M$2:$M$101) -> 881
A2: =SUMIF(Interface!$F$2:$F$101,"="&Interface!B3,Interface!$L$2:$L$101)+SUMIF(Interface!$G$2:$G$101,"="&Interface!B3,Interface!$L$2:$L$101)+SUMIF(Interface!$H$2:$H$101,"="&Interface!B3,Interface!$L$2:$L$101)+SUMIF(Interface!$I$2:$I$101,"="&Interface!B3,Interface!$M$2:$M$101)+SUMIF(Interface!$J$2:$J$101,"="&Interface!B3,Interface!$M$2:$M$101)+SUMIF(Interface!$K$2:$K$101,"="&Interface!B3,Interface!$M$2:$M$101) -> 1129
A3: =SUMIF(Interface!$F$2:$F$101,"="&Interface!B4,Interface!$L$2:$L$101)+SUMIF(Interface!$G$2:$G$101,"="&Interface!B4,Interface!$L$2:$L$101)+SUMIF(Interface!$H$2:$H$101,"="&Interface!B4,Interface!$L$2:$L$101)+SUMIF(Interface!$I$2:$I$101,"="&Interface!B4,Interface!$M$2:$M$101)+SUMIF(Interface!$J$2:$J$101,"="&Interface!B4,Interface!$M$2:$M$101)+SUMIF(Interface!$K$2:$K$101,"="&Interface!B4,Interface!$M$2:$M$101) -> 792
A4: =SUMIF(Interface!$F$2:$F$101,"="&Interface!B5,Interface!$L$2:$L$101)+SUMIF(Interface!$G$2:$G$101,"="&Interface!B5,Interface!$L$2:$L$101)+SUMIF(Interface!$H$2:$H$101,"="&Interface!B5,Interface!$L$2:$L$101)+SUMIF(Interface!$I$2:$I$101,"="&Interface!B5,Interface!$M$2:$M$101)+SUMIF(Interface!$J$2:$J$101,"="&Interface!B5,Interface!$M$2:$M$101)+SUMIF(Interface!$K$2:$K$101,"="&Interface!B5,Interface!$M$2:$M$101) -> 767
A5: =SUMIF(Interface!$F$2:$F$101,"="&Interface!B6,Interface!$L$2:$L$101)+SUMIF(Interface!$G$2:$G$101,"="&Interface!B6,Interface!$L$2:$L$101)+SUMIF(Interface!$H$2:$H$101,"="&Interface!B6,Interface!$L$2:$L$101)+SUMIF(Interface!$I$2:$I$101,"="&Interface!B6,Interface!$M$2:$M$101)+SUMIF(Interface!$J$2:$J$101,"="&Interface!B6,Interface!$M$2:$M$101)+SUMIF(Interface!$K$2:$K$101,"="&Interface!B6,Interface!$M$2:$M$101) -> 766
A6: =SUMIF(Interface!$F$2:$F$101,"="&Interface!B7,Interface!$L$2:$L$101)+SUMIF(Interface!$G$2:$G$101,"="&Interface!B7,Interface!$L$2:$L$101)+SUMIF(Interface!$H$2:$H$101,"="&Interface!B7,Interface!$L$2:$L$101)+SUMIF(Interface!$I$2:$I$101,"="&Interface!B7,Interface!$M$2:$M$101)+SUMIF(Interface!$J$2:$J$101,"="&Interface!B7,Interface!$M$2:$M$101)+SUMIF(Interface!$K$2:$K$101,"="&Interface!B7,Interface!$M$2:$M$101) -> 957
A7: =SUMIF(Interface!$F$2:$F$101,"="&Interface!B8,Interface!$L$2:$L$101)+SUMIF(Interface!$G$2:$G$101,"="&Interface!B8,Interface!$L$2:$L$101)+SUMIF(Interface!$H$2:$H$101,"="&Interface!B8,Interface!$L$2:$L$101)+SUMIF(Interface!$I$2:$I$101,"="&Interface!B8,Interface!$M$2:$M$101)+SUMIF(Interface!$J$2:$J$101,"="&Interface!B8,Interface!$M$2:$M$101)+SUMIF(Interface!$K$2:$K$101,"="&Interface!B8,Interface!$M$2:$M$101) -> 828
A8: =SUMIF(Interface!$F$2:$F$101,"="&Interface!B9,Interface!$L$2:$L$101)+SUMIF(Interface!$G$2:$G$101,"="&Interface!B9,Interface!$L$2:$L$101)+SUMIF(Interface!$H$2:$H$101,"="&Interface!B9,Interface!$L$2:$L$101)+SUMIF(Interface!$I$2:$I$101,"="&Interface!B9,Interface!$M$2:$M$101)+SUMIF(Interface!$J$2:$J$101,"="&Interface!B9,Interface!$M$2:$M$101)+SUMIF(Interface!$K$2:$K$101,"="&Interface!B9,Interface!$M$2:$M$101) -> 1003
A9: =SUMIF(Interface!$F$2:$F$101,"="&Interface!B10,Interface!$L$2:$L$101)+SUMIF(Interface!$G$2:$G$101,"="&Interface!B10,Interface!$L$2:$L$101)+SUMIF(Interface!$H$2:$H$101,"="&Interface!B10,Interface!$L$2:$L$101)+SUMIF(Interface!$I$2:$I$101,"="&Interface!B10,Interface!$M$2:$M$101)+SUMIF(Interface!$J$2:$J$101,"="&Interface!B10,Interface!$M$2:$M$101)+SUMIF(Interface!$K$2:$K$101,"="&Interface!B10,Interface!$M$2:$M$101) -> 1108
A10: =SUMIF(Interface!$F$2:$F$101,"="&Interface!B11,Interface!$L$2:$L$101)+SUMIF(Interface!$G$2:$G$101,"="&Interface!B11,Interface!$L$2:$L$101)+SUMIF(Interface!$H$2:$H$101,"="&Interface!B11,Interface!$L$2:$L$101)+SUMIF(Interface!$I$2:$I$101,"="&Interface!B11,Interface!$M$2:$M$101)+SUMIF(Interface!$J$2:$J$101,"="&Interface!B11,Interface!$M$2:$M$101)+SUMIF(Interface!$K$2:$K$101,"="&Interface!B11,Interface!$M$2:$M$101) -> 861
A11: =SUMIF(Interface!$F$2:$F$101,"="&Interface!B12,Interface!$L$2:$L$101)+SUMIF(Interface!$G$2:$G$101,"="&Interface!B12,Interface!$L$2:$L$101)+SUMIF(Interface!$H$2:$H$101,"="&Interface!B12,Interface!$L$2:$L$101)+SUMIF(Interface!$I$2:$I$101,"="&Interface!B12,Interface!$M$2:$M$101)+SUMIF(Interface!$J$2:$J$101,"="&Interface!B12,Interface!$M$2:$M$101)+SUMIF(Interface!$K$2:$K$101,"="&Interface!B12,Interface!$M$2:$M$101) -> 955
A12: =SUMIF(Interface!$F$2:$F$101,"="&Interface!B13,Interface!$L$2:$L$101)+SUMIF(Interface!$G$2:$G$101,"="&Interface!B13,Interface!$L$2:$L$101)+SUMIF(Interface!$H$2:$H$101,"="&Interface!B13,Interface!$L$2:$L$101)+SUMIF(Interface!$I$2:$I$101,"="&Interface!B13,Interface!$M$2:$M$101)+SUMIF(Interface!$J$2:$J$101,"="&Interface!B13,Interface!$M$2:$M$101)+SUMIF(Interface!$K$2:$K$101,"="&Interface!B13,Interface!$M$2:$M$101) -> 760
A13: =SUMIF(Interface!$F$2:$F$101,"="&Interface!B14,Interface!$L$2:$L$101)+SUMIF(Interface!$G$2:$G$101,"="&Interface!B14,Interface!$L$2:$L$101)+SUMIF(Interface!$H$2:$H$101,"="&Interface!B14,Interface!$L$2:$L$101)+SUMIF(Interface!$I$2:$I$101,"="&Interface!B14,Interface!$M$2:$M$101)+SUMIF(Interface!$J$2:$J$101,"="&Interface!B14,Interface!$M$2:$M$101)+SUMIF(Interface!$K$2:$K$101,"="&Interface!B14,Interface!$M$2:$M$101) -> 679
A14: =SUMIF(Interface!$F$2:$F$101,"="&Interface!B15,Interface!$L$2:$L$101)+SUMIF(Interface!$G$2:$G$101,"="&Interface!B15,Interface!$L$2:$L$101)+SUMIF(Interface!$H$2:$H$101,"="&Interface!B15,Interface!$L$2:$L$101)+SUMIF(Interface!$I$2:$I$101,"="&Interface!B15,Interface!$M$2:$M$101)+SUMIF(Interface!$J$2:$J$101,"="&Interface!B15,Interface!$M$2:$M$101)+SUMIF(Interface!$K$2:$K$101,"="&Interface!B15,Interface!$M$2:$M$101) -> 792
A15: =SUMIF(Interface!$F$2:$F$101,"="&Interface!B16,Interface!$L$2:$L$101)+SUMIF(Interface!$G$2:$G$101,"="&Interface!B16,Interface!$L$2:$L$101)+SUMIF(Interface!$H$2:$H$101,"="&Interface!B16,Interface!$L$2:$L$101)+SUMIF(Interface!$I$2:$I$101,"="&Interface!B16,Interface!$M$2:$M$101)+SUMIF(Interface!$J$2:$J$101,"="&Interface!B16,Interface!$M$2:$M$101)+SUMIF(Interface!$K$2:$K$101,"="&Interface!B16,Interface!$M$2:$M$101) -> 917
A16: =SUMIF(Interface!$F$2:$F$101,"="&Interface!B17,Interface!$L$2:$L$101)+SUMIF(Interface!$G$2:$G$101,"="&Interface!B17,Interface!$L$2:$L$101)+SUMIF(Interface!$H$2:$H$101,"="&Interface!B17,Interface!$L$2:$L$101)+SUMIF(Interface!$I$2:$I$101,"="&Interface!B17,Interface!$M$2:$M$101)+SUMIF(Interface!$J$2:$J$101,"="&Interface!B17,Interface!$M$2:$M$101)+SUMIF(Interface!$K$2:$K$101,"="&Interface!B17,Interface!$M$2:$M$101) -> 967
A17: =SUMIF(Interface!$F$2:$F$101,"="&Interface!B18,Interface!$L$2:$L$101)+SUMIF(Interface!$G$2:$G$101,"="&Interface!B18,Interface!$L$2:$L$101)+SUMIF(Interface!$H$2:$H$101,"="&Interface!B18,Interface!$L$2:$L$101)+SUMIF(Interface!$I$2:$I$101,"="&Interface!B18,Interface!$M$2:$M$101)+SUMIF(Interface!$J$2:$J$101,"="&Interface!B18,Interface!$M$2:$M$101)+SUMIF(Interface!$K$2:$K$101,"="&Interface!B18,Interface!$M$2:$M$101) -> 714
A18: =SUMIF(Interface!$F$2:$F$101,"="&Interface!B19,Interface!$L$2:$L$101)+SUMIF(Interface!$G$2:$G$101,"="&Interface!B19,Interface!$L$2:$L$101)+SUMIF(Interface!$H$2:$H$101,"="&Interface!B19,Interface!$L$2:$L$101)+SUMIF(Interface!$I$2:$I$101,"="&Interface!B19,Interface!$M$2:$M$101)+SUMIF(Interface!$J$2:$J$101,"="&Interface!B19,Interface!$M$2:$M$101)+SUMIF(Interface!$K$2:$K$101,"="&Interface!B19,Interface!$M$2:$M$101) -> 767
A19: =SUMIF(Interface!$F$2:$F$101,"="&Interface!B20,Interface!$L$2:$L$101)+SUMIF(Interface!$G$2:$G$101,"="&Interface!B20,Interface!$L$2:$L$101)+SUMIF(Interface!$H$2:$H$101,"="&Interface!B20,Interface!$L$2:$L$101)+SUMIF(Interface!$I$2:$I$101,"="&Interface!B20,Interface!$M$2:$M$101)+SUMIF(Interface!$J$2:$J$101,"="&Interface!B20,Interface!$M$2:$M$101)+SUMIF(Interface!$K$2:$K$101,"="&Interface!B20,Interface!$M$2:$M$101) -> 985
A20: =SUMIF(Interface!$F$2:$F$101,"="&Interface!B21,Interface!$L$2:$L$101)+SUMIF(Interface!$G$2:$G$101,"="&Interface!B21,Interface!$L$2:$L$101)+SUMIF(Interface!$H$2:$H$101,"="&Interface!B21,Interface!$L$2:$L$101)+SUMIF(Interface!$I$2:$I$101,"="&Interface!B21,Interface!$M$2:$M$101)+SUMIF(Interface!$J$2:$J$101,"="&Interface!B21,Interface!$M$2:$M$101)+SUMIF(Interface!$K$2:$K$101,"="&Interface!B21,Interface!$M$2:$M$101) -> 1125
A21: =SUMIF(Interface!$F$2:$F$101,"="&Interface!B22,Interface!$L$2:$L$101)+SUMIF(Interface!$G$2:$G$101,"="&Interface!B22,Interface!$L$2:$L$101)+SUMIF(Interface!$H$2:$H$101,"="&Interface!B22,Interface!$L$2:$L$101)+SUMIF(Interface!$I$2:$I$101,"="&Interface!B22,Interface!$M$2:$M$101)+SUMIF(Interface!$J$2:$J$101,"="&Interface!B22,Interface!$M$2:$M$101)+SUMIF(Interface!$K$2:$K$101,"="&Interface!B22,Interface!$M$2:$M$101) -> 775
A22: =SUMIF(Interface!$F$2:$F$101,"="&Interface!B23,Interface!$L$2:$L$101)+SUMIF(Interface!$G$2:$G$101,"="&Interface!B23,Interface!$L$2:$L$101)+SUMIF(Interface!$H$2:$H$101,"="&Interface!B23,Interface!$L$2:$L$101)+SUMIF(Interface!$I$2:$I$101,"="&Interface!B23,Interface!$M$2:$M$101)+SUMIF(Interface!$J$2:$J$101,"="&Interface!B23,Interface!$M$2:$M$101)+SUMIF(Interface!$K$2:$K$101,"="&Interface!B23,Interface!$M$2:$M$101) -> 846
A23: =SUMIF(Interface!$F$2:$F$101,"="&Interface!B24,Interface!$L$2:$L$101)+SUMIF(Interface!$G$2:$G$101,"="&Interface!B24,Interface!$L$2:$L$101)+SUMIF(Interface!$H$2:$H$101,"="&Interface!B24,Interface!$L$2:$L$101)+SUMIF(Interface!$I$2:$I$101,"="&Interface!B24,Interface!$M$2:$M$101)+SUMIF(Interface!$J$2:$J$101,"="&Interface!B24,Interface!$M$2:$M$101)+SUMIF(Interface!$K$2:$K$101,"="&Interface!B24,Interface!$M$2:$M$101) -> 700
A24: =SUMIF(Interface!$F$2:$F$101,"="&Interface!B25,Interface!$L$2:$L$101)+SUMIF(Interface!$G$2:$G$101,"="&Interface!B25,Interface!$L$2:$L$101)+SUMIF(Interface!$H$2:$H$101,"="&Interface!B25,Interface!$L$2:$L$101)+SUMIF(Interface!$I$2:$I$101,"="&Interface!B25,Interface!$M$2:$M$101)+SUMIF(Interface!$J$2:$J$101,"="&Interface!B25,Interface!$M$2:$M$101)+SUMIF(Interface!$K$2:$K$101,"="&Interface!B25,Interface!$M$2:$M$101) -> 885
A25: =SUMIF(Interface!$F$2:$F$101,"="&Interface!B26,Interface!$L$2:$L$101)+SUMIF(Interface!$G$2:$G$101,"="&Interface!B26,Interface!$L$2:$L$101)+SUMIF(Interface!$H$2:$H$101,"="&Interface!B26,Interface!$L$2:$L$101)+SUMIF(Interface!$I$2:$I$101,"="&Interface!B26,Interface!$M$2:$M$101)+SUMIF(Interface!$J$2:$J$101,"="&Interface!B26,Interface!$M$2:$M$101)+SUMIF(Interface!$K$2:$K$101,"="&Interface!B26,Interface!$M$2:$M$101) -> 963
A26: =SUMIF(Interface!$F$2:$F$101,"="&Interface!B27,Interface!$L$2:$L$101)+SUMIF(Interface!$G$2:$G$101,"="&Interface!B27,Interface!$L$2:$L$101)+SUMIF(Interface!$H$2:$H$101,"="&Interface!B27,Interface!$L$2:$L$101)+SUMIF(Interface!$I$2:$I$101,"="&Interface!B27,Interface!$M$2:$M$101)+SUMIF(Interface!$J$2:$J$101,"="&Interface!B27,Interface!$M$2:$M$101)+SUMIF(Interface!$K$2:$K$101,"="&Interface!B27,Interface!$M$2:$M$101) -> 767
A27: =SUMIF(Interface!$F$2:$F$101,"="&Interface!B28,Interface!$L$2:$L$101)+SUMIF(Interface!$G$2:$G$101,"="&Interface!B28,Interface!$L$2:$L$101)+SUMIF(Interface!$H$2:$H$101,"="&Interface!B28,Interface!$L$2:$L$101)+SUMIF(Interface!$I$2:$I$101,"="&Interface!B28,Interface!$M$2:$M$101)+SUMIF(Interface!$J$2:$J$101,"="&Interface!B28,Interface!$M$2:$M$101)+SUMIF(Interface!$K$2:$K$101,"="&Interface!B28,Interface!$M$2:$M$101) -> 573
A28: =SUMIF(Interface!$F$2:$F$101,"="&Interface!B29,Interface!$L$2:$L$101)+SUMIF(Interface!$G$2:$G$101,"="&Interface!B29,Interface!$L$2:$L$101)+SUMIF(Interface!$H$2:$H$101,"="&Interface!B29,Interface!$L$2:$L$101)+SUMIF(Interface!$I$2:$I$101,"="&Interface!B29,Interface!$M$2:$M$101)+SUMIF(Interface!$J$2:$J$101,"="&Interface!B29,Interface!$M$2:$M$101)+SUMIF(Interface!$K$2:$K$101,"="&Interface!B29,Interface!$M$2:$M$101) -> 814
A29: =SUMIF(Interface!$F$2:$F$101,"="&Interface!B30,Interface!$L$2:$L$101)+SUMIF(Interface!$G$2:$G$101,"="&Interface!B30,Interface!$L$2:$L$101)+SUMIF(Interface!$H$2:$H$101,"="&Interface!B30,Interface!$L$2:$L$101)+SUMIF(Interface!$I$2:$I$101,"="&Interface!B30,Interface!$M$2:$M$101)+SUMIF(Interface!$J$2:$J$101,"="&Interface!B30,Interface!$M$2:$M$101)+SUMIF(Interface!$K$2:$K$101,"="&Interface!B30,Interface!$M$2:$M$101) -> 743
A30: =SUMIF(Interface!$F$2:$F$101,"="&Interface!B31,Interface!$L$2:$L$101)+SUMIF(Interface!$G$2:$G$101,"="&Interface!B31,Interface!$L$2:$L$101)+SUMIF(Interface!$H$2:$H$101,"="&Interface!B31,Interface!$L$2:$L$101)+SUMIF(Interface!$I$2:$I$101,"="&Interface!B31,Interface!$M$2:$M$101)+SUMIF(Interface!$J$2:$J$101,"="&Interface!B31,Interface!$M$2:$M$101)+SUMIF(Interface!$K$2:$K$101,"="&Interface!B31,Interface!$M$2:$M$101) -> 704
A31: =SUMIF(Interface!$F$2:$F$101,"="&Interface!B32,Interface!$L$2:$L$101)+SUMIF(Interface!$G$2:$G$101,"="&Interface!B32,Interface!$L$2:$L$101)+SUMIF(Interface!$H$2:$H$101,"="&Interface!B32,Interface!$L$2:$L$101)+SUMIF(Interface!$I$2:$I$101,"="&Interface!B32,Interface!$M$2:$M$101)+SUMIF(Interface!$J$2:$J$101,"="&Interface!B32,Interface!$M$2:$M$101)+SUMIF(Interface!$K$2:$K$101,"="&Interface!B32,Interface!$M$2:$M$101) -> 891
A32: =SUMIF(Interface!$F$2:$F$101,"="&Interface!B33,Interface!$L$2:$L$101)+SUMIF(Interface!$G$2:$G$101,"="&Interface!B33,Interface!$L$2:$L$101)+SUMIF(Interface!$H$2:$H$101,"="&Interface!B33,Interface!$L$2:$L$101)+SUMIF(Interface!$I$2:$I$101,"="&Interface!B33,Interface!$M$2:$M$101)+SUMIF(Interface!$J$2:$J$101,"="&Interface!B33,Interface!$M$2:$M$101)+SUMIF(Interface!$K$2:$K$101,"="&Interface!B33,Interface!$M$2:$M$101) -> 851
A33: =SUMIF(Interface!$F$2:$F$101,"="&Interface!B34,Interface!$L$2:$L$101)+SUMIF(Interface!$G$2:$G$101,"="&Interface!B34,Interface!$L$2:$L$101)+SUMIF(Interface!$H$2:$H$101,"="&Interface!B34,Interface!$L$2:$L$101)+SUMIF(Interface!$I$2:$I$101,"="&Interface!B34,Interface!$M$2:$M$101)+SUMIF(Interface!$J$2:$J$101,"="&Interface!B34,Interface!$M$2:$M$101)+SUMIF(Interface!$K$2:$K$101,"="&Interface!B34,Interface!$M$2:$M$101) -> 814
A34: =SUMIF(Interface!$F$2:$F$101,"="&Interface!B35,Interface!$L$2:$L$101)+SUMIF(Interface!$G$2:$G$101,"="&Interface!B35,Interface!$L$2:$L$101)+SUMIF(Interface!$H$2:$H$101,"="&Interface!B35,Interface!$L$2:$L$101)+SUMIF(Interface!$I$2:$I$101,"="&Interface!B35,Interface!$M$2:$M$101)+SUMIF(Interface!$J$2:$J$101,"="&Interface!B35,Interface!$M$2:$M$101)+SUMIF(Interface!$K$2:$K$101,"="&Interface!B35,Interface!$M$2:$M$101) -> 1025
A35: =SUMIF(Interface!$F$2:$F$101,"="&Interface!B36,Interface!$L$2:$L$101)+SUMIF(Interface!$G$2:$G$101,"="&Interface!B36,Interface!$L$2:$L$101)+SUMIF(Interface!$H$2:$H$101,"="&Interface!B36,Interface!$L$2:$L$101)+SUMIF(Interface!$I$2:$I$101,"="&Interface!B36,Interface!$M$2:$M$101)+SUMIF(Interface!$J$2:$J$101,"="&Interface!B36,Interface!$M$2:$M$101)+SUMIF(Interface!$K$2:$K$101,"="&Interface!B36,Interface!$M$2:$M$101) -> 733
A36: =SUMIF(Interface!$F$2:$F$101,"="&Interface!B37,Interface!$L$2:$L$101)+SUMIF(Interface!$G$2:$G$101,"="&Interface!B37,Interface!$L$2:$L$101)+SUMIF(Interface!$H$2:$H$101,"="&Interface!B37,Interface!$L$2:$L$101)+SUMIF(Interface!$I$2:$I$101,"="&Interface!B37,Interface!$M$2:$M$101)+SUMIF(Interface!$J$2:$J$101,"="&Interface!B37,Interface!$M$2:$M$101)+SUMIF(Interface!$K$2:$K$101,"="&Interface!B37,Interface!$M$2:$M$101) -> 869
A37: =SUMIF(Interface!$F$2:$F$101,"="&Interface!B38,Interface!$L$2:$L$101)+SUMIF(Interface!$G$2:$G$101,"="&Interface!B38,Interface!$L$2:$L$101)+SUMIF(Interface!$H$2:$H$101,"="&Interface!B38,Interface!$L$2:$L$101)+SUMIF(Interface!$I$2:$I$101,"="&Interface!B38,Interface!$M$2:$M$101)+SUMIF(Interface!$J$2:$J$101,"="&Interface!B38,Interface!$M$2:$M$101)+SUMIF(Interface!$K$2:$K$101,"="&Interface!B38,Interface!$M$2:$M$101) -> 667
A38: =SUMIF(Interface!$F$2:$F$101,"="&Interface!B39,Interface!$L$2:$L$101)+SUMIF(Interface!$G$2:$G$101,"="&Interface!B39,Interface!$L$2:$L$101)+SUMIF(Interface!$H$2:$H$101,"="&Interface!B39,Interface!$L$2:$L$101)+SUMIF(Interface!$I$2:$I$101,"="&Interface!B39,Interface!$M$2:$M$101)+SUMIF(Interface!$J$2:$J$101,"="&Interface!B39,Interface!$M$2:$M$101)+SUMIF(Interface!$K$2:$K$101,"="&Interface!B39,Interface!$M$2:$M$101) -> 754
A39: =SUMIF(Interface!$F$2:$F$101,"="&Interface!B40,Interface!$L$2:$L$101)+SUMIF(Interface!$G$2:$G$101,"="&Interface!B40,Interface!$L$2:$L$101)+SUMIF(Interface!$H$2:$H$101,"="&Interface!B40,Interface!$L$2:$L$101)+SUMIF(Interface!$I$2:$I$101,"="&Interface!B40,Interface!$M$2:$M$101)+SUMIF(Interface!$J$2:$J$101,"="&Interface!B40,Interface!$M$2:$M$101)+SUMIF(Interface!$K$2:$K$101,"="&Interface!B40,Interface!$M$2:$M$101) -> 731
A40: =SUMIF(Interface!$F$2:$F$101,"="&Interface!B41,Interface!$L$2:$L$101)+SUMIF(Interface!$G$2:$G$101,"="&Interface!B41,Interface!$L$2:$L$101)+SUMIF(Interface!$H$2:$H$101,"="&Interface!B41,Interface!$L$2:$L$101)+SUMIF(Interface!$I$2:$I$101,"="&Interface!B41,Interface!$M$2:$M$101)+SUMIF(Interface!$J$2:$J$101,"="&Interface!B41,Interface!$M$2:$M$101)+SUMIF(Interface!$K$2:$K$101,"="&Interface!B41,Interface!$M$2:$M$101) -> 991
A41: =SUMIF(Interface!$F$2:$F$101,"="&Interface!B42,Interface!$L$2:$L$101)+SUMIF(Interface!$G$2:$G$101,"="&Interface!B42,Interface!$L$2:$L$101)+SUMIF(Interface!$H$2:$H$101,"="&Interface!B42,Interface!$L$2:$L$101)+SUMIF(Interface!$I$2:$I$101,"="&Interface!B42,Interface!$M$2:$M$101)+SUMIF(Interface!$J$2:$J$101,"="&Interface!B42,Interface!$M$2:$M$101)+SUMIF(Interface!$K$2:$K$101,"="&Interface!B42,Interface!$M$2:$M$101) -> 887
A42: =SUMIF(Interface!$F$2:$F$101,"="&Interface!B43,Interface!$L$2:$L$101)+SUMIF(Interface!$G$2:$G$101,"="&Interface!B43,Interface!$L$2:$L$101)+SUMIF(Interface!$H$2:$H$101,"="&Interface!B43,Interface!$L$2:$L$101)+SUMIF(Interface!$I$2:$I$101,"="&Interface!B43,Interface!$M$2:$M$101)+SUMIF(Interface!$J$2:$J$101,"="&Interface!B43,Interface!$M$2:$M$101)+SUMIF(Interface!$K$2:$K$101,"="&Interface!B43,Interface!$M$2:$M$101) -> 810
A43: =SUMIF(Interface!$F$2:$F$101,"="&Interface!B44,Interface!$L$2:$L$101)+SUMIF(Interface!$G$2:$G$101,"="&Interface!B44,Interface!$L$2:$L$101)+SUMIF(Interface!$H$2:$H$101,"="&Interface!B44,Interface!$L$2:$L$101)+SUMIF(Interface!$I$2:$I$101,"="&Interface!B44,Interface!$M$2:$M$101)+SUMIF(Interface!$J$2:$J$101,"="&Interface!B44,Interface!$M$2:$M$101)+SUMIF(Interface!$K$2:$K$101,"="&Interface!B44,Interface!$M$2:$M$101) -> 685
A44: =SUMIF(Interface!$F$2:$F$101,"="&Interface!B45,Interface!$L$2:$L$101)+SUMIF(Interface!$G$2:$G$101,"="&Interface!B45,Interface!$L$2:$L$101)+SUMIF(Interface!$H$2:$H$101,"="&Interface!B45,Interface!$L$2:$L$101)+SUMIF(Interface!$I$2:$I$101,"="&Interface!B45,Interface!$M$2:$M$101)+SUMIF(Interface!$J$2:$J$101,"="&Interface!B45,Interface!$M$2:$M$101)+SUMIF(Interface!$K$2:$K$101,"="&Interface!B45,Interface!$M$2:$M$101) -> 556
A45: =SUMIF(Interface!$F$2:$F$101,"="&Interface!B46,Interface!$L$2:$L$101)+SUMIF(Interface!$G$2:$G$101,"="&Interface!B46,Interface!$L$2:$L$101)+SUMIF(Interface!$H$2:$H$101,"="&Interface!B46,Interface!$L$2:$L$101)+SUMIF(Interface!$I$2:$I$101,"="&Interface!B46,Interface!$M$2:$M$101)+SUMIF(Interface!$J$2:$J$101,"="&Interface!B46,Interface!$M$2:$M$101)+SUMIF(Interface!$K$2:$K$101,"="&Interface!B46,Interface!$M$2:$M$101) -> 721
A46: =SUMIF(Interface!$F$2:$F$101,"="&Interface!B47,Interface!$L$2:$L$101)+SUMIF(Interface!$G$2:$G$101,"="&Interface!B47,Interface!$L$2:$L$101)+SUMIF(Interface!$H$2:$H$101,"="&Interface!B47,Interface!$L$2:$L$101)+SUMIF(Interface!$I$2:$I$101,"="&Interface!B47,Interface!$M$2:$M$101)+SUMIF(Interface!$J$2:$J$101,"="&Interface!B47,Interface!$M$2:$M$101)+SUMIF(Interface!$K$2:$K$101,"="&Interface!B47,Interface!$M$2:$M$101) -> 761
A47: =SUMIF(Interface!$F$2:$F$101,"="&Interface!B48,Interface!$L$2:$L$101)+SUMIF(Interface!$G$2:$G$101,"="&Interface!B48,Interface!$L$2:$L$101)+SUMIF(Interface!$H$2:$H$101,"="&Interface!B48,Interface!$L$2:$L$101)+SUMIF(Interface!$I$2:$I$101,"="&Interface!B48,Interface!$M$2:$M$101)+SUMIF(Interface!$J$2:$J$101,"="&Interface!B48,Interface!$M$2:$M$101)+SUMIF(Interface!$K$2:$K$101,"="&Interface!B48,Interface!$M$2:$M$101) -> 622
A48: =SUMIF(Interface!$F$2:$F$101,"="&Interface!B49,Interface!$L$2:$L$101)+SUMIF(Interface!$G$2:$G$101,"="&Interface!B49,Interface!$L$2:$L$101)+SUMIF(Interface!$H$2:$H$101,"="&Interface!B49,Interface!$L$2:$L$101)+SUMIF(Interface!$I$2:$I$101,"="&Interface!B49,Interface!$M$2:$M$101)+SUMIF(Interface!$J$2:$J$101,"="&Interface!B49,Interface!$M$2:$M$101)+SUMIF(Interface!$K$2:$K$101,"="&Interface!B49,Interface!$M$2:$M$101) -> 647
A49: =SUMIF(Interface!$F$2:$F$101,"="&Interface!B50,Interface!$L$2:$L$101)+SUMIF(Interface!$G$2:$G$101,"="&Interface!B50,Interface!$L$2:$L$101)+SUMIF(Interface!$H$2:$H$101,"="&Interface!B50,Interface!$L$2:$L$101)+SUMIF(Interface!$I$2:$I$101,"="&Interface!B50,Interface!$M$2:$M$101)+SUMIF(Interface!$J$2:$J$101,"="&Interface!B50,Interface!$M$2:$M$101)+SUMIF(Interface!$K$2:$K$101,"="&Interface!B50,Interface!$M$2:$M$101) -> 829
A50: =SUMIF(Interface!$F$2:$F$101,"="&Interface!B51,Interface!$L$2:$L$101)+SUMIF(Interface!$G$2:$G$101,"="&Interface!B51,Interface!$L$2:$L$101)+SUMIF(Interface!$H$2:$H$101,"="&Interface!B51,Interface!$L$2:$L$101)+SUMIF(Interface!$I$2:$I$101,"="&Interface!B51,Interface!$M$2:$M$101)+SUMIF(Interface!$J$2:$J$101,"="&Interface!B51,Interface!$M$2:$M$101)+SUMIF(Interface!$K$2:$K$101,"="&Interface!B51,Interface!$M$2:$M$101) -> 889
A51: =SUMIF(Interface!$F$2:$F$101,"="&Interface!B52,Interface!$L$2:$L$101)+SUMIF(Interface!$G$2:$G$101,"="&Interface!B52,Interface!$L$2:$L$101)+SUMIF(Interface!$H$2:$H$101,"="&Interface!B52,Interface!$L$2:$L$101)+SUMIF(Interface!$I$2:$I$101,"="&Interface!B52,Interface!$M$2:$M$101)+SUMIF(Interface!$J$2:$J$101,"="&Interface!B52,Interface!$M$2:$M$101)+SUMIF(Interface!$K$2:$K$101,"="&Interface!B52,Interface!$M$2:$M$101) -> 769
A52: =SUMIF(Interface!$F$2:$F$101,"="&Interface!B53,Interface!$L$2:$L$101)+SUMIF(Interface!$G$2:$G$101,"="&Interface!B53,Interface!$L$2:$L$101)+SUMIF(Interface!$H$2:$H$101,"="&Interface!B53,Interface!$L$2:$L$101)+SUMIF(Interface!$I$2:$I$101,"="&Interface!B53,Interface!$M$2:$M$101)+SUMIF(Interface!$J$2:$J$101,"="&Interface!B53,Interface!$M$2:$M$101)+SUMIF(Interface!$K$2:$K$101,"="&Interface!B53,Interface!$M$2:$M$101) -> 824
A53: =SUMIF(Interface!$F$2:$F$101,"="&Interface!B54,Interface!$L$2:$L$101)+SUMIF(Interface!$G$2:$G$101,"="&Interface!B54,Interface!$L$2:$L$101)+SUMIF(Interface!$H$2:$H$101,"="&Interface!B54,Interface!$L$2:$L$101)+SUMIF(Interface!$I$2:$I$101,"="&Interface!B54,Interface!$M$2:$M$101)+SUMIF(Interface!$J$2:$J$101,"="&Interface!B54,Interface!$M$2:$M$101)+SUMIF(Interface!$K$2:$K$101,"="&Interface!B54,Interface!$M$2:$M$101) -> 0
A54: =SUMIF(Interface!$F$2:$F$101,"="&Interface!B55,Interface!$L$2:$L$101)+SUMIF(Interface!$G$2:$G$101,"="&Interface!B55,Interface!$L$2:$L$101)+SUMIF(Interface!$H$2:$H$101,"="&Interface!B55,Interface!$L$2:$L$101)+SUMIF(Interface!$I$2:$I$101,"="&Interface!B55,Interface!$M$2:$M$101)+SUMIF(Interface!$J$2:$J$101,"="&Interface!B55,Interface!$M$2:$M$101)+SUMIF(Interface!$K$2:$K$101,"="&Interface!B55,Interface!$M$2:$M$101) -> 0
A55: =SUMIF(Interface!$F$2:$F$101,"="&Interface!B56,Interface!$L$2:$L$101)+SUMIF(Interface!$G$2:$G$101,"="&Interface!B56,Interface!$L$2:$L$101)+SUMIF(Interface!$H$2:$H$101,"="&Interface!B56,Interface!$L$2:$L$101)+SUMIF(Interface!$I$2:$I$101,"="&Interface!B56,Interface!$M$2:$M$101)+SUMIF(Interface!$J$2:$J$101,"="&Interface!B56,Interface!$M$2:$M$101)+SUMIF(Interface!$K$2:$K$101,"="&Interface!B56,Interface!$M$2:$M$101) -> 0
A56: =SUMIF(Interface!$F$2:$F$101,"="&Interface!B57,Interface!$L$2:$L$101)+SUMIF(Interface!$G$2:$G$101,"="&Interface!B57,Interface!$L$2:$L$101)+SUMIF(Interface!$H$2:$H$101,"="&Interface!B57,Interface!$L$2:$L$101)+SUMIF(Interface!$I$2:$I$101,"="&Interface!B57,Interface!$M$2:$M$101)+SUMIF(Interface!$J$2:$J$101,"="&Interface!B57,Interface!$M$2:$M$101)+SUMIF(Interface!$K$2:$K$101,"="&Interface!B57,Interface!$M$2:$M$101) -> 0
A57: =SUMIF(Interface!$F$2:$F$101,"="&Interface!B58,Interface!$L$2:$L$101)+SUMIF(Interface!$G$2:$G$101,"="&Interface!B58,Interface!$L$2:$L$101)+SUMIF(Interface!$H$2:$H$101,"="&Interface!B58,Interface!$L$2:$L$101)+SUMIF(Interface!$I$2:$I$101,"="&Interface!B58,Interface!$M$2:$M$101)+SUMIF(Interface!$J$2:$J$101,"="&Interface!B58,Interface!$M$2:$M$101)+SUMIF(Interface!$K$2:$K$101,"="&Interface!B58,Interface!$M$2:$M$101) -> 0
A58: =SUMIF(Interface!$F$2:$F$101,"="&Interface!B59,Interface!$L$2:$L$101)+SUMIF(Interface!$G$2:$G$101,"="&Interface!B59,Interface!$L$2:$L$101)+SUMIF(Interface!$H$2:$H$101,"="&Interface!B59,Interface!$L$2:$L$101)+SUMIF(Interface!$I$2:$I$101,"="&Interface!B59,Interface!$M$2:$M$101)+SUMIF(Interface!$J$2:$J$101,"="&Interface!B59,Interface!$M$2:$M$101)+SUMIF(Interface!$K$2:$K$101,"="&Interface!B59,Interface!$M$2:$M$101) -> 0
A59: =SUMIF(Interface!$F$2:$F$101,"="&Interface!B60,Interface!$L$2:$L$101)+SUMIF(Interface!$G$2:$G$101,"="&Interface!B60,Interface!$L$2:$L$101)+SUMIF(Interface!$H$2:$H$101,"="&Interface!B60,Interface!$L$2:$L$101)+SUMIF(Interface!$I$2:$I$101,"="&Interface!B60,Interface!$M$2:$M$101)+SUMIF(Interface!$J$2:$J$101,"="&Interface!B60,Interface!$M$2:$M$101)+SUMIF(Interface!$K$2:$K$101,"="&Interface!B60,Interface!$M$2:$M$101) -> 0
A60: =SUMIF(Interface!$F$2:$F$101,"="&Interface!B61,Interface!$L$2:$L$101)+SUMIF(Interface!$G$2:$G$101,"="&Interface!B61,Interface!$L$2:$L$101)+SUMIF(Interface!$H$2:$H$101,"="&Interface!B61,Interface!$L$2:$L$101)+SUMIF(Interface!$I$2:$I$101,"="&Interface!B61,Interface!$M$2:$M$101)+SUMIF(Interface!$J$2:$J$101,"="&Interface!B61,Interface!$M$2:$M$101)+SUMIF(Interface!$K$2:$K$101,"="&Interface!B61,Interface!$M$2:$M$101) -> 0
A61: =SUMIF(Interface!$F$2:$F$101,"="&Interface!B62,Interface!$L$2:$L$101)+SUMIF(Interface!$G$2:$G$101,"="&Interface!B62,Interface!$L$2:$L$101)+SUMIF(Interface!$H$2:$H$101,"="&Interface!B62,Interface!$L$2:$L$101)+SUMIF(Interface!$I$2:$I$101,"="&Interface!B62,Interface!$M$2:$M$101)+SUMIF(Interface!$J$2:$J$101,"="&Interface!B62,Interface!$M$2:$M$101)+SUMIF(Interface!$K$2:$K$101,"="&Interface!B62,Interface!$M$2:$M$101) -> 0
A62: =SUMIF(Interface!$F$2:$F$101,"="&Interface!B63,Interface!$L$2:$L$101)+SUMIF(Interface!$G$2:$G$101,"="&Interface!B63,Interface!$L$2:$L$101)+SUMIF(Interface!$H$2:$H$101,"="&Interface!B63,Interface!$L$2:$L$101)+SUMIF(Interface!$I$2:$I$101,"="&Interface!B63,Interface!$M$2:$M$101)+SUMIF(Interface!$J$2:$J$101,"="&Interface!B63,Interface!$M$2:$M$101)+SUMIF(Interface!$K$2:$K$101,"="&Interface!B63,Interface!$M$2:$M$101) -> 0
A63: =SUMIF(Interface!$F$2:$F$101,"="&Interface!B64,Interface!$L$2:$L$101)+SUMIF(Interface!$G$2:$G$101,"="&Interface!B64,Interface!$L$2:$L$101)+SUMIF(Interface!$H$2:$H$101,"="&Interface!B64,Interface!$L$2:$L$101)+SUMIF(Interface!$I$2:$I$101,"="&Interface!B64,Interface!$M$2:$M$101)+SUMIF(Interface!$J$2:$J$101,"="&Interface!B64,Interface!$M$2:$M$101)+SUMIF(Interface!$K$2:$K$101,"="&Interface!B64,Interface!$M$2:$M$101) -> 0
A64: =SUMIF(Interface!$F$2:$F$101,"="&Interface!B65,Interface!$L$2:$L$101)+SUMIF(Interface!$G$2:$G$101,"="&Interface!B65,Interface!$L$2:$L$101)+SUMIF(Interface!$H$2:$H$101,"="&Interface!B65,Interface!$L$2:$L$101)+SUMIF(Interface!$I$2:$I$101,"="&Interface!B65,Interface!$M$2:$M$101)+SUMIF(Interface!$J$2:$J$101,"="&Interface!B65,Interface!$M$2:$M$101)+SUMIF(Interface!$K$2:$K$101,"="&Interface!B65,Interface!$M$2:$M$101) -> 0
A65: =SUMIF(Interface!$F$2:$F$101,"="&Interface!B66,Interface!$L$2:$L$101)+SUMIF(Interface!$G$2:$G$101,"="&Interface!B66,Interface!$L$2:$L$101)+SUMIF(Interface!$H$2:$H$101,"="&Interface!B66,Interface!$L$2:$L$101)+SUMIF(Interface!$I$2:$I$101,"="&Interface!B66,Interface!$M$2:$M$101)+SUMIF(Interface!$J$2:$J$101,"="&Interface!B66,Interface!$M$2:$M$101)+SUMIF(Interface!$K$2:$K$101,"="&Interface!B66,Interface!$M$2:$M$101) -> 0
A66: =SUMIF(Interface!$F$2:$F$101,"="&Interface!B67,Interface!$L$2:$L$101)+SUMIF(Interface!$G$2:$G$101,"="&Interface!B67,Interface!$L$2:$L$101)+SUMIF(Interface!$H$2:$H$101,"="&Interface!B67,Interface!$L$2:$L$101)+SUMIF(Interface!$I$2:$I$101,"="&Interface!B67,Interface!$M$2:$M$101)+SUMIF(Interface!$J$2:$J$101,"="&Interface!B67,Interface!$M$2:$M$101)+SUMIF(Interface!$K$2:$K$101,"="&Interface!B67,Interface!$M$2:$M$101) -> 0
A67: =SUMIF(Interface!$F$2:$F$101,"="&Interface!B68,Interface!$L$2:$L$101)+SUMIF(Interface!$G$2:$G$101,"="&Interface!B68,Interface!$L$2:$L$101)+SUMIF(Interface!$H$2:$H$101,"="&Interface!B68,Interface!$L$2:$L$101)+SUMIF(Interface!$I$2:$I$101,"="&Interface!B68,Interface!$M$2:$M$101)+SUMIF(Interface!$J$2:$J$101,"="&Interface!B68,Interface!$M$2:$M$101)+SUMIF(Interface!$K$2:$K$101,"="&Interface!B68,Interface!$M$2:$M$101) -> 0
A68: =SUMIF(Interface!$F$2:$F$101,"="&Interface!B69,Interface!$L$2:$L$101)+SUMIF(Interface!$G$2:$G$101,"="&Interface!B69,Interface!$L$2:$L$101)+SUMIF(Interface!$H$2:$H$101,"="&Interface!B69,Interface!$L$2:$L$101)+SUMIF(Interface!$I$2:$I$101,"="&Interface!B69,Interface!$M$2:$M$101)+SUMIF(Interface!$J$2:$J$101,"="&Interface!B69,Interface!$M$2:$M$101)+SUMIF(Interface!$K$2:$K$101,"="&Interface!B69,Interface!$M$2:$M$101) -> 0
A69: =SUMIF(Interface!$F$2:$F$101,"="&Interface!B70,Interface!$L$2:$L$101)+SUMIF(Interface!$G$2:$G$101,"="&Interface!B70,Interface!$L$2:$L$101)+SUMIF(Interface!$H$2:$H$101,"="&Interface!B70,Interface!$L$2:$L$101)+SUMIF(Interface!$I$2:$I$101,"="&Interface!B70,Interface!$M$2:$M$101)+SUMIF(Interface!$J$2:$J$101,"="&Interface!B70,Interface!$M$2:$M$101)+SUMIF(Interface!$K$2:$K$101,"="&Interface!B70,Interface!$M$2:$M$101) -> 0
A70: =SUMIF(Interface!$F$2:$F$101,"="&Interface!B71,Interface!$L$2:$L$101)+SUMIF(Interface!$G$2:$G$101,"="&Interface!B71,Interface!$L$2:$L$101)+SUMIF(Interface!$H$2:$H$101,"="&Interface!B71,Interface!$L$2:$L$101)+SUMIF(Interface!$I$2:$I$101,"="&Interface!B71,Interface!$M$2:$M$101)+SUMIF(Interface!$J$2:$J$101,"="&Interface!B71,Interface!$M$2:$M$101)+SUMIF(Interface!$K$2:$K$101,"="&Interface!B71,Interface!$M$2:$M$101) -> 0
A71: =SUMIF(Interface!$F$2:$F$101,"="&Interface!B72,Interface!$L$2:$L$101)+SUMIF(Interface!$G$2:$G$101,"="&Interface!B72,Interface!$L$2:$L$101)+SUMIF(Interface!$H$2:$H$101,"="&Interface!B72,Interface!$L$2:$L$101)+SUMIF(Interface!$I$2:$I$101,"="&Interface!B72,Interface!$M$2:$M$101)+SUMIF(Interface!$J$2:$J$101,"="&Interface!B72,Interface!$M$2:$M$101)+SUMIF(Interface!$K$2:$K$101,"="&Interface!B72,Interface!$M$2:$M$101) -> 0
A72: =SUMIF(Interface!$F$2:$F$101,"="&Interface!B73,Interface!$L$2:$L$101)+SUMIF(Interface!$G$2:$G$101,"="&Interface!B73,Interface!$L$2:$L$101)+SUMIF(Interface!$H$2:$H$101,"="&Interface!B73,Interface!$L$2:$L$101)+SUMIF(Interface!$I$2:$I$101,"="&Interface!B73,Interface!$M$2:$M$101)+SUMIF(Interface!$J$2:$J$101,"="&Interface!B73,Interface!$M$2:$M$101)+SUMIF(Interface!$K$2:$K$101,"="&Interface!B73,Interface!$M$2:$M$101) -> 0
A73: =SUMIF(Interface!$F$2:$F$101,"="&Interface!B74,Interface!$L$2:$L$101)+SUMIF(Interface!$G$2:$G$101,"="&Interface!B74,Interface!$L$2:$L$101)+SUMIF(Interface!$H$2:$H$101,"="&Interface!B74,Interface!$L$2:$L$101)+SUMIF(Interface!$I$2:$I$101,"="&Interface!B74,Interface!$M$2:$M$101)+SUMIF(Interface!$J$2:$J$101,"="&Interface!B74,Interface!$M$2:$M$101)+SUMIF(Interface!$K$2:$K$101,"="&Interface!B74,Interface!$M$2:$M$101) -> 0
A74: =SUMIF(Interface!$F$2:$F$101,"="&Interface!B75,Interface!$L$2:$L$101)+SUMIF(Interface!$G$2:$G$101,"="&Interface!B75,Interface!$L$2:$L$101)+SUMIF(Interface!$H$2:$H$101,"="&Interface!B75,Interface!$L$2:$L$101)+SUMIF(Interface!$I$2:$I$101,"="&Interface!B75,Interface!$M$2:$M$101)+SUMIF(Interface!$J$2:$J$101,"="&Interface!B75,Interface!$M$2:$M$101)+SUMIF(Interface!$K$2:$K$101,"="&Interface!B75,Interface!$M$2:$M$101) -> 0
A75: =SUMIF(Interface!$F$2:$F$101,"="&Interface!B76,Interface!$L$2:$L$101)+SUMIF(Interface!$G$2:$G$101,"="&Interface!B76,Interface!$L$2:$L$101)+SUMIF(Interface!$H$2:$H$101,"="&Interface!B76,Interface!$L$2:$L$101)+SUMIF(Interface!$I$2:$I$101,"="&Interface!B76,Interface!$M$2:$M$101)+SUMIF(Interface!$J$2:$J$101,"="&Interface!B76,Interface!$M$2:$M$101)+SUMIF(Interface!$K$2:$K$101,"="&Interface!B76,Interface!$M$2:$M$101) -> 0
A76: =SUMIF(Interface!$F$2:$F$101,"="&Interface!B77,Interface!$L$2:$L$101)+SUMIF(Interface!$G$2:$G$101,"="&Interface!B77,Interface!$L$2:$L$101)+SUMIF(Interface!$H$2:$H$101,"="&Interface!B77,Interface!$L$2:$L$101)+SUMIF(Interface!$I$2:$I$101,"="&Interface!B77,Interface!$M$2:$M$101)+SUMIF(Interface!$J$2:$J$101,"="&Interface!B77,Interface!$M$2:$M$101)+SUMIF(Interface!$K$2:$K$101,"="&Interface!B77,Interface!$M$2:$M$101) -> 0
A77: =SUMIF(Interface!$F$2:$F$101,"="&Interface!B78,Interface!$L$2:$L$101)+SUMIF(Interface!$G$2:$G$101,"="&Interface!B78,Interface!$L$2:$L$101)+SUMIF(Interface!$H$2:$H$101,"="&Interface!B78,Interface!$L$2:$L$101)+SUMIF(Interface!$I$2:$I$101,"="&Interface!B78,Interface!$M$2:$M$101)+SUMIF(Interface!$J$2:$J$101,"="&Interface!B78,Interface!$M$2:$M$101)+SUMIF(Interface!$K$2:$K$101,"="&Interface!B78,Interface!$M$2:$M$101) -> 0
A78: =SUMIF(Interface!$F$2:$F$101,"="&Interface!B79,Interface!$L$2:$L$101)+SUMIF(Interface!$G$2:$G$101,"="&Interface!B79,Interface!$L$2:$L$101)+SUMIF(Interface!$H$2:$H$101,"="&Interface!B79,Interface!$L$2:$L$101)+SUMIF(Interface!$I$2:$I$101,"="&Interface!B79,Interface!$M$2:$M$101)+SUMIF(Interface!$J$2:$J$101,"="&Interface!B79,Interface!$M$2:$M$101)+SUMIF(Interface!$K$2:$K$101,"="&Interface!B79,Interface!$M$2:$M$101) -> 0
A79: =SUMIF(Interface!$F$2:$F$101,"="&Interface!B80,Interface!$L$2:$L$101)+SUMIF(Interface!$G$2:$G$101,"="&Interface!B80,Interface!$L$2:$L$101)+SUMIF(Interface!$H$2:$H$101,"="&Interface!B80,Interface!$L$2:$L$101)+SUMIF(Interface!$I$2:$I$101,"="&Interface!B80,Interface!$M$2:$M$101)+SUMIF(Interface!$J$2:$J$101,"="&Interface!B80,Interface!$M$2:$M$101)+SUMIF(Interface!$K$2:$K$101,"="&Interface!B80,Interface!$M$2:$M$101) -> 0
A80: =SUMIF(Interface!$F$2:$F$101,"="&Interface!B81,Interface!$L$2:$L$101)+SUMIF(Interface!$G$2:$G$101,"="&Interface!B81,Interface!$L$2:$L$101)+SUMIF(Interface!$H$2:$H$101,"="&Interface!B81,Interface!$L$2:$L$101)+SUMIF(Interface!$I$2:$I$101,"="&Interface!B81,Interface!$M$2:$M$101)+SUMIF(Interface!$J$2:$J$101,"="&Interface!B81,Interface!$M$2:$M$101)+SUMIF(Interface!$K$2:$K$101,"="&Interface!B81,Interface!$M$2:$M$101) -> 0
A81: =SUMIF(Interface!$F$2:$F$101,"="&Interface!B82,Interface!$L$2:$L$101)+SUMIF(Interface!$G$2:$G$101,"="&Interface!B82,Interface!$L$2:$L$101)+SUMIF(Interface!$H$2:$H$101,"="&Interface!B82,Interface!$L$2:$L$101)+SUMIF(Interface!$I$2:$I$101,"="&Interface!B82,Interface!$M$2:$M$101)+SUMIF(Interface!$J$2:$J$101,"="&Interface!B82,Interface!$M$2:$M$101)+SUMIF(Interface!$K$2:$K$101,"="&Interface!B82,Interface!$M$2:$M$101) -> 0
A82: =SUMIF(Interface!$F$2:$F$101,"="&Interface!B83,Interface!$L$2:$L$101)+SUMIF(Interface!$G$2:$G$101,"="&Interface!B83,Interface!$L$2:$L$101)+SUMIF(Interface!$H$2:$H$101,"="&Interface!B83,Interface!$L$2:$L$101)+SUMIF(Interface!$I$2:$I$101,"="&Interface!B83,Interface!$M$2:$M$101)+SUMIF(Interface!$J$2:$J$101,"="&Interface!B83,Interface!$M$2:$M$101)+SUMIF(Interface!$K$2:$K$101,"="&Interface!B83,Interface!$M$2:$M$101) -> 0
A83: =SUMIF(Interface!$F$2:$F$101,"="&Interface!B84,Interface!$L$2:$L$101)+SUMIF(Interface!$G$2:$G$101,"="&Interface!B84,Interface!$L$2:$L$101)+SUMIF(Interface!$H$2:$H$101,"="&Interface!B84,Interface!$L$2:$L$101)+SUMIF(Interface!$I$2:$I$101,"="&Interface!B84,Interface!$M$2:$M$101)+SUMIF(Interface!$J$2:$J$101,"="&Interface!B84,Interface!$M$2:$M$101)+SUMIF(Interface!$K$2:$K$101,"="&Interface!B84,Interface!$M$2:$M$101) -> 0
A84: =SUMIF(Interface!$F$2:$F$101,"="&Interface!B85,Interface!$L$2:$L$101)+SUMIF(Interface!$G$2:$G$101,"="&Interface!B85,Interface!$L$2:$L$101)+SUMIF(Interface!$H$2:$H$101,"="&Interface!B85,Interface!$L$2:$L$101)+SUMIF(Interface!$I$2:$I$101,"="&Interface!B85,Interface!$M$2:$M$101)+SUMIF(Interface!$J$2:$J$101,"="&Interface!B85,Interface!$M$2:$M$101)+SUMIF(Interface!$K$2:$K$101,"="&Interface!B85,Interface!$M$2:$M$101) -> 0
A85: =SUMIF(Interface!$F$2:$F$101,"="&Interface!B86,Interface!$L$2:$L$101)+SUMIF(Interface!$G$2:$G$101,"="&Interface!B86,Interface!$L$2:$L$101)+SUMIF(Interface!$H$2:$H$101,"="&Interface!B86,Interface!$L$2:$L$101)+SUMIF(Interface!$I$2:$I$101,"="&Interface!B86,Interface!$M$2:$M$101)+SUMIF(Interface!$J$2:$J$101,"="&Interface!B86,Interface!$M$2:$M$101)+SUMIF(Interface!$K$2:$K$101,"="&Interface!B86,Interface!$M$2:$M$101) -> 0
A86: =SUMIF(Interface!$F$2:$F$101,"="&Interface!B87,Interface!$L$2:$L$101)+SUMIF(Interface!$G$2:$G$101,"="&Interface!B87,Interface!$L$2:$L$101)+SUMIF(Interface!$H$2:$H$101,"="&Interface!B87,Interface!$L$2:$L$101)+SUMIF(Interface!$I$2:$I$101,"="&Interface!B87,Interface!$M$2:$M$101)+SUMIF(Interface!$J$2:$J$101,"="&Interface!B87,Interface!$M$2:$M$101)+SUMIF(Interface!$K$2:$K$101,"="&Interface!B87,Interface!$M$2:$M$101) -> 0
A87: =SUMIF(Interface!$F$2:$F$101,"="&Interface!B88,Interface!$L$2:$L$101)+SUMIF(Interface!$G$2:$G$101,"="&Interface!B88,Interface!$L$2:$L$101)+SUMIF(Interface!$H$2:$H$101,"="&Interface!B88,Interface!$L$2:$L$101)+SUMIF(Interface!$I$2:$I$101,"="&Interface!B88,Interface!$M$2:$M$101)+SUMIF(Interface!$J$2:$J$101,"="&Interface!B88,Interface!$M$2:$M$101)+SUMIF(Interface!$K$2:$K$101,"="&Interface!B88,Interface!$M$2:$M$101) -> 0
A88: =SUMIF(Interface!$F$2:$F$101,"="&Interface!B89,Interface!$L$2:$L$101)+SUMIF(Interface!$G$2:$G$101,"="&Interface!B89,Interface!$L$2:$L$101)+SUMIF(Interface!$H$2:$H$101,"="&Interface!B89,Interface!$L$2:$L$101)+SUMIF(Interface!$I$2:$I$101,"="&Interface!B89,Interface!$M$2:$M$101)+SUMIF(Interface!$J$2:$J$101,"="&Interface!B89,Interface!$M$2:$M$101)+SUMIF(Interface!$K$2:$K$101,"="&Interface!B89,Interface!$M$2:$M$101) -> 0
A89: =SUMIF(Interface!$F$2:$F$101,"="&Interface!B90,Interface!$L$2:$L$101)+SUMIF(Interface!$G$2:$G$101,"="&Interface!B90,Interface!$L$2:$L$101)+SUMIF(Interface!$H$2:$H$101,"="&Interface!B90,Interface!$L$2:$L$101)+SUMIF(Interface!$I$2:$I$101,"="&Interface!B90,Interface!$M$2:$M$101)+SUMIF(Interface!$J$2:$J$101,"="&Interface!B90,Interface!$M$2:$M$101)+SUMIF(Interface!$K$2:$K$101,"="&Interface!B90,Interface!$M$2:$M$101) -> 0
A90: =SUMIF(Interface!$F$2:$F$101,"="&Interface!B91,Interface!$L$2:$L$101)+SUMIF(Interface!$G$2:$G$101,"="&Interface!B91,Interface!$L$2:$L$101)+SUMIF(Interface!$H$2:$H$101,"="&Interface!B91,Interface!$L$2:$L$101)+SUMIF(Interface!$I$2:$I$101,"="&Interface!B91,Interface!$M$2:$M$101)+SUMIF(Interface!$J$2:$J$101,"="&Interface!B91,Interface!$M$2:$M$101)+SUMIF(Interface!$K$2:$K$101,"="&Interface!B91,Interface!$M$2:$M$101) -> 0
A91: =SUMIF(Interface!$F$2:$F$101,"="&Interface!B92,Interface!$L$2:$L$101)+SUMIF(Interface!$G$2:$G$101,"="&Interface!B92,Interface!$L$2:$L$101)+SUMIF(Interface!$H$2:$H$101,"="&Interface!B92,Interface!$L$2:$L$101)+SUMIF(Interface!$I$2:$I$101,"="&Interface!B92,Interface!$M$2:$M$101)+SUMIF(Interface!$J$2:$J$101,"="&Interface!B92,Interface!$M$2:$M$101)+SUMIF(Interface!$K$2:$K$101,"="&Interface!B92,Interface!$M$2:$M$101) -> 0
A92: =SUMIF(Interface!$F$2:$F$101,"="&Interface!B93,Interface!$L$2:$L$101)+SUMIF(Interface!$G$2:$G$101,"="&Interface!B93,Interface!$L$2:$L$101)+SUMIF(Interface!$H$2:$H$101,"="&Interface!B93,Interface!$L$2:$L$101)+SUMIF(Interface!$I$2:$I$101,"="&Interface!B93,Interface!$M$2:$M$101)+SUMIF(Interface!$J$2:$J$101,"="&Interface!B93,Interface!$M$2:$M$101)+SUMIF(Interface!$K$2:$K$101,"="&Interface!B93,Interface!$M$2:$M$101) -> 0
A93: =SUMIF(Interface!$F$2:$F$101,"="&Interface!B94,Interface!$L$2:$L$101)+SUMIF(Interface!$G$2:$G$101,"="&Interface!B94,Interface!$L$2:$L$101)+SUMIF(Interface!$H$2:$H$101,"="&Interface!B94,Interface!$L$2:$L$101)+SUMIF(Interface!$I$2:$I$101,"="&Interface!B94,Interface!$M$2:$M$101)+SUMIF(Interface!$J$2:$J$101,"="&Interface!B94,Interface!$M$2:$M$101)+SUMIF(Interface!$K$2:$K$101,"="&Interface!B94,Interface!$M$2:$M$101) -> 0
A94: =SUMIF(Interface!$F$2:$F$101,"="&Interface!B95,Interface!$L$2:$L$101)+SUMIF(Interface!$G$2:$G$101,"="&Interface!B95,Interface!$L$2:$L$101)+SUMIF(Interface!$H$2:$H$101,"="&Interface!B95,Interface!$L$2:$L$101)+SUMIF(Interface!$I$2:$I$101,"="&Interface!B95,Interface!$M$2:$M$101)+SUMIF(Interface!$J$2:$J$101,"="&Interface!B95,Interface!$M$2:$M$101)+SUMIF(Interface!$K$2:$K$101,"="&Interface!B95,Interface!$M$2:$M$101) -> 0
A95: =SUMIF(Interface!$F$2:$F$101,"="&Interface!B96,Interface!$L$2:$L$101)+SUMIF(Interface!$G$2:$G$101,"="&Interface!B96,Interface!$L$2:$L$101)+SUMIF(Interface!$H$2:$H$101,"="&Interface!B96,Interface!$L$2:$L$101)+SUMIF(Interface!$I$2:$I$101,"="&Interface!B96,Interface!$M$2:$M$101)+SUMIF(Interface!$J$2:$J$101,"="&Interface!B96,Interface!$M$2:$M$101)+SUMIF(Interface!$K$2:$K$101,"="&Interface!B96,Interface!$M$2:$M$101) -> 0
A96: =SUMIF(Interface!$F$2:$F$101,"="&Interface!B97,Interface!$L$2:$L$101)+SUMIF(Interface!$G$2:$G$101,"="&Interface!B97,Interface!$L$2:$L$101)+SUMIF(Interface!$H$2:$H$101,"="&Interface!B97,Interface!$L$2:$L$101)+SUMIF(Interface!$I$2:$I$101,"="&Interface!B97,Interface!$M$2:$M$101)+SUMIF(Interface!$J$2:$J$101,"="&Interface!B97,Interface!$M$2:$M$101)+SUMIF(Interface!$K$2:$K$101,"="&Interface!B97,Interface!$M$2:$M$101) -> 0
A97: =SUMIF(Interface!$F$2:$F$101,"="&Interface!B98,Interface!$L$2:$L$101)+SUMIF(Interface!$G$2:$G$101,"="&Interface!B98,Interface!$L$2:$L$101)+SUMIF(Interface!$H$2:$H$101,"="&Interface!B98,Interface!$L$2:$L$101)+SUMIF(Interface!$I$2:$I$101,"="&Interface!B98,Interface!$M$2:$M$101)+SUMIF(Interface!$J$2:$J$101,"="&Interface!B98,Interface!$M$2:$M$101)+SUMIF(Interface!$K$2:$K$101,"="&Interface!B98,Interface!$M$2:$M$101) -> 0
A98: =SUMIF(Interface!$F$2:$F$101,"="&Interface!B99,Interface!$L$2:$L$101)+SUMIF(Interface!$G$2:$G$101,"="&Interface!B99,Interface!$L$2:$L$101)+SUMIF(Interface!$H$2:$H$101,"="&Interface!B99,Interface!$L$2:$L$101)+SUMIF(Interface!$I$2:$I$101,"="&Interface!B99,Interface!$M$2:$M$101)+SUMIF(Interface!$J$2:$J$101,"="&Interface!B99,Interface!$M$2:$M$101)+SUMIF(Interface!$K$2:$K$101,"="&Interface!B99,Interface!$M$2:$M$101) -> 0
A99: =SUMIF(Interface!$F$2:$F$101,"="&Interface!B100,Interface!$L$2:$L$101)+SUMIF(Interface!$G$2:$G$101,"="&Interface!B100,Interface!$L$2:$L$101)+SUMIF(Interface!$H$2:$H$101,"="&Interface!B100,Interface!$L$2:$L$101)+SUMIF(Interface!$I$2:$I$101,"="&Interface!B100,Interface!$M$2:$M$101)+SUMIF(Interface!$J$2:$J$101,"="&Interface!B100,Interface!$M$2:$M$101)+SUMIF(Interface!$K$2:$K$101,"="&Interface!B100,Interface!$M$2:$M$101) -> 0
A100: =SUMIF(Interface!$F$2:$F$101,"="&Interface!B101,Interface!$L$2:$L$101)+SUMIF(Interface!$G$2:$G$101,"="&Interface!B101,Interface!$L$2:$L$101)+SUMIF(Interface!$H$2:$H$101,"="&Interface!B101,Interface!$L$2:$L$101)+SUMIF(Interface!$I$2:$I$101,"="&Interface!B101,Interface!$M$2:$M$101)+SUMIF(Interface!$J$2:$J$101,"="&Interface!B101,Interface!$M$2:$M$101)+SUMIF(Interface!$K$2:$K$101,"="&Interface!B101,Interface!$M$2:$M$101) -> 0
A101: =SUMIF(Interface!$F$2:$F$101,"="&Interface!B102,Interface!$L$2:$L$101)+SUMIF(Interface!$G$2:$G$101,"="&Interface!B102,Interface!$L$2:$L$101)+SUMIF(Interface!$H$2:$H$101,"="&Interface!B102,Interface!$L$2:$L$101)+SUMIF(Interface!$I$2:$I$101,"="&Interface!B102,Interface!$M$2:$M$101)+SUMIF(Interface!$J$2:$J$101,"="&Interface!B102,Interface!$M$2:$M$101)+SUMIF(Interface!$K$2:$K$101,"="&Interface!B102,Interface!$M$2:$M$101) -> 0

Sheet p
A1: 30.45056752
A2: 55.9852224
A3: 32.81134144
A4: 26.45948747
A5: 26.8977996
A6: 47.54148473
A7: 31.48344635
A8: 39.34132285
A9: 54.1724445
A10: 16.04904122
A11: 49.4849923
A12: 22.3509637
A13: 13.94394825
A14: 21.08798471
A15: 31.97891695
A16: 46.09385035
A17: 16.63517998
A18: 14.75096936
A19: 49.5476243
A20: 57.20184931
A21: 26.45318389
A22: 21.77571189
A23: 9.646117468
A24: 25.62096444
A25: 32.09477963
A26: 27.9420263
A27: 4.814431005
A28: 25.52289143
A29: 22.60843377
A30: 15.42390322
A31: 33.32124065
A32: 33.42905797
A33: 25.27966068
A34: 46.14643905
A35: 19.3579627
A36: 40.35910496
A37: 9.741097449
A38: 17.65544606
A39: 19.80798141
A40: 30.53752206
A41: 33.57925337
A42: 36.35141147
A43: 4.434163243
A44: 4.864537783
A45: 27.47377631
A46: 14.57438473
A47: 9.512520414
A48: 8.888029627
A49: 33.34910281
A50: 32.33216627
A51: 18.74130317
A52: 27.73430112

Sheet Results
A1: 30.45056752 | B1: 101
A2: 55.9852224 | B2: 111
A3: 32.81134144 | B3: 171
A4: 26.45948747 | B4: 291
A5: 26.8977996 | B5: 375
A6: 47.54148473 | B6: 379
A7: 31.48344635 | B7: 931
A8: 39.34132285 | B8: 1625
A9: 54.1724445 | B9: 1736
A10: 16.04904122 | B10: 1739
A11: 49.4849923 | B11: 1756
A12: 22.3509637 | B12: 1781
A13: 13.94394825 | B13: 1850
A14: 21.08798471 | B14: 2022
A15: 31.97891695 | B15: 2039
A16: 46.09385035 | B16: 2062
A17: 16.63517998 | B17: 2136
A18: 14.75096936 | B18: 2151
A19: 49.5476243 | B19: 2338
A20: 57.20184931 | B20: 2451
A21: 26.45318389 | B21: 2704
A22: 21.77571189 | B22: 2709
A23: 9.646117468 | B23: 2725
A24: 25.62096444 | B24: 2781
A25: 32.09477963 | B25: 3061
A26: 27.9420263 | B26: 3067
A27: 4.814431005 | B27: 3110
A28: 25.52289143 | B28: 3135
A29: 22.60843377 | B29: 3352
A30: 15.42390322 | B30: 3390
A31: 33.32124065 | B31: 3488
A32: 33.42905797 | B32: 3695
A33: 25.27966068 | B33: 4096
A34: 46.14643905 | B34: 4143
A35: 19.3579627 | B35: 4191
A36: 40.35910496 | B36: 4241
A37: 9.741097449 | B37: 4247
A38: 17.65544606 | B38: 4292
A39: 19.80798141 | B39: 4296
A40: 30.53752206 | B40: 4329
A41: 33.57925337 | B41: 4645
A42: 36.35141147 | B42: 4655
A43: 4.434163243 | B43: 4676
A44: 4.864537783 | B44: 4702
A45: 27.47377631 | B45: 4787
A46: 14.57438473 | B46: 4979
A47: 9.512520414 | B47: 5125
A48: 8.888029627 | B48: 5350
A49: 33.34910281 | B49: 5822
A50: 32.33216627 | B50: 5847
A51: 18.74130317 | B51: 5934
A52: 27.73430112 | B52: 6237

Sheet Analysis
B1: top 10 OPRs | C1: team | D1: z-score | F1: Average OPR: | G1: =AVERAGE(Results!$A$1:$A$100) -> 27.37771815
A2: 1 | B2: =LARGE(Results!$A$1:$A$100,ROW(A1)) -> 57.20184931 | C2: =VLOOKUP(B2,Results!$A$1:$B$100,2,FALSE) -> 2451 | D2: =STANDARDIZE(B2,G$1,G$2) -> 2.226589023 | F2: StDev: | G2: =_xlfn.STDEV.P(Results!A1:A100) -> 13.39453795
A3: 2 | B3: =LARGE(Results!$A$1:$A$100,ROW(A2)) -> 55.9852224 | C3: =VLOOKUP(B3,Results!$A$1:$B$100,2,FALSE) -> 111 | D3: =STANDARDIZE(B3,G$1,G$2) -> 2.135758947
A4: 3 | B4: =LARGE(Results!$A$1:$A$100,ROW(A3)) -> 54.1724445 | C4: =VLOOKUP(B4,Results!$A$1:$B$100,2,FALSE) -> 1736 | D4: =STANDARDIZE(B4,G$1,G$2) -> 2.000421848
A5: 4 | B5: =LARGE(Results!$A$1:$A$100,ROW(A4)) -> 49.5476243 | C5: =VLOOKUP(B5,Results!$A$1:$B$100,2,FALSE) -> 2338 | D5: =STANDARDIZE(B5,G$1,G$2) -> 1.655145272
A6: 5 | B6: =LARGE(Results!$A$1:$A$100,ROW(A5)) -> 49.4849923 | C6: =VLOOKUP(B6,Results!$A$1:$B$100,2,FALSE) -> 1756 | D6: =STANDARDIZE(B6,G$1,G$2) -> 1.650469336
A7: 6 | B7: =LARGE(Results!$A$1:$A$100,ROW(A6)) -> 47.54148473 | C7: =VLOOKUP(B7,Results!$A$1:$B$100,2,FALSE) -> 379 | D7: =STANDARDIZE(B7,G$1,G$2) -> 1.505372314
A8: 7 | B8: =LARGE(Results!$A$1:$A$100,ROW(A7)) -> 46.14643905 | C8: =VLOOKUP(B8,Results!$A$1:$B$100,2,FALSE) -> 4143 | D8: =STANDARDIZE(B8,G$1,G$2) -> 1.401221974
A9: 8 | B9: =LARGE(Results!$A$1:$A$100,ROW(A8)) -> 46.09385035 | C9: =VLOOKUP(B9,Results!$A$1:$B$100,2,FALSE) -> 2062 | D9: =STANDARDIZE(B9,G$1,G$2) -> 1.397295844
A10: 9 | B10: =LARGE(Results!$A$1:$A$100,ROW(A9)) -> 40.35910496 | C10: =VLOOKUP(B10,Results!$A$1:$B$100,2,FALSE) -> 4241 | D10: =STANDARDIZE(B10,G$1,G$2) -> 0.9691552533
A11: 10 | B11: =LARGE(Results!$A$1:$A$100,ROW(A10)) -> 39.34132285 | C11: =VLOOKUP(B11,Results!$A$1:$B$100,2,FALSE) -> 1625 | D11: =STANDARDIZE(B11,G$1,G$2) -> 0.8931703913
